Workbook

Sheet Explanation
A1: Land Value Grid Explanation
A2: Don't forget to enable macros! ->
A3: This version of the workbook is out of date a no longer supported. Please update to a newer version.
A4: Outline of purpose
A5: Verified sales data for a particular property class and from a given neighborhood is entered into the spreadsheet. Calculations are automatically run against the entered data using approved sales analysis techniques to project a regression trend. From said trend, costs per unit are concluded to complete the land value study.
A7: Users will have the ability to quickly pair sales to calculate time adjustments as well as the ability to quickly visualize and exclude sales from the regression trend calculation.
A9: Breakdown of primary worksheets
A10: · The Global Settings tab stores user entered information as well as calculated information that drives other parts of the workbook.
A11: · The Data Entry tab provides a layout for users to enter relevant verified sales data for a given neighborhood.
A12: · The Time Adjustment tab serves as an interface to pair sales and calculate a percent per month time adjustment to apply to sales outside of the study period. This is not needed if only sales within the time period are used.
A13: · Calculations are applied against entered data to derive tabulated statistical observations on the Analysis tab. The tab is further utilized to visualize the effect each statistical observation has on the regression trend as observations are added or removed.
A14: · Once the line of best fit is finalized, the Conclusions tab is utilized to determine the indicated cost per unit of any sized parcel as it would fall on said line. Thus price intervals are determined and entered into CAMA software for interpolation.
A16: Step by step process (simplified)
A17: 1. Save a new workbook for each neighborhood (land table) for each class.
A18: 2. Enter verified sales data into established fields.
A19: 3. Pair sales to calculate monthly time adjustment if sales outside the time period are used.
A20: 4. Remove sales as warranted.
A21: 5. Review conclusions.
A23: Step by step process (broken-down)
A24: 1. Enter Global Settings
A25: a. The dates of the study period should be entered.
A26: i. Note this area will also store information on time adjustments once calculated. Users can manually override the calculated time adjustment if they so choose.
A27: b. Take note of the Land to Building ratio tolerance.
A28: i. Once sales data has been entered, this section will determine a Land Allocation Multiplier. By default, the tolerance will automatically use statistics to establish parameters. In particular: Abstracted sales with an indicated LB Ratio that is plus or minus one standard deviation from the mean indicated LB Ratio. Note the tolerance and concluded Land Allocation Multiplier can be overrode at the user’s discretion.
A30: 2. Populate Data Entry tab with verified sales data.
A31: a. Mandatory fields include:
A32: Valuation Method, Parcel Number, Sale Date, Sale Price, Total Acre, and Improvements Value.
A33: b. For each row, be certain to select a Valuation Method.
A34: i. Note that improved sales should be entered twice:
A35: Once using Abstraction and once using Allocation.
A36: c. Multi-Parcel Sales should only be entered once under one primary parcel number. Be certain to include the net sale price, net acres of all parcels included in the sale, and net building values (all improvement TCVs) of all parcels included in the sale.
A37: d. Improvement values should be as of the date of sale.
A38: e. The sheet is designed for entry of Total Acres and Rights of Way to be separately listed for later exclusion from the total. If acreages are entered that are not inclusive of rights for way, then enter “0” in the right of way column.
A40: 3. Use the Time Adjustment tab to perform paired sales analysis and calculate a monthly time adjustment.
A41: a. An observation or row will populate in the bottom section of the Time Adjustment tab for each row entered on the Data Entry tab.
A42: b. Sales can be added in the Data Entry tab to be used in the Time Adjustment pairing interface, even if said sales won’t ultimately be used in the final land value conclusions.
A43: c. Use the first column of the bottom section of the Time Adjustment tab to designate “pair groups”.
A44: i. For instance, enter “1” to assign a sale to be pared.
A45: ii. Enter “1” on another sale to pair it with the first sale.
A46: iii. Do not enter a third “1” on another sale. Each pair group should only have two sales.
A47: iv. There are 6 total groups available on the Time Adjustment interface.
A49: 4. Review the Analysis tab.
A50: a. An observation or row will populate for each row entered on the “Data Entry” tab.
A51: b. Observations can be removed or included in the analysis by entering a 0 (removed) or 1 (included) in the “Use” column.
A52: i. By default, newly entered data is automatically included unless specifically excluded in the “Use” column.
A53: ii. An exclusion comment should be entered in the appropriate column explaining the rationale used to eliminate an observation.
A54: c. You may encounter an error stating “Some trendlines cannot be calculated from data containing negative or zero values.”
A55: i. Seek out observations with a zero or negative value in the “Adjusted Price Per Sq Ft” column and set their use to 0 in the “Use” column to correct the error.
A56: ii. Observations with a negative land residual (abstracted sales where the appraised building value exceeds the sale price) will cause this to happen.
A57: iii. It may be worth reviewing these occurrences to determine the cause and if it was in error.
A59: d. Data on the Analysis tab can be filtered and sorted for review using the pre-established arrows next to each column header.
A60: i. Sorting the “Residual Acre” or “Residual Sq Ft” column from smallest to largest can be very helpful for analysis. With such an array, the “Adjusted Price Per Sq Ft” column can be reviewed for a-typical observations. The principle of economies of scale tells us that we should expect the price per unit to decrease as the size of the parcel increases.
A61: e. The chart is useful for spotting outliers and visualizing the effect on the overall trend as observations are removed or added in the “Use” column.
A62: i. It may be helpful to adjust the maximum values for the Y and/or X axis to a smaller number to zoom in to where the data is most dense. Especially large parcels or extremely high prices per unit can result in undesirably wide or tall charts.
A63: ii. Note that while “not used” observations will not contribute to the calculation of the regression trend, the data points are still visible on the chart.
A65: 5. Review the Conclusions tab
A66: a. After establishing which observations will be used for land value determinations, the conclusions tab indicates the concluded value of a given area of land, based on its size, according to the regression trend of the sales data.
A67: i. The square foot table indicates concluded values for the intervals pre-canned in the square foot table of Assessing.net for interpolation.
A68: ii. The acreage table indicates concluded values for the intervals pre-canned in the square foot table of Assessing.net for interpolation.
A69: b. Note: Other statistics on the Conclusions tab can be useful in conducting the analysis as well. Different acreage ranges may be entered to analyze statistics of sales within custom graduations.
A71: 6. A new workbook can be saved for each neighborhood, each year.
A72: a. This is useful to display conclusions.
A73: b. This is useful to justify conclusions.
A74: c. This is useful to monument improvement values as of the date of sale outside of your database.
A76: 7. The workbook is designed to analyze sales within an already established neighborhood or land table boundary and assumes the established neighborhood is homogeneous. The workbook is not designed to help establish neighborhoods.
A78: 8. Conclusions will require common sense, analysis, and appropriate judgement. This workbook is a tool and cannot conclude anything on its own. It falls to the user to appropriately consider and examine the data to eventually arrive at a reasonable conclusion. Developer/s of this workbook are not responsible for resulting conclusions, errors, or omissions. Users of this workbook voluntarily assume all liabilities.

Sheet Global Settings
A1: User Defined Section | F1: Informational Section
B3: Dates for sales period | G3: Dates for sales period
B4: Enter the dates for the sales period: | G4: Title | H4: Value | I4: Explanation
B5: Out Year Start: | C5: 44652 | G5: Midpoint Study Period: | H5: =ROUND(C5+(C8-C5)/2,0) -> 45017 | I5: Sales outside of the study period will be adjusted to the midpoint of the Study Period
B6: Out Year End: | C6: =C5+364 -> 45016 | G6: Time Adjustment Per Month: | H6: ='Time Adjustment'!$S$14 -> 0.001567600712 | I6: The rate of adjustment is a percent per month which is calculated on the "Time Adj" sheet
B7: In Year Start: | C7: =C6+1 -> 45017
B8: In Year End: | C8: =C7+364 -> 45381
G11: Land to Building Ratio
G12: The LB Ratio of Abstracted Sales is used to calculate a "global" or weighted mean LB ratio (the Land Allocation Multiplier).
G13: The Land Allocation Multiplier is applied to verified improved sales to conclude a price per unit using the Allocation method.
B14: Land to Building Ratio | G14: Some Abstracted Sales will have an unusually low or high LB ratio indication and will disproportionally weight the Land Allocation Multiplier calculation.
B15: Enter the LB Ratio tolerance (optional): | G15: To the left, set the min & max LB ratio tolerance to prevent outliers from contributing to the calculation.
B16: Set Min LB Ratio Abstracted Sales: | C16: =AVERAGEIFS(LB_Ratio,Use,1,Valuation_Method_Analysis,"Abstraction")-STDEV(IF(Use=1,IF(Valuation_Method_Analysis="Abstraction",LB_Ratio))) -> 0.2238886405 | G16: (By default, unless overridden, this automatically excludes Abstracted sales with an LB ratio indication plus or minus one standard deviation from the mean.)
B17: Set Max LB Ratio Abstracted Sales: | C17: =AVERAGEIFS(LB_Ratio,Use,1,Valuation_Method_Analysis,"Abstraction")+STDEV(IF(Use=1,IF(Valuation_Method_Analysis="Abstraction",LB_Ratio))) -> 0.5942302578 | G17: Title | H17: Value | I17: Explanation
G18: Weighted Land Residual: | H18: =SUMIFS(Land_Residual,Valuation_Method_Analysis,"Abstraction",LB_Ratio,">="&$C$16,LB_Ratio,"<="&$C$17,Use,1) -> 3454872 | I18: The sum of the indicated Land Residuals of Abstracted Sales within specified tolerance
G19: Weighted Sale Price: | H19: =SUMIFS(Sale_Price_Analysis,Valuation_Method_Analysis,"Abstraction",LB_Ratio,">="&$C$16,LB_Ratio,"<="&$C$17,Use,1) -> 8545249 | I19: The sum of the Sale Prices of Abstraced Sales within specifed tolerance
G20: Land Allocation Multiplier: | H20: =ROUND(H18/H19,4) -> 0.4043 | I20: This is the concluded LB ratio applied to sales using the Allocation method.
G23: Verified Sales
B24: County & Unit Name | G24: Type | H24: Desc | I24: Explanation
B25: Full local unit name if applicable: | G25: Vacant | H25: Vacant Sales | I25: Verified vacant sales should be entered on the DataEntry tab
B26: Full county name: | G26: Abstraction | H26: Improved w/ Land Residual | I26: Improved sales should be entered and assigned the Abstraction valuation method
G27: Allocation | H27: Improved w/ Land Allocation | I27: Improved sales should be entered and assigned the Allocation valuation method
I28: Meaning: Improved sales should be twice entered!
A30: Workbook Version: v1.3.2
A31: To begin a new analysis, please obtain a copy of the latest version of this workbook from Tony: tmeyaard@berriencounty.org or Warren: wparrish@berriencounty.org.
A32: Your conclusions using this workbook are still visible on the various tabs.
A33: This version is out of date and has intentionally expired to ensure distribution of the latest updates to the workbook.
A34: =C25&" "&C26 -> 

Sheet Data Entry
A1: Item ID | B1: Valuation Method | C1: Parcel Number | D1: Address | E1: Sale Date | F1: Sale Price | G1: Conf. | H1: Liber/ Page | I1: Total Acre | J1: Total Sq Ft | K1: Total Front Ft | L1: ROW (Sq Ft) | M1: Imprvmts Value | N1: Other Parcels in Sale | O1: Comments | P1: Use? 1=Yes, 0=No | Q1: Exclusion Comment | R1: Pair Group
A2: =IF(B2="","",RIGHT(C2,4)&LEFT(B2,3)&E2-40000&"-"&LEFT(F2,3)) -> 5-26Vac4848-325 | B2: Vacant | C2: 060-031-000-115-26 | D2: 2615 S State Rd | E2: 44848 | F2: 325000 | G2: n | H2: 672/8795 | I2: 1.558 | J2: =I2*43560 -> 67866.48 | K2: 202.64 | L2: =0.233*43560 -> 10149.48 | M2: 0 | P2: 1 | R2: 2
A3: 0-01Abs4861-122 | B3: Abstraction | C3: 300-110-000-070-01 | D3: 1320 E Grand River Ave | E3: 44861 | F3: 1225000 | G3: n | H3: 672/9977 | I3: 1 | J3: =I3*43560 -> 43560 | K3: 144 | L3: 0 | M3: =40786+980439 -> 1021225 | P3: 1 | R3: 3
A4: 0-01All4861-122 | B4: Allocation | C4: 300-110-000-070-01 | D4: 1320 E Grand River Ave | E4: 44861 | F4: 1225000 | G4: n | H4: 672/9977 | I4: 1 | J4: 43560 | K4: 144 | L4: 0 | M4: 0 | P4: 1
A5: 0-70Vac2138-450 | B5: Vacant | C5: 34-010-036-000-160-70 | D5: M-66 | E5: 42138 | F5: 450000 | G5: n | H5: 637/8662 | I5: 1.971 | J5: 85856.76 | K5: 255 | L5: 7623 | M5: 0 | P5: 1
A6: 0-21Vac4006-650 | B6: Vacant | C6: 34-010-036-000-170-21 | D6: 2598 S State Rd | E6: 44006 | F6: 650000 | G6: n | H6: 660/1614 | I6: 2.198 | J6: =I6*43560 -> 95744.88 | K6: 295 | L6: =0.428*43560 -> 18643.68 | M6: 0 | P6: 1
A7: 5-12Vac-1391-595 | B7: Vacant | C7: 34-011-001-000-085-12 | D7: M-66 | E7: 38609 | F7: 595000 | G7: n | H7: 591/7047 | I7: 4.461 | J7: 194321.16 | K7: 335 | L7: 0 | M7: 0 | P7: 1
A8: 5-42Vac-1340-485 | B8: Vacant | C8: 34-011-001-000-085-42 | D8: M-66 | E8: 38660 | F8: 485000 | G8: n | H8: 592/9829 | I8: 1.87 | J8: 81457.2 | K8: 323.05 | L8: 0 | M8: 0 | P8: 1
A9: 5-00Abs1563-200 | B9: Abstraction | C9: 34-060-006-000-095-00 | D9: 2260 M-66 | E9: 41563 | F9: 200000 | G9: n | H9: 631/8714 | I9: 1.214 | J9: 52881.84 | K9: 235 | L9: 11750 | M9: 33808 | P9: 1 | R9: 3
A10: 5-00All1563-200 | B10: Allocation | C10: 34-060-006-000-095-00 | D10: 2260 M-66 | E10: 41563 | F10: 200000 | G10: n | H10: 631/8714 | I10: 1.214 | J10: 52881.84 | K10: 235 | L10: 11750 | M10: 33808 | P10: 1
A11: 5-11Abs3250-129 | B11: Abstraction | C11: 34-060-031-000-045-11 | D11: 2541 S State Rd | E11: 43250 | F11: 1293750 | G11: n | H11: 650/5240 | I11: =1.71+2.05 -> 3.76 | J11: =I11*43560 -> 163785.6 | K11: =192.08+330 -> 522.08 | L11: 25961.76 | M11: =195216+7787+594308+6103 -> 803414 | N11: 34-060-031-000-045-11 | P11: 1
A12: 5-20Abs4559-182 | B12: Abstraction | C12: 34-060-031-000-045-20 | D12: 2331 S State Rd | E12: 44559 | F12: 1825000 | G12: n | H12: 669/1978 | I12: 2.715 | J12: =I12*43560 -> 118265.4 | K12: 222.8 | L12: =0.26*43560 -> 11325.6 | M12: =1170043+58247 -> 1228290 | P12: 1
A13: 5-20All4559-182 | B13: Allocation | C13: 34-060-031-000-045-20 | D13: 2331 S State Rd | E13: 44559 | F13: 1825000 | G13: n | H13: 669/1978 | I13: 2.715 | J13: 118265.4 | K13: 222.8 | L13: =0.26*43560 -> 11325.6 | M13: 1228290 | P13: 1
A14: 0-01Vac4434-105 | B14: Vacant | C14: 34-060-031-000-140-01 | D14: 2983 S State Rd | E14: 44434 | F14: 105000 | G14: n | H14: 667/7365 | I14: 1 | J14: =I14*43560 -> 43560 | K14: 120 | L14: =0.182*43560 -> 7927.92 | M14: 0 | P14: 1
A15: 5-10Vac-1032-300 | B15: Vacant | C15: 34-060-140-000-005-10 | D15: M-66 | E15: 38968 | F15: 300000 | G15: n | H15: 598/8270 | I15: 1.446 | J15: 62987.76 | K15: 300 | L15: 0 | M15: 0 | P15: 1
A16: 0-00Vac3038-320 | B16: Vacant | C16: 34-060-140-000-020-00 | D16: 2731 State Rd Ionia | E16: 43038 | F16: 320000 | G16: n | H16: 648/0772 | I16: 1.446 | J16: 62987.76 | K16: 300 | L16: 0 | M16: 0 | N16: 34-060-140-000-025-00 | P16: 1 | R16: 2
A17: 0-00Vac2754-100 | B17: Vacant | C17: 34-090-000-110-00 | D17: Railroad St | E17: 42754 | F17: 10000 | G17: n | H17: 644/7303 | I17: 0.623 | J17: 27137.88 | K17: 133 | L17: 0 | M17: 0 | P17: 0
A18: 0-02Abs2403-300 | B18: Abstraction | C18: 34-110-006-000-040-02 | D18: 3669 S State Rd / M-66 | E18: 42403 | F18: 3000000 | G18: n | H18: 640/6775 | I18: 8.39 | J18: 365468.4 | K18: 500 | L18: 25000 | M18: 1526059 | P18: 1
A19: 0-02All2403-300 | B19: Allocation | C19: 34-110-006-000-040-02 | D19: 3669 S State Rd / M-66 | E19: 42403 | F19: 3000000 | G19: n | H19: 640/6775 | I19: 8.39 | J19: 365468.4 | K19: 500 | L19: 25000 | M19: 1526059 | P19: 1
A20: 5-17Abs2585-650 | B20: Abstraction | C20: 34-201-030-000-045-17 | D20: 431 Swartz Ct | E20: 42585 | F20: 650418 | G20: n | H20: 642/8611 | I20: 0.991 | J20: 43167.96 | K20: 198 | L20: 0 | M20: 572709 | P20: 1
A21: 5-17All2585-650 | B21: Allocation | C21: 34-201-030-000-045-17 | D21: 431 Swartz Ct | E21: 42585 | F21: 650418 | G21: n | H21: 642/8611 | I21: 0.991 | J21: 43167.96 | K21: 198 | L21: 0 | M21: 0 | P21: 1
A22: 6-00Vac-48-150 | B22: Vacant | C22: 34-201-040-000-076-00 | D22: S. Steele St | E22: 39952 | F22: 15000 | G22: n | H22: 612/5536 | I22: 0.855 | J22: 37243.8 | K22: 108.64 | L22: 0 | M22: 0 | P22: 0
A23: 1-10Abs2697-194 | B23: Abstraction | C23: 34-203-240-000-191-10 | D23: 1011 E Main St | E23: 42697 | F23: 194500 | G23: n | H23: 644/1885 | I23: 6.08 | J23: 264844.8 | K23: 171.43 | L23: 0 | M23: 142256 | P23: 0
A24: 1-10All2697-194 | B24: Allocation | C24: 34-203-240-000-191-10 | D24: 1011 E Main St | E24: 42697 | F24: 194500 | G24: n | H24: 644/1885 | I24: 6.08 | J24: 264844.8 | K24: 171.43 | L24: 0 | M24: 0 | P24: 0
A25: 5-00Abs2741-400 | B25: Abstraction | C25: 34-204-090-000-075-00 | D25: 302 S Jackson St | E25: 42741 | F25: 40000 | G25: n | H25: 644/6475 | I25: 0.487 | J25: 21213.72 | K25: 150 | L25: 0 | M25: 14364 | P25: 0
A26: 5-00All2741-400 | B26: Allocation | C26: 34-204-090-000-075-00 | D26: 302 S Jackson St | E26: 42741 | F26: 40000 | G26: n | H26: 644/6475 | I26: 0.487 | J26: 21213.72 | K26: 150 | L26: 0 | M26: 0 | P26: 0
A27: 5-00Abs2003-248 | B27: Abstraction | C27: 34-204-190-000-005-00 | D27: 340 Lovel St | E27: 42003 | F27: 248651 | G27: n | H27: 636/3324 | I27: 0.572 | J27: 24916.32 | K27: 132 | L27: 0 | M27: 140849 | P27: 1
A28: 5-00All2003-248 | B28: Allocation | C28: 34-204-190-000-005-00 | D28: 340 Lovel St | E28: 42003 | F28: 248651 | G28: n | H28: 636/3324 | I28: 0.572 | J28: 24916.32 | K28: 132 | L28: 0 | M28: 0 | P28: 1
A29: 5-00Abs2789-718 | B29: Abstraction | C29: 34-204-600-000-405-00 | D29: 643 Crawford St | E29: 42789 | F29: 718248 | G29: n | H29: 645/1404 | I29: 3.41 | J29: 148539.6 | K29: 183.67 | L29: 1306.8 | M29: 520238 | P29: 1
A30: 5-00All2789-718 | B30: Allocation | C30: 34-204-600-000-405-00 | D30: 643 Crawford St | E30: 42789 | F30: 718248 | G30: n | H30: 645/1404 | I30: 3.41 | J30: 148539.6 | K30: 183.67 | L30: 1306.8 | M30: 0 | P30: 1
A31: 5-00Vac333-200 | B31: Vacant | C31: 34-300-050-000-395-00 | D31: Elm St | E31: 40333 | F31: 20000 | G31: n | H31: ??? | I31: 0.609 | J31: 26528.04 | K31: 333 | L31: 0 | M31: 0 | P31: 0
A32: 0-00Abs1829-364 | B32: Abstraction | C32: 34-300-110-000-070-00 | D32: 1320 E. Grand River Ave | E32: 41829 | F32: 364600 | G32: n | H32: 634/5648 | I32: 0.641 | J32: 27921.96 | K32: 275 | L32: 0 | M32: 228195 | P32: 1
A33: 0-00All1829-364 | B33: Allocation | C33: 34-300-110-000-070-00 | D33: 1320 E. Grand River Ave | E33: 41829 | F33: 364600 | G33: n | H33: 634/5648 | I33: 0.641 | J33: 27921.96 | K33: 275 | L33: 0 | M33: 0 | P33: 1 | R33: 1
A34: 5-10All1677-297 | B34: Allocation | C34: 34-401-250-000-335-10 | D34: 1525 W. State Rd | E34: 41677 | F34: 297000 | G34: n | H34: 632/9262 | I34: 0.504 | J34: 21943.68 | K34: 249.36 | L34: 0 | M34: 0 | P34: 1
A35: 0-00Abs1795-800 | B35: Abstraction | C35: 34-401-250-000-350-00 | D35: 1439 W. State Rd | E35: 41795 | F35: 80000 | G35: n | H35: 634/1902 | I35: 1.707 | J35: 74356.92 | K35: 121.5 | L35: 4009.5 | M35: 51893 | P35: 1
A36: 0-00All1795-800 | B36: Allocation | C36: 34-401-250-000-350-00 | D36: 1439 W. State Rd | E36: 41795 | F36: 80000 | G36: n | H36: 634/1902 | I36: 1.707 | J36: 74356.92 | K36: 121.5 | L36: 4009.5 | M36: 0 | P36: 1
A37: 0-00Abs3538-535 | B37: Abstraction | C37: 34-300-110-000-050-00 | D37: 1328 E Grand River Ave | E37: 43538 | F37: 535000 | G37: n | H37: 653/8847 | I37: 0.63 | J37: =I37*43560 -> 27442.8 | K37: 225 | L37: 0 | M37: =27679+270584 -> 298263 | P37: 1
A38: 0-00All3538-535 | B38: Allocation | C38: 34-300-110-000-050-00 | D38: 1328 E Grand River Ave | E38: 43538 | F38: 535000 | G38: n | H38: 653/8847 | I38: 0.63 | J38: 27442.8 | K38: 225 | L38: 0 | M38: 0 | P38: 1
A39: 0-10Abs3088-150 | B39: Abstraction | C39: 34-401-250-000-350-10 | D39: 1437 W State St | E39: 43088 | F39: 150000 | G39: n | H39: 648/7021 | I39: 0.273 | J39: 11891.88 | K39: 125 | L39: 0 | M39: =5547+107872 -> 113419 | P39: 1
A40: 0-10All3088-150 | B40: Allocation | C40: 34-401-250-000-350-10 | D40: 1437 W State St | E40: 43088 | F40: 150000 | G40: n | H40: 648/7021 | I40: 0.273 | J40: 11891.88 | K40: 125 | L40: 0 | M40: 0 | P40: 1
A41: 5-00Abs3808-610 | B41: Abstraction | C41: 34-401-250-000-365-00 | D41: 1331 W State St | E41: 43808 | F41: 610000 | G41: n | H41: 657/4058 | I41: 16.46 | J41: 716997.6 | K41: 151 | L41: 0 | M41: =23380+203499 -> 226879 | P41: 1
A42: 5-00All3808-610 | B42: Allocation | C42: 34-401-250-000-365-00 | D42: 1331 W State St | E42: 43808 | F42: 610000 | G42: n | H42: 657/4058 | I42: 16.46 | J42: 716997.6 | K42: 151 | L42: 0 | M42: 0 | P42: 1
A43: 5-00Abs3439-338 | B43: Abstraction | C43: 34-401-250-000-365-00 | D43: 1331 W State St | E43: 43439 | F43: 338000 | G43: n | H43: 652/9992 | I43: 16.46 | J43: 716997.6 | K43: 151 | L43: 0 | M43: =11984+117330 -> 129314 | P43: 1
A44: 5-00All3439-338 | B44: Allocation | C44: 34-401-250-000-365-00 | D44: 1331 W State St | E44: 43439 | F44: 338000 | G44: n | H44: 652/9992 | I44: 16.46 | J44: 716997.6 | K44: 151 | L44: 0 | M44: 0 | P44: 0
A45: 5-10Abs4841-330 | B45: Abstraction | C45: 34-401-250-000-335-10 | D45: 1525 W State St | E45: 44841 | F45: 330000 | G45: n | H45: 672/8330 | I45: 0.504 | J45: 21954.24 | K45: 249.36 | L45: 0 | M45: =9322+170435 -> 179757 | P45: 1
A46: 5-10All4841-330 | B46: Allocation | C46: 34-401-250-000-335-10 | D46: 1525 W State St | E46: 44841 | F46: 330000 | G46: n | H46: 672/8330 | I46: 0.504 | J46: 21954.24 | K46: 249.36 | L46: 0 | M46: 0 | P46: 1 | R46: 1
J47: 0 | P47: 1
J48: 0 | P48: 1
J49: 0 | P49: 1
J50: 0 | P50: 1
J51: 0 | P51: 1
J52: 0 | P52: 1
J53: 0 | P53: 1
J54: 0 | P54: 1
J55: 0 | P55: 1
J56: 0 | P56: 1
J57: 0 | P57: 1
J58: 0 | P58: 1
J59: 0 | P59: 1
J60: 0 | P60: 1
J61: 0 | P61: 1
J62: 0 | P62: 1
J63: 0 | P63: 1
J64: 0 | P64: 1
J65: 0 | P65: 1
A66: =IF(B66="","",RIGHT(C66,4)&LEFT(B66,3)&E66-40000&"-"&LEFT(F66,3)) ->  | J66: 0 | P66: 1
J67: 0 | P67: 1
J68: 0 | P68: 1
J69: 0 | P69: 1
J70: 0 | P70: 1
J71: 0 | P71: 1
J72: 0 | P72: 1
J73: 0 | P73: 1
J74: 0 | P74: 1
J75: 0 | P75: 1
J76: 0 | P76: 1
J77: 0 | P77: 1
J78: 0 | P78: 1
J79: 0 | P79: 1
J80: 0 | P80: 1
J81: 0 | P81: 1
J82: 0 | P82: 1
J83: 0 | P83: 1
J84: 0 | P84: 1
J85: 0 | P85: 1
J86: 0 | P86: 1
J87: 0 | P87: 1
J88: 0 | P88: 1
J89: 0 | P89: 1
J90: 0 | P90: 1
J91: 0 | P91: 1
J92: 0 | P92: 1
J93: 0 | P93: 1
J94: 0 | P94: 1
J95: 0 | P95: 1
J96: 0 | P96: 1
J97: 0 | P97: 1
J98: 0 | P98: 1
J99: 0 | P99: 1
J100: 0 | P100: 1
J101: =I101*43560 -> 0 | P101: 1
J102: 0 | P102: 1
J103: 0 | P103: 1
J104: 0 | P104: 1
J105: 0 | P105: 1
J106: 0 | P106: 1
J107: 0 | P107: 1
J108: 0 | P108: 1
J109: 0 | P109: 1
J110: 0 | P110: 1
J111: 0 | P111: 1
J112: 0 | P112: 1
J113: 0 | P113: 1
J114: 0 | P114: 1
J115: 0 | P115: 1
J116: 0 | P116: 1
J117: 0 | P117: 1
J118: 0 | P118: 1
J119: 0 | P119: 1
J120: 0 | P120: 1
J121: 0 | P121: 1
J122: 0 | P122: 1
J123: 0 | P123: 1
J124: 0 | P124: 1
J125: 0 | P125: 1
J126: 0 | P126: 1
J127: 0 | P127: 1
J128: 0 | P128: 1
J129: 0 | P129: 1
A130: =IF(B130="","",RIGHT(C130,4)&LEFT(B130,3)&E130-40000&"-"&LEFT(F130,3)) ->  | J130: 0 | P130: 1
J131: 0 | P131: 1
J132: 0 | P132: 1
J133: 0 | P133: 1
J134: 0 | P134: 1
J135: 0 | P135: 1
J136: 0 | P136: 1
J137: 0 | P137: 1
J138: 0 | P138: 1
J139: 0 | P139: 1
J140: 0 | P140: 1
J141: 0 | P141: 1
J142: 0 | P142: 1
J143: 0 | P143: 1
J144: 0 | P144: 1
J145: 0 | P145: 1
J146: 0 | P146: 1
J147: 0 | P147: 1
J148: 0 | P148: 1
J149: 0 | P149: 1
J150: 0 | P150: 1
J151: 0 | P151: 1
J152: 0 | P152: 1
J153: 0 | P153: 1
J154: 0 | P154: 1
J155: 0 | P155: 1
J156: 0 | P156: 1
J157: 0 | P157: 1
J158: 0 | P158: 1
J159: 0 | P159: 1
J160: 0 | P160: 1
J161: 0 | P161: 1
J162: 0 | P162: 1
J163: 0 | P163: 1
J164: 0 | P164: 1
J165: =I165*43560 -> 0 | P165: 1
J166: 0 | P166: 1
J167: 0 | P167: 1
J168: 0 | P168: 1
J169: 0 | P169: 1
J170: 0 | P170: 1
J171: 0 | P171: 1
J172: 0 | P172: 1
J173: 0 | P173: 1
J174: 0 | P174: 1
J175: 0 | P175: 1
J176: 0 | P176: 1
J177: 0 | P177: 1
J178: 0 | P178: 1
J179: 0 | P179: 1
J180: 0 | P180: 1
J181: 0 | P181: 1
J182: 0 | P182: 1
J183: 0 | P183: 1
J184: 0 | P184: 1
J185: 0 | P185: 1
J186: 0 | P186: 1
J187: 0 | P187: 1
J188: 0 | P188: 1
J189: 0 | P189: 1
J190: 0 | P190: 1
J191: 0 | P191: 1
J192: 0 | P192: 1
J193: 0 | P193: 1
A194: =IF(B194="","",RIGHT(C194,4)&LEFT(B194,3)&E194-40000&"-"&LEFT(F194,3)) ->  | J194: 0 | P194: 1
J195: 0 | P195: 1
J196: 0 | P196: 1
J197: 0 | P197: 1
J198: 0 | P198: 1
J199: 0 | P199: 1
J200: 0 | P200: 1
... 301 more rows

Sheet Time Adjustment
A1: Pair Group | B1: Item ID | C1: Helper | D1: Valuation Method | E1: Parcel Number | F1: Address | G1: Sale Date | H1: Sale Price | I1: Residual Acre | J1: Front Ft | K1: Imprvmts Value | L1: Land Residual | M1: Indicated LB Ratio | N1: Unadjusted $ / acre | O1: Unadjusted $ / Sq Ft | P1: # of Days | Q1: # of Months | R1: % Change | S1: % per Month | T1: % per Year
A2: 1 | B2: =IFERROR(INDEX(B$17:B$1000,SMALL(IF($A$17:$A$1000=$A2,ROW($A$17:$A$1000)-ROW(INDEX($A$17:$A$1000,1,1))+1),1)),"") -> 0-00All1829-364 | C2: 1.01 | D2: =IFERROR(VLOOKUP($C2,$C$17:$O$516,2,FALSE),"") -> Allocation | E2: =IFERROR(VLOOKUP($C2,$C$17:$O$516,3,FALSE),"") -> 34-300-110-000-070-00 | F2: =IFERROR(VLOOKUP($C2,$C$17:$O$516,4,FALSE),"") -> 1320 E. Grand River Ave | G2: =IFERROR(VLOOKUP($C2,$C$17:$O$516,5,FALSE),"") -> 41829 | H2: =IFERROR(VLOOKUP($C2,$C$17:$O$516,6,FALSE),"") -> 364600 | I2: =IFERROR(VLOOKUP($C2,$C$17:$O$516,7,FALSE),"") -> 0.641 | J2: =IFERROR(VLOOKUP($C2,$C$17:$O$516,8,FALSE),"") -> 275 | K2: =IFERROR(VLOOKUP($C2,$C$17:$O$516,9,FALSE),"") -> 0 | L2: =IFERROR(VLOOKUP($C2,$C$17:$O$516,10,FALSE),"") -> 147407.78 | M2: =IFERROR(VLOOKUP($C2,$C$17:$O$516,11,FALSE),"") -> 0.4043 | N2: =IFERROR(VLOOKUP($C2,$C$17:$O$516,12,FALSE),"") -> 229965.3354 | O2: =IFERROR(VLOOKUP($C2,$C$17:$O$516,13,FALSE),"") -> 5.28 | P2: =IFERROR(ABS(DAYS360(G2,G3)),"") -> 2968 | Q2: =IFERROR(ROUND(P2/30,0),"") -> 99 | R2: =IFERROR(IF(G2>G3,(N2-N3)/N3,(N3-N2)/N2),"") -> 0.1511310503 | S2: =IFERROR(R2/Q2,"") -> 0.001526576266 | T2: =IFERROR(S2*12,"") -> 0.01831891519
B3: =IFERROR(INDEX(B$17:B$1000,SMALL(IF($A$17:$A$1000=$A2,ROW($A$17:$A$1000)-ROW(INDEX($A$17:$A$1000,1,1))+1),2)),"") -> 5-10All4841-330 | C3: 1.02 | D3: =IFERROR(VLOOKUP($C3,$C$17:$O$516,2,FALSE),"") -> Allocation | E3: =IFERROR(VLOOKUP($C3,$C$17:$O$516,3,FALSE),"") -> 34-401-250-000-335-10 | F3: =IFERROR(VLOOKUP($C3,$C$17:$O$516,4,FALSE),"") -> 1525 W State St | G3: =IFERROR(VLOOKUP($C3,$C$17:$O$516,5,FALSE),"") -> 44841 | H3: =IFERROR(VLOOKUP($C3,$C$17:$O$516,6,FALSE),"") -> 330000 | I3: =IFERROR(VLOOKUP($C3,$C$17:$O$516,7,FALSE),"") -> 0.504 | J3: =IFERROR(VLOOKUP($C3,$C$17:$O$516,8,FALSE),"") -> 249.36 | K3: =IFERROR(VLOOKUP($C3,$C$17:$O$516,9,FALSE),"") -> 0 | L3: =IFERROR(VLOOKUP($C3,$C$17:$O$516,10,FALSE),"") -> 133419 | M3: =IFERROR(VLOOKUP($C3,$C$17:$O$516,11,FALSE),"") -> 0.4043 | N3: =IFERROR(VLOOKUP($C3,$C$17:$O$516,12,FALSE),"") -> 264720.2381 | O3: =IFERROR(VLOOKUP($C3,$C$17:$O$516,13,FALSE),"") -> 6.08
A4: 2 | B4: =IFERROR(INDEX(B$17:B$1000,SMALL(IF($A$17:$A$1000=$A4,ROW($A$17:$A$1000)-ROW(INDEX($A$17:$A$1000,1,1))+1),1)),"") -> 5-26Vac4848-325 | C4: 2.01 | D4: Vacant | E4: 060-031-000-115-26 | F4: 2615 S State Rd | G4: 44848 | H4: 325000 | I4: 1.325 | J4: 202.64 | K4: 0 | L4: 325000 | M4: N/A | N4: 245283.0189 | O4: 5.63 | P4: =IFERROR(ABS(DAYS360(G4,G5)),"") -> 1784 | Q4: =IFERROR(ROUND(P4/30,0),"") -> 59 | R4: =IFERROR(IF(G4>G5,(N4-N5)/N5,(N5-N4)/N4),"") -> 0.1083726415 | S4: =IFERROR(R4/Q4,"") -> 0.001836824432 | T4: =IFERROR(S4*12,"") -> 0.02204189319
B5: =IFERROR(INDEX(B$17:B$1000,SMALL(IF($A$17:$A$1000=$A4,ROW($A$17:$A$1000)-ROW(INDEX($A$17:$A$1000,1,1))+1),2)),"") -> 0-00Vac3038-320 | C5: 2.02 | D5: Vacant | E5: 34-060-140-000-020-00 | F5: 2731 State Rd Ionia | G5: 43038 | H5: 320000 | I5: 1.446 | J5: 300 | K5: 0 | L5: 320000 | M5: N/A | N5: 221300.1383 | O5: 5.08
A6: 3 | B6: =IFERROR(INDEX(B$17:B$1000,SMALL(IF($A$17:$A$1000=$A6,ROW($A$17:$A$1000)-ROW(INDEX($A$17:$A$1000,1,1))+1),1)),"") -> 0-01Abs4861-122 | C6: 3.01 | D6: Abstraction | E6: 300-110-000-070-01 | F6: 1320 E Grand River Ave | G6: 44861 | H6: 1225000 | I6: 1 | J6: 144 | K6: 1021225 | L6: 203775 | M6: 0.1663469388 | N6: 203775 | O6: 4.68 | P6: =IFERROR(ABS(DAYS360(G6,G7)),"") -> 3251 | Q6: =IFERROR(ROUND(P6/30,0),"") -> 108 | R6: =IFERROR(IF(G6>G7,(N6-N7)/N7,(N7-N6)/N6),"") -> 0.1574780976 | S6: =IFERROR(R6/Q6,"") -> 0.001458130534 | T6: =IFERROR(S6*12,"") -> 0.0174975664
B7: =IFERROR(INDEX(B$17:B$1000,SMALL(IF($A$17:$A$1000=$A6,ROW($A$17:$A$1000)-ROW(INDEX($A$17:$A$1000,1,1))+1),2)),"") -> 5-00Abs1563-200 | C7: 3.02 | D7: Abstraction | E7: 34-060-006-000-095-00 | F7: 2260 M-66 | G7: 41563 | H7: 200000 | I7: 0.944 | J7: 235 | K7: 33808 | L7: 166192 | M7: 0.83096 | N7: 176050.8475 | O7: 4.04
A8: 4 | B8: =IFERROR(INDEX(B$17:B$1000,SMALL(IF($A$17:$A$1000=$A8,ROW($A$17:$A$1000)-ROW(INDEX($A$17:$A$1000,1,1))+1),1)),"") ->  | C8: 4.01 | P8: =IFERROR(ABS(DAYS360(G8,G9)),"") ->  | Q8: =IFERROR(ROUND(P8/30,0),"") ->  | R8: =IFERROR(IF(G8>G9,(N8-N9)/N9,(N9-N8)/N8),"") ->  | S8: =IFERROR(R8/Q8,"") ->  | T8: =IFERROR(S8*12,"") -> 
B9: =IFERROR(INDEX(B$17:B$1000,SMALL(IF($A$17:$A$1000=$A8,ROW($A$17:$A$1000)-ROW(INDEX($A$17:$A$1000,1,1))+1),2)),"") ->  | C9: 4.02
A10: 5 | B10: =IFERROR(INDEX(B$17:B$1000,SMALL(IF($A$17:$A$1000=$A10,ROW($A$17:$A$1000)-ROW(INDEX($A$17:$A$1000,1,1))+1),1)),"") ->  | C10: 5.01 | P10: =IFERROR(ABS(DAYS360(G10,G11)),"") ->  | Q10: =IFERROR(ROUND(P10/30,0),"") ->  | R10: =IFERROR(IF(G10>G11,(N10-N11)/N11,(N11-N10)/N10),"") ->  | S10: =IFERROR(R10/Q10,"") ->  | T10: =IFERROR(S10*12,"") -> 
B11: =IFERROR(INDEX(B$17:B$1000,SMALL(IF($A$17:$A$1000=$A10,ROW($A$17:$A$1000)-ROW(INDEX($A$17:$A$1000,1,1))+1),2)),"") ->  | C11: 5.02
A12: 6 | B12: =IFERROR(INDEX(B$17:B$1000,SMALL(IF($A$17:$A$1000=$A12,ROW($A$17:$A$1000)-ROW(INDEX($A$17:$A$1000,1,1))+1),1)),"") ->  | C12: 6.01 | P12: =IFERROR(ABS(DAYS360(G12,G13)),"") ->  | Q12: =IFERROR(ROUND(P12/30,0),"") ->  | R12: =IFERROR(IF(G12>G13,(N12-N13)/N13,(N13-N12)/N12),"") ->  | S12: =IFERROR(R12/Q12,"") ->  | T12: =IFERROR(S12*12,"") -> 
B13: =IFERROR(INDEX(B$17:B$1000,SMALL(IF($A$17:$A$1000=$A12,ROW($A$17:$A$1000)-ROW(INDEX($A$17:$A$1000,1,1))+1),2)),"") ->  | C13: 6.02
O14: Indicated % time adjustment per month: | S14: =SUM($R$2:$R$13)/SUM($Q$2:$Q$13) -> 0.001567600712
B15: Designate sale pairings here. Assign the same group number to two sales you wish to pair. | D15: Designate sale pairings here. Assign the same group number to two sales you wish to pair. | O15: *If all sales are within the study time period, a time adjustment does not need to be calculated.
A16: Pair Group | B16: Item ID | C16: Helper | D16: Valuation Method | E16: Parcel Number | F16: Address | G16: Sale Date | H16: Sale Price | I16: Residual Acre | J16: Front Ft | K16: Imprvmts Value | L16: Land Residual | M16: Indicated LB Ratio | N16: Unadjusted $ / acre | O16: Unadjusted $ / Sq Ft
A17: =VLOOKUP($B17,Data_Table[],18,FALSE) -> 0 | B17: 1-10Abs2697-194 | C17: =Table_Data_Table_12[[#This Row],[Pair Group]]+(COUNTIF($A$17:$A17,A17)*0.01) -> 0.01 | D17: =VLOOKUP($B17,DataTable,2,FALSE) -> Abstraction | E17: =VLOOKUP($B17,DataTable,3,FALSE) -> 34-203-240-000-191-10 | F17: =VLOOKUP($B17,DataTable,4,FALSE) -> 1011 E Main St | G17: =VLOOKUP($B17,DataTable,5,FALSE) -> 42697 | H17: =VLOOKUP($B17,DataTable,6,FALSE) -> 194500 | I17: =ROUND((VLOOKUP($B17,DataTable,10,FALSE)-VLOOKUP($B17,DataTable,12,FALSE))/43560,3) -> 6.08 | J17: =VLOOKUP($B17,DataTable,11,FALSE) -> 171.43 | K17: =VLOOKUP($B17,DataTable,13,FALSE) -> 142256 | L17: =VLOOKUP($B17,Analysis_Table,8,FALSE) -> 52244 | M17: =VLOOKUP($B17,Analysis_Table,9,FALSE) -> 0.2686066838 | N17: =L17/I17 -> 8592.763158 | O17: =ROUND(L17/(VLOOKUP($B17,DataTable,10,FALSE)-VLOOKUP($B17,DataTable,12,FALSE)),2) -> 0.2
A18: =VLOOKUP($B18,Data_Table[],18,FALSE) -> 0 | B18: 1-10All2697-194 | C18: =Table_Data_Table_12[[#This Row],[Pair Group]]+(COUNTIF($A$17:$A18,A18)*0.01) -> 0.02 | D18: Allocation | E18: 34-203-240-000-191-10 | F18: 1011 E Main St | G18: 42697 | H18: 194500 | I18: 6.08 | J18: 171.43 | K18: 0 | L18: 78636.35 | M18: 0.4043 | N18: 12933.6102 | O18: 0.3
A19: =VLOOKUP($B19,Data_Table[],18,FALSE) -> 3 | B19: 0-01Abs4861-122 | C19: =Table_Data_Table_12[[#This Row],[Pair Group]]+(COUNTIF($A$17:$A19,A19)*0.01) -> 3.01 | D19: Abstraction | E19: 300-110-000-070-01 | F19: 1320 E Grand River Ave | G19: 44861 | H19: 1225000 | I19: 1 | J19: 144 | K19: 1021225 | L19: 203775 | M19: 0.1663469388 | N19: 203775 | O19: 4.68
A20: =VLOOKUP($B20,Data_Table[],18,FALSE) -> 0 | B20: 0-01All4861-122 | C20: =Table_Data_Table_12[[#This Row],[Pair Group]]+(COUNTIF($A$17:$A20,A20)*0.01) -> 0.03 | D20: Allocation | E20: 300-110-000-070-01 | F20: 1320 E Grand River Ave | G20: 44861 | H20: 1225000 | I20: 1 | J20: 144 | K20: 0 | L20: 495267.5 | M20: 0.4043 | N20: 495267.5 | O20: 11.37
A21: =VLOOKUP($B21,Data_Table[],18,FALSE) -> 0 | B21: 0-00Abs1829-364 | C21: =Table_Data_Table_12[[#This Row],[Pair Group]]+(COUNTIF($A$17:$A21,A21)*0.01) -> 0.04 | D21: Abstraction | E21: 34-300-110-000-070-00 | F21: 1320 E. Grand River Ave | G21: 41829 | H21: 364600 | I21: 0.641 | J21: 275 | K21: 228195 | L21: 136405 | M21: 0.3741223258 | N21: 212800.312 | O21: 4.89
A22: =VLOOKUP($B22,Data_Table[],18,FALSE) -> 1 | B22: 0-00All1829-364 | C22: =Table_Data_Table_12[[#This Row],[Pair Group]]+(COUNTIF($A$17:$A22,A22)*0.01) -> 1.01 | D22: Allocation | E22: 34-300-110-000-070-00 | F22: 1320 E. Grand River Ave | G22: 41829 | H22: 364600 | I22: 0.641 | J22: 275 | K22: 0 | L22: 147407.78 | M22: 0.4043 | N22: 229965.3354 | O22: 5.28
A23: =VLOOKUP($B23,Data_Table[],18,FALSE) -> 0 | B23: 0-00Abs3538-535 | C23: =Table_Data_Table_12[[#This Row],[Pair Group]]+(COUNTIF($A$17:$A23,A23)*0.01) -> 0.05 | D23: Abstraction | E23: 34-300-110-000-050-00 | F23: 1328 E Grand River Ave | G23: 43538 | H23: 535000 | I23: 0.63 | J23: 225 | K23: 298263 | L23: 236737 | M23: 0.4424990654 | N23: 375773.0159 | O23: 8.63
A24: =VLOOKUP($B24,Data_Table[],18,FALSE) -> 0 | B24: 0-00All3538-535 | C24: =Table_Data_Table_12[[#This Row],[Pair Group]]+(COUNTIF($A$17:$A24,A24)*0.01) -> 0.06 | D24: Allocation | E24: 34-300-110-000-050-00 | F24: 1328 E Grand River Ave | G24: 43538 | H24: 535000 | I24: 0.63 | J24: 225 | K24: 0 | L24: 216300.5 | M24: 0.4043 | N24: 343334.127 | O24: 7.88
A25: =VLOOKUP($B25,Data_Table[],18,FALSE) -> 0 | B25: 5-00Abs3808-610 | C25: =Table_Data_Table_12[[#This Row],[Pair Group]]+(COUNTIF($A$17:$A25,A25)*0.01) -> 0.07 | D25: Abstraction | E25: 34-401-250-000-365-00 | F25: 1331 W State St | G25: 43808 | H25: 610000 | I25: 16.46 | J25: 151 | K25: 226879 | L25: 383121 | M25: 0.6280672131 | N25: 23275.88092 | O25: 0.53
A26: =VLOOKUP($B26,Data_Table[],18,FALSE) -> 0 | B26: 5-00All3808-610 | C26: =Table_Data_Table_12[[#This Row],[Pair Group]]+(COUNTIF($A$17:$A26,A26)*0.01) -> 0.08 | D26: Allocation | E26: 34-401-250-000-365-00 | F26: 1331 W State St | G26: 43808 | H26: 610000 | I26: 16.46 | J26: 151 | K26: 0 | L26: 246623 | M26: 0.4043 | N26: 14983.17132 | O26: 0.34
A27: =VLOOKUP($B27,Data_Table[],18,FALSE) -> 0 | B27: 5-00Abs3439-338 | C27: =Table_Data_Table_12[[#This Row],[Pair Group]]+(COUNTIF($A$17:$A27,A27)*0.01) -> 0.09 | D27: Abstraction | E27: 34-401-250-000-365-00 | F27: 1331 W State St | G27: 43439 | H27: 338000 | I27: 16.46 | J27: 151 | K27: 129314 | L27: 208686 | M27: 0.6174142012 | N27: 12678.37181 | O27: 0.29
A28: =VLOOKUP($B28,Data_Table[],18,FALSE) -> 0 | B28: 5-00All3439-338 | C28: =Table_Data_Table_12[[#This Row],[Pair Group]]+(COUNTIF($A$17:$A28,A28)*0.01) -> 0.1 | D28: Allocation | E28: 34-401-250-000-365-00 | F28: 1331 W State St | G28: 43439 | H28: 338000 | I28: 16.46 | J28: 151 | K28: 0 | L28: 136653.4 | M28: 0.4043 | N28: 8302.150668 | O28: 0.19
A29: =VLOOKUP($B29,Data_Table[],18,FALSE) -> 0 | B29: 0-10Abs3088-150 | C29: =Table_Data_Table_12[[#This Row],[Pair Group]]+(COUNTIF($A$17:$A29,A29)*0.01) -> 0.11 | D29: Abstraction | E29: 34-401-250-000-350-10 | F29: 1437 W State St | G29: 43088 | H29: 150000 | I29: 0.273 | J29: 125 | K29: 113419 | L29: 36581 | M29: 0.2438733333 | N29: 133996.337 | O29: 3.08
A30: =VLOOKUP($B30,Data_Table[],18,FALSE) -> 0 | B30: 0-10All3088-150 | C30: =Table_Data_Table_12[[#This Row],[Pair Group]]+(COUNTIF($A$17:$A30,A30)*0.01) -> 0.12 | D30: Allocation | E30: 34-401-250-000-350-10 | F30: 1437 W State St | G30: 43088 | H30: 150000 | I30: 0.273 | J30: 125 | K30: 0 | L30: 60645 | M30: 0.4043 | N30: 222142.8571 | O30: 5.1
A31: =VLOOKUP($B31,Data_Table[],18,FALSE) -> 0 | B31: 0-00Abs1795-800 | C31: =Table_Data_Table_12[[#This Row],[Pair Group]]+(COUNTIF($A$17:$A31,A31)*0.01) -> 0.13 | D31: Abstraction | E31: 34-401-250-000-350-00 | F31: 1439 W. State Rd | G31: 41795 | H31: 80000 | I31: 1.615 | J31: 121.5 | K31: 51893 | L31: 28107 | M31: 0.3513375 | N31: 17403.71517 | O31: 0.4
A32: =VLOOKUP($B32,Data_Table[],18,FALSE) -> 0 | B32: 0-00All1795-800 | C32: =Table_Data_Table_12[[#This Row],[Pair Group]]+(COUNTIF($A$17:$A32,A32)*0.01) -> 0.14 | D32: Allocation | E32: 34-401-250-000-350-00 | F32: 1439 W. State Rd | G32: 41795 | H32: 80000 | I32: 1.615 | J32: 121.5 | K32: 0 | L32: 32344 | M32: 0.4043 | N32: 20027.24458 | O32: 0.46
A33: =VLOOKUP($B33,Data_Table[],18,FALSE) -> 0 | B33: 5-10Abs4841-330 | C33: =Table_Data_Table_12[[#This Row],[Pair Group]]+(COUNTIF($A$17:$A33,A33)*0.01) -> 0.15 | D33: Abstraction | E33: 34-401-250-000-335-10 | F33: 1525 W State St | G33: 44841 | H33: 330000 | I33: 0.504 | J33: 249.36 | K33: 179757 | L33: 150243 | M33: 0.4552818182 | N33: 298101.1905 | O33: 6.84
A34: =VLOOKUP($B34,Data_Table[],18,FALSE) -> 1 | B34: 5-10All4841-330 | C34: =Table_Data_Table_12[[#This Row],[Pair Group]]+(COUNTIF($A$17:$A34,A34)*0.01) -> 1.02 | D34: Allocation | E34: 34-401-250-000-335-10 | F34: 1525 W State St | G34: 44841 | H34: 330000 | I34: 0.504 | J34: 249.36 | K34: 0 | L34: 133419 | M34: 0.4043 | N34: 264720.2381 | O34: 6.08
A35: =VLOOKUP($B35,Data_Table[],18,FALSE) -> 0 | B35: 5-10All1677-297 | C35: =Table_Data_Table_12[[#This Row],[Pair Group]]+(COUNTIF($A$17:$A35,A35)*0.01) -> 0.16 | D35: Allocation | E35: 34-401-250-000-335-10 | F35: 1525 W. State Rd | G35: 41677 | H35: 297000 | I35: 0.504 | J35: 249.36 | K35: 0 | L35: 120077.1 | M35: 0.4043 | N35: 238248.2143 | O35: 5.47
A36: =VLOOKUP($B36,Data_Table[],18,FALSE) -> 3 | B36: 5-00Abs1563-200 | C36: =Table_Data_Table_12[[#This Row],[Pair Group]]+(COUNTIF($A$17:$A36,A36)*0.01) -> 3.02 | D36: Abstraction | E36: 34-060-006-000-095-00 | F36: 2260 M-66 | G36: 41563 | H36: 200000 | I36: 0.944 | J36: 235 | K36: 33808 | L36: 166192 | M36: 0.83096 | N36: 176050.8475 | O36: 4.04
A37: =VLOOKUP($B37,Data_Table[],18,FALSE) -> 0 | B37: 5-00All1563-200 | C37: =Table_Data_Table_12[[#This Row],[Pair Group]]+(COUNTIF($A$17:$A37,A37)*0.01) -> 0.17 | D37: Allocation | E37: 34-060-006-000-095-00 | F37: 2260 M-66 | G37: 41563 | H37: 200000 | I37: 0.944 | J37: 235 | K37: 33808 | L37: 80860 | M37: 0.4043 | N37: 85656.77966 | O37: 1.97
A38: =VLOOKUP($B38,Data_Table[],18,FALSE) -> 0 | B38: 5-20Abs4559-182 | C38: =Table_Data_Table_12[[#This Row],[Pair Group]]+(COUNTIF($A$17:$A38,A38)*0.01) -> 0.18 | D38: Abstraction | E38: 34-060-031-000-045-20 | F38: 2331 S State Rd | G38: 44559 | H38: 1825000 | I38: 2.455 | J38: 222.8 | K38: 1228290 | L38: 596710 | M38: 0.3269643836 | N38: 243059.0631 | O38: 5.58
A39: =VLOOKUP($B39,Data_Table[],18,FALSE) -> 0 | B39: 5-20All4559-182 | C39: =Table_Data_Table_12[[#This Row],[Pair Group]]+(COUNTIF($A$17:$A39,A39)*0.01) -> 0.19 | D39: Allocation | E39: 34-060-031-000-045-20 | F39: 2331 S State Rd | G39: 44559 | H39: 1825000 | I39: 2.455 | J39: 222.8 | K39: 1228290 | L39: 737847.5 | M39: 0.4043 | N39: 300548.8798 | O39: 6.9
A40: =VLOOKUP($B40,Data_Table[],18,FALSE) -> 0 | B40: 5-11Abs3250-129 | C40: =Table_Data_Table_12[[#This Row],[Pair Group]]+(COUNTIF($A$17:$A40,A40)*0.01) -> 0.2 | D40: Abstraction | E40: 34-060-031-000-045-11 | F40: 2541 S State Rd | G40: 43250 | H40: 1293750 | I40: 3.164 | J40: 522.08 | K40: 803414 | L40: 490336 | M40: 0.3790036715 | N40: 154973.4513 | O40: 3.56
A41: =VLOOKUP($B41,Data_Table[],18,FALSE) -> 0 | B41: 0-21Vac4006-650 | C41: =Table_Data_Table_12[[#This Row],[Pair Group]]+(COUNTIF($A$17:$A41,A41)*0.01) -> 0.21 | D41: Vacant | E41: 34-010-036-000-170-21 | F41: 2598 S State Rd | G41: 44006 | H41: 650000 | I41: 1.77 | J41: 295 | K41: 0 | L41: 650000 | M41: N/A | N41: 367231.6384 | O41: 8.43
A42: =VLOOKUP($B42,Data_Table[],18,FALSE) -> 2 | B42: 5-26Vac4848-325 | C42: =Table_Data_Table_12[[#This Row],[Pair Group]]+(COUNTIF($A$17:$A42,A42)*0.01) -> 2.01 | D42: Vacant | E42: 060-031-000-115-26 | F42: 2615 S State Rd | G42: 44848 | H42: 325000 | I42: 1.325 | J42: 202.64 | K42: 0 | L42: 325000 | M42: N/A | N42: 245283.0189 | O42: 5.63
A43: =VLOOKUP($B43,Data_Table[],18,FALSE) -> 2 | B43: 0-00Vac3038-320 | C43: =Table_Data_Table_12[[#This Row],[Pair Group]]+(COUNTIF($A$17:$A43,A43)*0.01) -> 2.02 | D43: Vacant | E43: 34-060-140-000-020-00 | F43: 2731 State Rd Ionia | G43: 43038 | H43: 320000 | I43: 1.446 | J43: 300 | K43: 0 | L43: 320000 | M43: N/A | N43: 221300.1383 | O43: 5.08
A44: =VLOOKUP($B44,Data_Table[],18,FALSE) -> 0 | B44: 0-01Vac4434-105 | C44: =Table_Data_Table_12[[#This Row],[Pair Group]]+(COUNTIF($A$17:$A44,A44)*0.01) -> 0.22 | D44: Vacant | E44: 34-060-031-000-140-01 | F44: 2983 S State Rd | G44: 44434 | H44: 105000 | I44: 0.818 | J44: 120 | K44: 0 | L44: 105000 | M44: N/A | N44: 128361.8582 | O44: 2.95
A45: =VLOOKUP($B45,Data_Table[],18,FALSE) -> 0 | B45: 5-00Abs2741-400 | C45: =Table_Data_Table_12[[#This Row],[Pair Group]]+(COUNTIF($A$17:$A45,A45)*0.01) -> 0.23 | D45: Abstraction | E45: 34-204-090-000-075-00 | F45: 302 S Jackson St | G45: 42741 | H45: 40000 | I45: 0.487 | J45: 150 | K45: 14364 | L45: 25636 | M45: 0.6409 | N45: 52640.65708 | O45: 1.21
A46: =VLOOKUP($B46,Data_Table[],18,FALSE) -> 0 | B46: 5-00All2741-400 | C46: =Table_Data_Table_12[[#This Row],[Pair Group]]+(COUNTIF($A$17:$A46,A46)*0.01) -> 0.24 | D46: Allocation | E46: 34-204-090-000-075-00 | F46: 302 S Jackson St | G46: 42741 | H46: 40000 | I46: 0.487 | J46: 150 | K46: 0 | L46: 16172 | M46: 0.4043 | N46: 33207.3922 | O46: 0.76
A47: =VLOOKUP($B47,Data_Table[],18,FALSE) -> 0 | B47: 5-00Abs2003-248 | C47: =Table_Data_Table_12[[#This Row],[Pair Group]]+(COUNTIF($A$17:$A47,A47)*0.01) -> 0.25 | D47: Abstraction | E47: 34-204-190-000-005-00 | F47: 340 Lovel St | G47: 42003 | H47: 248651 | I47: 0.572 | J47: 132 | K47: 140849 | L47: 107802 | M47: 0.4335474219 | N47: 188465.035 | O47: 4.33
A48: =VLOOKUP($B48,Data_Table[],18,FALSE) -> 0 | B48: 5-00All2003-248 | C48: =Table_Data_Table_12[[#This Row],[Pair Group]]+(COUNTIF($A$17:$A48,A48)*0.01) -> 0.26 | D48: Allocation | E48: 34-204-190-000-005-00 | F48: 340 Lovel St | G48: 42003 | H48: 248651 | I48: 0.572 | J48: 132 | K48: 0 | L48: 100529.5993 | M48: 0.4043 | N48: 175751.0477 | O48: 4.03
A49: =VLOOKUP($B49,Data_Table[],18,FALSE) -> 0 | B49: 0-02Abs2403-300 | C49: =Table_Data_Table_12[[#This Row],[Pair Group]]+(COUNTIF($A$17:$A49,A49)*0.01) -> 0.27 | D49: Abstraction | E49: 34-110-006-000-040-02 | F49: 3669 S State Rd / M-66 | G49: 42403 | H49: 3000000 | I49: 7.816 | J49: 500 | K49: 1526059 | L49: 1473941 | M49: 0.4913136667 | N49: 188579.9642 | O49: 4.33
A50: =VLOOKUP($B50,Data_Table[],18,FALSE) -> 0 | B50: 0-02All2403-300 | C50: =Table_Data_Table_12[[#This Row],[Pair Group]]+(COUNTIF($A$17:$A50,A50)*0.01) -> 0.28 | D50: Allocation | E50: 34-110-006-000-040-02 | F50: 3669 S State Rd / M-66 | G50: 42403 | H50: 3000000 | I50: 7.816 | J50: 500 | K50: 1526059 | L50: 1212900 | M50: 0.4043 | N50: 155181.6786 | O50: 3.56
A51: =VLOOKUP($B51,Data_Table[],18,FALSE) -> 0 | B51: 5-17Abs2585-650 | C51: =Table_Data_Table_12[[#This Row],[Pair Group]]+(COUNTIF($A$17:$A51,A51)*0.01) -> 0.29 | D51: Abstraction | E51: 34-201-030-000-045-17 | F51: 431 Swartz Ct | G51: 42585 | H51: 650418 | I51: 0.991 | J51: 198 | K51: 572709 | L51: 77709 | M51: 0.1194754758 | N51: 78414.73259 | O51: 1.8
A52: =VLOOKUP($B52,Data_Table[],18,FALSE) -> 0 | B52: 5-17All2585-650 | C52: =Table_Data_Table_12[[#This Row],[Pair Group]]+(COUNTIF($A$17:$A52,A52)*0.01) -> 0.3 | D52: Allocation | E52: 34-201-030-000-045-17 | F52: 431 Swartz Ct | G52: 42585 | H52: 650418 | I52: 0.991 | J52: 198 | K52: 0 | L52: 262963.9974 | M52: 0.4043 | N52: 265352.1669 | O52: 6.09
A53: =VLOOKUP($B53,Data_Table[],18,FALSE) -> 0 | B53: 5-00Abs2789-718 | C53: =Table_Data_Table_12[[#This Row],[Pair Group]]+(COUNTIF($A$17:$A53,A53)*0.01) -> 0.31 | D53: Abstraction | E53: 34-204-600-000-405-00 | F53: 643 Crawford St | G53: 42789 | H53: 718248 | I53: 3.38 | J53: 183.67 | K53: 520238 | L53: 198010 | M53: 0.2756847217 | N53: 58582.84024 | O53: 1.34
A54: =VLOOKUP($B54,Data_Table[],18,FALSE) -> 0 | B54: 5-00All2789-718 | C54: =Table_Data_Table_12[[#This Row],[Pair Group]]+(COUNTIF($A$17:$A54,A54)*0.01) -> 0.32 | D54: Allocation | E54: 34-204-600-000-405-00 | F54: 643 Crawford St | G54: 42789 | H54: 718248 | I54: 3.38 | J54: 183.67 | K54: 0 | L54: 290387.6664 | M54: 0.4043 | N54: 85913.51077 | O54: 1.97
A55: =VLOOKUP($B55,Data_Table[],18,FALSE) -> 0 | B55: 5-00Vac333-200 | C55: =Table_Data_Table_12[[#This Row],[Pair Group]]+(COUNTIF($A$17:$A55,A55)*0.01) -> 0.33 | D55: Vacant | E55: 34-300-050-000-395-00 | F55: Elm St | G55: 40333 | H55: 20000 | I55: 0.609 | J55: 333 | K55: 0 | L55: 20000 | M55: N/A | N55: 32840.7225 | O55: 0.75
A56: =VLOOKUP($B56,Data_Table[],18,FALSE) -> 0 | B56: 0-70Vac2138-450 | C56: =Table_Data_Table_12[[#This Row],[Pair Group]]+(COUNTIF($A$17:$A56,A56)*0.01) -> 0.34 | D56: Vacant | E56: 34-010-036-000-160-70 | F56: M-66 | G56: 42138 | H56: 450000 | I56: 1.796 | J56: 255 | K56: 0 | L56: 450000 | M56: N/A | N56: 250556.7929 | O56: 5.75
A57: =VLOOKUP($B57,Data_Table[],18,FALSE) -> 0 | B57: 5-12Vac-1391-595 | C57: =Table_Data_Table_12[[#This Row],[Pair Group]]+(COUNTIF($A$17:$A57,A57)*0.01) -> 0.35 | D57: Vacant | E57: 34-011-001-000-085-12 | F57: M-66 | G57: 38609 | H57: 595000 | I57: 4.461 | J57: 335 | K57: 0 | L57: 595000 | M57: N/A | N57: 133378.1663 | O57: 3.06
A58: =VLOOKUP($B58,Data_Table[],18,FALSE) -> 0 | B58: 5-42Vac-1340-485 | C58: =Table_Data_Table_12[[#This Row],[Pair Group]]+(COUNTIF($A$17:$A58,A58)*0.01) -> 0.36 | D58: Vacant | E58: 34-011-001-000-085-42 | F58: M-66 | G58: 38660 | H58: 485000 | I58: 1.87 | J58: 323.05 | K58: 0 | L58: 485000 | M58: N/A | N58: 259358.2888 | O58: 5.95
A59: =VLOOKUP($B59,Data_Table[],18,FALSE) -> 0 | B59: 5-10Vac-1032-300 | C59: =Table_Data_Table_12[[#This Row],[Pair Group]]+(COUNTIF($A$17:$A59,A59)*0.01) -> 0.37 | D59: Vacant | E59: 34-060-140-000-005-10 | F59: M-66 | G59: 38968 | H59: 300000 | I59: 1.446 | J59: 300 | K59: 0 | L59: 300000 | M59: N/A | N59: 207468.8797 | O59: 4.76
A60: =VLOOKUP($B60,Data_Table[],18,FALSE) -> 0 | B60: 0-00Vac2754-100 | C60: =Table_Data_Table_12[[#This Row],[Pair Group]]+(COUNTIF($A$17:$A60,A60)*0.01) -> 0.38 | D60: Vacant | E60: 34-090-000-110-00 | F60: Railroad St | G60: 42754 | H60: 10000 | I60: 0.623 | J60: 133 | K60: 0 | L60: 10000 | M60: N/A | N60: 16051.36437 | O60: 0.37
A61: =VLOOKUP($B61,Data_Table[],18,FALSE) -> 0 | B61: 6-00Vac-48-150 | C61: =Table_Data_Table_12[[#This Row],[Pair Group]]+(COUNTIF($A$17:$A61,A61)*0.01) -> 0.39 | D61: Vacant | E61: 34-201-040-000-076-00 | F61: S. Steele St | G61: 39952 | H61: 15000 | I61: 0.855 | J61: 108.64 | K61: 0 | L61: 15000 | M61: N/A | N61: 17543.85965 | O61: 0.4
A62: =VLOOKUP($B62,Data_Table[],18,FALSE) -> 0 | C62: =Table_Data_Table_12[[#This Row],[Pair Group]]+(COUNTIF($A$17:$A62,A62)*0.01) -> 0.4
A63: =VLOOKUP($B63,Data_Table[],18,FALSE) -> 0 | C63: =Table_Data_Table_12[[#This Row],[Pair Group]]+(COUNTIF($A$17:$A63,A63)*0.01) -> 0.41
A64: =VLOOKUP($B64,Data_Table[],18,FALSE) -> 0 | C64: =Table_Data_Table_12[[#This Row],[Pair Group]]+(COUNTIF($A$17:$A64,A64)*0.01) -> 0.42
A65: =VLOOKUP($B65,Data_Table[],18,FALSE) -> 0 | C65: =Table_Data_Table_12[[#This Row],[Pair Group]]+(COUNTIF($A$17:$A65,A65)*0.01) -> 0.43
A66: =VLOOKUP($B66,Data_Table[],18,FALSE) -> 0 | C66: =Table_Data_Table_12[[#This Row],[Pair Group]]+(COUNTIF($A$17:$A66,A66)*0.01) -> 0.44
A67: =VLOOKUP($B67,Data_Table[],18,FALSE) -> 0 | C67: =Table_Data_Table_12[[#This Row],[Pair Group]]+(COUNTIF($A$17:$A67,A67)*0.01) -> 0.45
A68: =VLOOKUP($B68,Data_Table[],18,FALSE) -> 0 | C68: =Table_Data_Table_12[[#This Row],[Pair Group]]+(COUNTIF($A$17:$A68,A68)*0.01) -> 0.46
A69: =VLOOKUP($B69,Data_Table[],18,FALSE) -> 0 | C69: =Table_Data_Table_12[[#This Row],[Pair Group]]+(COUNTIF($A$17:$A69,A69)*0.01) -> 0.47
A70: =VLOOKUP($B70,Data_Table[],18,FALSE) -> 0 | C70: =Table_Data_Table_12[[#This Row],[Pair Group]]+(COUNTIF($A$17:$A70,A70)*0.01) -> 0.48
A71: =VLOOKUP($B71,Data_Table[],18,FALSE) -> 0 | C71: =Table_Data_Table_12[[#This Row],[Pair Group]]+(COUNTIF($A$17:$A71,A71)*0.01) -> 0.49
A72: =VLOOKUP($B72,Data_Table[],18,FALSE) -> 0 | C72: =Table_Data_Table_12[[#This Row],[Pair Group]]+(COUNTIF($A$17:$A72,A72)*0.01) -> 0.5
A73: =VLOOKUP($B73,Data_Table[],18,FALSE) -> 0 | C73: =Table_Data_Table_12[[#This Row],[Pair Group]]+(COUNTIF($A$17:$A73,A73)*0.01) -> 0.51
A74: =VLOOKUP($B74,Data_Table[],18,FALSE) -> 0 | C74: =Table_Data_Table_12[[#This Row],[Pair Group]]+(COUNTIF($A$17:$A74,A74)*0.01) -> 0.52
A75: =VLOOKUP($B75,Data_Table[],18,FALSE) -> 0 | C75: =Table_Data_Table_12[[#This Row],[Pair Group]]+(COUNTIF($A$17:$A75,A75)*0.01) -> 0.53
A76: =VLOOKUP($B76,Data_Table[],18,FALSE) -> 0 | C76: =Table_Data_Table_12[[#This Row],[Pair Group]]+(COUNTIF($A$17:$A76,A76)*0.01) -> 0.54
A77: =VLOOKUP($B77,Data_Table[],18,FALSE) -> 0 | C77: =Table_Data_Table_12[[#This Row],[Pair Group]]+(COUNTIF($A$17:$A77,A77)*0.01) -> 0.55
A78: =VLOOKUP($B78,Data_Table[],18,FALSE) -> 0 | C78: =Table_Data_Table_12[[#This Row],[Pair Group]]+(COUNTIF($A$17:$A78,A78)*0.01) -> 0.56
A79: =VLOOKUP($B79,Data_Table[],18,FALSE) -> 0 | C79: =Table_Data_Table_12[[#This Row],[Pair Group]]+(COUNTIF($A$17:$A79,A79)*0.01) -> 0.57
A80: =VLOOKUP($B80,Data_Table[],18,FALSE) -> 0 | C80: =Table_Data_Table_12[[#This Row],[Pair Group]]+(COUNTIF($A$17:$A80,A80)*0.01) -> 0.58
A81: =VLOOKUP($B81,Data_Table[],18,FALSE) -> 0 | C81: =Table_Data_Table_12[[#This Row],[Pair Group]]+(COUNTIF($A$17:$A81,A81)*0.01) -> 0.59 | D81: =VLOOKUP($B81,DataTable,2,FALSE) ->  | E81: =VLOOKUP($B81,DataTable,3,FALSE) ->  | F81: =VLOOKUP($B81,DataTable,4,FALSE) ->  | G81: =VLOOKUP($B81,DataTable,5,FALSE) ->  | H81: =VLOOKUP($B81,DataTable,6,FALSE) ->  | I81: =ROUND((VLOOKUP($B81,DataTable,10,FALSE)-VLOOKUP($B81,DataTable,12,FALSE))/43560,3) ->  | J81: =VLOOKUP($B81,DataTable,11,FALSE) ->  | K81: =VLOOKUP($B81,DataTable,13,FALSE) ->  | L81: =VLOOKUP($B81,Analysis_Table,8,FALSE) ->  | M81: =VLOOKUP($B81,Analysis_Table,9,FALSE) ->  | N81: =L81/I81 ->  | O81: =ROUND(L81/(VLOOKUP($B81,DataTable,10,FALSE)-VLOOKUP($B81,DataTable,12,FALSE)),2) -> 
A82: =VLOOKUP($B82,Data_Table[],18,FALSE) -> 0 | C82: =Table_Data_Table_12[[#This Row],[Pair Group]]+(COUNTIF($A$17:$A82,A82)*0.01) -> 0.6
A83: =VLOOKUP($B83,Data_Table[],18,FALSE) -> 0 | C83: =Table_Data_Table_12[[#This Row],[Pair Group]]+(COUNTIF($A$17:$A83,A83)*0.01) -> 0.61
A84: =VLOOKUP($B84,Data_Table[],18,FALSE) -> 0 | C84: =Table_Data_Table_12[[#This Row],[Pair Group]]+(COUNTIF($A$17:$A84,A84)*0.01) -> 0.62
A85: =VLOOKUP($B85,Data_Table[],18,FALSE) -> 0 | C85: =Table_Data_Table_12[[#This Row],[Pair Group]]+(COUNTIF($A$17:$A85,A85)*0.01) -> 0.63
A86: =VLOOKUP($B86,Data_Table[],18,FALSE) -> 0 | C86: =Table_Data_Table_12[[#This Row],[Pair Group]]+(COUNTIF($A$17:$A86,A86)*0.01) -> 0.64
A87: =VLOOKUP($B87,Data_Table[],18,FALSE) -> 0 | C87: =Table_Data_Table_12[[#This Row],[Pair Group]]+(COUNTIF($A$17:$A87,A87)*0.01) -> 0.65
A88: =VLOOKUP($B88,Data_Table[],18,FALSE) -> 0 | C88: =Table_Data_Table_12[[#This Row],[Pair Group]]+(COUNTIF($A$17:$A88,A88)*0.01) -> 0.66
A89: =VLOOKUP($B89,Data_Table[],18,FALSE) -> 0 | C89: =Table_Data_Table_12[[#This Row],[Pair Group]]+(COUNTIF($A$17:$A89,A89)*0.01) -> 0.67
A90: =VLOOKUP($B90,Data_Table[],18,FALSE) -> 0 | C90: =Table_Data_Table_12[[#This Row],[Pair Group]]+(COUNTIF($A$17:$A90,A90)*0.01) -> 0.68
A91: =VLOOKUP($B91,Data_Table[],18,FALSE) -> 0 | C91: =Table_Data_Table_12[[#This Row],[Pair Group]]+(COUNTIF($A$17:$A91,A91)*0.01) -> 0.69
A92: =VLOOKUP($B92,Data_Table[],18,FALSE) -> 0 | C92: =Table_Data_Table_12[[#This Row],[Pair Group]]+(COUNTIF($A$17:$A92,A92)*0.01) -> 0.7
A93: =VLOOKUP($B93,Data_Table[],18,FALSE) -> 0 | C93: =Table_Data_Table_12[[#This Row],[Pair Group]]+(COUNTIF($A$17:$A93,A93)*0.01) -> 0.71
A94: =VLOOKUP($B94,Data_Table[],18,FALSE) -> 0 | C94: =Table_Data_Table_12[[#This Row],[Pair Group]]+(COUNTIF($A$17:$A94,A94)*0.01) -> 0.72
A95: =VLOOKUP($B95,Data_Table[],18,FALSE) -> 0 | C95: =Table_Data_Table_12[[#This Row],[Pair Group]]+(COUNTIF($A$17:$A95,A95)*0.01) -> 0.73
A96: =VLOOKUP($B96,Data_Table[],18,FALSE) -> 0 | C96: =Table_Data_Table_12[[#This Row],[Pair Group]]+(COUNTIF($A$17:$A96,A96)*0.01) -> 0.74
A97: =VLOOKUP($B97,Data_Table[],18,FALSE) -> 0 | C97: =Table_Data_Table_12[[#This Row],[Pair Group]]+(COUNTIF($A$17:$A97,A97)*0.01) -> 0.75
A98: =VLOOKUP($B98,Data_Table[],18,FALSE) -> 0 | C98: =Table_Data_Table_12[[#This Row],[Pair Group]]+(COUNTIF($A$17:$A98,A98)*0.01) -> 0.76
A99: =VLOOKUP($B99,Data_Table[],18,FALSE) -> 0 | C99: =Table_Data_Table_12[[#This Row],[Pair Group]]+(COUNTIF($A$17:$A99,A99)*0.01) -> 0.77
A100: =VLOOKUP($B100,Data_Table[],18,FALSE) -> 0 | C100: =Table_Data_Table_12[[#This Row],[Pair Group]]+(COUNTIF($A$17:$A100,A100)*0.01) -> 0.78
A101: =VLOOKUP($B101,Data_Table[],18,FALSE) -> 0 | C101: =Table_Data_Table_12[[#This Row],[Pair Group]]+(COUNTIF($A$17:$A101,A101)*0.01) -> 0.79
A102: =VLOOKUP($B102,Data_Table[],18,FALSE) -> 0 | C102: =Table_Data_Table_12[[#This Row],[Pair Group]]+(COUNTIF($A$17:$A102,A102)*0.01) -> 0.8
A103: =VLOOKUP($B103,Data_Table[],18,FALSE) -> 0 | C103: =Table_Data_Table_12[[#This Row],[Pair Group]]+(COUNTIF($A$17:$A103,A103)*0.01) -> 0.81
A104: =VLOOKUP($B104,Data_Table[],18,FALSE) -> 0 | C104: =Table_Data_Table_12[[#This Row],[Pair Group]]+(COUNTIF($A$17:$A104,A104)*0.01) -> 0.82
A105: =VLOOKUP($B105,Data_Table[],18,FALSE) -> 0 | C105: =Table_Data_Table_12[[#This Row],[Pair Group]]+(COUNTIF($A$17:$A105,A105)*0.01) -> 0.83
A106: =VLOOKUP($B106,Data_Table[],18,FALSE) -> 0 | C106: =Table_Data_Table_12[[#This Row],[Pair Group]]+(COUNTIF($A$17:$A106,A106)*0.01) -> 0.84
A107: =VLOOKUP($B107,Data_Table[],18,FALSE) -> 0 | C107: =Table_Data_Table_12[[#This Row],[Pair Group]]+(COUNTIF($A$17:$A107,A107)*0.01) -> 0.85
A108: =VLOOKUP($B108,Data_Table[],18,FALSE) -> 0 | C108: =Table_Data_Table_12[[#This Row],[Pair Group]]+(COUNTIF($A$17:$A108,A108)*0.01) -> 0.86
A109: =VLOOKUP($B109,Data_Table[],18,FALSE) -> 0 | C109: =Table_Data_Table_12[[#This Row],[Pair Group]]+(COUNTIF($A$17:$A109,A109)*0.01) -> 0.87
A110: =VLOOKUP($B110,Data_Table[],18,FALSE) -> 0 | C110: =Table_Data_Table_12[[#This Row],[Pair Group]]+(COUNTIF($A$17:$A110,A110)*0.01) -> 0.88
A111: =VLOOKUP($B111,Data_Table[],18,FALSE) -> 0 | C111: =Table_Data_Table_12[[#This Row],[Pair Group]]+(COUNTIF($A$17:$A111,A111)*0.01) -> 0.89
A112: =VLOOKUP($B112,Data_Table[],18,FALSE) -> 0 | C112: =Table_Data_Table_12[[#This Row],[Pair Group]]+(COUNTIF($A$17:$A112,A112)*0.01) -> 0.9
A113: =VLOOKUP($B113,Data_Table[],18,FALSE) -> 0 | C113: =Table_Data_Table_12[[#This Row],[Pair Group]]+(COUNTIF($A$17:$A113,A113)*0.01) -> 0.91
A114: =VLOOKUP($B114,Data_Table[],18,FALSE) -> 0 | C114: =Table_Data_Table_12[[#This Row],[Pair Group]]+(COUNTIF($A$17:$A114,A114)*0.01) -> 0.92
A115: =VLOOKUP($B115,Data_Table[],18,FALSE) -> 0 | C115: =Table_Data_Table_12[[#This Row],[Pair Group]]+(COUNTIF($A$17:$A115,A115)*0.01) -> 0.93
A116: =VLOOKUP($B116,Data_Table[],18,FALSE) -> 0 | C116: =Table_Data_Table_12[[#This Row],[Pair Group]]+(COUNTIF($A$17:$A116,A116)*0.01) -> 0.94
A117: =VLOOKUP($B117,Data_Table[],18,FALSE) -> 0 | C117: =Table_Data_Table_12[[#This Row],[Pair Group]]+(COUNTIF($A$17:$A117,A117)*0.01) -> 0.95
A118: =VLOOKUP($B118,Data_Table[],18,FALSE) -> 0 | C118: =Table_Data_Table_12[[#This Row],[Pair Group]]+(COUNTIF($A$17:$A118,A118)*0.01) -> 0.96
A119: =VLOOKUP($B119,Data_Table[],18,FALSE) -> 0 | C119: =Table_Data_Table_12[[#This Row],[Pair Group]]+(COUNTIF($A$17:$A119,A119)*0.01) -> 0.97
A120: =VLOOKUP($B120,Data_Table[],18,FALSE) -> 0 | C120: =Table_Data_Table_12[[#This Row],[Pair Group]]+(COUNTIF($A$17:$A120,A120)*0.01) -> 0.98
A121: =VLOOKUP($B121,Data_Table[],18,FALSE) -> 0 | C121: =Table_Data_Table_12[[#This Row],[Pair Group]]+(COUNTIF($A$17:$A121,A121)*0.01) -> 0.99
A122: =VLOOKUP($B122,Data_Table[],18,FALSE) -> 0 | C122: =Table_Data_Table_12[[#This Row],[Pair Group]]+(COUNTIF($A$17:$A122,A122)*0.01) -> 1
A123: =VLOOKUP($B123,Data_Table[],18,FALSE) -> 0 | C123: =Table_Data_Table_12[[#This Row],[Pair Group]]+(COUNTIF($A$17:$A123,A123)*0.01) -> 1.01
A124: =VLOOKUP($B124,Data_Table[],18,FALSE) -> 0 | C124: =Table_Data_Table_12[[#This Row],[Pair Group]]+(COUNTIF($A$17:$A124,A124)*0.01) -> 1.02
A125: =VLOOKUP($B125,Data_Table[],18,FALSE) -> 0 | C125: =Table_Data_Table_12[[#This Row],[Pair Group]]+(COUNTIF($A$17:$A125,A125)*0.01) -> 1.03
A126: =VLOOKUP($B126,Data_Table[],18,FALSE) -> 0 | C126: =Table_Data_Table_12[[#This Row],[Pair Group]]+(COUNTIF($A$17:$A126,A126)*0.01) -> 1.04
A127: =VLOOKUP($B127,Data_Table[],18,FALSE) -> 0 | C127: =Table_Data_Table_12[[#This Row],[Pair Group]]+(COUNTIF($A$17:$A127,A127)*0.01) -> 1.05
A128: =VLOOKUP($B128,Data_Table[],18,FALSE) -> 0 | C128: =Table_Data_Table_12[[#This Row],[Pair Group]]+(COUNTIF($A$17:$A128,A128)*0.01) -> 1.06
A129: =VLOOKUP($B129,Data_Table[],18,FALSE) -> 0 | C129: =Table_Data_Table_12[[#This Row],[Pair Group]]+(COUNTIF($A$17:$A129,A129)*0.01) -> 1.07
A130: =VLOOKUP($B130,Data_Table[],18,FALSE) -> 0 | C130: =Table_Data_Table_12[[#This Row],[Pair Group]]+(COUNTIF($A$17:$A130,A130)*0.01) -> 1.08
A131: =VLOOKUP($B131,Data_Table[],18,FALSE) -> 0 | C131: =Table_Data_Table_12[[#This Row],[Pair Group]]+(COUNTIF($A$17:$A131,A131)*0.01) -> 1.09
A132: =VLOOKUP($B132,Data_Table[],18,FALSE) -> 0 | C132: =Table_Data_Table_12[[#This Row],[Pair Group]]+(COUNTIF($A$17:$A132,A132)*0.01) -> 1.1
A133: =VLOOKUP($B133,Data_Table[],18,FALSE) -> 0 | C133: =Table_Data_Table_12[[#This Row],[Pair Group]]+(COUNTIF($A$17:$A133,A133)*0.01) -> 1.11
A134: =VLOOKUP($B134,Data_Table[],18,FALSE) -> 0 | C134: =Table_Data_Table_12[[#This Row],[Pair Group]]+(COUNTIF($A$17:$A134,A134)*0.01) -> 1.12
A135: =VLOOKUP($B135,Data_Table[],18,FALSE) -> 0 | C135: =Table_Data_Table_12[[#This Row],[Pair Group]]+(COUNTIF($A$17:$A135,A135)*0.01) -> 1.13
A136: =VLOOKUP($B136,Data_Table[],18,FALSE) -> 0 | C136: =Table_Data_Table_12[[#This Row],[Pair Group]]+(COUNTIF($A$17:$A136,A136)*0.01) -> 1.14
A137: =VLOOKUP($B137,Data_Table[],18,FALSE) -> 0 | C137: =Table_Data_Table_12[[#This Row],[Pair Group]]+(COUNTIF($A$17:$A137,A137)*0.01) -> 1.15
A138: =VLOOKUP($B138,Data_Table[],18,FALSE) -> 0 | C138: =Table_Data_Table_12[[#This Row],[Pair Group]]+(COUNTIF($A$17:$A138,A138)*0.01) -> 1.16
A139: =VLOOKUP($B139,Data_Table[],18,FALSE) -> 0 | C139: =Table_Data_Table_12[[#This Row],[Pair Group]]+(COUNTIF($A$17:$A139,A139)*0.01) -> 1.17
A140: =VLOOKUP($B140,Data_Table[],18,FALSE) -> 0 | C140: =Table_Data_Table_12[[#This Row],[Pair Group]]+(COUNTIF($A$17:$A140,A140)*0.01) -> 1.18
A141: =VLOOKUP($B141,Data_Table[],18,FALSE) -> 0 | C141: =Table_Data_Table_12[[#This Row],[Pair Group]]+(COUNTIF($A$17:$A141,A141)*0.01) -> 1.19
A142: =VLOOKUP($B142,Data_Table[],18,FALSE) -> 0 | C142: =Table_Data_Table_12[[#This Row],[Pair Group]]+(COUNTIF($A$17:$A142,A142)*0.01) -> 1.2
A143: =VLOOKUP($B143,Data_Table[],18,FALSE) -> 0 | C143: =Table_Data_Table_12[[#This Row],[Pair Group]]+(COUNTIF($A$17:$A143,A143)*0.01) -> 1.21
A144: =VLOOKUP($B144,Data_Table[],18,FALSE) -> 0 | C144: =Table_Data_Table_12[[#This Row],[Pair Group]]+(COUNTIF($A$17:$A144,A144)*0.01) -> 1.22
A145: =VLOOKUP($B145,Data_Table[],18,FALSE) -> 0 | C145: =Table_Data_Table_12[[#This Row],[Pair Group]]+(COUNTIF($A$17:$A145,A145)*0.01) -> 1.23 | D145: =VLOOKUP($B145,DataTable,2,FALSE) ->  | E145: =VLOOKUP($B145,DataTable,3,FALSE) ->  | F145: =VLOOKUP($B145,DataTable,4,FALSE) ->  | G145: =VLOOKUP($B145,DataTable,5,FALSE) ->  | H145: =VLOOKUP($B145,DataTable,6,FALSE) ->  | I145: =ROUND((VLOOKUP($B145,DataTable,10,FALSE)-VLOOKUP($B145,DataTable,12,FALSE))/43560,3) ->  | J145: =VLOOKUP($B145,DataTable,11,FALSE) ->  | K145: =VLOOKUP($B145,DataTable,13,FALSE) ->  | L145: =VLOOKUP($B145,Analysis_Table,8,FALSE) ->  | M145: =VLOOKUP($B145,Analysis_Table,9,FALSE) ->  | N145: =L145/I145 ->  | O145: =ROUND(L145/(VLOOKUP($B145,DataTable,10,FALSE)-VLOOKUP($B145,DataTable,12,FALSE)),2) -> 
A146: =VLOOKUP($B146,Data_Table[],18,FALSE) -> 0 | C146: =Table_Data_Table_12[[#This Row],[Pair Group]]+(COUNTIF($A$17:$A146,A146)*0.01) -> 1.24
A147: =VLOOKUP($B147,Data_Table[],18,FALSE) -> 0 | C147: =Table_Data_Table_12[[#This Row],[Pair Group]]+(COUNTIF($A$17:$A147,A147)*0.01) -> 1.25
A148: =VLOOKUP($B148,Data_Table[],18,FALSE) -> 0 | C148: =Table_Data_Table_12[[#This Row],[Pair Group]]+(COUNTIF($A$17:$A148,A148)*0.01) -> 1.26
A149: =VLOOKUP($B149,Data_Table[],18,FALSE) -> 0 | C149: =Table_Data_Table_12[[#This Row],[Pair Group]]+(COUNTIF($A$17:$A149,A149)*0.01) -> 1.27
A150: =VLOOKUP($B150,Data_Table[],18,FALSE) -> 0 | C150: =Table_Data_Table_12[[#This Row],[Pair Group]]+(COUNTIF($A$17:$A150,A150)*0.01) -> 1.28
A151: =VLOOKUP($B151,Data_Table[],18,FALSE) -> 0 | C151: =Table_Data_Table_12[[#This Row],[Pair Group]]+(COUNTIF($A$17:$A151,A151)*0.01) -> 1.29
A152: =VLOOKUP($B152,Data_Table[],18,FALSE) -> 0 | C152: =Table_Data_Table_12[[#This Row],[Pair Group]]+(COUNTIF($A$17:$A152,A152)*0.01) -> 1.3
A153: =VLOOKUP($B153,Data_Table[],18,FALSE) -> 0 | C153: =Table_Data_Table_12[[#This Row],[Pair Group]]+(COUNTIF($A$17:$A153,A153)*0.01) -> 1.31
A154: =VLOOKUP($B154,Data_Table[],18,FALSE) -> 0 | C154: =Table_Data_Table_12[[#This Row],[Pair Group]]+(COUNTIF($A$17:$A154,A154)*0.01) -> 1.32
A155: =VLOOKUP($B155,Data_Table[],18,FALSE) -> 0 | C155: =Table_Data_Table_12[[#This Row],[Pair Group]]+(COUNTIF($A$17:$A155,A155)*0.01) -> 1.33
A156: =VLOOKUP($B156,Data_Table[],18,FALSE) -> 0 | C156: =Table_Data_Table_12[[#This Row],[Pair Group]]+(COUNTIF($A$17:$A156,A156)*0.01) -> 1.34
A157: =VLOOKUP($B157,Data_Table[],18,FALSE) -> 0 | C157: =Table_Data_Table_12[[#This Row],[Pair Group]]+(COUNTIF($A$17:$A157,A157)*0.01) -> 1.35
A158: =VLOOKUP($B158,Data_Table[],18,FALSE) -> 0 | C158: =Table_Data_Table_12[[#This Row],[Pair Group]]+(COUNTIF($A$17:$A158,A158)*0.01) -> 1.36
A159: =VLOOKUP($B159,Data_Table[],18,FALSE) -> 0 | C159: =Table_Data_Table_12[[#This Row],[Pair Group]]+(COUNTIF($A$17:$A159,A159)*0.01) -> 1.37
A160: =VLOOKUP($B160,Data_Table[],18,FALSE) -> 0 | C160: =Table_Data_Table_12[[#This Row],[Pair Group]]+(COUNTIF($A$17:$A160,A160)*0.01) -> 1.38
A161: =VLOOKUP($B161,Data_Table[],18,FALSE) -> 0 | C161: =Table_Data_Table_12[[#This Row],[Pair Group]]+(COUNTIF($A$17:$A161,A161)*0.01) -> 1.39
A162: =VLOOKUP($B162,Data_Table[],18,FALSE) -> 0 | C162: =Table_Data_Table_12[[#This Row],[Pair Group]]+(COUNTIF($A$17:$A162,A162)*0.01) -> 1.4
A163: =VLOOKUP($B163,Data_Table[],18,FALSE) -> 0 | C163: =Table_Data_Table_12[[#This Row],[Pair Group]]+(COUNTIF($A$17:$A163,A163)*0.01) -> 1.41
A164: =VLOOKUP($B164,Data_Table[],18,FALSE) -> 0 | C164: =Table_Data_Table_12[[#This Row],[Pair Group]]+(COUNTIF($A$17:$A164,A164)*0.01) -> 1.42
A165: =VLOOKUP($B165,Data_Table[],18,FALSE) -> 0 | C165: =Table_Data_Table_12[[#This Row],[Pair Group]]+(COUNTIF($A$17:$A165,A165)*0.01) -> 1.43
A166: =VLOOKUP($B166,Data_Table[],18,FALSE) -> 0 | C166: =Table_Data_Table_12[[#This Row],[Pair Group]]+(COUNTIF($A$17:$A166,A166)*0.01) -> 1.44
A167: =VLOOKUP($B167,Data_Table[],18,FALSE) -> 0 | C167: =Table_Data_Table_12[[#This Row],[Pair Group]]+(COUNTIF($A$17:$A167,A167)*0.01) -> 1.45
A168: =VLOOKUP($B168,Data_Table[],18,FALSE) -> 0 | C168: =Table_Data_Table_12[[#This Row],[Pair Group]]+(COUNTIF($A$17:$A168,A168)*0.01) -> 1.46
A169: =VLOOKUP($B169,Data_Table[],18,FALSE) -> 0 | C169: =Table_Data_Table_12[[#This Row],[Pair Group]]+(COUNTIF($A$17:$A169,A169)*0.01) -> 1.47
A170: =VLOOKUP($B170,Data_Table[],18,FALSE) -> 0 | C170: =Table_Data_Table_12[[#This Row],[Pair Group]]+(COUNTIF($A$17:$A170,A170)*0.01) -> 1.48
A171: =VLOOKUP($B171,Data_Table[],18,FALSE) -> 0 | C171: =Table_Data_Table_12[[#This Row],[Pair Group]]+(COUNTIF($A$17:$A171,A171)*0.01) -> 1.49
A172: =VLOOKUP($B172,Data_Table[],18,FALSE) -> 0 | C172: =Table_Data_Table_12[[#This Row],[Pair Group]]+(COUNTIF($A$17:$A172,A172)*0.01) -> 1.5
A173: =VLOOKUP($B173,Data_Table[],18,FALSE) -> 0 | C173: =Table_Data_Table_12[[#This Row],[Pair Group]]+(COUNTIF($A$17:$A173,A173)*0.01) -> 1.51
A174: =VLOOKUP($B174,Data_Table[],18,FALSE) -> 0 | C174: =Table_Data_Table_12[[#This Row],[Pair Group]]+(COUNTIF($A$17:$A174,A174)*0.01) -> 1.52
A175: =VLOOKUP($B175,Data_Table[],18,FALSE) -> 0 | C175: =Table_Data_Table_12[[#This Row],[Pair Group]]+(COUNTIF($A$17:$A175,A175)*0.01) -> 1.53
A176: =VLOOKUP($B176,Data_Table[],18,FALSE) -> 0 | C176: =Table_Data_Table_12[[#This Row],[Pair Group]]+(COUNTIF($A$17:$A176,A176)*0.01) -> 1.54
A177: =VLOOKUP($B177,Data_Table[],18,FALSE) -> 0 | C177: =Table_Data_Table_12[[#This Row],[Pair Group]]+(COUNTIF($A$17:$A177,A177)*0.01) -> 1.55
A178: =VLOOKUP($B178,Data_Table[],18,FALSE) -> 0 | C178: =Table_Data_Table_12[[#This Row],[Pair Group]]+(COUNTIF($A$17:$A178,A178)*0.01) -> 1.56
A179: =VLOOKUP($B179,Data_Table[],18,FALSE) -> 0 | C179: =Table_Data_Table_12[[#This Row],[Pair Group]]+(COUNTIF($A$17:$A179,A179)*0.01) -> 1.57
A180: =VLOOKUP($B180,Data_Table[],18,FALSE) -> 0 | C180: =Table_Data_Table_12[[#This Row],[Pair Group]]+(COUNTIF($A$17:$A180,A180)*0.01) -> 1.58
A181: =VLOOKUP($B181,Data_Table[],18,FALSE) -> 0 | C181: =Table_Data_Table_12[[#This Row],[Pair Group]]+(COUNTIF($A$17:$A181,A181)*0.01) -> 1.59
A182: =VLOOKUP($B182,Data_Table[],18,FALSE) -> 0 | C182: =Table_Data_Table_12[[#This Row],[Pair Group]]+(COUNTIF($A$17:$A182,A182)*0.01) -> 1.6
A183: =VLOOKUP($B183,Data_Table[],18,FALSE) -> 0 | C183: =Table_Data_Table_12[[#This Row],[Pair Group]]+(COUNTIF($A$17:$A183,A183)*0.01) -> 1.61
A184: =VLOOKUP($B184,Data_Table[],18,FALSE) -> 0 | C184: =Table_Data_Table_12[[#This Row],[Pair Group]]+(COUNTIF($A$17:$A184,A184)*0.01) -> 1.62
A185: =VLOOKUP($B185,Data_Table[],18,FALSE) -> 0 | C185: =Table_Data_Table_12[[#This Row],[Pair Group]]+(COUNTIF($A$17:$A185,A185)*0.01) -> 1.63
A186: =VLOOKUP($B186,Data_Table[],18,FALSE) -> 0 | C186: =Table_Data_Table_12[[#This Row],[Pair Group]]+(COUNTIF($A$17:$A186,A186)*0.01) -> 1.64
A187: =VLOOKUP($B187,Data_Table[],18,FALSE) -> 0 | C187: =Table_Data_Table_12[[#This Row],[Pair Group]]+(COUNTIF($A$17:$A187,A187)*0.01) -> 1.65
A188: =VLOOKUP($B188,Data_Table[],18,FALSE) -> 0 | C188: =Table_Data_Table_12[[#This Row],[Pair Group]]+(COUNTIF($A$17:$A188,A188)*0.01) -> 1.66
A189: =VLOOKUP($B189,Data_Table[],18,FALSE) -> 0 | C189: =Table_Data_Table_12[[#This Row],[Pair Group]]+(COUNTIF($A$17:$A189,A189)*0.01) -> 1.67
A190: =VLOOKUP($B190,Data_Table[],18,FALSE) -> 0 | C190: =Table_Data_Table_12[[#This Row],[Pair Group]]+(COUNTIF($A$17:$A190,A190)*0.01) -> 1.68
A191: =VLOOKUP($B191,Data_Table[],18,FALSE) -> 0 | C191: =Table_Data_Table_12[[#This Row],[Pair Group]]+(COUNTIF($A$17:$A191,A191)*0.01) -> 1.69
A192: =VLOOKUP($B192,Data_Table[],18,FALSE) -> 0 | C192: =Table_Data_Table_12[[#This Row],[Pair Group]]+(COUNTIF($A$17:$A192,A192)*0.01) -> 1.7
A193: =VLOOKUP($B193,Data_Table[],18,FALSE) -> 0 | C193: =Table_Data_Table_12[[#This Row],[Pair Group]]+(COUNTIF($A$17:$A193,A193)*0.01) -> 1.71
A194: =VLOOKUP($B194,Data_Table[],18,FALSE) -> 0 | C194: =Table_Data_Table_12[[#This Row],[Pair Group]]+(COUNTIF($A$17:$A194,A194)*0.01) -> 1.72
A195: =VLOOKUP($B195,Data_Table[],18,FALSE) -> 0 | C195: =Table_Data_Table_12[[#This Row],[Pair Group]]+(COUNTIF($A$17:$A195,A195)*0.01) -> 1.73
A196: =VLOOKUP($B196,Data_Table[],18,FALSE) -> 0 | C196: =Table_Data_Table_12[[#This Row],[Pair Group]]+(COUNTIF($A$17:$A196,A196)*0.01) -> 1.74
A197: =VLOOKUP($B197,Data_Table[],18,FALSE) -> 0 | C197: =Table_Data_Table_12[[#This Row],[Pair Group]]+(COUNTIF($A$17:$A197,A197)*0.01) -> 1.75
A198: =VLOOKUP($B198,Data_Table[],18,FALSE) -> 0 | C198: =Table_Data_Table_12[[#This Row],[Pair Group]]+(COUNTIF($A$17:$A198,A198)*0.01) -> 1.76
A199: =VLOOKUP($B199,Data_Table[],18,FALSE) -> 0 | C199: =Table_Data_Table_12[[#This Row],[Pair Group]]+(COUNTIF($A$17:$A199,A199)*0.01) -> 1.77
A200: =VLOOKUP($B200,Data_Table[],18,FALSE) -> 0 | C200: =Table_Data_Table_12[[#This Row],[Pair Group]]+(COUNTIF($A$17:$A200,A200)*0.01) -> 1.78
... 316 more rows

Sheet Analysis
A1: 325F0367-7E81-42C4-ACBC-2A4A09AB2438
B19: ="You cannot begin a new analysis using this workbook after "&TEXT(Timeout!B4,"dd/mm/yyyy")&". Please obtain the latest version from Tony or Warren at that time. Your conclusions and completed work will still be visible in this workbook on the other tabs." -> You cannot begin a new analysis using this workbook after 01/06/2020. Please obtain the latest version from Tony or Warren at that time. Your conclusions and completed work will still be visible in this workbook on the other tabs.
A20: Item ID | B20: Valuation Method | C20: Use? 1=Yes, 0=No | D20: Parcel Number | E20: Sale Date | F20: Sale Price | G20: Imprvmts Value | H20: Land Residual | I20: Indicated LB Ratio | J20: Resid Acre | K20: Resid Sq Ft | L20: Unadjust $ / acre | M20: Unadjust $ / Sq Ft | N20: Months To Mid-Point | O20: Time Adjust | P20: Adjusted Sale Price | Q20: Adjust $ Per Acre | R20: Adjust $ Per Sq Ft | S20: Adjust $ Per Front Ft | T20: Exclusion Comment
A21: 5-00All3439-338 | B21: Allocation | C21: =IF(Table_Data_Table_1[[#This Row],[Item ID]]="","",IFERROR(VLOOKUP(Table_Data_Table_1[[#This Row],[Item ID]],DataTable,16,FALSE),"")) -> 0 | D21: 34-401-250-000-365-00 | E21: 43439 | F21: 338000 | G21: 0 | H21: =IF(Table_Data_Table_1[[#This Row],[Valuation Method]]="Vacant",VLOOKUP(Table_Data_Table_1[[#This Row],[Item ID]],DataTable,6,FALSE)-VLOOKUP(Table_Data_Table_1[[#This Row],[Item ID]],DataTable,13,FALSE),IF(Table_Data_Table_1[[#This Row],[Valuation Method]]="Abstraction",VLOOKUP(Table_Data_Table_1[[#This Row],[Item ID]],DataTable,6,FALSE)-VLOOKUP(Table_Data_Table_1[[#This Row],[Item ID]],DataTable,13,FALSE),IF(Table_Data_Table_1[[#This Row],[Valuation Method]]="Allocation",VLOOKUP(Table_Data_Table_1[[#This Row],[Item ID]],DataTable,6,FALSE)*I21,""))) -> 136653.4 | I21: =IF(Table_Data_Table_1[[#This Row],[Valuation Method]]="Vacant","N/A",IF(Table_Data_Table_1[[#This Row],[Valuation Method]]="Abstraction",Table_Data_Table_1[[#This Row],[Land Residual]]/VLOOKUP(Table_Data_Table_1[[#This Row],[Item ID]],DataTable,6,FALSE),IF(Table_Data_Table_1[[#This Row],[Valuation Method]]="Allocation",'Global Settings'!$H$20,""))) -> 0.4043 | J21: =IFERROR(ROUND(Table_Data_Table_1[[#This Row],[Resid Sq Ft]]/43560,3),"") -> 16.46 | K21: =IF(Table_Data_Table_1[[#This Row],[Item ID]]="","",IFERROR(VLOOKUP(Table_Data_Table_1[[#This Row],[Item ID]],DataTable,10,FALSE)-VLOOKUP(Table_Data_Table_1[[#This Row],[Item ID]],DataTable,12,FALSE),"")) -> 716997.6 | L21: =IFERROR(Table_Data_Table_1[[#This Row],[Land Residual]]/Table_Data_Table_1[[#This Row],[Resid Acre]],"") -> 8302.150668 | M21: =IFERROR(ROUND(Table_Data_Table_1[[#This Row],[Land Residual]]/Table_Data_Table_1[[#This Row],[Resid Sq Ft]],2),"") -> 0.19 | N21: =IF(Table_Data_Table_1[[#This Row],[Item ID]]="","",ROUND(DAYS360(Table_Data_Table_1[[#This Row],[Sale Date]],'Global Settings'!$H$5)/30,0)) -> 52 | O21: =IFERROR(IF(AND(Table_Data_Table_1[[#This Row],[Months To Mid-Point]]<12.01,Table_Data_Table_1[[#This Row],[Months To Mid-Point]]>-13),0,(Table_Data_Table_1[[#This Row],[Months To Mid-Point]]*'Global Settings'!$H$6)),"") -> 0.08151523704 | P21: =IFERROR(Table_Data_Table_1[[#This Row],[Land Residual]]*(Table_Data_Table_1[[#This Row],[Time Adjust]]+1),"") -> 147792.7343 | Q21: =IFERROR(Table_Data_Table_1[[#This Row],[Adjusted Sale Price]]/Table_Data_Table_1[[#This Row],[Resid Acre]],"") -> 8978.902448 | R21: =IFERROR(ROUND(Table_Data_Table_1[[#This Row],[Adjusted Sale Price]]/Table_Data_Table_1[[#This Row],[Resid Sq Ft]],2),"") -> 0.21 | S21: =IFERROR(IF(VLOOKUP(Table_Data_Table_1[[#This Row],[Item ID]],DataTable,11,FALSE)=0,"N/A",Table_Data_Table_1[[#This Row],[Adjusted Sale Price]]/VLOOKUP(Table_Data_Table_1[[#This Row],[Item ID]],DataTable,11,FALSE)),"") -> 978.7598298 | T21: =IF(IFERROR(VLOOKUP(Table_Data_Table_1[[#This Row],[Item ID]],DataTable,17,FALSE),"")=0,"",IFERROR(VLOOKUP(Table_Data_Table_1[[#This Row],[Item ID]],DataTable,17,FALSE),"")) -> 
A22: 1-10Abs2697-194 | B22: Abstraction | C22: =IF(Table_Data_Table_1[[#This Row],[Item ID]]="","",IFERROR(VLOOKUP(Table_Data_Table_1[[#This Row],[Item ID]],DataTable,16,FALSE),"")) -> 0 | D22: 34-203-240-000-191-10 | E22: 42697 | F22: 194500 | G22: 142256 | H22: =IF(Table_Data_Table_1[[#This Row],[Valuation Method]]="Vacant",VLOOKUP(Table_Data_Table_1[[#This Row],[Item ID]],DataTable,6,FALSE)-VLOOKUP(Table_Data_Table_1[[#This Row],[Item ID]],DataTable,13,FALSE),IF(Table_Data_Table_1[[#This Row],[Valuation Method]]="Abstraction",VLOOKUP(Table_Data_Table_1[[#This Row],[Item ID]],DataTable,6,FALSE)-VLOOKUP(Table_Data_Table_1[[#This Row],[Item ID]],DataTable,13,FALSE),IF(Table_Data_Table_1[[#This Row],[Valuation Method]]="Allocation",VLOOKUP(Table_Data_Table_1[[#This Row],[Item ID]],DataTable,6,FALSE)*I22,""))) -> 52244 | I22: =IF(Table_Data_Table_1[[#This Row],[Valuation Method]]="Vacant","N/A",IF(Table_Data_Table_1[[#This Row],[Valuation Method]]="Abstraction",Table_Data_Table_1[[#This Row],[Land Residual]]/VLOOKUP(Table_Data_Table_1[[#This Row],[Item ID]],DataTable,6,FALSE),IF(Table_Data_Table_1[[#This Row],[Valuation Method]]="Allocation",'Global Settings'!$H$20,""))) -> 0.2686066838 | J22: =IFERROR(ROUND(Table_Data_Table_1[[#This Row],[Resid Sq Ft]]/43560,3),"") -> 6.08 | K22: =IF(Table_Data_Table_1[[#This Row],[Item ID]]="","",IFERROR(VLOOKUP(Table_Data_Table_1[[#This Row],[Item ID]],DataTable,10,FALSE)-VLOOKUP(Table_Data_Table_1[[#This Row],[Item ID]],DataTable,12,FALSE),"")) -> 264844.8 | L22: =IFERROR(Table_Data_Table_1[[#This Row],[Land Residual]]/Table_Data_Table_1[[#This Row],[Resid Acre]],"") -> 8592.763158 | M22: =IFERROR(ROUND(Table_Data_Table_1[[#This Row],[Land Residual]]/Table_Data_Table_1[[#This Row],[Resid Sq Ft]],2),"") -> 0.2 | N22: =IF(Table_Data_Table_1[[#This Row],[Item ID]]="","",ROUND(DAYS360(Table_Data_Table_1[[#This Row],[Sale Date]],'Global Settings'!$H$5)/30,0)) -> 76 | O22: =IFERROR(IF(AND(Table_Data_Table_1[[#This Row],[Months To Mid-Point]]<12.01,Table_Data_Table_1[[#This Row],[Months To Mid-Point]]>-13),0,(Table_Data_Table_1[[#This Row],[Months To Mid-Point]]*'Global Settings'!$H$6)),"") -> 0.1191376541 | P22: =IFERROR(Table_Data_Table_1[[#This Row],[Land Residual]]*(Table_Data_Table_1[[#This Row],[Time Adjust]]+1),"") -> 58468.2276 | Q22: =IFERROR(Table_Data_Table_1[[#This Row],[Adjusted Sale Price]]/Table_Data_Table_1[[#This Row],[Resid Acre]],"") -> 9616.484803 | R22: =IFERROR(ROUND(Table_Data_Table_1[[#This Row],[Adjusted Sale Price]]/Table_Data_Table_1[[#This Row],[Resid Sq Ft]],2),"") -> 0.22 | S22: =IFERROR(IF(VLOOKUP(Table_Data_Table_1[[#This Row],[Item ID]],DataTable,11,FALSE)=0,"N/A",Table_Data_Table_1[[#This Row],[Adjusted Sale Price]]/VLOOKUP(Table_Data_Table_1[[#This Row],[Item ID]],DataTable,11,FALSE)),"") -> 341.0618188 | T22: =IF(IFERROR(VLOOKUP(Table_Data_Table_1[[#This Row],[Item ID]],DataTable,17,FALSE),"")=0,"",IFERROR(VLOOKUP(Table_Data_Table_1[[#This Row],[Item ID]],DataTable,17,FALSE),"")) -> 
A23: 5-00Abs3439-338 | B23: Abstraction | C23: =IF(Table_Data_Table_1[[#This Row],[Item ID]]="","",IFERROR(VLOOKUP(Table_Data_Table_1[[#This Row],[Item ID]],DataTable,16,FALSE),"")) -> 1 | D23: 34-401-250-000-365-00 | E23: 43439 | F23: 338000 | G23: 129314 | H23: =IF(Table_Data_Table_1[[#This Row],[Valuation Method]]="Vacant",VLOOKUP(Table_Data_Table_1[[#This Row],[Item ID]],DataTable,6,FALSE)-VLOOKUP(Table_Data_Table_1[[#This Row],[Item ID]],DataTable,13,FALSE),IF(Table_Data_Table_1[[#This Row],[Valuation Method]]="Abstraction",VLOOKUP(Table_Data_Table_1[[#This Row],[Item ID]],DataTable,6,FALSE)-VLOOKUP(Table_Data_Table_1[[#This Row],[Item ID]],DataTable,13,FALSE),IF(Table_Data_Table_1[[#This Row],[Valuation Method]]="Allocation",VLOOKUP(Table_Data_Table_1[[#This Row],[Item ID]],DataTable,6,FALSE)*I23,""))) -> 208686 | I23: =IF(Table_Data_Table_1[[#This Row],[Valuation Method]]="Vacant","N/A",IF(Table_Data_Table_1[[#This Row],[Valuation Method]]="Abstraction",Table_Data_Table_1[[#This Row],[Land Residual]]/VLOOKUP(Table_Data_Table_1[[#This Row],[Item ID]],DataTable,6,FALSE),IF(Table_Data_Table_1[[#This Row],[Valuation Method]]="Allocation",'Global Settings'!$H$20,""))) -> 0.6174142012 | J23: =IFERROR(ROUND(Table_Data_Table_1[[#This Row],[Resid Sq Ft]]/43560,3),"") -> 16.46 | K23: =IF(Table_Data_Table_1[[#This Row],[Item ID]]="","",IFERROR(VLOOKUP(Table_Data_Table_1[[#This Row],[Item ID]],DataTable,10,FALSE)-VLOOKUP(Table_Data_Table_1[[#This Row],[Item ID]],DataTable,12,FALSE),"")) -> 716997.6 | L23: =IFERROR(Table_Data_Table_1[[#This Row],[Land Residual]]/Table_Data_Table_1[[#This Row],[Resid Acre]],"") -> 12678.37181 | M23: =IFERROR(ROUND(Table_Data_Table_1[[#This Row],[Land Residual]]/Table_Data_Table_1[[#This Row],[Resid Sq Ft]],2),"") -> 0.29 | N23: =IF(Table_Data_Table_1[[#This Row],[Item ID]]="","",ROUND(DAYS360(Table_Data_Table_1[[#This Row],[Sale Date]],'Global Settings'!$H$5)/30,0)) -> 52 | O23: =IFERROR(IF(AND(Table_Data_Table_1[[#This Row],[Months To Mid-Point]]<12.01,Table_Data_Table_1[[#This Row],[Months To Mid-Point]]>-13),0,(Table_Data_Table_1[[#This Row],[Months To Mid-Point]]*'Global Settings'!$H$6)),"") -> 0.08151523704 | P23: =IFERROR(Table_Data_Table_1[[#This Row],[Land Residual]]*(Table_Data_Table_1[[#This Row],[Time Adjust]]+1),"") -> 225697.0888 | Q23: =IFERROR(Table_Data_Table_1[[#This Row],[Adjusted Sale Price]]/Table_Data_Table_1[[#This Row],[Resid Acre]],"") -> 13711.85229 | R23: =IFERROR(ROUND(Table_Data_Table_1[[#This Row],[Adjusted Sale Price]]/Table_Data_Table_1[[#This Row],[Resid Sq Ft]],2),"") -> 0.31 | S23: =IFERROR(IF(VLOOKUP(Table_Data_Table_1[[#This Row],[Item ID]],DataTable,11,FALSE)=0,"N/A",Table_Data_Table_1[[#This Row],[Adjusted Sale Price]]/VLOOKUP(Table_Data_Table_1[[#This Row],[Item ID]],DataTable,11,FALSE)),"") -> 1494.682707 | T23: =IF(IFERROR(VLOOKUP(Table_Data_Table_1[[#This Row],[Item ID]],DataTable,17,FALSE),"")=0,"",IFERROR(VLOOKUP(Table_Data_Table_1[[#This Row],[Item ID]],DataTable,17,FALSE),"")) -> 
A24: 1-10All2697-194 | B24: Allocation | C24: =IF(Table_Data_Table_1[[#This Row],[Item ID]]="","",IFERROR(VLOOKUP(Table_Data_Table_1[[#This Row],[Item ID]],DataTable,16,FALSE),"")) -> 0 | D24: 34-203-240-000-191-10 | E24: 42697 | F24: 194500 | G24: 0 | H24: =IF(Table_Data_Table_1[[#This Row],[Valuation Method]]="Vacant",VLOOKUP(Table_Data_Table_1[[#This Row],[Item ID]],DataTable,6,FALSE)-VLOOKUP(Table_Data_Table_1[[#This Row],[Item ID]],DataTable,13,FALSE),IF(Table_Data_Table_1[[#This Row],[Valuation Method]]="Abstraction",VLOOKUP(Table_Data_Table_1[[#This Row],[Item ID]],DataTable,6,FALSE)-VLOOKUP(Table_Data_Table_1[[#This Row],[Item ID]],DataTable,13,FALSE),IF(Table_Data_Table_1[[#This Row],[Valuation Method]]="Allocation",VLOOKUP(Table_Data_Table_1[[#This Row],[Item ID]],DataTable,6,FALSE)*I24,""))) -> 78636.35 | I24: =IF(Table_Data_Table_1[[#This Row],[Valuation Method]]="Vacant","N/A",IF(Table_Data_Table_1[[#This Row],[Valuation Method]]="Abstraction",Table_Data_Table_1[[#This Row],[Land Residual]]/VLOOKUP(Table_Data_Table_1[[#This Row],[Item ID]],DataTable,6,FALSE),IF(Table_Data_Table_1[[#This Row],[Valuation Method]]="Allocation",'Global Settings'!$H$20,""))) -> 0.4043 | J24: =IFERROR(ROUND(Table_Data_Table_1[[#This Row],[Resid Sq Ft]]/43560,3),"") -> 6.08 | K24: =IF(Table_Data_Table_1[[#This Row],[Item ID]]="","",IFERROR(VLOOKUP(Table_Data_Table_1[[#This Row],[Item ID]],DataTable,10,FALSE)-VLOOKUP(Table_Data_Table_1[[#This Row],[Item ID]],DataTable,12,FALSE),"")) -> 264844.8 | L24: =IFERROR(Table_Data_Table_1[[#This Row],[Land Residual]]/Table_Data_Table_1[[#This Row],[Resid Acre]],"") -> 12933.6102 | M24: =IFERROR(ROUND(Table_Data_Table_1[[#This Row],[Land Residual]]/Table_Data_Table_1[[#This Row],[Resid Sq Ft]],2),"") -> 0.3 | N24: =IF(Table_Data_Table_1[[#This Row],[Item ID]]="","",ROUND(DAYS360(Table_Data_Table_1[[#This Row],[Sale Date]],'Global Settings'!$H$5)/30,0)) -> 76 | O24: =IFERROR(IF(AND(Table_Data_Table_1[[#This Row],[Months To Mid-Point]]<12.01,Table_Data_Table_1[[#This Row],[Months To Mid-Point]]>-13),0,(Table_Data_Table_1[[#This Row],[Months To Mid-Point]]*'Global Settings'!$H$6)),"") -> 0.1191376541 | P24: =IFERROR(Table_Data_Table_1[[#This Row],[Land Residual]]*(Table_Data_Table_1[[#This Row],[Time Adjust]]+1),"") -> 88004.90027 | Q24: =IFERROR(Table_Data_Table_1[[#This Row],[Adjusted Sale Price]]/Table_Data_Table_1[[#This Row],[Resid Acre]],"") -> 14474.49018 | R24: =IFERROR(ROUND(Table_Data_Table_1[[#This Row],[Adjusted Sale Price]]/Table_Data_Table_1[[#This Row],[Resid Sq Ft]],2),"") -> 0.33 | S24: =IFERROR(IF(VLOOKUP(Table_Data_Table_1[[#This Row],[Item ID]],DataTable,11,FALSE)=0,"N/A",Table_Data_Table_1[[#This Row],[Adjusted Sale Price]]/VLOOKUP(Table_Data_Table_1[[#This Row],[Item ID]],DataTable,11,FALSE)),"") -> 513.3576403 | T24: =IF(IFERROR(VLOOKUP(Table_Data_Table_1[[#This Row],[Item ID]],DataTable,17,FALSE),"")=0,"",IFERROR(VLOOKUP(Table_Data_Table_1[[#This Row],[Item ID]],DataTable,17,FALSE),"")) -> 
A25: 5-00All3808-610 | B25: Allocation | C25: =IF(Table_Data_Table_1[[#This Row],[Item ID]]="","",IFERROR(VLOOKUP(Table_Data_Table_1[[#This Row],[Item ID]],DataTable,16,FALSE),"")) -> 1 | D25: 34-401-250-000-365-00 | E25: 43808 | F25: 610000 | G25: 0 | H25: =IF(Table_Data_Table_1[[#This Row],[Valuation Method]]="Vacant",VLOOKUP(Table_Data_Table_1[[#This Row],[Item ID]],DataTable,6,FALSE)-VLOOKUP(Table_Data_Table_1[[#This Row],[Item ID]],DataTable,13,FALSE),IF(Table_Data_Table_1[[#This Row],[Valuation Method]]="Abstraction",VLOOKUP(Table_Data_Table_1[[#This Row],[Item ID]],DataTable,6,FALSE)-VLOOKUP(Table_Data_Table_1[[#This Row],[Item ID]],DataTable,13,FALSE),IF(Table_Data_Table_1[[#This Row],[Valuation Method]]="Allocation",VLOOKUP(Table_Data_Table_1[[#This Row],[Item ID]],DataTable,6,FALSE)*I25,""))) -> 246623 | I25: =IF(Table_Data_Table_1[[#This Row],[Valuation Method]]="Vacant","N/A",IF(Table_Data_Table_1[[#This Row],[Valuation Method]]="Abstraction",Table_Data_Table_1[[#This Row],[Land Residual]]/VLOOKUP(Table_Data_Table_1[[#This Row],[Item ID]],DataTable,6,FALSE),IF(Table_Data_Table_1[[#This Row],[Valuation Method]]="Allocation",'Global Settings'!$H$20,""))) -> 0.4043 | J25: =IFERROR(ROUND(Table_Data_Table_1[[#This Row],[Resid Sq Ft]]/43560,3),"") -> 16.46 | K25: =IF(Table_Data_Table_1[[#This Row],[Item ID]]="","",IFERROR(VLOOKUP(Table_Data_Table_1[[#This Row],[Item ID]],DataTable,10,FALSE)-VLOOKUP(Table_Data_Table_1[[#This Row],[Item ID]],DataTable,12,FALSE),"")) -> 716997.6 | L25: =IFERROR(Table_Data_Table_1[[#This Row],[Land Residual]]/Table_Data_Table_1[[#This Row],[Resid Acre]],"") -> 14983.17132 | M25: =IFERROR(ROUND(Table_Data_Table_1[[#This Row],[Land Residual]]/Table_Data_Table_1[[#This Row],[Resid Sq Ft]],2),"") -> 0.34 | N25: =IF(Table_Data_Table_1[[#This Row],[Item ID]]="","",ROUND(DAYS360(Table_Data_Table_1[[#This Row],[Sale Date]],'Global Settings'!$H$5)/30,0)) -> 40 | O25: =IFERROR(IF(AND(Table_Data_Table_1[[#This Row],[Months To Mid-Point]]<12.01,Table_Data_Table_1[[#This Row],[Months To Mid-Point]]>-13),0,(Table_Data_Table_1[[#This Row],[Months To Mid-Point]]*'Global Settings'!$H$6)),"") -> 0.06270402849 | P25: =IFERROR(Table_Data_Table_1[[#This Row],[Land Residual]]*(Table_Data_Table_1[[#This Row],[Time Adjust]]+1),"") -> 262087.2556 | Q25: =IFERROR(Table_Data_Table_1[[#This Row],[Adjusted Sale Price]]/Table_Data_Table_1[[#This Row],[Resid Acre]],"") -> 15922.67653 | R25: =IFERROR(ROUND(Table_Data_Table_1[[#This Row],[Adjusted Sale Price]]/Table_Data_Table_1[[#This Row],[Resid Sq Ft]],2),"") -> 0.37 | S25: =IFERROR(IF(VLOOKUP(Table_Data_Table_1[[#This Row],[Item ID]],DataTable,11,FALSE)=0,"N/A",Table_Data_Table_1[[#This Row],[Adjusted Sale Price]]/VLOOKUP(Table_Data_Table_1[[#This Row],[Item ID]],DataTable,11,FALSE)),"") -> 1735.67719 | T25: =IF(IFERROR(VLOOKUP(Table_Data_Table_1[[#This Row],[Item ID]],DataTable,17,FALSE),"")=0,"",IFERROR(VLOOKUP(Table_Data_Table_1[[#This Row],[Item ID]],DataTable,17,FALSE),"")) -> 
A26: 0-00Vac2754-100 | B26: Vacant | C26: =IF(Table_Data_Table_1[[#This Row],[Item ID]]="","",IFERROR(VLOOKUP(Table_Data_Table_1[[#This Row],[Item ID]],DataTable,16,FALSE),"")) -> 0 | D26: 34-090-000-110-00 | E26: 42754 | F26: 10000 | G26: 0 | H26: =IF(Table_Data_Table_1[[#This Row],[Valuation Method]]="Vacant",VLOOKUP(Table_Data_Table_1[[#This Row],[Item ID]],DataTable,6,FALSE)-VLOOKUP(Table_Data_Table_1[[#This Row],[Item ID]],DataTable,13,FALSE),IF(Table_Data_Table_1[[#This Row],[Valuation Method]]="Abstraction",VLOOKUP(Table_Data_Table_1[[#This Row],[Item ID]],DataTable,6,FALSE)-VLOOKUP(Table_Data_Table_1[[#This Row],[Item ID]],DataTable,13,FALSE),IF(Table_Data_Table_1[[#This Row],[Valuation Method]]="Allocation",VLOOKUP(Table_Data_Table_1[[#This Row],[Item ID]],DataTable,6,FALSE)*I26,""))) -> 10000 | I26: =IF(Table_Data_Table_1[[#This Row],[Valuation Method]]="Vacant","N/A",IF(Table_Data_Table_1[[#This Row],[Valuation Method]]="Abstraction",Table_Data_Table_1[[#This Row],[Land Residual]]/VLOOKUP(Table_Data_Table_1[[#This Row],[Item ID]],DataTable,6,FALSE),IF(Table_Data_Table_1[[#This Row],[Valuation Method]]="Allocation",'Global Settings'!$H$20,""))) -> N/A | J26: =IFERROR(ROUND(Table_Data_Table_1[[#This Row],[Resid Sq Ft]]/43560,3),"") -> 0.623 | K26: =IF(Table_Data_Table_1[[#This Row],[Item ID]]="","",IFERROR(VLOOKUP(Table_Data_Table_1[[#This Row],[Item ID]],DataTable,10,FALSE)-VLOOKUP(Table_Data_Table_1[[#This Row],[Item ID]],DataTable,12,FALSE),"")) -> 27137.88 | L26: =IFERROR(Table_Data_Table_1[[#This Row],[Land Residual]]/Table_Data_Table_1[[#This Row],[Resid Acre]],"") -> 16051.36437 | M26: =IFERROR(ROUND(Table_Data_Table_1[[#This Row],[Land Residual]]/Table_Data_Table_1[[#This Row],[Resid Sq Ft]],2),"") -> 0.37 | N26: =IF(Table_Data_Table_1[[#This Row],[Item ID]]="","",ROUND(DAYS360(Table_Data_Table_1[[#This Row],[Sale Date]],'Global Settings'!$H$5)/30,0)) -> 74 | O26: =IFERROR(IF(AND(Table_Data_Table_1[[#This Row],[Months To Mid-Point]]<12.01,Table_Data_Table_1[[#This Row],[Months To Mid-Point]]>-13),0,(Table_Data_Table_1[[#This Row],[Months To Mid-Point]]*'Global Settings'!$H$6)),"") -> 0.1160024527 | P26: =IFERROR(Table_Data_Table_1[[#This Row],[Land Residual]]*(Table_Data_Table_1[[#This Row],[Time Adjust]]+1),"") -> 11160.02453 | Q26: =IFERROR(Table_Data_Table_1[[#This Row],[Adjusted Sale Price]]/Table_Data_Table_1[[#This Row],[Resid Acre]],"") -> 17913.362 | R26: =IFERROR(ROUND(Table_Data_Table_1[[#This Row],[Adjusted Sale Price]]/Table_Data_Table_1[[#This Row],[Resid Sq Ft]],2),"") -> 0.41 | S26: =IFERROR(IF(VLOOKUP(Table_Data_Table_1[[#This Row],[Item ID]],DataTable,11,FALSE)=0,"N/A",Table_Data_Table_1[[#This Row],[Adjusted Sale Price]]/VLOOKUP(Table_Data_Table_1[[#This Row],[Item ID]],DataTable,11,FALSE)),"") -> 83.90995885 | T26: =IF(IFERROR(VLOOKUP(Table_Data_Table_1[[#This Row],[Item ID]],DataTable,17,FALSE),"")=0,"",IFERROR(VLOOKUP(Table_Data_Table_1[[#This Row],[Item ID]],DataTable,17,FALSE),"")) -> 
A27: 0-00Abs1795-800 | B27: Abstraction | C27: =IF(Table_Data_Table_1[[#This Row],[Item ID]]="","",IFERROR(VLOOKUP(Table_Data_Table_1[[#This Row],[Item ID]],DataTable,16,FALSE),"")) -> 1 | D27: 34-401-250-000-350-00 | E27: 41795 | F27: 80000 | G27: 51893 | H27: =IF(Table_Data_Table_1[[#This Row],[Valuation Method]]="Vacant",VLOOKUP(Table_Data_Table_1[[#This Row],[Item ID]],DataTable,6,FALSE)-VLOOKUP(Table_Data_Table_1[[#This Row],[Item ID]],DataTable,13,FALSE),IF(Table_Data_Table_1[[#This Row],[Valuation Method]]="Abstraction",VLOOKUP(Table_Data_Table_1[[#This Row],[Item ID]],DataTable,6,FALSE)-VLOOKUP(Table_Data_Table_1[[#This Row],[Item ID]],DataTable,13,FALSE),IF(Table_Data_Table_1[[#This Row],[Valuation Method]]="Allocation",VLOOKUP(Table_Data_Table_1[[#This Row],[Item ID]],DataTable,6,FALSE)*I27,""))) -> 28107 | I27: =IF(Table_Data_Table_1[[#This Row],[Valuation Method]]="Vacant","N/A",IF(Table_Data_Table_1[[#This Row],[Valuation Method]]="Abstraction",Table_Data_Table_1[[#This Row],[Land Residual]]/VLOOKUP(Table_Data_Table_1[[#This Row],[Item ID]],DataTable,6,FALSE),IF(Table_Data_Table_1[[#This Row],[Valuation Method]]="Allocation",'Global Settings'!$H$20,""))) -> 0.3513375 | J27: =IFERROR(ROUND(Table_Data_Table_1[[#This Row],[Resid Sq Ft]]/43560,3),"") -> 1.615 | K27: =IF(Table_Data_Table_1[[#This Row],[Item ID]]="","",IFERROR(VLOOKUP(Table_Data_Table_1[[#This Row],[Item ID]],DataTable,10,FALSE)-VLOOKUP(Table_Data_Table_1[[#This Row],[Item ID]],DataTable,12,FALSE),"")) -> 70347.42 | L27: =IFERROR(Table_Data_Table_1[[#This Row],[Land Residual]]/Table_Data_Table_1[[#This Row],[Resid Acre]],"") -> 17403.71517 | M27: =IFERROR(ROUND(Table_Data_Table_1[[#This Row],[Land Residual]]/Table_Data_Table_1[[#This Row],[Resid Sq Ft]],2),"") -> 0.4 | N27: =IF(Table_Data_Table_1[[#This Row],[Item ID]]="","",ROUND(DAYS360(Table_Data_Table_1[[#This Row],[Sale Date]],'Global Settings'!$H$5)/30,0)) -> 106 | O27: =IFERROR(IF(AND(Table_Data_Table_1[[#This Row],[Months To Mid-Point]]<12.01,Table_Data_Table_1[[#This Row],[Months To Mid-Point]]>-13),0,(Table_Data_Table_1[[#This Row],[Months To Mid-Point]]*'Global Settings'!$H$6)),"") -> 0.1661656755 | P27: =IFERROR(Table_Data_Table_1[[#This Row],[Land Residual]]*(Table_Data_Table_1[[#This Row],[Time Adjust]]+1),"") -> 32777.41864 | Q27: =IFERROR(Table_Data_Table_1[[#This Row],[Adjusted Sale Price]]/Table_Data_Table_1[[#This Row],[Resid Acre]],"") -> 20295.61526 | R27: =IFERROR(ROUND(Table_Data_Table_1[[#This Row],[Adjusted Sale Price]]/Table_Data_Table_1[[#This Row],[Resid Sq Ft]],2),"") -> 0.47 | S27: =IFERROR(IF(VLOOKUP(Table_Data_Table_1[[#This Row],[Item ID]],DataTable,11,FALSE)=0,"N/A",Table_Data_Table_1[[#This Row],[Adjusted Sale Price]]/VLOOKUP(Table_Data_Table_1[[#This Row],[Item ID]],DataTable,11,FALSE)),"") -> 269.7729929 | T27: =IF(IFERROR(VLOOKUP(Table_Data_Table_1[[#This Row],[Item ID]],DataTable,17,FALSE),"")=0,"",IFERROR(VLOOKUP(Table_Data_Table_1[[#This Row],[Item ID]],DataTable,17,FALSE),"")) -> 
A28: 6-00Vac-48-150 | B28: Vacant | C28: =IF(Table_Data_Table_1[[#This Row],[Item ID]]="","",IFERROR(VLOOKUP(Table_Data_Table_1[[#This Row],[Item ID]],DataTable,16,FALSE),"")) -> 0 | D28: 34-201-040-000-076-00 | E28: 39952 | F28: 15000 | G28: 0 | H28: =IF(Table_Data_Table_1[[#This Row],[Valuation Method]]="Vacant",VLOOKUP(Table_Data_Table_1[[#This Row],[Item ID]],DataTable,6,FALSE)-VLOOKUP(Table_Data_Table_1[[#This Row],[Item ID]],DataTable,13,FALSE),IF(Table_Data_Table_1[[#This Row],[Valuation Method]]="Abstraction",VLOOKUP(Table_Data_Table_1[[#This Row],[Item ID]],DataTable,6,FALSE)-VLOOKUP(Table_Data_Table_1[[#This Row],[Item ID]],DataTable,13,FALSE),IF(Table_Data_Table_1[[#This Row],[Valuation Method]]="Allocation",VLOOKUP(Table_Data_Table_1[[#This Row],[Item ID]],DataTable,6,FALSE)*I28,""))) -> 15000 | I28: =IF(Table_Data_Table_1[[#This Row],[Valuation Method]]="Vacant","N/A",IF(Table_Data_Table_1[[#This Row],[Valuation Method]]="Abstraction",Table_Data_Table_1[[#This Row],[Land Residual]]/VLOOKUP(Table_Data_Table_1[[#This Row],[Item ID]],DataTable,6,FALSE),IF(Table_Data_Table_1[[#This Row],[Valuation Method]]="Allocation",'Global Settings'!$H$20,""))) -> N/A | J28: =IFERROR(ROUND(Table_Data_Table_1[[#This Row],[Resid Sq Ft]]/43560,3),"") -> 0.855 | K28: =IF(Table_Data_Table_1[[#This Row],[Item ID]]="","",IFERROR(VLOOKUP(Table_Data_Table_1[[#This Row],[Item ID]],DataTable,10,FALSE)-VLOOKUP(Table_Data_Table_1[[#This Row],[Item ID]],DataTable,12,FALSE),"")) -> 37243.8 | L28: =IFERROR(Table_Data_Table_1[[#This Row],[Land Residual]]/Table_Data_Table_1[[#This Row],[Resid Acre]],"") -> 17543.85965 | M28: =IFERROR(ROUND(Table_Data_Table_1[[#This Row],[Land Residual]]/Table_Data_Table_1[[#This Row],[Resid Sq Ft]],2),"") -> 0.4 | N28: =IF(Table_Data_Table_1[[#This Row],[Item ID]]="","",ROUND(DAYS360(Table_Data_Table_1[[#This Row],[Sale Date]],'Global Settings'!$H$5)/30,0)) -> 166 | O28: =IFERROR(IF(AND(Table_Data_Table_1[[#This Row],[Months To Mid-Point]]<12.01,Table_Data_Table_1[[#This Row],[Months To Mid-Point]]>-13),0,(Table_Data_Table_1[[#This Row],[Months To Mid-Point]]*'Global Settings'!$H$6)),"") -> 0.2602217182 | P28: =IFERROR(Table_Data_Table_1[[#This Row],[Land Residual]]*(Table_Data_Table_1[[#This Row],[Time Adjust]]+1),"") -> 18903.32577 | Q28: =IFERROR(Table_Data_Table_1[[#This Row],[Adjusted Sale Price]]/Table_Data_Table_1[[#This Row],[Resid Acre]],"") -> 22109.15295 | R28: =IFERROR(ROUND(Table_Data_Table_1[[#This Row],[Adjusted Sale Price]]/Table_Data_Table_1[[#This Row],[Resid Sq Ft]],2),"") -> 0.51 | S28: =IFERROR(IF(VLOOKUP(Table_Data_Table_1[[#This Row],[Item ID]],DataTable,11,FALSE)=0,"N/A",Table_Data_Table_1[[#This Row],[Adjusted Sale Price]]/VLOOKUP(Table_Data_Table_1[[#This Row],[Item ID]],DataTable,11,FALSE)),"") -> 173.999685 | T28: =IF(IFERROR(VLOOKUP(Table_Data_Table_1[[#This Row],[Item ID]],DataTable,17,FALSE),"")=0,"",IFERROR(VLOOKUP(Table_Data_Table_1[[#This Row],[Item ID]],DataTable,17,FALSE),"")) -> 
A29: 0-00All1795-800 | B29: Allocation | C29: =IF(Table_Data_Table_1[[#This Row],[Item ID]]="","",IFERROR(VLOOKUP(Table_Data_Table_1[[#This Row],[Item ID]],DataTable,16,FALSE),"")) -> 1 | D29: 34-401-250-000-350-00 | E29: 41795 | F29: 80000 | G29: 0 | H29: =IF(Table_Data_Table_1[[#This Row],[Valuation Method]]="Vacant",VLOOKUP(Table_Data_Table_1[[#This Row],[Item ID]],DataTable,6,FALSE)-VLOOKUP(Table_Data_Table_1[[#This Row],[Item ID]],DataTable,13,FALSE),IF(Table_Data_Table_1[[#This Row],[Valuation Method]]="Abstraction",VLOOKUP(Table_Data_Table_1[[#This Row],[Item ID]],DataTable,6,FALSE)-VLOOKUP(Table_Data_Table_1[[#This Row],[Item ID]],DataTable,13,FALSE),IF(Table_Data_Table_1[[#This Row],[Valuation Method]]="Allocation",VLOOKUP(Table_Data_Table_1[[#This Row],[Item ID]],DataTable,6,FALSE)*I29,""))) -> 32344 | I29: =IF(Table_Data_Table_1[[#This Row],[Valuation Method]]="Vacant","N/A",IF(Table_Data_Table_1[[#This Row],[Valuation Method]]="Abstraction",Table_Data_Table_1[[#This Row],[Land Residual]]/VLOOKUP(Table_Data_Table_1[[#This Row],[Item ID]],DataTable,6,FALSE),IF(Table_Data_Table_1[[#This Row],[Valuation Method]]="Allocation",'Global Settings'!$H$20,""))) -> 0.4043 | J29: =IFERROR(ROUND(Table_Data_Table_1[[#This Row],[Resid Sq Ft]]/43560,3),"") -> 1.615 | K29: =IF(Table_Data_Table_1[[#This Row],[Item ID]]="","",IFERROR(VLOOKUP(Table_Data_Table_1[[#This Row],[Item ID]],DataTable,10,FALSE)-VLOOKUP(Table_Data_Table_1[[#This Row],[Item ID]],DataTable,12,FALSE),"")) -> 70347.42 | L29: =IFERROR(Table_Data_Table_1[[#This Row],[Land Residual]]/Table_Data_Table_1[[#This Row],[Resid Acre]],"") -> 20027.24458 | M29: =IFERROR(ROUND(Table_Data_Table_1[[#This Row],[Land Residual]]/Table_Data_Table_1[[#This Row],[Resid Sq Ft]],2),"") -> 0.46 | N29: =IF(Table_Data_Table_1[[#This Row],[Item ID]]="","",ROUND(DAYS360(Table_Data_Table_1[[#This Row],[Sale Date]],'Global Settings'!$H$5)/30,0)) -> 106 | O29: =IFERROR(IF(AND(Table_Data_Table_1[[#This Row],[Months To Mid-Point]]<12.01,Table_Data_Table_1[[#This Row],[Months To Mid-Point]]>-13),0,(Table_Data_Table_1[[#This Row],[Months To Mid-Point]]*'Global Settings'!$H$6)),"") -> 0.1661656755 | P29: =IFERROR(Table_Data_Table_1[[#This Row],[Land Residual]]*(Table_Data_Table_1[[#This Row],[Time Adjust]]+1),"") -> 37718.46261 | Q29: =IFERROR(Table_Data_Table_1[[#This Row],[Adjusted Sale Price]]/Table_Data_Table_1[[#This Row],[Resid Acre]],"") -> 23355.08521 | R29: =IFERROR(ROUND(Table_Data_Table_1[[#This Row],[Adjusted Sale Price]]/Table_Data_Table_1[[#This Row],[Resid Sq Ft]],2),"") -> 0.54 | S29: =IFERROR(IF(VLOOKUP(Table_Data_Table_1[[#This Row],[Item ID]],DataTable,11,FALSE)=0,"N/A",Table_Data_Table_1[[#This Row],[Adjusted Sale Price]]/VLOOKUP(Table_Data_Table_1[[#This Row],[Item ID]],DataTable,11,FALSE)),"") -> 310.4400215 | T29: =IF(IFERROR(VLOOKUP(Table_Data_Table_1[[#This Row],[Item ID]],DataTable,17,FALSE),"")=0,"",IFERROR(VLOOKUP(Table_Data_Table_1[[#This Row],[Item ID]],DataTable,17,FALSE),"")) -> 
A30: 5-00Abs3808-610 | B30: Abstraction | C30: =IF(Table_Data_Table_1[[#This Row],[Item ID]]="","",IFERROR(VLOOKUP(Table_Data_Table_1[[#This Row],[Item ID]],DataTable,16,FALSE),"")) -> 1 | D30: 34-401-250-000-365-00 | E30: 43808 | F30: 610000 | G30: 226879 | H30: =IF(Table_Data_Table_1[[#This Row],[Valuation Method]]="Vacant",VLOOKUP(Table_Data_Table_1[[#This Row],[Item ID]],DataTable,6,FALSE)-VLOOKUP(Table_Data_Table_1[[#This Row],[Item ID]],DataTable,13,FALSE),IF(Table_Data_Table_1[[#This Row],[Valuation Method]]="Abstraction",VLOOKUP(Table_Data_Table_1[[#This Row],[Item ID]],DataTable,6,FALSE)-VLOOKUP(Table_Data_Table_1[[#This Row],[Item ID]],DataTable,13,FALSE),IF(Table_Data_Table_1[[#This Row],[Valuation Method]]="Allocation",VLOOKUP(Table_Data_Table_1[[#This Row],[Item ID]],DataTable,6,FALSE)*I30,""))) -> 383121 | I30: =IF(Table_Data_Table_1[[#This Row],[Valuation Method]]="Vacant","N/A",IF(Table_Data_Table_1[[#This Row],[Valuation Method]]="Abstraction",Table_Data_Table_1[[#This Row],[Land Residual]]/VLOOKUP(Table_Data_Table_1[[#This Row],[Item ID]],DataTable,6,FALSE),IF(Table_Data_Table_1[[#This Row],[Valuation Method]]="Allocation",'Global Settings'!$H$20,""))) -> 0.6280672131 | J30: =IFERROR(ROUND(Table_Data_Table_1[[#This Row],[Resid Sq Ft]]/43560,3),"") -> 16.46 | K30: =IF(Table_Data_Table_1[[#This Row],[Item ID]]="","",IFERROR(VLOOKUP(Table_Data_Table_1[[#This Row],[Item ID]],DataTable,10,FALSE)-VLOOKUP(Table_Data_Table_1[[#This Row],[Item ID]],DataTable,12,FALSE),"")) -> 716997.6 | L30: =IFERROR(Table_Data_Table_1[[#This Row],[Land Residual]]/Table_Data_Table_1[[#This Row],[Resid Acre]],"") -> 23275.88092 | M30: =IFERROR(ROUND(Table_Data_Table_1[[#This Row],[Land Residual]]/Table_Data_Table_1[[#This Row],[Resid Sq Ft]],2),"") -> 0.53 | N30: =IF(Table_Data_Table_1[[#This Row],[Item ID]]="","",ROUND(DAYS360(Table_Data_Table_1[[#This Row],[Sale Date]],'Global Settings'!$H$5)/30,0)) -> 40 | O30: =IFERROR(IF(AND(Table_Data_Table_1[[#This Row],[Months To Mid-Point]]<12.01,Table_Data_Table_1[[#This Row],[Months To Mid-Point]]>-13),0,(Table_Data_Table_1[[#This Row],[Months To Mid-Point]]*'Global Settings'!$H$6)),"") -> 0.06270402849 | P30: =IFERROR(Table_Data_Table_1[[#This Row],[Land Residual]]*(Table_Data_Table_1[[#This Row],[Time Adjust]]+1),"") -> 407144.2301 | Q30: =IFERROR(Table_Data_Table_1[[#This Row],[Adjusted Sale Price]]/Table_Data_Table_1[[#This Row],[Resid Acre]],"") -> 24735.37242 | R30: =IFERROR(ROUND(Table_Data_Table_1[[#This Row],[Adjusted Sale Price]]/Table_Data_Table_1[[#This Row],[Resid Sq Ft]],2),"") -> 0.57 | S30: =IFERROR(IF(VLOOKUP(Table_Data_Table_1[[#This Row],[Item ID]],DataTable,11,FALSE)=0,"N/A",Table_Data_Table_1[[#This Row],[Adjusted Sale Price]]/VLOOKUP(Table_Data_Table_1[[#This Row],[Item ID]],DataTable,11,FALSE)),"") -> 2696.319405 | T30: =IF(IFERROR(VLOOKUP(Table_Data_Table_1[[#This Row],[Item ID]],DataTable,17,FALSE),"")=0,"",IFERROR(VLOOKUP(Table_Data_Table_1[[#This Row],[Item ID]],DataTable,17,FALSE),"")) -> 
A31: 5-00All2741-400 | B31: Allocation | C31: =IF(Table_Data_Table_1[[#This Row],[Item ID]]="","",IFERROR(VLOOKUP(Table_Data_Table_1[[#This Row],[Item ID]],DataTable,16,FALSE),"")) -> 0 | D31: 34-204-090-000-075-00 | E31: 42741 | F31: 40000 | G31: 0 | H31: =IF(Table_Data_Table_1[[#This Row],[Valuation Method]]="Vacant",VLOOKUP(Table_Data_Table_1[[#This Row],[Item ID]],DataTable,6,FALSE)-VLOOKUP(Table_Data_Table_1[[#This Row],[Item ID]],DataTable,13,FALSE),IF(Table_Data_Table_1[[#This Row],[Valuation Method]]="Abstraction",VLOOKUP(Table_Data_Table_1[[#This Row],[Item ID]],DataTable,6,FALSE)-VLOOKUP(Table_Data_Table_1[[#This Row],[Item ID]],DataTable,13,FALSE),IF(Table_Data_Table_1[[#This Row],[Valuation Method]]="Allocation",VLOOKUP(Table_Data_Table_1[[#This Row],[Item ID]],DataTable,6,FALSE)*I31,""))) -> 16172 | I31: =IF(Table_Data_Table_1[[#This Row],[Valuation Method]]="Vacant","N/A",IF(Table_Data_Table_1[[#This Row],[Valuation Method]]="Abstraction",Table_Data_Table_1[[#This Row],[Land Residual]]/VLOOKUP(Table_Data_Table_1[[#This Row],[Item ID]],DataTable,6,FALSE),IF(Table_Data_Table_1[[#This Row],[Valuation Method]]="Allocation",'Global Settings'!$H$20,""))) -> 0.4043 | J31: =IFERROR(ROUND(Table_Data_Table_1[[#This Row],[Resid Sq Ft]]/43560,3),"") -> 0.487 | K31: =IF(Table_Data_Table_1[[#This Row],[Item ID]]="","",IFERROR(VLOOKUP(Table_Data_Table_1[[#This Row],[Item ID]],DataTable,10,FALSE)-VLOOKUP(Table_Data_Table_1[[#This Row],[Item ID]],DataTable,12,FALSE),"")) -> 21213.72 | L31: =IFERROR(Table_Data_Table_1[[#This Row],[Land Residual]]/Table_Data_Table_1[[#This Row],[Resid Acre]],"") -> 33207.3922 | M31: =IFERROR(ROUND(Table_Data_Table_1[[#This Row],[Land Residual]]/Table_Data_Table_1[[#This Row],[Resid Sq Ft]],2),"") -> 0.76 | N31: =IF(Table_Data_Table_1[[#This Row],[Item ID]]="","",ROUND(DAYS360(Table_Data_Table_1[[#This Row],[Sale Date]],'Global Settings'!$H$5)/30,0)) -> 75 | O31: =IFERROR(IF(AND(Table_Data_Table_1[[#This Row],[Months To Mid-Point]]<12.01,Table_Data_Table_1[[#This Row],[Months To Mid-Point]]>-13),0,(Table_Data_Table_1[[#This Row],[Months To Mid-Point]]*'Global Settings'!$H$6)),"") -> 0.1175700534 | P31: =IFERROR(Table_Data_Table_1[[#This Row],[Land Residual]]*(Table_Data_Table_1[[#This Row],[Time Adjust]]+1),"") -> 18073.3429 | Q31: =IFERROR(Table_Data_Table_1[[#This Row],[Adjusted Sale Price]]/Table_Data_Table_1[[#This Row],[Resid Acre]],"") -> 37111.58707 | R31: =IFERROR(ROUND(Table_Data_Table_1[[#This Row],[Adjusted Sale Price]]/Table_Data_Table_1[[#This Row],[Resid Sq Ft]],2),"") -> 0.85 | S31: =IFERROR(IF(VLOOKUP(Table_Data_Table_1[[#This Row],[Item ID]],DataTable,11,FALSE)=0,"N/A",Table_Data_Table_1[[#This Row],[Adjusted Sale Price]]/VLOOKUP(Table_Data_Table_1[[#This Row],[Item ID]],DataTable,11,FALSE)),"") -> 120.4889527 | T31: =IF(IFERROR(VLOOKUP(Table_Data_Table_1[[#This Row],[Item ID]],DataTable,17,FALSE),"")=0,"",IFERROR(VLOOKUP(Table_Data_Table_1[[#This Row],[Item ID]],DataTable,17,FALSE),"")) -> 
A32: 5-00Vac333-200 | B32: Vacant | C32: =IF(Table_Data_Table_1[[#This Row],[Item ID]]="","",IFERROR(VLOOKUP(Table_Data_Table_1[[#This Row],[Item ID]],DataTable,16,FALSE),"")) -> 0 | D32: 34-300-050-000-395-00 | E32: 40333 | F32: 20000 | G32: 0 | H32: =IF(Table_Data_Table_1[[#This Row],[Valuation Method]]="Vacant",VLOOKUP(Table_Data_Table_1[[#This Row],[Item ID]],DataTable,6,FALSE)-VLOOKUP(Table_Data_Table_1[[#This Row],[Item ID]],DataTable,13,FALSE),IF(Table_Data_Table_1[[#This Row],[Valuation Method]]="Abstraction",VLOOKUP(Table_Data_Table_1[[#This Row],[Item ID]],DataTable,6,FALSE)-VLOOKUP(Table_Data_Table_1[[#This Row],[Item ID]],DataTable,13,FALSE),IF(Table_Data_Table_1[[#This Row],[Valuation Method]]="Allocation",VLOOKUP(Table_Data_Table_1[[#This Row],[Item ID]],DataTable,6,FALSE)*I32,""))) -> 20000 | I32: =IF(Table_Data_Table_1[[#This Row],[Valuation Method]]="Vacant","N/A",IF(Table_Data_Table_1[[#This Row],[Valuation Method]]="Abstraction",Table_Data_Table_1[[#This Row],[Land Residual]]/VLOOKUP(Table_Data_Table_1[[#This Row],[Item ID]],DataTable,6,FALSE),IF(Table_Data_Table_1[[#This Row],[Valuation Method]]="Allocation",'Global Settings'!$H$20,""))) -> N/A | J32: =IFERROR(ROUND(Table_Data_Table_1[[#This Row],[Resid Sq Ft]]/43560,3),"") -> 0.609 | K32: =IF(Table_Data_Table_1[[#This Row],[Item ID]]="","",IFERROR(VLOOKUP(Table_Data_Table_1[[#This Row],[Item ID]],DataTable,10,FALSE)-VLOOKUP(Table_Data_Table_1[[#This Row],[Item ID]],DataTable,12,FALSE),"")) -> 26528.04 | L32: =IFERROR(Table_Data_Table_1[[#This Row],[Land Residual]]/Table_Data_Table_1[[#This Row],[Resid Acre]],"") -> 32840.7225 | M32: =IFERROR(ROUND(Table_Data_Table_1[[#This Row],[Land Residual]]/Table_Data_Table_1[[#This Row],[Resid Sq Ft]],2),"") -> 0.75 | N32: =IF(Table_Data_Table_1[[#This Row],[Item ID]]="","",ROUND(DAYS360(Table_Data_Table_1[[#This Row],[Sale Date]],'Global Settings'!$H$5)/30,0)) -> 154 | O32: =IFERROR(IF(AND(Table_Data_Table_1[[#This Row],[Months To Mid-Point]]<12.01,Table_Data_Table_1[[#This Row],[Months To Mid-Point]]>-13),0,(Table_Data_Table_1[[#This Row],[Months To Mid-Point]]*'Global Settings'!$H$6)),"") -> 0.2414105097 | P32: =IFERROR(Table_Data_Table_1[[#This Row],[Land Residual]]*(Table_Data_Table_1[[#This Row],[Time Adjust]]+1),"") -> 24828.21019 | Q32: =IFERROR(Table_Data_Table_1[[#This Row],[Adjusted Sale Price]]/Table_Data_Table_1[[#This Row],[Resid Acre]],"") -> 40768.81805 | R32: =IFERROR(ROUND(Table_Data_Table_1[[#This Row],[Adjusted Sale Price]]/Table_Data_Table_1[[#This Row],[Resid Sq Ft]],2),"") -> 0.94 | S32: =IFERROR(IF(VLOOKUP(Table_Data_Table_1[[#This Row],[Item ID]],DataTable,11,FALSE)=0,"N/A",Table_Data_Table_1[[#This Row],[Adjusted Sale Price]]/VLOOKUP(Table_Data_Table_1[[#This Row],[Item ID]],DataTable,11,FALSE)),"") -> 74.55918977 | T32: =IF(IFERROR(VLOOKUP(Table_Data_Table_1[[#This Row],[Item ID]],DataTable,17,FALSE),"")=0,"",IFERROR(VLOOKUP(Table_Data_Table_1[[#This Row],[Item ID]],DataTable,17,FALSE),"")) -> 
A33: 5-00Abs2741-400 | B33: Abstraction | C33: =IF(Table_Data_Table_1[[#This Row],[Item ID]]="","",IFERROR(VLOOKUP(Table_Data_Table_1[[#This Row],[Item ID]],DataTable,16,FALSE),"")) -> 0 | D33: 34-204-090-000-075-00 | E33: 42741 | F33: 40000 | G33: 14364 | H33: =IF(Table_Data_Table_1[[#This Row],[Valuation Method]]="Vacant",VLOOKUP(Table_Data_Table_1[[#This Row],[Item ID]],DataTable,6,FALSE)-VLOOKUP(Table_Data_Table_1[[#This Row],[Item ID]],DataTable,13,FALSE),IF(Table_Data_Table_1[[#This Row],[Valuation Method]]="Abstraction",VLOOKUP(Table_Data_Table_1[[#This Row],[Item ID]],DataTable,6,FALSE)-VLOOKUP(Table_Data_Table_1[[#This Row],[Item ID]],DataTable,13,FALSE),IF(Table_Data_Table_1[[#This Row],[Valuation Method]]="Allocation",VLOOKUP(Table_Data_Table_1[[#This Row],[Item ID]],DataTable,6,FALSE)*I33,""))) -> 25636 | I33: =IF(Table_Data_Table_1[[#This Row],[Valuation Method]]="Vacant","N/A",IF(Table_Data_Table_1[[#This Row],[Valuation Method]]="Abstraction",Table_Data_Table_1[[#This Row],[Land Residual]]/VLOOKUP(Table_Data_Table_1[[#This Row],[Item ID]],DataTable,6,FALSE),IF(Table_Data_Table_1[[#This Row],[Valuation Method]]="Allocation",'Global Settings'!$H$20,""))) -> 0.6409 | J33: =IFERROR(ROUND(Table_Data_Table_1[[#This Row],[Resid Sq Ft]]/43560,3),"") -> 0.487 | K33: =IF(Table_Data_Table_1[[#This Row],[Item ID]]="","",IFERROR(VLOOKUP(Table_Data_Table_1[[#This Row],[Item ID]],DataTable,10,FALSE)-VLOOKUP(Table_Data_Table_1[[#This Row],[Item ID]],DataTable,12,FALSE),"")) -> 21213.72 | L33: =IFERROR(Table_Data_Table_1[[#This Row],[Land Residual]]/Table_Data_Table_1[[#This Row],[Resid Acre]],"") -> 52640.65708 | M33: =IFERROR(ROUND(Table_Data_Table_1[[#This Row],[Land Residual]]/Table_Data_Table_1[[#This Row],[Resid Sq Ft]],2),"") -> 1.21 | N33: =IF(Table_Data_Table_1[[#This Row],[Item ID]]="","",ROUND(DAYS360(Table_Data_Table_1[[#This Row],[Sale Date]],'Global Settings'!$H$5)/30,0)) -> 75 | O33: =IFERROR(IF(AND(Table_Data_Table_1[[#This Row],[Months To Mid-Point]]<12.01,Table_Data_Table_1[[#This Row],[Months To Mid-Point]]>-13),0,(Table_Data_Table_1[[#This Row],[Months To Mid-Point]]*'Global Settings'!$H$6)),"") -> 0.1175700534 | P33: =IFERROR(Table_Data_Table_1[[#This Row],[Land Residual]]*(Table_Data_Table_1[[#This Row],[Time Adjust]]+1),"") -> 28650.02589 | Q33: =IFERROR(Table_Data_Table_1[[#This Row],[Adjusted Sale Price]]/Table_Data_Table_1[[#This Row],[Resid Acre]],"") -> 58829.62195 | R33: =IFERROR(ROUND(Table_Data_Table_1[[#This Row],[Adjusted Sale Price]]/Table_Data_Table_1[[#This Row],[Resid Sq Ft]],2),"") -> 1.35 | S33: =IFERROR(IF(VLOOKUP(Table_Data_Table_1[[#This Row],[Item ID]],DataTable,11,FALSE)=0,"N/A",Table_Data_Table_1[[#This Row],[Adjusted Sale Price]]/VLOOKUP(Table_Data_Table_1[[#This Row],[Item ID]],DataTable,11,FALSE)),"") -> 191.0001726 | T33: =IF(IFERROR(VLOOKUP(Table_Data_Table_1[[#This Row],[Item ID]],DataTable,17,FALSE),"")=0,"",IFERROR(VLOOKUP(Table_Data_Table_1[[#This Row],[Item ID]],DataTable,17,FALSE),"")) -> 
A34: 5-00Abs2789-718 | B34: Abstraction | C34: =IF(Table_Data_Table_1[[#This Row],[Item ID]]="","",IFERROR(VLOOKUP(Table_Data_Table_1[[#This Row],[Item ID]],DataTable,16,FALSE),"")) -> 1 | D34: 34-204-600-000-405-00 | E34: 42789 | F34: 718248 | G34: 520238 | H34: =IF(Table_Data_Table_1[[#This Row],[Valuation Method]]="Vacant",VLOOKUP(Table_Data_Table_1[[#This Row],[Item ID]],DataTable,6,FALSE)-VLOOKUP(Table_Data_Table_1[[#This Row],[Item ID]],DataTable,13,FALSE),IF(Table_Data_Table_1[[#This Row],[Valuation Method]]="Abstraction",VLOOKUP(Table_Data_Table_1[[#This Row],[Item ID]],DataTable,6,FALSE)-VLOOKUP(Table_Data_Table_1[[#This Row],[Item ID]],DataTable,13,FALSE),IF(Table_Data_Table_1[[#This Row],[Valuation Method]]="Allocation",VLOOKUP(Table_Data_Table_1[[#This Row],[Item ID]],DataTable,6,FALSE)*I34,""))) -> 198010 | I34: =IF(Table_Data_Table_1[[#This Row],[Valuation Method]]="Vacant","N/A",IF(Table_Data_Table_1[[#This Row],[Valuation Method]]="Abstraction",Table_Data_Table_1[[#This Row],[Land Residual]]/VLOOKUP(Table_Data_Table_1[[#This Row],[Item ID]],DataTable,6,FALSE),IF(Table_Data_Table_1[[#This Row],[Valuation Method]]="Allocation",'Global Settings'!$H$20,""))) -> 0.2756847217 | J34: =IFERROR(ROUND(Table_Data_Table_1[[#This Row],[Resid Sq Ft]]/43560,3),"") -> 3.38 | K34: =IF(Table_Data_Table_1[[#This Row],[Item ID]]="","",IFERROR(VLOOKUP(Table_Data_Table_1[[#This Row],[Item ID]],DataTable,10,FALSE)-VLOOKUP(Table_Data_Table_1[[#This Row],[Item ID]],DataTable,12,FALSE),"")) -> 147232.8 | L34: =IFERROR(Table_Data_Table_1[[#This Row],[Land Residual]]/Table_Data_Table_1[[#This Row],[Resid Acre]],"") -> 58582.84024 | M34: =IFERROR(ROUND(Table_Data_Table_1[[#This Row],[Land Residual]]/Table_Data_Table_1[[#This Row],[Resid Sq Ft]],2),"") -> 1.34 | N34: =IF(Table_Data_Table_1[[#This Row],[Item ID]]="","",ROUND(DAYS360(Table_Data_Table_1[[#This Row],[Sale Date]],'Global Settings'!$H$5)/30,0)) -> 73 | O34: =IFERROR(IF(AND(Table_Data_Table_1[[#This Row],[Months To Mid-Point]]<12.01,Table_Data_Table_1[[#This Row],[Months To Mid-Point]]>-13),0,(Table_Data_Table_1[[#This Row],[Months To Mid-Point]]*'Global Settings'!$H$6)),"") -> 0.114434852 | P34: =IFERROR(Table_Data_Table_1[[#This Row],[Land Residual]]*(Table_Data_Table_1[[#This Row],[Time Adjust]]+1),"") -> 220669.245 | Q34: =IFERROR(Table_Data_Table_1[[#This Row],[Adjusted Sale Price]]/Table_Data_Table_1[[#This Row],[Resid Acre]],"") -> 65286.75889 | R34: =IFERROR(ROUND(Table_Data_Table_1[[#This Row],[Adjusted Sale Price]]/Table_Data_Table_1[[#This Row],[Resid Sq Ft]],2),"") -> 1.5 | S34: =IFERROR(IF(VLOOKUP(Table_Data_Table_1[[#This Row],[Item ID]],DataTable,11,FALSE)=0,"N/A",Table_Data_Table_1[[#This Row],[Adjusted Sale Price]]/VLOOKUP(Table_Data_Table_1[[#This Row],[Item ID]],DataTable,11,FALSE)),"") -> 1201.444139 | T34: =IF(IFERROR(VLOOKUP(Table_Data_Table_1[[#This Row],[Item ID]],DataTable,17,FALSE),"")=0,"",IFERROR(VLOOKUP(Table_Data_Table_1[[#This Row],[Item ID]],DataTable,17,FALSE),"")) -> 
A35: 5-17Abs2585-650 | B35: Abstraction | C35: =IF(Table_Data_Table_1[[#This Row],[Item ID]]="","",IFERROR(VLOOKUP(Table_Data_Table_1[[#This Row],[Item ID]],DataTable,16,FALSE),"")) -> 1 | D35: 34-201-030-000-045-17 | E35: 42585 | F35: 650418 | G35: 572709 | H35: =IF(Table_Data_Table_1[[#This Row],[Valuation Method]]="Vacant",VLOOKUP(Table_Data_Table_1[[#This Row],[Item ID]],DataTable,6,FALSE)-VLOOKUP(Table_Data_Table_1[[#This Row],[Item ID]],DataTable,13,FALSE),IF(Table_Data_Table_1[[#This Row],[Valuation Method]]="Abstraction",VLOOKUP(Table_Data_Table_1[[#This Row],[Item ID]],DataTable,6,FALSE)-VLOOKUP(Table_Data_Table_1[[#This Row],[Item ID]],DataTable,13,FALSE),IF(Table_Data_Table_1[[#This Row],[Valuation Method]]="Allocation",VLOOKUP(Table_Data_Table_1[[#This Row],[Item ID]],DataTable,6,FALSE)*I35,""))) -> 77709 | I35: =IF(Table_Data_Table_1[[#This Row],[Valuation Method]]="Vacant","N/A",IF(Table_Data_Table_1[[#This Row],[Valuation Method]]="Abstraction",Table_Data_Table_1[[#This Row],[Land Residual]]/VLOOKUP(Table_Data_Table_1[[#This Row],[Item ID]],DataTable,6,FALSE),IF(Table_Data_Table_1[[#This Row],[Valuation Method]]="Allocation",'Global Settings'!$H$20,""))) -> 0.1194754758 | J35: =IFERROR(ROUND(Table_Data_Table_1[[#This Row],[Resid Sq Ft]]/43560,3),"") -> 0.991 | K35: =IF(Table_Data_Table_1[[#This Row],[Item ID]]="","",IFERROR(VLOOKUP(Table_Data_Table_1[[#This Row],[Item ID]],DataTable,10,FALSE)-VLOOKUP(Table_Data_Table_1[[#This Row],[Item ID]],DataTable,12,FALSE),"")) -> 43167.96 | L35: =IFERROR(Table_Data_Table_1[[#This Row],[Land Residual]]/Table_Data_Table_1[[#This Row],[Resid Acre]],"") -> 78414.73259 | M35: =IFERROR(ROUND(Table_Data_Table_1[[#This Row],[Land Residual]]/Table_Data_Table_1[[#This Row],[Resid Sq Ft]],2),"") -> 1.8 | N35: =IF(Table_Data_Table_1[[#This Row],[Item ID]]="","",ROUND(DAYS360(Table_Data_Table_1[[#This Row],[Sale Date]],'Global Settings'!$H$5)/30,0)) -> 80 | O35: =IFERROR(IF(AND(Table_Data_Table_1[[#This Row],[Months To Mid-Point]]<12.01,Table_Data_Table_1[[#This Row],[Months To Mid-Point]]>-13),0,(Table_Data_Table_1[[#This Row],[Months To Mid-Point]]*'Global Settings'!$H$6)),"") -> 0.125408057 | P35: =IFERROR(Table_Data_Table_1[[#This Row],[Land Residual]]*(Table_Data_Table_1[[#This Row],[Time Adjust]]+1),"") -> 87454.3347 | Q35: =IFERROR(Table_Data_Table_1[[#This Row],[Adjusted Sale Price]]/Table_Data_Table_1[[#This Row],[Resid Acre]],"") -> 88248.57185 | R35: =IFERROR(ROUND(Table_Data_Table_1[[#This Row],[Adjusted Sale Price]]/Table_Data_Table_1[[#This Row],[Resid Sq Ft]],2),"") -> 2.03 | S35: =IFERROR(IF(VLOOKUP(Table_Data_Table_1[[#This Row],[Item ID]],DataTable,11,FALSE)=0,"N/A",Table_Data_Table_1[[#This Row],[Adjusted Sale Price]]/VLOOKUP(Table_Data_Table_1[[#This Row],[Item ID]],DataTable,11,FALSE)),"") -> 441.6885591 | T35: =IF(IFERROR(VLOOKUP(Table_Data_Table_1[[#This Row],[Item ID]],DataTable,17,FALSE),"")=0,"",IFERROR(VLOOKUP(Table_Data_Table_1[[#This Row],[Item ID]],DataTable,17,FALSE),"")) -> 
A36: 5-00All2789-718 | B36: Allocation | C36: =IF(Table_Data_Table_1[[#This Row],[Item ID]]="","",IFERROR(VLOOKUP(Table_Data_Table_1[[#This Row],[Item ID]],DataTable,16,FALSE),"")) -> 1 | D36: 34-204-600-000-405-00 | E36: 42789 | F36: 718248 | G36: 0 | H36: =IF(Table_Data_Table_1[[#This Row],[Valuation Method]]="Vacant",VLOOKUP(Table_Data_Table_1[[#This Row],[Item ID]],DataTable,6,FALSE)-VLOOKUP(Table_Data_Table_1[[#This Row],[Item ID]],DataTable,13,FALSE),IF(Table_Data_Table_1[[#This Row],[Valuation Method]]="Abstraction",VLOOKUP(Table_Data_Table_1[[#This Row],[Item ID]],DataTable,6,FALSE)-VLOOKUP(Table_Data_Table_1[[#This Row],[Item ID]],DataTable,13,FALSE),IF(Table_Data_Table_1[[#This Row],[Valuation Method]]="Allocation",VLOOKUP(Table_Data_Table_1[[#This Row],[Item ID]],DataTable,6,FALSE)*I36,""))) -> 290387.6664 | I36: =IF(Table_Data_Table_1[[#This Row],[Valuation Method]]="Vacant","N/A",IF(Table_Data_Table_1[[#This Row],[Valuation Method]]="Abstraction",Table_Data_Table_1[[#This Row],[Land Residual]]/VLOOKUP(Table_Data_Table_1[[#This Row],[Item ID]],DataTable,6,FALSE),IF(Table_Data_Table_1[[#This Row],[Valuation Method]]="Allocation",'Global Settings'!$H$20,""))) -> 0.4043 | J36: =IFERROR(ROUND(Table_Data_Table_1[[#This Row],[Resid Sq Ft]]/43560,3),"") -> 3.38 | K36: =IF(Table_Data_Table_1[[#This Row],[Item ID]]="","",IFERROR(VLOOKUP(Table_Data_Table_1[[#This Row],[Item ID]],DataTable,10,FALSE)-VLOOKUP(Table_Data_Table_1[[#This Row],[Item ID]],DataTable,12,FALSE),"")) -> 147232.8 | L36: =IFERROR(Table_Data_Table_1[[#This Row],[Land Residual]]/Table_Data_Table_1[[#This Row],[Resid Acre]],"") -> 85913.51077 | M36: =IFERROR(ROUND(Table_Data_Table_1[[#This Row],[Land Residual]]/Table_Data_Table_1[[#This Row],[Resid Sq Ft]],2),"") -> 1.97 | N36: =IF(Table_Data_Table_1[[#This Row],[Item ID]]="","",ROUND(DAYS360(Table_Data_Table_1[[#This Row],[Sale Date]],'Global Settings'!$H$5)/30,0)) -> 73 | O36: =IFERROR(IF(AND(Table_Data_Table_1[[#This Row],[Months To Mid-Point]]<12.01,Table_Data_Table_1[[#This Row],[Months To Mid-Point]]>-13),0,(Table_Data_Table_1[[#This Row],[Months To Mid-Point]]*'Global Settings'!$H$6)),"") -> 0.114434852 | P36: =IFERROR(Table_Data_Table_1[[#This Row],[Land Residual]]*(Table_Data_Table_1[[#This Row],[Time Adjust]]+1),"") -> 323618.136 | Q36: =IFERROR(Table_Data_Table_1[[#This Row],[Adjusted Sale Price]]/Table_Data_Table_1[[#This Row],[Resid Acre]],"") -> 95745.01066 | R36: =IFERROR(ROUND(Table_Data_Table_1[[#This Row],[Adjusted Sale Price]]/Table_Data_Table_1[[#This Row],[Resid Sq Ft]],2),"") -> 2.2 | S36: =IFERROR(IF(VLOOKUP(Table_Data_Table_1[[#This Row],[Item ID]],DataTable,11,FALSE)=0,"N/A",Table_Data_Table_1[[#This Row],[Adjusted Sale Price]]/VLOOKUP(Table_Data_Table_1[[#This Row],[Item ID]],DataTable,11,FALSE)),"") -> 1761.954244 | T36: =IF(IFERROR(VLOOKUP(Table_Data_Table_1[[#This Row],[Item ID]],DataTable,17,FALSE),"")=0,"",IFERROR(VLOOKUP(Table_Data_Table_1[[#This Row],[Item ID]],DataTable,17,FALSE),"")) -> 
A37: 5-00All1563-200 | B37: Allocation | C37: =IF(Table_Data_Table_1[[#This Row],[Item ID]]="","",IFERROR(VLOOKUP(Table_Data_Table_1[[#This Row],[Item ID]],DataTable,16,FALSE),"")) -> 1 | D37: 34-060-006-000-095-00 | E37: 41563 | F37: 200000 | G37: 33808 | H37: =IF(Table_Data_Table_1[[#This Row],[Valuation Method]]="Vacant",VLOOKUP(Table_Data_Table_1[[#This Row],[Item ID]],DataTable,6,FALSE)-VLOOKUP(Table_Data_Table_1[[#This Row],[Item ID]],DataTable,13,FALSE),IF(Table_Data_Table_1[[#This Row],[Valuation Method]]="Abstraction",VLOOKUP(Table_Data_Table_1[[#This Row],[Item ID]],DataTable,6,FALSE)-VLOOKUP(Table_Data_Table_1[[#This Row],[Item ID]],DataTable,13,FALSE),IF(Table_Data_Table_1[[#This Row],[Valuation Method]]="Allocation",VLOOKUP(Table_Data_Table_1[[#This Row],[Item ID]],DataTable,6,FALSE)*I37,""))) -> 80860 | I37: =IF(Table_Data_Table_1[[#This Row],[Valuation Method]]="Vacant","N/A",IF(Table_Data_Table_1[[#This Row],[Valuation Method]]="Abstraction",Table_Data_Table_1[[#This Row],[Land Residual]]/VLOOKUP(Table_Data_Table_1[[#This Row],[Item ID]],DataTable,6,FALSE),IF(Table_Data_Table_1[[#This Row],[Valuation Method]]="Allocation",'Global Settings'!$H$20,""))) -> 0.4043 | J37: =IFERROR(ROUND(Table_Data_Table_1[[#This Row],[Resid Sq Ft]]/43560,3),"") -> 0.944 | K37: =IF(Table_Data_Table_1[[#This Row],[Item ID]]="","",IFERROR(VLOOKUP(Table_Data_Table_1[[#This Row],[Item ID]],DataTable,10,FALSE)-VLOOKUP(Table_Data_Table_1[[#This Row],[Item ID]],DataTable,12,FALSE),"")) -> 41131.84 | L37: =IFERROR(Table_Data_Table_1[[#This Row],[Land Residual]]/Table_Data_Table_1[[#This Row],[Resid Acre]],"") -> 85656.77966 | M37: =IFERROR(ROUND(Table_Data_Table_1[[#This Row],[Land Residual]]/Table_Data_Table_1[[#This Row],[Resid Sq Ft]],2),"") -> 1.97 | N37: =IF(Table_Data_Table_1[[#This Row],[Item ID]]="","",ROUND(DAYS360(Table_Data_Table_1[[#This Row],[Sale Date]],'Global Settings'!$H$5)/30,0)) -> 114 | O37: =IFERROR(IF(AND(Table_Data_Table_1[[#This Row],[Months To Mid-Point]]<12.01,Table_Data_Table_1[[#This Row],[Months To Mid-Point]]>-13),0,(Table_Data_Table_1[[#This Row],[Months To Mid-Point]]*'Global Settings'!$H$6)),"") -> 0.1787064812 | P37: =IFERROR(Table_Data_Table_1[[#This Row],[Land Residual]]*(Table_Data_Table_1[[#This Row],[Time Adjust]]+1),"") -> 95310.20607 | Q37: =IFERROR(Table_Data_Table_1[[#This Row],[Adjusted Sale Price]]/Table_Data_Table_1[[#This Row],[Resid Acre]],"") -> 100964.2013 | R37: =IFERROR(ROUND(Table_Data_Table_1[[#This Row],[Adjusted Sale Price]]/Table_Data_Table_1[[#This Row],[Resid Sq Ft]],2),"") -> 2.32 | S37: =IFERROR(IF(VLOOKUP(Table_Data_Table_1[[#This Row],[Item ID]],DataTable,11,FALSE)=0,"N/A",Table_Data_Table_1[[#This Row],[Adjusted Sale Price]]/VLOOKUP(Table_Data_Table_1[[#This Row],[Item ID]],DataTable,11,FALSE)),"") -> 405.575345 | T37: =IF(IFERROR(VLOOKUP(Table_Data_Table_1[[#This Row],[Item ID]],DataTable,17,FALSE),"")=0,"",IFERROR(VLOOKUP(Table_Data_Table_1[[#This Row],[Item ID]],DataTable,17,FALSE),"")) -> 
A38: 0-01Vac4434-105 | B38: Vacant | C38: =IF(Table_Data_Table_1[[#This Row],[Item ID]]="","",IFERROR(VLOOKUP(Table_Data_Table_1[[#This Row],[Item ID]],DataTable,16,FALSE),"")) -> 1 | D38: 34-060-031-000-140-01 | E38: 44434 | F38: 105000 | G38: 0 | H38: =IF(Table_Data_Table_1[[#This Row],[Valuation Method]]="Vacant",VLOOKUP(Table_Data_Table_1[[#This Row],[Item ID]],DataTable,6,FALSE)-VLOOKUP(Table_Data_Table_1[[#This Row],[Item ID]],DataTable,13,FALSE),IF(Table_Data_Table_1[[#This Row],[Valuation Method]]="Abstraction",VLOOKUP(Table_Data_Table_1[[#This Row],[Item ID]],DataTable,6,FALSE)-VLOOKUP(Table_Data_Table_1[[#This Row],[Item ID]],DataTable,13,FALSE),IF(Table_Data_Table_1[[#This Row],[Valuation Method]]="Allocation",VLOOKUP(Table_Data_Table_1[[#This Row],[Item ID]],DataTable,6,FALSE)*I38,""))) -> 105000 | I38: =IF(Table_Data_Table_1[[#This Row],[Valuation Method]]="Vacant","N/A",IF(Table_Data_Table_1[[#This Row],[Valuation Method]]="Abstraction",Table_Data_Table_1[[#This Row],[Land Residual]]/VLOOKUP(Table_Data_Table_1[[#This Row],[Item ID]],DataTable,6,FALSE),IF(Table_Data_Table_1[[#This Row],[Valuation Method]]="Allocation",'Global Settings'!$H$20,""))) -> N/A | J38: =IFERROR(ROUND(Table_Data_Table_1[[#This Row],[Resid Sq Ft]]/43560,3),"") -> 0.818 | K38: =IF(Table_Data_Table_1[[#This Row],[Item ID]]="","",IFERROR(VLOOKUP(Table_Data_Table_1[[#This Row],[Item ID]],DataTable,10,FALSE)-VLOOKUP(Table_Data_Table_1[[#This Row],[Item ID]],DataTable,12,FALSE),"")) -> 35632.08 | L38: =IFERROR(Table_Data_Table_1[[#This Row],[Land Residual]]/Table_Data_Table_1[[#This Row],[Resid Acre]],"") -> 128361.8582 | M38: =IFERROR(ROUND(Table_Data_Table_1[[#This Row],[Land Residual]]/Table_Data_Table_1[[#This Row],[Resid Sq Ft]],2),"") -> 2.95 | N38: =IF(Table_Data_Table_1[[#This Row],[Item ID]]="","",ROUND(DAYS360(Table_Data_Table_1[[#This Row],[Sale Date]],'Global Settings'!$H$5)/30,0)) -> 19 | O38: =IFERROR(IF(AND(Table_Data_Table_1[[#This Row],[Months To Mid-Point]]<12.01,Table_Data_Table_1[[#This Row],[Months To Mid-Point]]>-13),0,(Table_Data_Table_1[[#This Row],[Months To Mid-Point]]*'Global Settings'!$H$6)),"") -> 0.02978441353 | P38: =IFERROR(Table_Data_Table_1[[#This Row],[Land Residual]]*(Table_Data_Table_1[[#This Row],[Time Adjust]]+1),"") -> 108127.3634 | Q38: =IFERROR(Table_Data_Table_1[[#This Row],[Adjusted Sale Price]]/Table_Data_Table_1[[#This Row],[Resid Acre]],"") -> 132185.0409 | R38: =IFERROR(ROUND(Table_Data_Table_1[[#This Row],[Adjusted Sale Price]]/Table_Data_Table_1[[#This Row],[Resid Sq Ft]],2),"") -> 3.03 | S38: =IFERROR(IF(VLOOKUP(Table_Data_Table_1[[#This Row],[Item ID]],DataTable,11,FALSE)=0,"N/A",Table_Data_Table_1[[#This Row],[Adjusted Sale Price]]/VLOOKUP(Table_Data_Table_1[[#This Row],[Item ID]],DataTable,11,FALSE)),"") -> 901.0613618 | T38: =IF(IFERROR(VLOOKUP(Table_Data_Table_1[[#This Row],[Item ID]],DataTable,17,FALSE),"")=0,"",IFERROR(VLOOKUP(Table_Data_Table_1[[#This Row],[Item ID]],DataTable,17,FALSE),"")) -> 
A39: 0-10Abs3088-150 | B39: Abstraction | C39: =IF(Table_Data_Table_1[[#This Row],[Item ID]]="","",IFERROR(VLOOKUP(Table_Data_Table_1[[#This Row],[Item ID]],DataTable,16,FALSE),"")) -> 1 | D39: 34-401-250-000-350-10 | E39: 43088 | F39: 150000 | G39: 113419 | H39: =IF(Table_Data_Table_1[[#This Row],[Valuation Method]]="Vacant",VLOOKUP(Table_Data_Table_1[[#This Row],[Item ID]],DataTable,6,FALSE)-VLOOKUP(Table_Data_Table_1[[#This Row],[Item ID]],DataTable,13,FALSE),IF(Table_Data_Table_1[[#This Row],[Valuation Method]]="Abstraction",VLOOKUP(Table_Data_Table_1[[#This Row],[Item ID]],DataTable,6,FALSE)-VLOOKUP(Table_Data_Table_1[[#This Row],[Item ID]],DataTable,13,FALSE),IF(Table_Data_Table_1[[#This Row],[Valuation Method]]="Allocation",VLOOKUP(Table_Data_Table_1[[#This Row],[Item ID]],DataTable,6,FALSE)*I39,""))) -> 36581 | I39: =IF(Table_Data_Table_1[[#This Row],[Valuation Method]]="Vacant","N/A",IF(Table_Data_Table_1[[#This Row],[Valuation Method]]="Abstraction",Table_Data_Table_1[[#This Row],[Land Residual]]/VLOOKUP(Table_Data_Table_1[[#This Row],[Item ID]],DataTable,6,FALSE),IF(Table_Data_Table_1[[#This Row],[Valuation Method]]="Allocation",'Global Settings'!$H$20,""))) -> 0.2438733333 | J39: =IFERROR(ROUND(Table_Data_Table_1[[#This Row],[Resid Sq Ft]]/43560,3),"") -> 0.273 | K39: =IF(Table_Data_Table_1[[#This Row],[Item ID]]="","",IFERROR(VLOOKUP(Table_Data_Table_1[[#This Row],[Item ID]],DataTable,10,FALSE)-VLOOKUP(Table_Data_Table_1[[#This Row],[Item ID]],DataTable,12,FALSE),"")) -> 11891.88 | L39: =IFERROR(Table_Data_Table_1[[#This Row],[Land Residual]]/Table_Data_Table_1[[#This Row],[Resid Acre]],"") -> 133996.337 | M39: =IFERROR(ROUND(Table_Data_Table_1[[#This Row],[Land Residual]]/Table_Data_Table_1[[#This Row],[Resid Sq Ft]],2),"") -> 3.08 | N39: =IF(Table_Data_Table_1[[#This Row],[Item ID]]="","",ROUND(DAYS360(Table_Data_Table_1[[#This Row],[Sale Date]],'Global Settings'!$H$5)/30,0)) -> 63 | O39: =IFERROR(IF(AND(Table_Data_Table_1[[#This Row],[Months To Mid-Point]]<12.01,Table_Data_Table_1[[#This Row],[Months To Mid-Point]]>-13),0,(Table_Data_Table_1[[#This Row],[Months To Mid-Point]]*'Global Settings'!$H$6)),"") -> 0.09875884487 | P39: =IFERROR(Table_Data_Table_1[[#This Row],[Land Residual]]*(Table_Data_Table_1[[#This Row],[Time Adjust]]+1),"") -> 40193.6973 | Q39: =IFERROR(Table_Data_Table_1[[#This Row],[Adjusted Sale Price]]/Table_Data_Table_1[[#This Row],[Resid Acre]],"") -> 147229.6605 | R39: =IFERROR(ROUND(Table_Data_Table_1[[#This Row],[Adjusted Sale Price]]/Table_Data_Table_1[[#This Row],[Resid Sq Ft]],2),"") -> 3.38 | S39: =IFERROR(IF(VLOOKUP(Table_Data_Table_1[[#This Row],[Item ID]],DataTable,11,FALSE)=0,"N/A",Table_Data_Table_1[[#This Row],[Adjusted Sale Price]]/VLOOKUP(Table_Data_Table_1[[#This Row],[Item ID]],DataTable,11,FALSE)),"") -> 321.5495784 | T39: =IF(IFERROR(VLOOKUP(Table_Data_Table_1[[#This Row],[Item ID]],DataTable,17,FALSE),"")=0,"",IFERROR(VLOOKUP(Table_Data_Table_1[[#This Row],[Item ID]],DataTable,17,FALSE),"")) -> 
A40: 5-11Abs3250-129 | B40: Abstraction | C40: =IF(Table_Data_Table_1[[#This Row],[Item ID]]="","",IFERROR(VLOOKUP(Table_Data_Table_1[[#This Row],[Item ID]],DataTable,16,FALSE),"")) -> 1 | D40: 34-060-031-000-045-11 | E40: 43250 | F40: 1293750 | G40: 803414 | H40: =IF(Table_Data_Table_1[[#This Row],[Valuation Method]]="Vacant",VLOOKUP(Table_Data_Table_1[[#This Row],[Item ID]],DataTable,6,FALSE)-VLOOKUP(Table_Data_Table_1[[#This Row],[Item ID]],DataTable,13,FALSE),IF(Table_Data_Table_1[[#This Row],[Valuation Method]]="Abstraction",VLOOKUP(Table_Data_Table_1[[#This Row],[Item ID]],DataTable,6,FALSE)-VLOOKUP(Table_Data_Table_1[[#This Row],[Item ID]],DataTable,13,FALSE),IF(Table_Data_Table_1[[#This Row],[Valuation Method]]="Allocation",VLOOKUP(Table_Data_Table_1[[#This Row],[Item ID]],DataTable,6,FALSE)*I40,""))) -> 490336 | I40: =IF(Table_Data_Table_1[[#This Row],[Valuation Method]]="Vacant","N/A",IF(Table_Data_Table_1[[#This Row],[Valuation Method]]="Abstraction",Table_Data_Table_1[[#This Row],[Land Residual]]/VLOOKUP(Table_Data_Table_1[[#This Row],[Item ID]],DataTable,6,FALSE),IF(Table_Data_Table_1[[#This Row],[Valuation Method]]="Allocation",'Global Settings'!$H$20,""))) -> 0.3790036715 | J40: =IFERROR(ROUND(Table_Data_Table_1[[#This Row],[Resid Sq Ft]]/43560,3),"") -> 3.164 | K40: =IF(Table_Data_Table_1[[#This Row],[Item ID]]="","",IFERROR(VLOOKUP(Table_Data_Table_1[[#This Row],[Item ID]],DataTable,10,FALSE)-VLOOKUP(Table_Data_Table_1[[#This Row],[Item ID]],DataTable,12,FALSE),"")) -> 137823.84 | L40: =IFERROR(Table_Data_Table_1[[#This Row],[Land Residual]]/Table_Data_Table_1[[#This Row],[Resid Acre]],"") -> 154973.4513 | M40: =IFERROR(ROUND(Table_Data_Table_1[[#This Row],[Land Residual]]/Table_Data_Table_1[[#This Row],[Resid Sq Ft]],2),"") -> 3.56 | N40: =IF(Table_Data_Table_1[[#This Row],[Item ID]]="","",ROUND(DAYS360(Table_Data_Table_1[[#This Row],[Sale Date]],'Global Settings'!$H$5)/30,0)) -> 58 | O40: =IFERROR(IF(AND(Table_Data_Table_1[[#This Row],[Months To Mid-Point]]<12.01,Table_Data_Table_1[[#This Row],[Months To Mid-Point]]>-13),0,(Table_Data_Table_1[[#This Row],[Months To Mid-Point]]*'Global Settings'!$H$6)),"") -> 0.09092084131 | P40: =IFERROR(Table_Data_Table_1[[#This Row],[Land Residual]]*(Table_Data_Table_1[[#This Row],[Time Adjust]]+1),"") -> 534917.7616 | Q40: =IFERROR(Table_Data_Table_1[[#This Row],[Adjusted Sale Price]]/Table_Data_Table_1[[#This Row],[Resid Acre]],"") -> 169063.7679 | R40: =IFERROR(ROUND(Table_Data_Table_1[[#This Row],[Adjusted Sale Price]]/Table_Data_Table_1[[#This Row],[Resid Sq Ft]],2),"") -> 3.88 | S40: =IFERROR(IF(VLOOKUP(Table_Data_Table_1[[#This Row],[Item ID]],DataTable,11,FALSE)=0,"N/A",Table_Data_Table_1[[#This Row],[Adjusted Sale Price]]/VLOOKUP(Table_Data_Table_1[[#This Row],[Item ID]],DataTable,11,FALSE)),"") -> 1024.589645 | T40: =IF(IFERROR(VLOOKUP(Table_Data_Table_1[[#This Row],[Item ID]],DataTable,17,FALSE),"")=0,"",IFERROR(VLOOKUP(Table_Data_Table_1[[#This Row],[Item ID]],DataTable,17,FALSE),"")) -> 
A41: 0-02All2403-300 | B41: Allocation | C41: =IF(Table_Data_Table_1[[#This Row],[Item ID]]="","",IFERROR(VLOOKUP(Table_Data_Table_1[[#This Row],[Item ID]],DataTable,16,FALSE),"")) -> 1 | D41: 34-110-006-000-040-02 | E41: 42403 | F41: 3000000 | G41: 1526059 | H41: =IF(Table_Data_Table_1[[#This Row],[Valuation Method]]="Vacant",VLOOKUP(Table_Data_Table_1[[#This Row],[Item ID]],DataTable,6,FALSE)-VLOOKUP(Table_Data_Table_1[[#This Row],[Item ID]],DataTable,13,FALSE),IF(Table_Data_Table_1[[#This Row],[Valuation Method]]="Abstraction",VLOOKUP(Table_Data_Table_1[[#This Row],[Item ID]],DataTable,6,FALSE)-VLOOKUP(Table_Data_Table_1[[#This Row],[Item ID]],DataTable,13,FALSE),IF(Table_Data_Table_1[[#This Row],[Valuation Method]]="Allocation",VLOOKUP(Table_Data_Table_1[[#This Row],[Item ID]],DataTable,6,FALSE)*I41,""))) -> 1212900 | I41: =IF(Table_Data_Table_1[[#This Row],[Valuation Method]]="Vacant","N/A",IF(Table_Data_Table_1[[#This Row],[Valuation Method]]="Abstraction",Table_Data_Table_1[[#This Row],[Land Residual]]/VLOOKUP(Table_Data_Table_1[[#This Row],[Item ID]],DataTable,6,FALSE),IF(Table_Data_Table_1[[#This Row],[Valuation Method]]="Allocation",'Global Settings'!$H$20,""))) -> 0.4043 | J41: =IFERROR(ROUND(Table_Data_Table_1[[#This Row],[Resid Sq Ft]]/43560,3),"") -> 7.816 | K41: =IF(Table_Data_Table_1[[#This Row],[Item ID]]="","",IFERROR(VLOOKUP(Table_Data_Table_1[[#This Row],[Item ID]],DataTable,10,FALSE)-VLOOKUP(Table_Data_Table_1[[#This Row],[Item ID]],DataTable,12,FALSE),"")) -> 340468.4 | L41: =IFERROR(Table_Data_Table_1[[#This Row],[Land Residual]]/Table_Data_Table_1[[#This Row],[Resid Acre]],"") -> 155181.6786 | M41: =IFERROR(ROUND(Table_Data_Table_1[[#This Row],[Land Residual]]/Table_Data_Table_1[[#This Row],[Resid Sq Ft]],2),"") -> 3.56 | N41: =IF(Table_Data_Table_1[[#This Row],[Item ID]]="","",ROUND(DAYS360(Table_Data_Table_1[[#This Row],[Sale Date]],'Global Settings'!$H$5)/30,0)) -> 86 | O41: =IFERROR(IF(AND(Table_Data_Table_1[[#This Row],[Months To Mid-Point]]<12.01,Table_Data_Table_1[[#This Row],[Months To Mid-Point]]>-13),0,(Table_Data_Table_1[[#This Row],[Months To Mid-Point]]*'Global Settings'!$H$6)),"") -> 0.1348136613 | P41: =IFERROR(Table_Data_Table_1[[#This Row],[Land Residual]]*(Table_Data_Table_1[[#This Row],[Time Adjust]]+1),"") -> 1376415.49 | Q41: =IFERROR(Table_Data_Table_1[[#This Row],[Adjusted Sale Price]]/Table_Data_Table_1[[#This Row],[Resid Acre]],"") -> 176102.2889 | R41: =IFERROR(ROUND(Table_Data_Table_1[[#This Row],[Adjusted Sale Price]]/Table_Data_Table_1[[#This Row],[Resid Sq Ft]],2),"") -> 4.04 | S41: =IFERROR(IF(VLOOKUP(Table_Data_Table_1[[#This Row],[Item ID]],DataTable,11,FALSE)=0,"N/A",Table_Data_Table_1[[#This Row],[Adjusted Sale Price]]/VLOOKUP(Table_Data_Table_1[[#This Row],[Item ID]],DataTable,11,FALSE)),"") -> 2752.830979 | T41: =IF(IFERROR(VLOOKUP(Table_Data_Table_1[[#This Row],[Item ID]],DataTable,17,FALSE),"")=0,"",IFERROR(VLOOKUP(Table_Data_Table_1[[#This Row],[Item ID]],DataTable,17,FALSE),"")) -> 
A42: 5-12Vac-1391-595 | B42: Vacant | C42: =IF(Table_Data_Table_1[[#This Row],[Item ID]]="","",IFERROR(VLOOKUP(Table_Data_Table_1[[#This Row],[Item ID]],DataTable,16,FALSE),"")) -> 1 | D42: 34-011-001-000-085-12 | E42: 38609 | F42: 595000 | G42: 0 | H42: =IF(Table_Data_Table_1[[#This Row],[Valuation Method]]="Vacant",VLOOKUP(Table_Data_Table_1[[#This Row],[Item ID]],DataTable,6,FALSE)-VLOOKUP(Table_Data_Table_1[[#This Row],[Item ID]],DataTable,13,FALSE),IF(Table_Data_Table_1[[#This Row],[Valuation Method]]="Abstraction",VLOOKUP(Table_Data_Table_1[[#This Row],[Item ID]],DataTable,6,FALSE)-VLOOKUP(Table_Data_Table_1[[#This Row],[Item ID]],DataTable,13,FALSE),IF(Table_Data_Table_1[[#This Row],[Valuation Method]]="Allocation",VLOOKUP(Table_Data_Table_1[[#This Row],[Item ID]],DataTable,6,FALSE)*I42,""))) -> 595000 | I42: =IF(Table_Data_Table_1[[#This Row],[Valuation Method]]="Vacant","N/A",IF(Table_Data_Table_1[[#This Row],[Valuation Method]]="Abstraction",Table_Data_Table_1[[#This Row],[Land Residual]]/VLOOKUP(Table_Data_Table_1[[#This Row],[Item ID]],DataTable,6,FALSE),IF(Table_Data_Table_1[[#This Row],[Valuation Method]]="Allocation",'Global Settings'!$H$20,""))) -> N/A | J42: =IFERROR(ROUND(Table_Data_Table_1[[#This Row],[Resid Sq Ft]]/43560,3),"") -> 4.461 | K42: =IF(Table_Data_Table_1[[#This Row],[Item ID]]="","",IFERROR(VLOOKUP(Table_Data_Table_1[[#This Row],[Item ID]],DataTable,10,FALSE)-VLOOKUP(Table_Data_Table_1[[#This Row],[Item ID]],DataTable,12,FALSE),"")) -> 194321.16 | L42: =IFERROR(Table_Data_Table_1[[#This Row],[Land Residual]]/Table_Data_Table_1[[#This Row],[Resid Acre]],"") -> 133378.1663 | M42: =IFERROR(ROUND(Table_Data_Table_1[[#This Row],[Land Residual]]/Table_Data_Table_1[[#This Row],[Resid Sq Ft]],2),"") -> 3.06 | N42: =IF(Table_Data_Table_1[[#This Row],[Item ID]]="","",ROUND(DAYS360(Table_Data_Table_1[[#This Row],[Sale Date]],'Global Settings'!$H$5)/30,0)) -> 211 | O42: =IFERROR(IF(AND(Table_Data_Table_1[[#This Row],[Months To Mid-Point]]<12.01,Table_Data_Table_1[[#This Row],[Months To Mid-Point]]>-13),0,(Table_Data_Table_1[[#This Row],[Months To Mid-Point]]*'Global Settings'!$H$6)),"") -> 0.3307637503 | P42: =IFERROR(Table_Data_Table_1[[#This Row],[Land Residual]]*(Table_Data_Table_1[[#This Row],[Time Adjust]]+1),"") -> 791804.4314 | Q42: =IFERROR(Table_Data_Table_1[[#This Row],[Adjusted Sale Price]]/Table_Data_Table_1[[#This Row],[Resid Acre]],"") -> 177494.8288 | R42: =IFERROR(ROUND(Table_Data_Table_1[[#This Row],[Adjusted Sale Price]]/Table_Data_Table_1[[#This Row],[Resid Sq Ft]],2),"") -> 4.07 | S42: =IFERROR(IF(VLOOKUP(Table_Data_Table_1[[#This Row],[Item ID]],DataTable,11,FALSE)=0,"N/A",Table_Data_Table_1[[#This Row],[Adjusted Sale Price]]/VLOOKUP(Table_Data_Table_1[[#This Row],[Item ID]],DataTable,11,FALSE)),"") -> 2363.595318 | T42: =IF(IFERROR(VLOOKUP(Table_Data_Table_1[[#This Row],[Item ID]],DataTable,17,FALSE),"")=0,"",IFERROR(VLOOKUP(Table_Data_Table_1[[#This Row],[Item ID]],DataTable,17,FALSE),"")) -> 
A43: 5-00All2003-248 | B43: Allocation | C43: =IF(Table_Data_Table_1[[#This Row],[Item ID]]="","",IFERROR(VLOOKUP(Table_Data_Table_1[[#This Row],[Item ID]],DataTable,16,FALSE),"")) -> 1 | D43: 34-204-190-000-005-00 | E43: 42003 | F43: 248651 | G43: 0 | H43: =IF(Table_Data_Table_1[[#This Row],[Valuation Method]]="Vacant",VLOOKUP(Table_Data_Table_1[[#This Row],[Item ID]],DataTable,6,FALSE)-VLOOKUP(Table_Data_Table_1[[#This Row],[Item ID]],DataTable,13,FALSE),IF(Table_Data_Table_1[[#This Row],[Valuation Method]]="Abstraction",VLOOKUP(Table_Data_Table_1[[#This Row],[Item ID]],DataTable,6,FALSE)-VLOOKUP(Table_Data_Table_1[[#This Row],[Item ID]],DataTable,13,FALSE),IF(Table_Data_Table_1[[#This Row],[Valuation Method]]="Allocation",VLOOKUP(Table_Data_Table_1[[#This Row],[Item ID]],DataTable,6,FALSE)*I43,""))) -> 100529.5993 | I43: =IF(Table_Data_Table_1[[#This Row],[Valuation Method]]="Vacant","N/A",IF(Table_Data_Table_1[[#This Row],[Valuation Method]]="Abstraction",Table_Data_Table_1[[#This Row],[Land Residual]]/VLOOKUP(Table_Data_Table_1[[#This Row],[Item ID]],DataTable,6,FALSE),IF(Table_Data_Table_1[[#This Row],[Valuation Method]]="Allocation",'Global Settings'!$H$20,""))) -> 0.4043 | J43: =IFERROR(ROUND(Table_Data_Table_1[[#This Row],[Resid Sq Ft]]/43560,3),"") -> 0.572 | K43: =IF(Table_Data_Table_1[[#This Row],[Item ID]]="","",IFERROR(VLOOKUP(Table_Data_Table_1[[#This Row],[Item ID]],DataTable,10,FALSE)-VLOOKUP(Table_Data_Table_1[[#This Row],[Item ID]],DataTable,12,FALSE),"")) -> 24916.32 | L43: =IFERROR(Table_Data_Table_1[[#This Row],[Land Residual]]/Table_Data_Table_1[[#This Row],[Resid Acre]],"") -> 175751.0477 | M43: =IFERROR(ROUND(Table_Data_Table_1[[#This Row],[Land Residual]]/Table_Data_Table_1[[#This Row],[Resid Sq Ft]],2),"") -> 4.03 | N43: =IF(Table_Data_Table_1[[#This Row],[Item ID]]="","",ROUND(DAYS360(Table_Data_Table_1[[#This Row],[Sale Date]],'Global Settings'!$H$5)/30,0)) -> 99 | O43: =IFERROR(IF(AND(Table_Data_Table_1[[#This Row],[Months To Mid-Point]]<12.01,Table_Data_Table_1[[#This Row],[Months To Mid-Point]]>-13),0,(Table_Data_Table_1[[#This Row],[Months To Mid-Point]]*'Global Settings'!$H$6)),"") -> 0.1551924705 | P43: =IFERROR(Table_Data_Table_1[[#This Row],[Land Residual]]*(Table_Data_Table_1[[#This Row],[Time Adjust]]+1),"") -> 116131.0362 | Q43: =IFERROR(Table_Data_Table_1[[#This Row],[Adjusted Sale Price]]/Table_Data_Table_1[[#This Row],[Resid Acre]],"") -> 203026.287 | R43: =IFERROR(ROUND(Table_Data_Table_1[[#This Row],[Adjusted Sale Price]]/Table_Data_Table_1[[#This Row],[Resid Sq Ft]],2),"") -> 4.66 | S43: =IFERROR(IF(VLOOKUP(Table_Data_Table_1[[#This Row],[Item ID]],DataTable,11,FALSE)=0,"N/A",Table_Data_Table_1[[#This Row],[Adjusted Sale Price]]/VLOOKUP(Table_Data_Table_1[[#This Row],[Item ID]],DataTable,11,FALSE)),"") -> 879.7805771 | T43: =IF(IFERROR(VLOOKUP(Table_Data_Table_1[[#This Row],[Item ID]],DataTable,17,FALSE),"")=0,"",IFERROR(VLOOKUP(Table_Data_Table_1[[#This Row],[Item ID]],DataTable,17,FALSE),"")) -> 
A44: 0-01Abs4861-122 | B44: Abstraction | C44: =IF(Table_Data_Table_1[[#This Row],[Item ID]]="","",IFERROR(VLOOKUP(Table_Data_Table_1[[#This Row],[Item ID]],DataTable,16,FALSE),"")) -> 1 | D44: 300-110-000-070-01 | E44: 44861 | F44: 1225000 | G44: 1021225 | H44: =IF(Table_Data_Table_1[[#This Row],[Valuation Method]]="Vacant",VLOOKUP(Table_Data_Table_1[[#This Row],[Item ID]],DataTable,6,FALSE)-VLOOKUP(Table_Data_Table_1[[#This Row],[Item ID]],DataTable,13,FALSE),IF(Table_Data_Table_1[[#This Row],[Valuation Method]]="Abstraction",VLOOKUP(Table_Data_Table_1[[#This Row],[Item ID]],DataTable,6,FALSE)-VLOOKUP(Table_Data_Table_1[[#This Row],[Item ID]],DataTable,13,FALSE),IF(Table_Data_Table_1[[#This Row],[Valuation Method]]="Allocation",VLOOKUP(Table_Data_Table_1[[#This Row],[Item ID]],DataTable,6,FALSE)*I44,""))) -> 203775 | I44: =IF(Table_Data_Table_1[[#This Row],[Valuation Method]]="Vacant","N/A",IF(Table_Data_Table_1[[#This Row],[Valuation Method]]="Abstraction",Table_Data_Table_1[[#This Row],[Land Residual]]/VLOOKUP(Table_Data_Table_1[[#This Row],[Item ID]],DataTable,6,FALSE),IF(Table_Data_Table_1[[#This Row],[Valuation Method]]="Allocation",'Global Settings'!$H$20,""))) -> 0.1663469388 | J44: =IFERROR(ROUND(Table_Data_Table_1[[#This Row],[Resid Sq Ft]]/43560,3),"") -> 1 | K44: =IF(Table_Data_Table_1[[#This Row],[Item ID]]="","",IFERROR(VLOOKUP(Table_Data_Table_1[[#This Row],[Item ID]],DataTable,10,FALSE)-VLOOKUP(Table_Data_Table_1[[#This Row],[Item ID]],DataTable,12,FALSE),"")) -> 43560 | L44: =IFERROR(Table_Data_Table_1[[#This Row],[Land Residual]]/Table_Data_Table_1[[#This Row],[Resid Acre]],"") -> 203775 | M44: =IFERROR(ROUND(Table_Data_Table_1[[#This Row],[Land Residual]]/Table_Data_Table_1[[#This Row],[Resid Sq Ft]],2),"") -> 4.68 | N44: =IF(Table_Data_Table_1[[#This Row],[Item ID]]="","",ROUND(DAYS360(Table_Data_Table_1[[#This Row],[Sale Date]],'Global Settings'!$H$5)/30,0)) -> 5 | O44: =IFERROR(IF(AND(Table_Data_Table_1[[#This Row],[Months To Mid-Point]]<12.01,Table_Data_Table_1[[#This Row],[Months To Mid-Point]]>-13),0,(Table_Data_Table_1[[#This Row],[Months To Mid-Point]]*'Global Settings'!$H$6)),"") -> 0 | P44: =IFERROR(Table_Data_Table_1[[#This Row],[Land Residual]]*(Table_Data_Table_1[[#This Row],[Time Adjust]]+1),"") -> 203775 | Q44: =IFERROR(Table_Data_Table_1[[#This Row],[Adjusted Sale Price]]/Table_Data_Table_1[[#This Row],[Resid Acre]],"") -> 203775 | R44: =IFERROR(ROUND(Table_Data_Table_1[[#This Row],[Adjusted Sale Price]]/Table_Data_Table_1[[#This Row],[Resid Sq Ft]],2),"") -> 4.68 | S44: =IFERROR(IF(VLOOKUP(Table_Data_Table_1[[#This Row],[Item ID]],DataTable,11,FALSE)=0,"N/A",Table_Data_Table_1[[#This Row],[Adjusted Sale Price]]/VLOOKUP(Table_Data_Table_1[[#This Row],[Item ID]],DataTable,11,FALSE)),"") -> 1415.104167 | T44: =IF(IFERROR(VLOOKUP(Table_Data_Table_1[[#This Row],[Item ID]],DataTable,17,FALSE),"")=0,"",IFERROR(VLOOKUP(Table_Data_Table_1[[#This Row],[Item ID]],DataTable,17,FALSE),"")) -> 
A45: 5-00Abs1563-200 | B45: Abstraction | C45: =IF(Table_Data_Table_1[[#This Row],[Item ID]]="","",IFERROR(VLOOKUP(Table_Data_Table_1[[#This Row],[Item ID]],DataTable,16,FALSE),"")) -> 1 | D45: 34-060-006-000-095-00 | E45: 41563 | F45: 200000 | G45: 33808 | H45: =IF(Table_Data_Table_1[[#This Row],[Valuation Method]]="Vacant",VLOOKUP(Table_Data_Table_1[[#This Row],[Item ID]],DataTable,6,FALSE)-VLOOKUP(Table_Data_Table_1[[#This Row],[Item ID]],DataTable,13,FALSE),IF(Table_Data_Table_1[[#This Row],[Valuation Method]]="Abstraction",VLOOKUP(Table_Data_Table_1[[#This Row],[Item ID]],DataTable,6,FALSE)-VLOOKUP(Table_Data_Table_1[[#This Row],[Item ID]],DataTable,13,FALSE),IF(Table_Data_Table_1[[#This Row],[Valuation Method]]="Allocation",VLOOKUP(Table_Data_Table_1[[#This Row],[Item ID]],DataTable,6,FALSE)*I45,""))) -> 166192 | I45: =IF(Table_Data_Table_1[[#This Row],[Valuation Method]]="Vacant","N/A",IF(Table_Data_Table_1[[#This Row],[Valuation Method]]="Abstraction",Table_Data_Table_1[[#This Row],[Land Residual]]/VLOOKUP(Table_Data_Table_1[[#This Row],[Item ID]],DataTable,6,FALSE),IF(Table_Data_Table_1[[#This Row],[Valuation Method]]="Allocation",'Global Settings'!$H$20,""))) -> 0.83096 | J45: =IFERROR(ROUND(Table_Data_Table_1[[#This Row],[Resid Sq Ft]]/43560,3),"") -> 0.944 | K45: =IF(Table_Data_Table_1[[#This Row],[Item ID]]="","",IFERROR(VLOOKUP(Table_Data_Table_1[[#This Row],[Item ID]],DataTable,10,FALSE)-VLOOKUP(Table_Data_Table_1[[#This Row],[Item ID]],DataTable,12,FALSE),"")) -> 41131.84 | L45: =IFERROR(Table_Data_Table_1[[#This Row],[Land Residual]]/Table_Data_Table_1[[#This Row],[Resid Acre]],"") -> 176050.8475 | M45: =IFERROR(ROUND(Table_Data_Table_1[[#This Row],[Land Residual]]/Table_Data_Table_1[[#This Row],[Resid Sq Ft]],2),"") -> 4.04 | N45: =IF(Table_Data_Table_1[[#This Row],[Item ID]]="","",ROUND(DAYS360(Table_Data_Table_1[[#This Row],[Sale Date]],'Global Settings'!$H$5)/30,0)) -> 114 | O45: =IFERROR(IF(AND(Table_Data_Table_1[[#This Row],[Months To Mid-Point]]<12.01,Table_Data_Table_1[[#This Row],[Months To Mid-Point]]>-13),0,(Table_Data_Table_1[[#This Row],[Months To Mid-Point]]*'Global Settings'!$H$6)),"") -> 0.1787064812 | P45: =IFERROR(Table_Data_Table_1[[#This Row],[Land Residual]]*(Table_Data_Table_1[[#This Row],[Time Adjust]]+1),"") -> 195891.5875 | Q45: =IFERROR(Table_Data_Table_1[[#This Row],[Adjusted Sale Price]]/Table_Data_Table_1[[#This Row],[Resid Acre]],"") -> 207512.2749 | R45: =IFERROR(ROUND(Table_Data_Table_1[[#This Row],[Adjusted Sale Price]]/Table_Data_Table_1[[#This Row],[Resid Sq Ft]],2),"") -> 4.76 | S45: =IFERROR(IF(VLOOKUP(Table_Data_Table_1[[#This Row],[Item ID]],DataTable,11,FALSE)=0,"N/A",Table_Data_Table_1[[#This Row],[Adjusted Sale Price]]/VLOOKUP(Table_Data_Table_1[[#This Row],[Item ID]],DataTable,11,FALSE)),"") -> 833.5812235 | T45: =IF(IFERROR(VLOOKUP(Table_Data_Table_1[[#This Row],[Item ID]],DataTable,17,FALSE),"")=0,"",IFERROR(VLOOKUP(Table_Data_Table_1[[#This Row],[Item ID]],DataTable,17,FALSE),"")) -> 
A46: 0-02Abs2403-300 | B46: Abstraction | C46: =IF(Table_Data_Table_1[[#This Row],[Item ID]]="","",IFERROR(VLOOKUP(Table_Data_Table_1[[#This Row],[Item ID]],DataTable,16,FALSE),"")) -> 1 | D46: 34-110-006-000-040-02 | E46: 42403 | F46: 3000000 | G46: 1526059 | H46: =IF(Table_Data_Table_1[[#This Row],[Valuation Method]]="Vacant",VLOOKUP(Table_Data_Table_1[[#This Row],[Item ID]],DataTable,6,FALSE)-VLOOKUP(Table_Data_Table_1[[#This Row],[Item ID]],DataTable,13,FALSE),IF(Table_Data_Table_1[[#This Row],[Valuation Method]]="Abstraction",VLOOKUP(Table_Data_Table_1[[#This Row],[Item ID]],DataTable,6,FALSE)-VLOOKUP(Table_Data_Table_1[[#This Row],[Item ID]],DataTable,13,FALSE),IF(Table_Data_Table_1[[#This Row],[Valuation Method]]="Allocation",VLOOKUP(Table_Data_Table_1[[#This Row],[Item ID]],DataTable,6,FALSE)*I46,""))) -> 1473941 | I46: =IF(Table_Data_Table_1[[#This Row],[Valuation Method]]="Vacant","N/A",IF(Table_Data_Table_1[[#This Row],[Valuation Method]]="Abstraction",Table_Data_Table_1[[#This Row],[Land Residual]]/VLOOKUP(Table_Data_Table_1[[#This Row],[Item ID]],DataTable,6,FALSE),IF(Table_Data_Table_1[[#This Row],[Valuation Method]]="Allocation",'Global Settings'!$H$20,""))) -> 0.4913136667 | J46: =IFERROR(ROUND(Table_Data_Table_1[[#This Row],[Resid Sq Ft]]/43560,3),"") -> 7.816 | K46: =IF(Table_Data_Table_1[[#This Row],[Item ID]]="","",IFERROR(VLOOKUP(Table_Data_Table_1[[#This Row],[Item ID]],DataTable,10,FALSE)-VLOOKUP(Table_Data_Table_1[[#This Row],[Item ID]],DataTable,12,FALSE),"")) -> 340468.4 | L46: =IFERROR(Table_Data_Table_1[[#This Row],[Land Residual]]/Table_Data_Table_1[[#This Row],[Resid Acre]],"") -> 188579.9642 | M46: =IFERROR(ROUND(Table_Data_Table_1[[#This Row],[Land Residual]]/Table_Data_Table_1[[#This Row],[Resid Sq Ft]],2),"") -> 4.33 | N46: =IF(Table_Data_Table_1[[#This Row],[Item ID]]="","",ROUND(DAYS360(Table_Data_Table_1[[#This Row],[Sale Date]],'Global Settings'!$H$5)/30,0)) -> 86 | O46: =IFERROR(IF(AND(Table_Data_Table_1[[#This Row],[Months To Mid-Point]]<12.01,Table_Data_Table_1[[#This Row],[Months To Mid-Point]]>-13),0,(Table_Data_Table_1[[#This Row],[Months To Mid-Point]]*'Global Settings'!$H$6)),"") -> 0.1348136613 | P46: =IFERROR(Table_Data_Table_1[[#This Row],[Land Residual]]*(Table_Data_Table_1[[#This Row],[Time Adjust]]+1),"") -> 1672648.383 | Q46: =IFERROR(Table_Data_Table_1[[#This Row],[Adjusted Sale Price]]/Table_Data_Table_1[[#This Row],[Resid Acre]],"") -> 214003.1196 | R46: =IFERROR(ROUND(Table_Data_Table_1[[#This Row],[Adjusted Sale Price]]/Table_Data_Table_1[[#This Row],[Resid Sq Ft]],2),"") -> 4.91 | S46: =IFERROR(IF(VLOOKUP(Table_Data_Table_1[[#This Row],[Item ID]],DataTable,11,FALSE)=0,"N/A",Table_Data_Table_1[[#This Row],[Adjusted Sale Price]]/VLOOKUP(Table_Data_Table_1[[#This Row],[Item ID]],DataTable,11,FALSE)),"") -> 3345.296765 | T46: =IF(IFERROR(VLOOKUP(Table_Data_Table_1[[#This Row],[Item ID]],DataTable,17,FALSE),"")=0,"",IFERROR(VLOOKUP(Table_Data_Table_1[[#This Row],[Item ID]],DataTable,17,FALSE),"")) -> 
A47: 5-00Abs2003-248 | B47: Abstraction | C47: =IF(Table_Data_Table_1[[#This Row],[Item ID]]="","",IFERROR(VLOOKUP(Table_Data_Table_1[[#This Row],[Item ID]],DataTable,16,FALSE),"")) -> 1 | D47: 34-204-190-000-005-00 | E47: 42003 | F47: 248651 | G47: 140849 | H47: =IF(Table_Data_Table_1[[#This Row],[Valuation Method]]="Vacant",VLOOKUP(Table_Data_Table_1[[#This Row],[Item ID]],DataTable,6,FALSE)-VLOOKUP(Table_Data_Table_1[[#This Row],[Item ID]],DataTable,13,FALSE),IF(Table_Data_Table_1[[#This Row],[Valuation Method]]="Abstraction",VLOOKUP(Table_Data_Table_1[[#This Row],[Item ID]],DataTable,6,FALSE)-VLOOKUP(Table_Data_Table_1[[#This Row],[Item ID]],DataTable,13,FALSE),IF(Table_Data_Table_1[[#This Row],[Valuation Method]]="Allocation",VLOOKUP(Table_Data_Table_1[[#This Row],[Item ID]],DataTable,6,FALSE)*I47,""))) -> 107802 | I47: =IF(Table_Data_Table_1[[#This Row],[Valuation Method]]="Vacant","N/A",IF(Table_Data_Table_1[[#This Row],[Valuation Method]]="Abstraction",Table_Data_Table_1[[#This Row],[Land Residual]]/VLOOKUP(Table_Data_Table_1[[#This Row],[Item ID]],DataTable,6,FALSE),IF(Table_Data_Table_1[[#This Row],[Valuation Method]]="Allocation",'Global Settings'!$H$20,""))) -> 0.4335474219 | J47: =IFERROR(ROUND(Table_Data_Table_1[[#This Row],[Resid Sq Ft]]/43560,3),"") -> 0.572 | K47: =IF(Table_Data_Table_1[[#This Row],[Item ID]]="","",IFERROR(VLOOKUP(Table_Data_Table_1[[#This Row],[Item ID]],DataTable,10,FALSE)-VLOOKUP(Table_Data_Table_1[[#This Row],[Item ID]],DataTable,12,FALSE),"")) -> 24916.32 | L47: =IFERROR(Table_Data_Table_1[[#This Row],[Land Residual]]/Table_Data_Table_1[[#This Row],[Resid Acre]],"") -> 188465.035 | M47: =IFERROR(ROUND(Table_Data_Table_1[[#This Row],[Land Residual]]/Table_Data_Table_1[[#This Row],[Resid Sq Ft]],2),"") -> 4.33 | N47: =IF(Table_Data_Table_1[[#This Row],[Item ID]]="","",ROUND(DAYS360(Table_Data_Table_1[[#This Row],[Sale Date]],'Global Settings'!$H$5)/30,0)) -> 99 | O47: =IFERROR(IF(AND(Table_Data_Table_1[[#This Row],[Months To Mid-Point]]<12.01,Table_Data_Table_1[[#This Row],[Months To Mid-Point]]>-13),0,(Table_Data_Table_1[[#This Row],[Months To Mid-Point]]*'Global Settings'!$H$6)),"") -> 0.1551924705 | P47: =IFERROR(Table_Data_Table_1[[#This Row],[Land Residual]]*(Table_Data_Table_1[[#This Row],[Time Adjust]]+1),"") -> 124532.0587 | Q47: =IFERROR(Table_Data_Table_1[[#This Row],[Adjusted Sale Price]]/Table_Data_Table_1[[#This Row],[Resid Acre]],"") -> 217713.3893 | R47: =IFERROR(ROUND(Table_Data_Table_1[[#This Row],[Adjusted Sale Price]]/Table_Data_Table_1[[#This Row],[Resid Sq Ft]],2),"") -> 5 | S47: =IFERROR(IF(VLOOKUP(Table_Data_Table_1[[#This Row],[Item ID]],DataTable,11,FALSE)=0,"N/A",Table_Data_Table_1[[#This Row],[Adjusted Sale Price]]/VLOOKUP(Table_Data_Table_1[[#This Row],[Item ID]],DataTable,11,FALSE)),"") -> 943.4246872 | T47: =IF(IFERROR(VLOOKUP(Table_Data_Table_1[[#This Row],[Item ID]],DataTable,17,FALSE),"")=0,"",IFERROR(VLOOKUP(Table_Data_Table_1[[#This Row],[Item ID]],DataTable,17,FALSE),"")) -> 
A48: 0-00Vac3038-320 | B48: Vacant | C48: =IF(Table_Data_Table_1[[#This Row],[Item ID]]="","",IFERROR(VLOOKUP(Table_Data_Table_1[[#This Row],[Item ID]],DataTable,16,FALSE),"")) -> 1 | D48: 34-060-140-000-020-00 | E48: 43038 | F48: 320000 | G48: 0 | H48: =IF(Table_Data_Table_1[[#This Row],[Valuation Method]]="Vacant",VLOOKUP(Table_Data_Table_1[[#This Row],[Item ID]],DataTable,6,FALSE)-VLOOKUP(Table_Data_Table_1[[#This Row],[Item ID]],DataTable,13,FALSE),IF(Table_Data_Table_1[[#This Row],[Valuation Method]]="Abstraction",VLOOKUP(Table_Data_Table_1[[#This Row],[Item ID]],DataTable,6,FALSE)-VLOOKUP(Table_Data_Table_1[[#This Row],[Item ID]],DataTable,13,FALSE),IF(Table_Data_Table_1[[#This Row],[Valuation Method]]="Allocation",VLOOKUP(Table_Data_Table_1[[#This Row],[Item ID]],DataTable,6,FALSE)*I48,""))) -> 320000 | I48: =IF(Table_Data_Table_1[[#This Row],[Valuation Method]]="Vacant","N/A",IF(Table_Data_Table_1[[#This Row],[Valuation Method]]="Abstraction",Table_Data_Table_1[[#This Row],[Land Residual]]/VLOOKUP(Table_Data_Table_1[[#This Row],[Item ID]],DataTable,6,FALSE),IF(Table_Data_Table_1[[#This Row],[Valuation Method]]="Allocation",'Global Settings'!$H$20,""))) -> N/A | J48: =IFERROR(ROUND(Table_Data_Table_1[[#This Row],[Resid Sq Ft]]/43560,3),"") -> 1.446 | K48: =IF(Table_Data_Table_1[[#This Row],[Item ID]]="","",IFERROR(VLOOKUP(Table_Data_Table_1[[#This Row],[Item ID]],DataTable,10,FALSE)-VLOOKUP(Table_Data_Table_1[[#This Row],[Item ID]],DataTable,12,FALSE),"")) -> 62987.76 | L48: =IFERROR(Table_Data_Table_1[[#This Row],[Land Residual]]/Table_Data_Table_1[[#This Row],[Resid Acre]],"") -> 221300.1383 | M48: =IFERROR(ROUND(Table_Data_Table_1[[#This Row],[Land Residual]]/Table_Data_Table_1[[#This Row],[Resid Sq Ft]],2),"") -> 5.08 | N48: =IF(Table_Data_Table_1[[#This Row],[Item ID]]="","",ROUND(DAYS360(Table_Data_Table_1[[#This Row],[Sale Date]],'Global Settings'!$H$5)/30,0)) -> 65 | O48: =IFERROR(IF(AND(Table_Data_Table_1[[#This Row],[Months To Mid-Point]]<12.01,Table_Data_Table_1[[#This Row],[Months To Mid-Point]]>-13),0,(Table_Data_Table_1[[#This Row],[Months To Mid-Point]]*'Global Settings'!$H$6)),"") -> 0.1018940463 | P48: =IFERROR(Table_Data_Table_1[[#This Row],[Land Residual]]*(Table_Data_Table_1[[#This Row],[Time Adjust]]+1),"") -> 352606.0948 | Q48: =IFERROR(Table_Data_Table_1[[#This Row],[Adjusted Sale Price]]/Table_Data_Table_1[[#This Row],[Resid Acre]],"") -> 243849.3049 | R48: =IFERROR(ROUND(Table_Data_Table_1[[#This Row],[Adjusted Sale Price]]/Table_Data_Table_1[[#This Row],[Resid Sq Ft]],2),"") -> 5.6 | S48: =IFERROR(IF(VLOOKUP(Table_Data_Table_1[[#This Row],[Item ID]],DataTable,11,FALSE)=0,"N/A",Table_Data_Table_1[[#This Row],[Adjusted Sale Price]]/VLOOKUP(Table_Data_Table_1[[#This Row],[Item ID]],DataTable,11,FALSE)),"") -> 1175.353649 | T48: =IF(IFERROR(VLOOKUP(Table_Data_Table_1[[#This Row],[Item ID]],DataTable,17,FALSE),"")=0,"",IFERROR(VLOOKUP(Table_Data_Table_1[[#This Row],[Item ID]],DataTable,17,FALSE),"")) -> 
A49: 0-10All3088-150 | B49: Allocation | C49: =IF(Table_Data_Table_1[[#This Row],[Item ID]]="","",IFERROR(VLOOKUP(Table_Data_Table_1[[#This Row],[Item ID]],DataTable,16,FALSE),"")) -> 1 | D49: 34-401-250-000-350-10 | E49: 43088 | F49: 150000 | G49: 0 | H49: =IF(Table_Data_Table_1[[#This Row],[Valuation Method]]="Vacant",VLOOKUP(Table_Data_Table_1[[#This Row],[Item ID]],DataTable,6,FALSE)-VLOOKUP(Table_Data_Table_1[[#This Row],[Item ID]],DataTable,13,FALSE),IF(Table_Data_Table_1[[#This Row],[Valuation Method]]="Abstraction",VLOOKUP(Table_Data_Table_1[[#This Row],[Item ID]],DataTable,6,FALSE)-VLOOKUP(Table_Data_Table_1[[#This Row],[Item ID]],DataTable,13,FALSE),IF(Table_Data_Table_1[[#This Row],[Valuation Method]]="Allocation",VLOOKUP(Table_Data_Table_1[[#This Row],[Item ID]],DataTable,6,FALSE)*I49,""))) -> 60645 | I49: =IF(Table_Data_Table_1[[#This Row],[Valuation Method]]="Vacant","N/A",IF(Table_Data_Table_1[[#This Row],[Valuation Method]]="Abstraction",Table_Data_Table_1[[#This Row],[Land Residual]]/VLOOKUP(Table_Data_Table_1[[#This Row],[Item ID]],DataTable,6,FALSE),IF(Table_Data_Table_1[[#This Row],[Valuation Method]]="Allocation",'Global Settings'!$H$20,""))) -> 0.4043 | J49: =IFERROR(ROUND(Table_Data_Table_1[[#This Row],[Resid Sq Ft]]/43560,3),"") -> 0.273 | K49: =IF(Table_Data_Table_1[[#This Row],[Item ID]]="","",IFERROR(VLOOKUP(Table_Data_Table_1[[#This Row],[Item ID]],DataTable,10,FALSE)-VLOOKUP(Table_Data_Table_1[[#This Row],[Item ID]],DataTable,12,FALSE),"")) -> 11891.88 | L49: =IFERROR(Table_Data_Table_1[[#This Row],[Land Residual]]/Table_Data_Table_1[[#This Row],[Resid Acre]],"") -> 222142.8571 | M49: =IFERROR(ROUND(Table_Data_Table_1[[#This Row],[Land Residual]]/Table_Data_Table_1[[#This Row],[Resid Sq Ft]],2),"") -> 5.1 | N49: =IF(Table_Data_Table_1[[#This Row],[Item ID]]="","",ROUND(DAYS360(Table_Data_Table_1[[#This Row],[Sale Date]],'Global Settings'!$H$5)/30,0)) -> 63 | O49: =IFERROR(IF(AND(Table_Data_Table_1[[#This Row],[Months To Mid-Point]]<12.01,Table_Data_Table_1[[#This Row],[Months To Mid-Point]]>-13),0,(Table_Data_Table_1[[#This Row],[Months To Mid-Point]]*'Global Settings'!$H$6)),"") -> 0.09875884487 | P49: =IFERROR(Table_Data_Table_1[[#This Row],[Land Residual]]*(Table_Data_Table_1[[#This Row],[Time Adjust]]+1),"") -> 66634.23015 | Q49: =IFERROR(Table_Data_Table_1[[#This Row],[Adjusted Sale Price]]/Table_Data_Table_1[[#This Row],[Resid Acre]],"") -> 244081.4291 | R49: =IFERROR(ROUND(Table_Data_Table_1[[#This Row],[Adjusted Sale Price]]/Table_Data_Table_1[[#This Row],[Resid Sq Ft]],2),"") -> 5.6 | S49: =IFERROR(IF(VLOOKUP(Table_Data_Table_1[[#This Row],[Item ID]],DataTable,11,FALSE)=0,"N/A",Table_Data_Table_1[[#This Row],[Adjusted Sale Price]]/VLOOKUP(Table_Data_Table_1[[#This Row],[Item ID]],DataTable,11,FALSE)),"") -> 533.0738412 | T49: =IF(IFERROR(VLOOKUP(Table_Data_Table_1[[#This Row],[Item ID]],DataTable,17,FALSE),"")=0,"",IFERROR(VLOOKUP(Table_Data_Table_1[[#This Row],[Item ID]],DataTable,17,FALSE),"")) -> 
A50: 5-26Vac4848-325 | B50: Vacant | C50: =IF(Table_Data_Table_1[[#This Row],[Item ID]]="","",IFERROR(VLOOKUP(Table_Data_Table_1[[#This Row],[Item ID]],DataTable,16,FALSE),"")) -> 1 | D50: 060-031-000-115-26 | E50: 44848 | F50: 325000 | G50: 0 | H50: =IF(Table_Data_Table_1[[#This Row],[Valuation Method]]="Vacant",VLOOKUP(Table_Data_Table_1[[#This Row],[Item ID]],DataTable,6,FALSE)-VLOOKUP(Table_Data_Table_1[[#This Row],[Item ID]],DataTable,13,FALSE),IF(Table_Data_Table_1[[#This Row],[Valuation Method]]="Abstraction",VLOOKUP(Table_Data_Table_1[[#This Row],[Item ID]],DataTable,6,FALSE)-VLOOKUP(Table_Data_Table_1[[#This Row],[Item ID]],DataTable,13,FALSE),IF(Table_Data_Table_1[[#This Row],[Valuation Method]]="Allocation",VLOOKUP(Table_Data_Table_1[[#This Row],[Item ID]],DataTable,6,FALSE)*I50,""))) -> 325000 | I50: =IF(Table_Data_Table_1[[#This Row],[Valuation Method]]="Vacant","N/A",IF(Table_Data_Table_1[[#This Row],[Valuation Method]]="Abstraction",Table_Data_Table_1[[#This Row],[Land Residual]]/VLOOKUP(Table_Data_Table_1[[#This Row],[Item ID]],DataTable,6,FALSE),IF(Table_Data_Table_1[[#This Row],[Valuation Method]]="Allocation",'Global Settings'!$H$20,""))) -> N/A | J50: =IFERROR(ROUND(Table_Data_Table_1[[#This Row],[Resid Sq Ft]]/43560,3),"") -> 1.325 | K50: =IF(Table_Data_Table_1[[#This Row],[Item ID]]="","",IFERROR(VLOOKUP(Table_Data_Table_1[[#This Row],[Item ID]],DataTable,10,FALSE)-VLOOKUP(Table_Data_Table_1[[#This Row],[Item ID]],DataTable,12,FALSE),"")) -> 57717 | L50: =IFERROR(Table_Data_Table_1[[#This Row],[Land Residual]]/Table_Data_Table_1[[#This Row],[Resid Acre]],"") -> 245283.0189 | M50: =IFERROR(ROUND(Table_Data_Table_1[[#This Row],[Land Residual]]/Table_Data_Table_1[[#This Row],[Resid Sq Ft]],2),"") -> 5.63 | N50: =IF(Table_Data_Table_1[[#This Row],[Item ID]]="","",ROUND(DAYS360(Table_Data_Table_1[[#This Row],[Sale Date]],'Global Settings'!$H$5)/30,0)) -> 6 | O50: =IFERROR(IF(AND(Table_Data_Table_1[[#This Row],[Months To Mid-Point]]<12.01,Table_Data_Table_1[[#This Row],[Months To Mid-Point]]>-13),0,(Table_Data_Table_1[[#This Row],[Months To Mid-Point]]*'Global Settings'!$H$6)),"") -> 0 | P50: =IFERROR(Table_Data_Table_1[[#This Row],[Land Residual]]*(Table_Data_Table_1[[#This Row],[Time Adjust]]+1),"") -> 325000 | Q50: =IFERROR(Table_Data_Table_1[[#This Row],[Adjusted Sale Price]]/Table_Data_Table_1[[#This Row],[Resid Acre]],"") -> 245283.0189 | R50: =IFERROR(ROUND(Table_Data_Table_1[[#This Row],[Adjusted Sale Price]]/Table_Data_Table_1[[#This Row],[Resid Sq Ft]],2),"") -> 5.63 | S50: =IFERROR(IF(VLOOKUP(Table_Data_Table_1[[#This Row],[Item ID]],DataTable,11,FALSE)=0,"N/A",Table_Data_Table_1[[#This Row],[Adjusted Sale Price]]/VLOOKUP(Table_Data_Table_1[[#This Row],[Item ID]],DataTable,11,FALSE)),"") -> 1603.829451 | T50: =IF(IFERROR(VLOOKUP(Table_Data_Table_1[[#This Row],[Item ID]],DataTable,17,FALSE),"")=0,"",IFERROR(VLOOKUP(Table_Data_Table_1[[#This Row],[Item ID]],DataTable,17,FALSE),"")) -> 
A51: 0-00Abs1829-364 | B51: Abstraction | C51: =IF(Table_Data_Table_1[[#This Row],[Item ID]]="","",IFERROR(VLOOKUP(Table_Data_Table_1[[#This Row],[Item ID]],DataTable,16,FALSE),"")) -> 1 | D51: 34-300-110-000-070-00 | E51: 41829 | F51: 364600 | G51: 228195 | H51: =IF(Table_Data_Table_1[[#This Row],[Valuation Method]]="Vacant",VLOOKUP(Table_Data_Table_1[[#This Row],[Item ID]],DataTable,6,FALSE)-VLOOKUP(Table_Data_Table_1[[#This Row],[Item ID]],DataTable,13,FALSE),IF(Table_Data_Table_1[[#This Row],[Valuation Method]]="Abstraction",VLOOKUP(Table_Data_Table_1[[#This Row],[Item ID]],DataTable,6,FALSE)-VLOOKUP(Table_Data_Table_1[[#This Row],[Item ID]],DataTable,13,FALSE),IF(Table_Data_Table_1[[#This Row],[Valuation Method]]="Allocation",VLOOKUP(Table_Data_Table_1[[#This Row],[Item ID]],DataTable,6,FALSE)*I51,""))) -> 136405 | I51: =IF(Table_Data_Table_1[[#This Row],[Valuation Method]]="Vacant","N/A",IF(Table_Data_Table_1[[#This Row],[Valuation Method]]="Abstraction",Table_Data_Table_1[[#This Row],[Land Residual]]/VLOOKUP(Table_Data_Table_1[[#This Row],[Item ID]],DataTable,6,FALSE),IF(Table_Data_Table_1[[#This Row],[Valuation Method]]="Allocation",'Global Settings'!$H$20,""))) -> 0.3741223258 | J51: =IFERROR(ROUND(Table_Data_Table_1[[#This Row],[Resid Sq Ft]]/43560,3),"") -> 0.641 | K51: =IF(Table_Data_Table_1[[#This Row],[Item ID]]="","",IFERROR(VLOOKUP(Table_Data_Table_1[[#This Row],[Item ID]],DataTable,10,FALSE)-VLOOKUP(Table_Data_Table_1[[#This Row],[Item ID]],DataTable,12,FALSE),"")) -> 27921.96 | L51: =IFERROR(Table_Data_Table_1[[#This Row],[Land Residual]]/Table_Data_Table_1[[#This Row],[Resid Acre]],"") -> 212800.312 | M51: =IFERROR(ROUND(Table_Data_Table_1[[#This Row],[Land Residual]]/Table_Data_Table_1[[#This Row],[Resid Sq Ft]],2),"") -> 4.89 | N51: =IF(Table_Data_Table_1[[#This Row],[Item ID]]="","",ROUND(DAYS360(Table_Data_Table_1[[#This Row],[Sale Date]],'Global Settings'!$H$5)/30,0)) -> 105 | O51: =IFERROR(IF(AND(Table_Data_Table_1[[#This Row],[Months To Mid-Point]]<12.01,Table_Data_Table_1[[#This Row],[Months To Mid-Point]]>-13),0,(Table_Data_Table_1[[#This Row],[Months To Mid-Point]]*'Global Settings'!$H$6)),"") -> 0.1645980748 | P51: =IFERROR(Table_Data_Table_1[[#This Row],[Land Residual]]*(Table_Data_Table_1[[#This Row],[Time Adjust]]+1),"") -> 158857.0004 | Q51: =IFERROR(Table_Data_Table_1[[#This Row],[Adjusted Sale Price]]/Table_Data_Table_1[[#This Row],[Resid Acre]],"") -> 247826.8337 | R51: =IFERROR(ROUND(Table_Data_Table_1[[#This Row],[Adjusted Sale Price]]/Table_Data_Table_1[[#This Row],[Resid Sq Ft]],2),"") -> 5.69 | S51: =IFERROR(IF(VLOOKUP(Table_Data_Table_1[[#This Row],[Item ID]],DataTable,11,FALSE)=0,"N/A",Table_Data_Table_1[[#This Row],[Adjusted Sale Price]]/VLOOKUP(Table_Data_Table_1[[#This Row],[Item ID]],DataTable,11,FALSE)),"") -> 577.6618196 | T51: =IF(IFERROR(VLOOKUP(Table_Data_Table_1[[#This Row],[Item ID]],DataTable,17,FALSE),"")=0,"",IFERROR(VLOOKUP(Table_Data_Table_1[[#This Row],[Item ID]],DataTable,17,FALSE),"")) -> 
A52: 5-20Abs4559-182 | B52: Abstraction | C52: =IF(Table_Data_Table_1[[#This Row],[Item ID]]="","",IFERROR(VLOOKUP(Table_Data_Table_1[[#This Row],[Item ID]],DataTable,16,FALSE),"")) -> 1 | D52: 34-060-031-000-045-20 | E52: 44559 | F52: 1825000 | G52: 1228290 | H52: =IF(Table_Data_Table_1[[#This Row],[Valuation Method]]="Vacant",VLOOKUP(Table_Data_Table_1[[#This Row],[Item ID]],DataTable,6,FALSE)-VLOOKUP(Table_Data_Table_1[[#This Row],[Item ID]],DataTable,13,FALSE),IF(Table_Data_Table_1[[#This Row],[Valuation Method]]="Abstraction",VLOOKUP(Table_Data_Table_1[[#This Row],[Item ID]],DataTable,6,FALSE)-VLOOKUP(Table_Data_Table_1[[#This Row],[Item ID]],DataTable,13,FALSE),IF(Table_Data_Table_1[[#This Row],[Valuation Method]]="Allocation",VLOOKUP(Table_Data_Table_1[[#This Row],[Item ID]],DataTable,6,FALSE)*I52,""))) -> 596710 | I52: =IF(Table_Data_Table_1[[#This Row],[Valuation Method]]="Vacant","N/A",IF(Table_Data_Table_1[[#This Row],[Valuation Method]]="Abstraction",Table_Data_Table_1[[#This Row],[Land Residual]]/VLOOKUP(Table_Data_Table_1[[#This Row],[Item ID]],DataTable,6,FALSE),IF(Table_Data_Table_1[[#This Row],[Valuation Method]]="Allocation",'Global Settings'!$H$20,""))) -> 0.3269643836 | J52: =IFERROR(ROUND(Table_Data_Table_1[[#This Row],[Resid Sq Ft]]/43560,3),"") -> 2.455 | K52: =IF(Table_Data_Table_1[[#This Row],[Item ID]]="","",IFERROR(VLOOKUP(Table_Data_Table_1[[#This Row],[Item ID]],DataTable,10,FALSE)-VLOOKUP(Table_Data_Table_1[[#This Row],[Item ID]],DataTable,12,FALSE),"")) -> 106939.8 | L52: =IFERROR(Table_Data_Table_1[[#This Row],[Land Residual]]/Table_Data_Table_1[[#This Row],[Resid Acre]],"") -> 243059.0631 | M52: =IFERROR(ROUND(Table_Data_Table_1[[#This Row],[Land Residual]]/Table_Data_Table_1[[#This Row],[Resid Sq Ft]],2),"") -> 5.58 | N52: =IF(Table_Data_Table_1[[#This Row],[Item ID]]="","",ROUND(DAYS360(Table_Data_Table_1[[#This Row],[Sale Date]],'Global Settings'!$H$5)/30,0)) -> 15 | O52: =IFERROR(IF(AND(Table_Data_Table_1[[#This Row],[Months To Mid-Point]]<12.01,Table_Data_Table_1[[#This Row],[Months To Mid-Point]]>-13),0,(Table_Data_Table_1[[#This Row],[Months To Mid-Point]]*'Global Settings'!$H$6)),"") -> 0.02351401068 | P52: =IFERROR(Table_Data_Table_1[[#This Row],[Land Residual]]*(Table_Data_Table_1[[#This Row],[Time Adjust]]+1),"") -> 610741.0453 | Q52: =IFERROR(Table_Data_Table_1[[#This Row],[Adjusted Sale Price]]/Table_Data_Table_1[[#This Row],[Resid Acre]],"") -> 248774.3565 | R52: =IFERROR(ROUND(Table_Data_Table_1[[#This Row],[Adjusted Sale Price]]/Table_Data_Table_1[[#This Row],[Resid Sq Ft]],2),"") -> 5.71 | S52: =IFERROR(IF(VLOOKUP(Table_Data_Table_1[[#This Row],[Item ID]],DataTable,11,FALSE)=0,"N/A",Table_Data_Table_1[[#This Row],[Adjusted Sale Price]]/VLOOKUP(Table_Data_Table_1[[#This Row],[Item ID]],DataTable,11,FALSE)),"") -> 2741.207564 | T52: =IF(IFERROR(VLOOKUP(Table_Data_Table_1[[#This Row],[Item ID]],DataTable,17,FALSE),"")=0,"",IFERROR(VLOOKUP(Table_Data_Table_1[[#This Row],[Item ID]],DataTable,17,FALSE),"")) -> 
A53: 5-10All4841-330 | B53: Allocation | C53: =IF(Table_Data_Table_1[[#This Row],[Item ID]]="","",IFERROR(VLOOKUP(Table_Data_Table_1[[#This Row],[Item ID]],DataTable,16,FALSE),"")) -> 1 | D53: 34-401-250-000-335-10 | E53: 44841 | F53: 330000 | G53: 0 | H53: =IF(Table_Data_Table_1[[#This Row],[Valuation Method]]="Vacant",VLOOKUP(Table_Data_Table_1[[#This Row],[Item ID]],DataTable,6,FALSE)-VLOOKUP(Table_Data_Table_1[[#This Row],[Item ID]],DataTable,13,FALSE),IF(Table_Data_Table_1[[#This Row],[Valuation Method]]="Abstraction",VLOOKUP(Table_Data_Table_1[[#This Row],[Item ID]],DataTable,6,FALSE)-VLOOKUP(Table_Data_Table_1[[#This Row],[Item ID]],DataTable,13,FALSE),IF(Table_Data_Table_1[[#This Row],[Valuation Method]]="Allocation",VLOOKUP(Table_Data_Table_1[[#This Row],[Item ID]],DataTable,6,FALSE)*I53,""))) -> 133419 | I53: =IF(Table_Data_Table_1[[#This Row],[Valuation Method]]="Vacant","N/A",IF(Table_Data_Table_1[[#This Row],[Valuation Method]]="Abstraction",Table_Data_Table_1[[#This Row],[Land Residual]]/VLOOKUP(Table_Data_Table_1[[#This Row],[Item ID]],DataTable,6,FALSE),IF(Table_Data_Table_1[[#This Row],[Valuation Method]]="Allocation",'Global Settings'!$H$20,""))) -> 0.4043 | J53: =IFERROR(ROUND(Table_Data_Table_1[[#This Row],[Resid Sq Ft]]/43560,3),"") -> 0.504 | K53: =IF(Table_Data_Table_1[[#This Row],[Item ID]]="","",IFERROR(VLOOKUP(Table_Data_Table_1[[#This Row],[Item ID]],DataTable,10,FALSE)-VLOOKUP(Table_Data_Table_1[[#This Row],[Item ID]],DataTable,12,FALSE),"")) -> 21954.24 | L53: =IFERROR(Table_Data_Table_1[[#This Row],[Land Residual]]/Table_Data_Table_1[[#This Row],[Resid Acre]],"") -> 264720.2381 | M53: =IFERROR(ROUND(Table_Data_Table_1[[#This Row],[Land Residual]]/Table_Data_Table_1[[#This Row],[Resid Sq Ft]],2),"") -> 6.08 | N53: =IF(Table_Data_Table_1[[#This Row],[Item ID]]="","",ROUND(DAYS360(Table_Data_Table_1[[#This Row],[Sale Date]],'Global Settings'!$H$5)/30,0)) -> 6 | O53: =IFERROR(IF(AND(Table_Data_Table_1[[#This Row],[Months To Mid-Point]]<12.01,Table_Data_Table_1[[#This Row],[Months To Mid-Point]]>-13),0,(Table_Data_Table_1[[#This Row],[Months To Mid-Point]]*'Global Settings'!$H$6)),"") -> 0 | P53: =IFERROR(Table_Data_Table_1[[#This Row],[Land Residual]]*(Table_Data_Table_1[[#This Row],[Time Adjust]]+1),"") -> 133419 | Q53: =IFERROR(Table_Data_Table_1[[#This Row],[Adjusted Sale Price]]/Table_Data_Table_1[[#This Row],[Resid Acre]],"") -> 264720.2381 | R53: =IFERROR(ROUND(Table_Data_Table_1[[#This Row],[Adjusted Sale Price]]/Table_Data_Table_1[[#This Row],[Resid Sq Ft]],2),"") -> 6.08 | S53: =IFERROR(IF(VLOOKUP(Table_Data_Table_1[[#This Row],[Item ID]],DataTable,11,FALSE)=0,"N/A",Table_Data_Table_1[[#This Row],[Adjusted Sale Price]]/VLOOKUP(Table_Data_Table_1[[#This Row],[Item ID]],DataTable,11,FALSE)),"") -> 535.045717 | T53: =IF(IFERROR(VLOOKUP(Table_Data_Table_1[[#This Row],[Item ID]],DataTable,17,FALSE),"")=0,"",IFERROR(VLOOKUP(Table_Data_Table_1[[#This Row],[Item ID]],DataTable,17,FALSE),"")) -> 
A54: 0-00All1829-364 | B54: Allocation | C54: =IF(Table_Data_Table_1[[#This Row],[Item ID]]="","",IFERROR(VLOOKUP(Table_Data_Table_1[[#This Row],[Item ID]],DataTable,16,FALSE),"")) -> 1 | D54: 34-300-110-000-070-00 | E54: 41829 | F54: 364600 | G54: 0 | H54: =IF(Table_Data_Table_1[[#This Row],[Valuation Method]]="Vacant",VLOOKUP(Table_Data_Table_1[[#This Row],[Item ID]],DataTable,6,FALSE)-VLOOKUP(Table_Data_Table_1[[#This Row],[Item ID]],DataTable,13,FALSE),IF(Table_Data_Table_1[[#This Row],[Valuation Method]]="Abstraction",VLOOKUP(Table_Data_Table_1[[#This Row],[Item ID]],DataTable,6,FALSE)-VLOOKUP(Table_Data_Table_1[[#This Row],[Item ID]],DataTable,13,FALSE),IF(Table_Data_Table_1[[#This Row],[Valuation Method]]="Allocation",VLOOKUP(Table_Data_Table_1[[#This Row],[Item ID]],DataTable,6,FALSE)*I54,""))) -> 147407.78 | I54: =IF(Table_Data_Table_1[[#This Row],[Valuation Method]]="Vacant","N/A",IF(Table_Data_Table_1[[#This Row],[Valuation Method]]="Abstraction",Table_Data_Table_1[[#This Row],[Land Residual]]/VLOOKUP(Table_Data_Table_1[[#This Row],[Item ID]],DataTable,6,FALSE),IF(Table_Data_Table_1[[#This Row],[Valuation Method]]="Allocation",'Global Settings'!$H$20,""))) -> 0.4043 | J54: =IFERROR(ROUND(Table_Data_Table_1[[#This Row],[Resid Sq Ft]]/43560,3),"") -> 0.641 | K54: =IF(Table_Data_Table_1[[#This Row],[Item ID]]="","",IFERROR(VLOOKUP(Table_Data_Table_1[[#This Row],[Item ID]],DataTable,10,FALSE)-VLOOKUP(Table_Data_Table_1[[#This Row],[Item ID]],DataTable,12,FALSE),"")) -> 27921.96 | L54: =IFERROR(Table_Data_Table_1[[#This Row],[Land Residual]]/Table_Data_Table_1[[#This Row],[Resid Acre]],"") -> 229965.3354 | M54: =IFERROR(ROUND(Table_Data_Table_1[[#This Row],[Land Residual]]/Table_Data_Table_1[[#This Row],[Resid Sq Ft]],2),"") -> 5.28 | N54: =IF(Table_Data_Table_1[[#This Row],[Item ID]]="","",ROUND(DAYS360(Table_Data_Table_1[[#This Row],[Sale Date]],'Global Settings'!$H$5)/30,0)) -> 105 | O54: =IFERROR(IF(AND(Table_Data_Table_1[[#This Row],[Months To Mid-Point]]<12.01,Table_Data_Table_1[[#This Row],[Months To Mid-Point]]>-13),0,(Table_Data_Table_1[[#This Row],[Months To Mid-Point]]*'Global Settings'!$H$6)),"") -> 0.1645980748 | P54: =IFERROR(Table_Data_Table_1[[#This Row],[Land Residual]]*(Table_Data_Table_1[[#This Row],[Time Adjust]]+1),"") -> 171670.8168 | Q54: =IFERROR(Table_Data_Table_1[[#This Row],[Adjusted Sale Price]]/Table_Data_Table_1[[#This Row],[Resid Acre]],"") -> 267817.1869 | R54: =IFERROR(ROUND(Table_Data_Table_1[[#This Row],[Adjusted Sale Price]]/Table_Data_Table_1[[#This Row],[Resid Sq Ft]],2),"") -> 6.15 | S54: =IFERROR(IF(VLOOKUP(Table_Data_Table_1[[#This Row],[Item ID]],DataTable,11,FALSE)=0,"N/A",Table_Data_Table_1[[#This Row],[Adjusted Sale Price]]/VLOOKUP(Table_Data_Table_1[[#This Row],[Item ID]],DataTable,11,FALSE)),"") -> 624.2575156 | T54: =IF(IFERROR(VLOOKUP(Table_Data_Table_1[[#This Row],[Item ID]],DataTable,17,FALSE),"")=0,"",IFERROR(VLOOKUP(Table_Data_Table_1[[#This Row],[Item ID]],DataTable,17,FALSE),"")) -> 
A55: 5-10Vac-1032-300 | B55: Vacant | C55: =IF(Table_Data_Table_1[[#This Row],[Item ID]]="","",IFERROR(VLOOKUP(Table_Data_Table_1[[#This Row],[Item ID]],DataTable,16,FALSE),"")) -> 1 | D55: 34-060-140-000-005-10 | E55: 38968 | F55: 300000 | G55: 0 | H55: =IF(Table_Data_Table_1[[#This Row],[Valuation Method]]="Vacant",VLOOKUP(Table_Data_Table_1[[#This Row],[Item ID]],DataTable,6,FALSE)-VLOOKUP(Table_Data_Table_1[[#This Row],[Item ID]],DataTable,13,FALSE),IF(Table_Data_Table_1[[#This Row],[Valuation Method]]="Abstraction",VLOOKUP(Table_Data_Table_1[[#This Row],[Item ID]],DataTable,6,FALSE)-VLOOKUP(Table_Data_Table_1[[#This Row],[Item ID]],DataTable,13,FALSE),IF(Table_Data_Table_1[[#This Row],[Valuation Method]]="Allocation",VLOOKUP(Table_Data_Table_1[[#This Row],[Item ID]],DataTable,6,FALSE)*I55,""))) -> 300000 | I55: =IF(Table_Data_Table_1[[#This Row],[Valuation Method]]="Vacant","N/A",IF(Table_Data_Table_1[[#This Row],[Valuation Method]]="Abstraction",Table_Data_Table_1[[#This Row],[Land Residual]]/VLOOKUP(Table_Data_Table_1[[#This Row],[Item ID]],DataTable,6,FALSE),IF(Table_Data_Table_1[[#This Row],[Valuation Method]]="Allocation",'Global Settings'!$H$20,""))) -> N/A | J55: =IFERROR(ROUND(Table_Data_Table_1[[#This Row],[Resid Sq Ft]]/43560,3),"") -> 1.446 | K55: =IF(Table_Data_Table_1[[#This Row],[Item ID]]="","",IFERROR(VLOOKUP(Table_Data_Table_1[[#This Row],[Item ID]],DataTable,10,FALSE)-VLOOKUP(Table_Data_Table_1[[#This Row],[Item ID]],DataTable,12,FALSE),"")) -> 62987.76 | L55: =IFERROR(Table_Data_Table_1[[#This Row],[Land Residual]]/Table_Data_Table_1[[#This Row],[Resid Acre]],"") -> 207468.8797 | M55: =IFERROR(ROUND(Table_Data_Table_1[[#This Row],[Land Residual]]/Table_Data_Table_1[[#This Row],[Resid Sq Ft]],2),"") -> 4.76 | N55: =IF(Table_Data_Table_1[[#This Row],[Item ID]]="","",ROUND(DAYS360(Table_Data_Table_1[[#This Row],[Sale Date]],'Global Settings'!$H$5)/30,0)) -> 199 | O55: =IFERROR(IF(AND(Table_Data_Table_1[[#This Row],[Months To Mid-Point]]<12.01,Table_Data_Table_1[[#This Row],[Months To Mid-Point]]>-13),0,(Table_Data_Table_1[[#This Row],[Months To Mid-Point]]*'Global Settings'!$H$6)),"") -> 0.3119525417 | P55: =IFERROR(Table_Data_Table_1[[#This Row],[Land Residual]]*(Table_Data_Table_1[[#This Row],[Time Adjust]]+1),"") -> 393585.7625 | Q55: =IFERROR(Table_Data_Table_1[[#This Row],[Adjusted Sale Price]]/Table_Data_Table_1[[#This Row],[Resid Acre]],"") -> 272189.324 | R55: =IFERROR(ROUND(Table_Data_Table_1[[#This Row],[Adjusted Sale Price]]/Table_Data_Table_1[[#This Row],[Resid Sq Ft]],2),"") -> 6.25 | S55: =IFERROR(IF(VLOOKUP(Table_Data_Table_1[[#This Row],[Item ID]],DataTable,11,FALSE)=0,"N/A",Table_Data_Table_1[[#This Row],[Adjusted Sale Price]]/VLOOKUP(Table_Data_Table_1[[#This Row],[Item ID]],DataTable,11,FALSE)),"") -> 1311.952542 | T55: =IF(IFERROR(VLOOKUP(Table_Data_Table_1[[#This Row],[Item ID]],DataTable,17,FALSE),"")=0,"",IFERROR(VLOOKUP(Table_Data_Table_1[[#This Row],[Item ID]],DataTable,17,FALSE),"")) -> 
A56: 5-10All1677-297 | B56: Allocation | C56: =IF(Table_Data_Table_1[[#This Row],[Item ID]]="","",IFERROR(VLOOKUP(Table_Data_Table_1[[#This Row],[Item ID]],DataTable,16,FALSE),"")) -> 1 | D56: 34-401-250-000-335-10 | E56: 41677 | F56: 297000 | G56: 0 | H56: =IF(Table_Data_Table_1[[#This Row],[Valuation Method]]="Vacant",VLOOKUP(Table_Data_Table_1[[#This Row],[Item ID]],DataTable,6,FALSE)-VLOOKUP(Table_Data_Table_1[[#This Row],[Item ID]],DataTable,13,FALSE),IF(Table_Data_Table_1[[#This Row],[Valuation Method]]="Abstraction",VLOOKUP(Table_Data_Table_1[[#This Row],[Item ID]],DataTable,6,FALSE)-VLOOKUP(Table_Data_Table_1[[#This Row],[Item ID]],DataTable,13,FALSE),IF(Table_Data_Table_1[[#This Row],[Valuation Method]]="Allocation",VLOOKUP(Table_Data_Table_1[[#This Row],[Item ID]],DataTable,6,FALSE)*I56,""))) -> 120077.1 | I56: =IF(Table_Data_Table_1[[#This Row],[Valuation Method]]="Vacant","N/A",IF(Table_Data_Table_1[[#This Row],[Valuation Method]]="Abstraction",Table_Data_Table_1[[#This Row],[Land Residual]]/VLOOKUP(Table_Data_Table_1[[#This Row],[Item ID]],DataTable,6,FALSE),IF(Table_Data_Table_1[[#This Row],[Valuation Method]]="Allocation",'Global Settings'!$H$20,""))) -> 0.4043 | J56: =IFERROR(ROUND(Table_Data_Table_1[[#This Row],[Resid Sq Ft]]/43560,3),"") -> 0.504 | K56: =IF(Table_Data_Table_1[[#This Row],[Item ID]]="","",IFERROR(VLOOKUP(Table_Data_Table_1[[#This Row],[Item ID]],DataTable,10,FALSE)-VLOOKUP(Table_Data_Table_1[[#This Row],[Item ID]],DataTable,12,FALSE),"")) -> 21943.68 | L56: =IFERROR(Table_Data_Table_1[[#This Row],[Land Residual]]/Table_Data_Table_1[[#This Row],[Resid Acre]],"") -> 238248.2143 | M56: =IFERROR(ROUND(Table_Data_Table_1[[#This Row],[Land Residual]]/Table_Data_Table_1[[#This Row],[Resid Sq Ft]],2),"") -> 5.47 | N56: =IF(Table_Data_Table_1[[#This Row],[Item ID]]="","",ROUND(DAYS360(Table_Data_Table_1[[#This Row],[Sale Date]],'Global Settings'!$H$5)/30,0)) -> 110 | O56: =IFERROR(IF(AND(Table_Data_Table_1[[#This Row],[Months To Mid-Point]]<12.01,Table_Data_Table_1[[#This Row],[Months To Mid-Point]]>-13),0,(Table_Data_Table_1[[#This Row],[Months To Mid-Point]]*'Global Settings'!$H$6)),"") -> 0.1724360784 | P56: =IFERROR(Table_Data_Table_1[[#This Row],[Land Residual]]*(Table_Data_Table_1[[#This Row],[Time Adjust]]+1),"") -> 140782.7242 | Q56: =IFERROR(Table_Data_Table_1[[#This Row],[Adjusted Sale Price]]/Table_Data_Table_1[[#This Row],[Resid Acre]],"") -> 279330.802 | R56: =IFERROR(ROUND(Table_Data_Table_1[[#This Row],[Adjusted Sale Price]]/Table_Data_Table_1[[#This Row],[Resid Sq Ft]],2),"") -> 6.42 | S56: =IFERROR(IF(VLOOKUP(Table_Data_Table_1[[#This Row],[Item ID]],DataTable,11,FALSE)=0,"N/A",Table_Data_Table_1[[#This Row],[Adjusted Sale Price]]/VLOOKUP(Table_Data_Table_1[[#This Row],[Item ID]],DataTable,11,FALSE)),"") -> 564.576212 | T56: =IF(IFERROR(VLOOKUP(Table_Data_Table_1[[#This Row],[Item ID]],DataTable,17,FALSE),"")=0,"",IFERROR(VLOOKUP(Table_Data_Table_1[[#This Row],[Item ID]],DataTable,17,FALSE),"")) -> 
A57: 0-70Vac2138-450 | B57: Vacant | C57: =IF(Table_Data_Table_1[[#This Row],[Item ID]]="","",IFERROR(VLOOKUP(Table_Data_Table_1[[#This Row],[Item ID]],DataTable,16,FALSE),"")) -> 1 | D57: 34-010-036-000-160-70 | E57: 42138 | F57: 450000 | G57: 0 | H57: =IF(Table_Data_Table_1[[#This Row],[Valuation Method]]="Vacant",VLOOKUP(Table_Data_Table_1[[#This Row],[Item ID]],DataTable,6,FALSE)-VLOOKUP(Table_Data_Table_1[[#This Row],[Item ID]],DataTable,13,FALSE),IF(Table_Data_Table_1[[#This Row],[Valuation Method]]="Abstraction",VLOOKUP(Table_Data_Table_1[[#This Row],[Item ID]],DataTable,6,FALSE)-VLOOKUP(Table_Data_Table_1[[#This Row],[Item ID]],DataTable,13,FALSE),IF(Table_Data_Table_1[[#This Row],[Valuation Method]]="Allocation",VLOOKUP(Table_Data_Table_1[[#This Row],[Item ID]],DataTable,6,FALSE)*I57,""))) -> 450000 | I57: =IF(Table_Data_Table_1[[#This Row],[Valuation Method]]="Vacant","N/A",IF(Table_Data_Table_1[[#This Row],[Valuation Method]]="Abstraction",Table_Data_Table_1[[#This Row],[Land Residual]]/VLOOKUP(Table_Data_Table_1[[#This Row],[Item ID]],DataTable,6,FALSE),IF(Table_Data_Table_1[[#This Row],[Valuation Method]]="Allocation",'Global Settings'!$H$20,""))) -> N/A | J57: =IFERROR(ROUND(Table_Data_Table_1[[#This Row],[Resid Sq Ft]]/43560,3),"") -> 1.796 | K57: =IF(Table_Data_Table_1[[#This Row],[Item ID]]="","",IFERROR(VLOOKUP(Table_Data_Table_1[[#This Row],[Item ID]],DataTable,10,FALSE)-VLOOKUP(Table_Data_Table_1[[#This Row],[Item ID]],DataTable,12,FALSE),"")) -> 78233.76 | L57: =IFERROR(Table_Data_Table_1[[#This Row],[Land Residual]]/Table_Data_Table_1[[#This Row],[Resid Acre]],"") -> 250556.7929 | M57: =IFERROR(ROUND(Table_Data_Table_1[[#This Row],[Land Residual]]/Table_Data_Table_1[[#This Row],[Resid Sq Ft]],2),"") -> 5.75 | N57: =IF(Table_Data_Table_1[[#This Row],[Item ID]]="","",ROUND(DAYS360(Table_Data_Table_1[[#This Row],[Sale Date]],'Global Settings'!$H$5)/30,0)) -> 95 | O57: =IFERROR(IF(AND(Table_Data_Table_1[[#This Row],[Months To Mid-Point]]<12.01,Table_Data_Table_1[[#This Row],[Months To Mid-Point]]>-13),0,(Table_Data_Table_1[[#This Row],[Months To Mid-Point]]*'Global Settings'!$H$6)),"") -> 0.1489220677 | P57: =IFERROR(Table_Data_Table_1[[#This Row],[Land Residual]]*(Table_Data_Table_1[[#This Row],[Time Adjust]]+1),"") -> 517014.9305 | Q57: =IFERROR(Table_Data_Table_1[[#This Row],[Adjusted Sale Price]]/Table_Data_Table_1[[#This Row],[Resid Acre]],"") -> 287870.2285 | R57: =IFERROR(ROUND(Table_Data_Table_1[[#This Row],[Adjusted Sale Price]]/Table_Data_Table_1[[#This Row],[Resid Sq Ft]],2),"") -> 6.61 | S57: =IFERROR(IF(VLOOKUP(Table_Data_Table_1[[#This Row],[Item ID]],DataTable,11,FALSE)=0,"N/A",Table_Data_Table_1[[#This Row],[Adjusted Sale Price]]/VLOOKUP(Table_Data_Table_1[[#This Row],[Item ID]],DataTable,11,FALSE)),"") -> 2027.509531 | T57: =IF(IFERROR(VLOOKUP(Table_Data_Table_1[[#This Row],[Item ID]],DataTable,17,FALSE),"")=0,"",IFERROR(VLOOKUP(Table_Data_Table_1[[#This Row],[Item ID]],DataTable,17,FALSE),"")) -> 
A58: 5-10Abs4841-330 | B58: Abstraction | C58: =IF(Table_Data_Table_1[[#This Row],[Item ID]]="","",IFERROR(VLOOKUP(Table_Data_Table_1[[#This Row],[Item ID]],DataTable,16,FALSE),"")) -> 1 | D58: 34-401-250-000-335-10 | E58: 44841 | F58: 330000 | G58: 179757 | H58: =IF(Table_Data_Table_1[[#This Row],[Valuation Method]]="Vacant",VLOOKUP(Table_Data_Table_1[[#This Row],[Item ID]],DataTable,6,FALSE)-VLOOKUP(Table_Data_Table_1[[#This Row],[Item ID]],DataTable,13,FALSE),IF(Table_Data_Table_1[[#This Row],[Valuation Method]]="Abstraction",VLOOKUP(Table_Data_Table_1[[#This Row],[Item ID]],DataTable,6,FALSE)-VLOOKUP(Table_Data_Table_1[[#This Row],[Item ID]],DataTable,13,FALSE),IF(Table_Data_Table_1[[#This Row],[Valuation Method]]="Allocation",VLOOKUP(Table_Data_Table_1[[#This Row],[Item ID]],DataTable,6,FALSE)*I58,""))) -> 150243 | I58: =IF(Table_Data_Table_1[[#This Row],[Valuation Method]]="Vacant","N/A",IF(Table_Data_Table_1[[#This Row],[Valuation Method]]="Abstraction",Table_Data_Table_1[[#This Row],[Land Residual]]/VLOOKUP(Table_Data_Table_1[[#This Row],[Item ID]],DataTable,6,FALSE),IF(Table_Data_Table_1[[#This Row],[Valuation Method]]="Allocation",'Global Settings'!$H$20,""))) -> 0.4552818182 | J58: =IFERROR(ROUND(Table_Data_Table_1[[#This Row],[Resid Sq Ft]]/43560,3),"") -> 0.504 | K58: =IF(Table_Data_Table_1[[#This Row],[Item ID]]="","",IFERROR(VLOOKUP(Table_Data_Table_1[[#This Row],[Item ID]],DataTable,10,FALSE)-VLOOKUP(Table_Data_Table_1[[#This Row],[Item ID]],DataTable,12,FALSE),"")) -> 21954.24 | L58: =IFERROR(Table_Data_Table_1[[#This Row],[Land Residual]]/Table_Data_Table_1[[#This Row],[Resid Acre]],"") -> 298101.1905 | M58: =IFERROR(ROUND(Table_Data_Table_1[[#This Row],[Land Residual]]/Table_Data_Table_1[[#This Row],[Resid Sq Ft]],2),"") -> 6.84 | N58: =IF(Table_Data_Table_1[[#This Row],[Item ID]]="","",ROUND(DAYS360(Table_Data_Table_1[[#This Row],[Sale Date]],'Global Settings'!$H$5)/30,0)) -> 6 | O58: =IFERROR(IF(AND(Table_Data_Table_1[[#This Row],[Months To Mid-Point]]<12.01,Table_Data_Table_1[[#This Row],[Months To Mid-Point]]>-13),0,(Table_Data_Table_1[[#This Row],[Months To Mid-Point]]*'Global Settings'!$H$6)),"") -> 0 | P58: =IFERROR(Table_Data_Table_1[[#This Row],[Land Residual]]*(Table_Data_Table_1[[#This Row],[Time Adjust]]+1),"") -> 150243 | Q58: =IFERROR(Table_Data_Table_1[[#This Row],[Adjusted Sale Price]]/Table_Data_Table_1[[#This Row],[Resid Acre]],"") -> 298101.1905 | R58: =IFERROR(ROUND(Table_Data_Table_1[[#This Row],[Adjusted Sale Price]]/Table_Data_Table_1[[#This Row],[Resid Sq Ft]],2),"") -> 6.84 | S58: =IFERROR(IF(VLOOKUP(Table_Data_Table_1[[#This Row],[Item ID]],DataTable,11,FALSE)=0,"N/A",Table_Data_Table_1[[#This Row],[Adjusted Sale Price]]/VLOOKUP(Table_Data_Table_1[[#This Row],[Item ID]],DataTable,11,FALSE)),"") -> 602.514437 | T58: =IF(IFERROR(VLOOKUP(Table_Data_Table_1[[#This Row],[Item ID]],DataTable,17,FALSE),"")=0,"",IFERROR(VLOOKUP(Table_Data_Table_1[[#This Row],[Item ID]],DataTable,17,FALSE),"")) -> 
A59: 5-17All2585-650 | B59: Allocation | C59: =IF(Table_Data_Table_1[[#This Row],[Item ID]]="","",IFERROR(VLOOKUP(Table_Data_Table_1[[#This Row],[Item ID]],DataTable,16,FALSE),"")) -> 1 | D59: 34-201-030-000-045-17 | E59: 42585 | F59: 650418 | G59: 0 | H59: =IF(Table_Data_Table_1[[#This Row],[Valuation Method]]="Vacant",VLOOKUP(Table_Data_Table_1[[#This Row],[Item ID]],DataTable,6,FALSE)-VLOOKUP(Table_Data_Table_1[[#This Row],[Item ID]],DataTable,13,FALSE),IF(Table_Data_Table_1[[#This Row],[Valuation Method]]="Abstraction",VLOOKUP(Table_Data_Table_1[[#This Row],[Item ID]],DataTable,6,FALSE)-VLOOKUP(Table_Data_Table_1[[#This Row],[Item ID]],DataTable,13,FALSE),IF(Table_Data_Table_1[[#This Row],[Valuation Method]]="Allocation",VLOOKUP(Table_Data_Table_1[[#This Row],[Item ID]],DataTable,6,FALSE)*I59,""))) -> 262963.9974 | I59: =IF(Table_Data_Table_1[[#This Row],[Valuation Method]]="Vacant","N/A",IF(Table_Data_Table_1[[#This Row],[Valuation Method]]="Abstraction",Table_Data_Table_1[[#This Row],[Land Residual]]/VLOOKUP(Table_Data_Table_1[[#This Row],[Item ID]],DataTable,6,FALSE),IF(Table_Data_Table_1[[#This Row],[Valuation Method]]="Allocation",'Global Settings'!$H$20,""))) -> 0.4043 | J59: =IFERROR(ROUND(Table_Data_Table_1[[#This Row],[Resid Sq Ft]]/43560,3),"") -> 0.991 | K59: =IF(Table_Data_Table_1[[#This Row],[Item ID]]="","",IFERROR(VLOOKUP(Table_Data_Table_1[[#This Row],[Item ID]],DataTable,10,FALSE)-VLOOKUP(Table_Data_Table_1[[#This Row],[Item ID]],DataTable,12,FALSE),"")) -> 43167.96 | L59: =IFERROR(Table_Data_Table_1[[#This Row],[Land Residual]]/Table_Data_Table_1[[#This Row],[Resid Acre]],"") -> 265352.1669 | M59: =IFERROR(ROUND(Table_Data_Table_1[[#This Row],[Land Residual]]/Table_Data_Table_1[[#This Row],[Resid Sq Ft]],2),"") -> 6.09 | N59: =IF(Table_Data_Table_1[[#This Row],[Item ID]]="","",ROUND(DAYS360(Table_Data_Table_1[[#This Row],[Sale Date]],'Global Settings'!$H$5)/30,0)) -> 80 | O59: =IFERROR(IF(AND(Table_Data_Table_1[[#This Row],[Months To Mid-Point]]<12.01,Table_Data_Table_1[[#This Row],[Months To Mid-Point]]>-13),0,(Table_Data_Table_1[[#This Row],[Months To Mid-Point]]*'Global Settings'!$H$6)),"") -> 0.125408057 | P59: =IFERROR(Table_Data_Table_1[[#This Row],[Land Residual]]*(Table_Data_Table_1[[#This Row],[Time Adjust]]+1),"") -> 295941.8014 | Q59: =IFERROR(Table_Data_Table_1[[#This Row],[Adjusted Sale Price]]/Table_Data_Table_1[[#This Row],[Resid Acre]],"") -> 298629.4666 | R59: =IFERROR(ROUND(Table_Data_Table_1[[#This Row],[Adjusted Sale Price]]/Table_Data_Table_1[[#This Row],[Resid Sq Ft]],2),"") -> 6.86 | S59: =IFERROR(IF(VLOOKUP(Table_Data_Table_1[[#This Row],[Item ID]],DataTable,11,FALSE)=0,"N/A",Table_Data_Table_1[[#This Row],[Adjusted Sale Price]]/VLOOKUP(Table_Data_Table_1[[#This Row],[Item ID]],DataTable,11,FALSE)),"") -> 1494.655562 | T59: =IF(IFERROR(VLOOKUP(Table_Data_Table_1[[#This Row],[Item ID]],DataTable,17,FALSE),"")=0,"",IFERROR(VLOOKUP(Table_Data_Table_1[[#This Row],[Item ID]],DataTable,17,FALSE),"")) -> 
A60: 5-20All4559-182 | B60: Allocation | C60: =IF(Table_Data_Table_1[[#This Row],[Item ID]]="","",IFERROR(VLOOKUP(Table_Data_Table_1[[#This Row],[Item ID]],DataTable,16,FALSE),"")) -> 1 | D60: 34-060-031-000-045-20 | E60: 44559 | F60: 1825000 | G60: 1228290 | H60: =IF(Table_Data_Table_1[[#This Row],[Valuation Method]]="Vacant",VLOOKUP(Table_Data_Table_1[[#This Row],[Item ID]],DataTable,6,FALSE)-VLOOKUP(Table_Data_Table_1[[#This Row],[Item ID]],DataTable,13,FALSE),IF(Table_Data_Table_1[[#This Row],[Valuation Method]]="Abstraction",VLOOKUP(Table_Data_Table_1[[#This Row],[Item ID]],DataTable,6,FALSE)-VLOOKUP(Table_Data_Table_1[[#This Row],[Item ID]],DataTable,13,FALSE),IF(Table_Data_Table_1[[#This Row],[Valuation Method]]="Allocation",VLOOKUP(Table_Data_Table_1[[#This Row],[Item ID]],DataTable,6,FALSE)*I60,""))) -> 737847.5 | I60: =IF(Table_Data_Table_1[[#This Row],[Valuation Method]]="Vacant","N/A",IF(Table_Data_Table_1[[#This Row],[Valuation Method]]="Abstraction",Table_Data_Table_1[[#This Row],[Land Residual]]/VLOOKUP(Table_Data_Table_1[[#This Row],[Item ID]],DataTable,6,FALSE),IF(Table_Data_Table_1[[#This Row],[Valuation Method]]="Allocation",'Global Settings'!$H$20,""))) -> 0.4043 | J60: =IFERROR(ROUND(Table_Data_Table_1[[#This Row],[Resid Sq Ft]]/43560,3),"") -> 2.455 | K60: =IF(Table_Data_Table_1[[#This Row],[Item ID]]="","",IFERROR(VLOOKUP(Table_Data_Table_1[[#This Row],[Item ID]],DataTable,10,FALSE)-VLOOKUP(Table_Data_Table_1[[#This Row],[Item ID]],DataTable,12,FALSE),"")) -> 106939.8 | L60: =IFERROR(Table_Data_Table_1[[#This Row],[Land Residual]]/Table_Data_Table_1[[#This Row],[Resid Acre]],"") -> 300548.8798 | M60: =IFERROR(ROUND(Table_Data_Table_1[[#This Row],[Land Residual]]/Table_Data_Table_1[[#This Row],[Resid Sq Ft]],2),"") -> 6.9 | N60: =IF(Table_Data_Table_1[[#This Row],[Item ID]]="","",ROUND(DAYS360(Table_Data_Table_1[[#This Row],[Sale Date]],'Global Settings'!$H$5)/30,0)) -> 15 | O60: =IFERROR(IF(AND(Table_Data_Table_1[[#This Row],[Months To Mid-Point]]<12.01,Table_Data_Table_1[[#This Row],[Months To Mid-Point]]>-13),0,(Table_Data_Table_1[[#This Row],[Months To Mid-Point]]*'Global Settings'!$H$6)),"") -> 0.02351401068 | P60: =IFERROR(Table_Data_Table_1[[#This Row],[Land Residual]]*(Table_Data_Table_1[[#This Row],[Time Adjust]]+1),"") -> 755197.254 | Q60: =IFERROR(Table_Data_Table_1[[#This Row],[Adjusted Sale Price]]/Table_Data_Table_1[[#This Row],[Resid Acre]],"") -> 307615.9894 | R60: =IFERROR(ROUND(Table_Data_Table_1[[#This Row],[Adjusted Sale Price]]/Table_Data_Table_1[[#This Row],[Resid Sq Ft]],2),"") -> 7.06 | S60: =IFERROR(IF(VLOOKUP(Table_Data_Table_1[[#This Row],[Item ID]],DataTable,11,FALSE)=0,"N/A",Table_Data_Table_1[[#This Row],[Adjusted Sale Price]]/VLOOKUP(Table_Data_Table_1[[#This Row],[Item ID]],DataTable,11,FALSE)),"") -> 3389.574749 | T60: =IF(IFERROR(VLOOKUP(Table_Data_Table_1[[#This Row],[Item ID]],DataTable,17,FALSE),"")=0,"",IFERROR(VLOOKUP(Table_Data_Table_1[[#This Row],[Item ID]],DataTable,17,FALSE),"")) -> 
A61: 5-42Vac-1340-485 | B61: Vacant | C61: =IF(Table_Data_Table_1[[#This Row],[Item ID]]="","",IFERROR(VLOOKUP(Table_Data_Table_1[[#This Row],[Item ID]],DataTable,16,FALSE),"")) -> 1 | D61: 34-011-001-000-085-42 | E61: 38660 | F61: 485000 | G61: 0 | H61: =IF(Table_Data_Table_1[[#This Row],[Valuation Method]]="Vacant",VLOOKUP(Table_Data_Table_1[[#This Row],[Item ID]],DataTable,6,FALSE)-VLOOKUP(Table_Data_Table_1[[#This Row],[Item ID]],DataTable,13,FALSE),IF(Table_Data_Table_1[[#This Row],[Valuation Method]]="Abstraction",VLOOKUP(Table_Data_Table_1[[#This Row],[Item ID]],DataTable,6,FALSE)-VLOOKUP(Table_Data_Table_1[[#This Row],[Item ID]],DataTable,13,FALSE),IF(Table_Data_Table_1[[#This Row],[Valuation Method]]="Allocation",VLOOKUP(Table_Data_Table_1[[#This Row],[Item ID]],DataTable,6,FALSE)*I61,""))) -> 485000 | I61: =IF(Table_Data_Table_1[[#This Row],[Valuation Method]]="Vacant","N/A",IF(Table_Data_Table_1[[#This Row],[Valuation Method]]="Abstraction",Table_Data_Table_1[[#This Row],[Land Residual]]/VLOOKUP(Table_Data_Table_1[[#This Row],[Item ID]],DataTable,6,FALSE),IF(Table_Data_Table_1[[#This Row],[Valuation Method]]="Allocation",'Global Settings'!$H$20,""))) -> N/A | J61: =IFERROR(ROUND(Table_Data_Table_1[[#This Row],[Resid Sq Ft]]/43560,3),"") -> 1.87 | K61: =IF(Table_Data_Table_1[[#This Row],[Item ID]]="","",IFERROR(VLOOKUP(Table_Data_Table_1[[#This Row],[Item ID]],DataTable,10,FALSE)-VLOOKUP(Table_Data_Table_1[[#This Row],[Item ID]],DataTable,12,FALSE),"")) -> 81457.2 | L61: =IFERROR(Table_Data_Table_1[[#This Row],[Land Residual]]/Table_Data_Table_1[[#This Row],[Resid Acre]],"") -> 259358.2888 | M61: =IFERROR(ROUND(Table_Data_Table_1[[#This Row],[Land Residual]]/Table_Data_Table_1[[#This Row],[Resid Sq Ft]],2),"") -> 5.95 | N61: =IF(Table_Data_Table_1[[#This Row],[Item ID]]="","",ROUND(DAYS360(Table_Data_Table_1[[#This Row],[Sale Date]],'Global Settings'!$H$5)/30,0)) -> 209 | O61: =IFERROR(IF(AND(Table_Data_Table_1[[#This Row],[Months To Mid-Point]]<12.01,Table_Data_Table_1[[#This Row],[Months To Mid-Point]]>-13),0,(Table_Data_Table_1[[#This Row],[Months To Mid-Point]]*'Global Settings'!$H$6)),"") -> 0.3276285489 | P61: =IFERROR(Table_Data_Table_1[[#This Row],[Land Residual]]*(Table_Data_Table_1[[#This Row],[Time Adjust]]+1),"") -> 643899.8462 | Q61: =IFERROR(Table_Data_Table_1[[#This Row],[Adjusted Sale Price]]/Table_Data_Table_1[[#This Row],[Resid Acre]],"") -> 344331.4686 | R61: =IFERROR(ROUND(Table_Data_Table_1[[#This Row],[Adjusted Sale Price]]/Table_Data_Table_1[[#This Row],[Resid Sq Ft]],2),"") -> 7.9 | S61: =IFERROR(IF(VLOOKUP(Table_Data_Table_1[[#This Row],[Item ID]],DataTable,11,FALSE)=0,"N/A",Table_Data_Table_1[[#This Row],[Adjusted Sale Price]]/VLOOKUP(Table_Data_Table_1[[#This Row],[Item ID]],DataTable,11,FALSE)),"") -> 1993.189433 | T61: =IF(IFERROR(VLOOKUP(Table_Data_Table_1[[#This Row],[Item ID]],DataTable,17,FALSE),"")=0,"",IFERROR(VLOOKUP(Table_Data_Table_1[[#This Row],[Item ID]],DataTable,17,FALSE),"")) -> 
A62: 0-00All3538-535 | B62: Allocation | C62: =IF(Table_Data_Table_1[[#This Row],[Item ID]]="","",IFERROR(VLOOKUP(Table_Data_Table_1[[#This Row],[Item ID]],DataTable,16,FALSE),"")) -> 1 | D62: 34-300-110-000-050-00 | E62: 43538 | F62: 535000 | G62: 0 | H62: =IF(Table_Data_Table_1[[#This Row],[Valuation Method]]="Vacant",VLOOKUP(Table_Data_Table_1[[#This Row],[Item ID]],DataTable,6,FALSE)-VLOOKUP(Table_Data_Table_1[[#This Row],[Item ID]],DataTable,13,FALSE),IF(Table_Data_Table_1[[#This Row],[Valuation Method]]="Abstraction",VLOOKUP(Table_Data_Table_1[[#This Row],[Item ID]],DataTable,6,FALSE)-VLOOKUP(Table_Data_Table_1[[#This Row],[Item ID]],DataTable,13,FALSE),IF(Table_Data_Table_1[[#This Row],[Valuation Method]]="Allocation",VLOOKUP(Table_Data_Table_1[[#This Row],[Item ID]],DataTable,6,FALSE)*I62,""))) -> 216300.5 | I62: =IF(Table_Data_Table_1[[#This Row],[Valuation Method]]="Vacant","N/A",IF(Table_Data_Table_1[[#This Row],[Valuation Method]]="Abstraction",Table_Data_Table_1[[#This Row],[Land Residual]]/VLOOKUP(Table_Data_Table_1[[#This Row],[Item ID]],DataTable,6,FALSE),IF(Table_Data_Table_1[[#This Row],[Valuation Method]]="Allocation",'Global Settings'!$H$20,""))) -> 0.4043 | J62: =IFERROR(ROUND(Table_Data_Table_1[[#This Row],[Resid Sq Ft]]/43560,3),"") -> 0.63 | K62: =IF(Table_Data_Table_1[[#This Row],[Item ID]]="","",IFERROR(VLOOKUP(Table_Data_Table_1[[#This Row],[Item ID]],DataTable,10,FALSE)-VLOOKUP(Table_Data_Table_1[[#This Row],[Item ID]],DataTable,12,FALSE),"")) -> 27442.8 | L62: =IFERROR(Table_Data_Table_1[[#This Row],[Land Residual]]/Table_Data_Table_1[[#This Row],[Resid Acre]],"") -> 343334.127 | M62: =IFERROR(ROUND(Table_Data_Table_1[[#This Row],[Land Residual]]/Table_Data_Table_1[[#This Row],[Resid Sq Ft]],2),"") -> 7.88 | N62: =IF(Table_Data_Table_1[[#This Row],[Item ID]]="","",ROUND(DAYS360(Table_Data_Table_1[[#This Row],[Sale Date]],'Global Settings'!$H$5)/30,0)) -> 49 | O62: =IFERROR(IF(AND(Table_Data_Table_1[[#This Row],[Months To Mid-Point]]<12.01,Table_Data_Table_1[[#This Row],[Months To Mid-Point]]>-13),0,(Table_Data_Table_1[[#This Row],[Months To Mid-Point]]*'Global Settings'!$H$6)),"") -> 0.0768124349 | P62: =IFERROR(Table_Data_Table_1[[#This Row],[Land Residual]]*(Table_Data_Table_1[[#This Row],[Time Adjust]]+1),"") -> 232915.0681 | Q62: =IFERROR(Table_Data_Table_1[[#This Row],[Adjusted Sale Price]]/Table_Data_Table_1[[#This Row],[Resid Acre]],"") -> 369706.4573 | R62: =IFERROR(ROUND(Table_Data_Table_1[[#This Row],[Adjusted Sale Price]]/Table_Data_Table_1[[#This Row],[Resid Sq Ft]],2),"") -> 8.49 | S62: =IFERROR(IF(VLOOKUP(Table_Data_Table_1[[#This Row],[Item ID]],DataTable,11,FALSE)=0,"N/A",Table_Data_Table_1[[#This Row],[Adjusted Sale Price]]/VLOOKUP(Table_Data_Table_1[[#This Row],[Item ID]],DataTable,11,FALSE)),"") -> 1035.17808 | T62: =IF(IFERROR(VLOOKUP(Table_Data_Table_1[[#This Row],[Item ID]],DataTable,17,FALSE),"")=0,"",IFERROR(VLOOKUP(Table_Data_Table_1[[#This Row],[Item ID]],DataTable,17,FALSE),"")) -> 
A63: 0-21Vac4006-650 | B63: Vacant | C63: =IF(Table_Data_Table_1[[#This Row],[Item ID]]="","",IFERROR(VLOOKUP(Table_Data_Table_1[[#This Row],[Item ID]],DataTable,16,FALSE),"")) -> 1 | D63: 34-010-036-000-170-21 | E63: 44006 | F63: 650000 | G63: 0 | H63: =IF(Table_Data_Table_1[[#This Row],[Valuation Method]]="Vacant",VLOOKUP(Table_Data_Table_1[[#This Row],[Item ID]],DataTable,6,FALSE)-VLOOKUP(Table_Data_Table_1[[#This Row],[Item ID]],DataTable,13,FALSE),IF(Table_Data_Table_1[[#This Row],[Valuation Method]]="Abstraction",VLOOKUP(Table_Data_Table_1[[#This Row],[Item ID]],DataTable,6,FALSE)-VLOOKUP(Table_Data_Table_1[[#This Row],[Item ID]],DataTable,13,FALSE),IF(Table_Data_Table_1[[#This Row],[Valuation Method]]="Allocation",VLOOKUP(Table_Data_Table_1[[#This Row],[Item ID]],DataTable,6,FALSE)*I63,""))) -> 650000 | I63: =IF(Table_Data_Table_1[[#This Row],[Valuation Method]]="Vacant","N/A",IF(Table_Data_Table_1[[#This Row],[Valuation Method]]="Abstraction",Table_Data_Table_1[[#This Row],[Land Residual]]/VLOOKUP(Table_Data_Table_1[[#This Row],[Item ID]],DataTable,6,FALSE),IF(Table_Data_Table_1[[#This Row],[Valuation Method]]="Allocation",'Global Settings'!$H$20,""))) -> N/A | J63: =IFERROR(ROUND(Table_Data_Table_1[[#This Row],[Resid Sq Ft]]/43560,3),"") -> 1.77 | K63: =IF(Table_Data_Table_1[[#This Row],[Item ID]]="","",IFERROR(VLOOKUP(Table_Data_Table_1[[#This Row],[Item ID]],DataTable,10,FALSE)-VLOOKUP(Table_Data_Table_1[[#This Row],[Item ID]],DataTable,12,FALSE),"")) -> 77101.2 | L63: =IFERROR(Table_Data_Table_1[[#This Row],[Land Residual]]/Table_Data_Table_1[[#This Row],[Resid Acre]],"") -> 367231.6384 | M63: =IFERROR(ROUND(Table_Data_Table_1[[#This Row],[Land Residual]]/Table_Data_Table_1[[#This Row],[Resid Sq Ft]],2),"") -> 8.43 | N63: =IF(Table_Data_Table_1[[#This Row],[Item ID]]="","",ROUND(DAYS360(Table_Data_Table_1[[#This Row],[Sale Date]],'Global Settings'!$H$5)/30,0)) -> 33 | O63: =IFERROR(IF(AND(Table_Data_Table_1[[#This Row],[Months To Mid-Point]]<12.01,Table_Data_Table_1[[#This Row],[Months To Mid-Point]]>-13),0,(Table_Data_Table_1[[#This Row],[Months To Mid-Point]]*'Global Settings'!$H$6)),"") -> 0.05173082351 | P63: =IFERROR(Table_Data_Table_1[[#This Row],[Land Residual]]*(Table_Data_Table_1[[#This Row],[Time Adjust]]+1),"") -> 683625.0353 | Q63: =IFERROR(Table_Data_Table_1[[#This Row],[Adjusted Sale Price]]/Table_Data_Table_1[[#This Row],[Resid Acre]],"") -> 386228.8335 | R63: =IFERROR(ROUND(Table_Data_Table_1[[#This Row],[Adjusted Sale Price]]/Table_Data_Table_1[[#This Row],[Resid Sq Ft]],2),"") -> 8.87 | S63: =IFERROR(IF(VLOOKUP(Table_Data_Table_1[[#This Row],[Item ID]],DataTable,11,FALSE)=0,"N/A",Table_Data_Table_1[[#This Row],[Adjusted Sale Price]]/VLOOKUP(Table_Data_Table_1[[#This Row],[Item ID]],DataTable,11,FALSE)),"") -> 2317.373001 | T63: =IF(IFERROR(VLOOKUP(Table_Data_Table_1[[#This Row],[Item ID]],DataTable,17,FALSE),"")=0,"",IFERROR(VLOOKUP(Table_Data_Table_1[[#This Row],[Item ID]],DataTable,17,FALSE),"")) -> 
A64: 0-00Abs3538-535 | B64: Abstraction | C64: =IF(Table_Data_Table_1[[#This Row],[Item ID]]="","",IFERROR(VLOOKUP(Table_Data_Table_1[[#This Row],[Item ID]],DataTable,16,FALSE),"")) -> 1 | D64: 34-300-110-000-050-00 | E64: 43538 | F64: 535000 | G64: 298263 | H64: =IF(Table_Data_Table_1[[#This Row],[Valuation Method]]="Vacant",VLOOKUP(Table_Data_Table_1[[#This Row],[Item ID]],DataTable,6,FALSE)-VLOOKUP(Table_Data_Table_1[[#This Row],[Item ID]],DataTable,13,FALSE),IF(Table_Data_Table_1[[#This Row],[Valuation Method]]="Abstraction",VLOOKUP(Table_Data_Table_1[[#This Row],[Item ID]],DataTable,6,FALSE)-VLOOKUP(Table_Data_Table_1[[#This Row],[Item ID]],DataTable,13,FALSE),IF(Table_Data_Table_1[[#This Row],[Valuation Method]]="Allocation",VLOOKUP(Table_Data_Table_1[[#This Row],[Item ID]],DataTable,6,FALSE)*I64,""))) -> 236737 | I64: =IF(Table_Data_Table_1[[#This Row],[Valuation Method]]="Vacant","N/A",IF(Table_Data_Table_1[[#This Row],[Valuation Method]]="Abstraction",Table_Data_Table_1[[#This Row],[Land Residual]]/VLOOKUP(Table_Data_Table_1[[#This Row],[Item ID]],DataTable,6,FALSE),IF(Table_Data_Table_1[[#This Row],[Valuation Method]]="Allocation",'Global Settings'!$H$20,""))) -> 0.4424990654 | J64: =IFERROR(ROUND(Table_Data_Table_1[[#This Row],[Resid Sq Ft]]/43560,3),"") -> 0.63 | K64: =IF(Table_Data_Table_1[[#This Row],[Item ID]]="","",IFERROR(VLOOKUP(Table_Data_Table_1[[#This Row],[Item ID]],DataTable,10,FALSE)-VLOOKUP(Table_Data_Table_1[[#This Row],[Item ID]],DataTable,12,FALSE),"")) -> 27442.8 | L64: =IFERROR(Table_Data_Table_1[[#This Row],[Land Residual]]/Table_Data_Table_1[[#This Row],[Resid Acre]],"") -> 375773.0159 | M64: =IFERROR(ROUND(Table_Data_Table_1[[#This Row],[Land Residual]]/Table_Data_Table_1[[#This Row],[Resid Sq Ft]],2),"") -> 8.63 | N64: =IF(Table_Data_Table_1[[#This Row],[Item ID]]="","",ROUND(DAYS360(Table_Data_Table_1[[#This Row],[Sale Date]],'Global Settings'!$H$5)/30,0)) -> 49 | O64: =IFERROR(IF(AND(Table_Data_Table_1[[#This Row],[Months To Mid-Point]]<12.01,Table_Data_Table_1[[#This Row],[Months To Mid-Point]]>-13),0,(Table_Data_Table_1[[#This Row],[Months To Mid-Point]]*'Global Settings'!$H$6)),"") -> 0.0768124349 | P64: =IFERROR(Table_Data_Table_1[[#This Row],[Land Residual]]*(Table_Data_Table_1[[#This Row],[Time Adjust]]+1),"") -> 254921.3454 | Q64: =IFERROR(Table_Data_Table_1[[#This Row],[Adjusted Sale Price]]/Table_Data_Table_1[[#This Row],[Resid Acre]],"") -> 404637.0562 | R64: =IFERROR(ROUND(Table_Data_Table_1[[#This Row],[Adjusted Sale Price]]/Table_Data_Table_1[[#This Row],[Resid Sq Ft]],2),"") -> 9.29 | S64: =IFERROR(IF(VLOOKUP(Table_Data_Table_1[[#This Row],[Item ID]],DataTable,11,FALSE)=0,"N/A",Table_Data_Table_1[[#This Row],[Adjusted Sale Price]]/VLOOKUP(Table_Data_Table_1[[#This Row],[Item ID]],DataTable,11,FALSE)),"") -> 1132.983757 | T64: =IF(IFERROR(VLOOKUP(Table_Data_Table_1[[#This Row],[Item ID]],DataTable,17,FALSE),"")=0,"",IFERROR(VLOOKUP(Table_Data_Table_1[[#This Row],[Item ID]],DataTable,17,FALSE),"")) -> 
A65: 0-01All4861-122 | B65: Allocation | C65: =IF(Table_Data_Table_1[[#This Row],[Item ID]]="","",IFERROR(VLOOKUP(Table_Data_Table_1[[#This Row],[Item ID]],DataTable,16,FALSE),"")) -> 1 | D65: 300-110-000-070-01 | E65: 44861 | F65: 1225000 | G65: 0 | H65: =IF(Table_Data_Table_1[[#This Row],[Valuation Method]]="Vacant",VLOOKUP(Table_Data_Table_1[[#This Row],[Item ID]],DataTable,6,FALSE)-VLOOKUP(Table_Data_Table_1[[#This Row],[Item ID]],DataTable,13,FALSE),IF(Table_Data_Table_1[[#This Row],[Valuation Method]]="Abstraction",VLOOKUP(Table_Data_Table_1[[#This Row],[Item ID]],DataTable,6,FALSE)-VLOOKUP(Table_Data_Table_1[[#This Row],[Item ID]],DataTable,13,FALSE),IF(Table_Data_Table_1[[#This Row],[Valuation Method]]="Allocation",VLOOKUP(Table_Data_Table_1[[#This Row],[Item ID]],DataTable,6,FALSE)*I65,""))) -> 495267.5 | I65: =IF(Table_Data_Table_1[[#This Row],[Valuation Method]]="Vacant","N/A",IF(Table_Data_Table_1[[#This Row],[Valuation Method]]="Abstraction",Table_Data_Table_1[[#This Row],[Land Residual]]/VLOOKUP(Table_Data_Table_1[[#This Row],[Item ID]],DataTable,6,FALSE),IF(Table_Data_Table_1[[#This Row],[Valuation Method]]="Allocation",'Global Settings'!$H$20,""))) -> 0.4043 | J65: =IFERROR(ROUND(Table_Data_Table_1[[#This Row],[Resid Sq Ft]]/43560,3),"") -> 1 | K65: =IF(Table_Data_Table_1[[#This Row],[Item ID]]="","",IFERROR(VLOOKUP(Table_Data_Table_1[[#This Row],[Item ID]],DataTable,10,FALSE)-VLOOKUP(Table_Data_Table_1[[#This Row],[Item ID]],DataTable,12,FALSE),"")) -> 43560 | L65: =IFERROR(Table_Data_Table_1[[#This Row],[Land Residual]]/Table_Data_Table_1[[#This Row],[Resid Acre]],"") -> 495267.5 | M65: =IFERROR(ROUND(Table_Data_Table_1[[#This Row],[Land Residual]]/Table_Data_Table_1[[#This Row],[Resid Sq Ft]],2),"") -> 11.37 | N65: =IF(Table_Data_Table_1[[#This Row],[Item ID]]="","",ROUND(DAYS360(Table_Data_Table_1[[#This Row],[Sale Date]],'Global Settings'!$H$5)/30,0)) -> 5 | O65: =IFERROR(IF(AND(Table_Data_Table_1[[#This Row],[Months To Mid-Point]]<12.01,Table_Data_Table_1[[#This Row],[Months To Mid-Point]]>-13),0,(Table_Data_Table_1[[#This Row],[Months To Mid-Point]]*'Global Settings'!$H$6)),"") -> 0 | P65: =IFERROR(Table_Data_Table_1[[#This Row],[Land Residual]]*(Table_Data_Table_1[[#This Row],[Time Adjust]]+1),"") -> 495267.5 | Q65: =IFERROR(Table_Data_Table_1[[#This Row],[Adjusted Sale Price]]/Table_Data_Table_1[[#This Row],[Resid Acre]],"") -> 495267.5 | R65: =IFERROR(ROUND(Table_Data_Table_1[[#This Row],[Adjusted Sale Price]]/Table_Data_Table_1[[#This Row],[Resid Sq Ft]],2),"") -> 11.37 | S65: =IFERROR(IF(VLOOKUP(Table_Data_Table_1[[#This Row],[Item ID]],DataTable,11,FALSE)=0,"N/A",Table_Data_Table_1[[#This Row],[Adjusted Sale Price]]/VLOOKUP(Table_Data_Table_1[[#This Row],[Item ID]],DataTable,11,FALSE)),"") -> 3439.357639 | T65: =IF(IFERROR(VLOOKUP(Table_Data_Table_1[[#This Row],[Item ID]],DataTable,17,FALSE),"")=0,"",IFERROR(VLOOKUP(Table_Data_Table_1[[#This Row],[Item ID]],DataTable,17,FALSE),"")) -> 
C66: =IF(Table_Data_Table_1[[#This Row],[Item ID]]="","",IFERROR(VLOOKUP(Table_Data_Table_1[[#This Row],[Item ID]],DataTable,16,FALSE),"")) ->  | H66: =IF(Table_Data_Table_1[[#This Row],[Valuation Method]]="Vacant",VLOOKUP(Table_Data_Table_1[[#This Row],[Item ID]],DataTable,6,FALSE)-VLOOKUP(Table_Data_Table_1[[#This Row],[Item ID]],DataTable,13,FALSE),IF(Table_Data_Table_1[[#This Row],[Valuation Method]]="Abstraction",VLOOKUP(Table_Data_Table_1[[#This Row],[Item ID]],DataTable,6,FALSE)-VLOOKUP(Table_Data_Table_1[[#This Row],[Item ID]],DataTable,13,FALSE),IF(Table_Data_Table_1[[#This Row],[Valuation Method]]="Allocation",VLOOKUP(Table_Data_Table_1[[#This Row],[Item ID]],DataTable,6,FALSE)*I66,""))) ->  | I66: =IF(Table_Data_Table_1[[#This Row],[Valuation Method]]="Vacant","N/A",IF(Table_Data_Table_1[[#This Row],[Valuation Method]]="Abstraction",Table_Data_Table_1[[#This Row],[Land Residual]]/VLOOKUP(Table_Data_Table_1[[#This Row],[Item ID]],DataTable,6,FALSE),IF(Table_Data_Table_1[[#This Row],[Valuation Method]]="Allocation",'Global Settings'!$H$20,""))) ->  | J66: =IFERROR(ROUND(Table_Data_Table_1[[#This Row],[Resid Sq Ft]]/43560,3),"") ->  | K66: =IF(Table_Data_Table_1[[#This Row],[Item ID]]="","",IFERROR(VLOOKUP(Table_Data_Table_1[[#This Row],[Item ID]],DataTable,10,FALSE)-VLOOKUP(Table_Data_Table_1[[#This Row],[Item ID]],DataTable,12,FALSE),"")) ->  | L66: =IFERROR(Table_Data_Table_1[[#This Row],[Land Residual]]/Table_Data_Table_1[[#This Row],[Resid Acre]],"") ->  | M66: =IFERROR(ROUND(Table_Data_Table_1[[#This Row],[Land Residual]]/Table_Data_Table_1[[#This Row],[Resid Sq Ft]],2),"") ->  | N66: =IF(Table_Data_Table_1[[#This Row],[Item ID]]="","",ROUND(DAYS360(Table_Data_Table_1[[#This Row],[Sale Date]],'Global Settings'!$H$5)/30,0)) ->  | O66: =IFERROR(IF(AND(Table_Data_Table_1[[#This Row],[Months To Mid-Point]]<12.01,Table_Data_Table_1[[#This Row],[Months To Mid-Point]]>-13),0,(Table_Data_Table_1[[#This Row],[Months To Mid-Point]]*'Global Settings'!$H$6)),"") ->  | P66: =IFERROR(Table_Data_Table_1[[#This Row],[Land Residual]]*(Table_Data_Table_1[[#This Row],[Time Adjust]]+1),"") ->  | Q66: =IFERROR(Table_Data_Table_1[[#This Row],[Adjusted Sale Price]]/Table_Data_Table_1[[#This Row],[Resid Acre]],"") ->  | R66: =IFERROR(ROUND(Table_Data_Table_1[[#This Row],[Adjusted Sale Price]]/Table_Data_Table_1[[#This Row],[Resid Sq Ft]],2),"") ->  | S66: =IFERROR(IF(VLOOKUP(Table_Data_Table_1[[#This Row],[Item ID]],DataTable,11,FALSE)=0,"N/A",Table_Data_Table_1[[#This Row],[Adjusted Sale Price]]/VLOOKUP(Table_Data_Table_1[[#This Row],[Item ID]],DataTable,11,FALSE)),"") ->  | T66: =IF(IFERROR(VLOOKUP(Table_Data_Table_1[[#This Row],[Item ID]],DataTable,17,FALSE),"")=0,"",IFERROR(VLOOKUP(Table_Data_Table_1[[#This Row],[Item ID]],DataTable,17,FALSE),"")) -> 
C67: =IF(Table_Data_Table_1[[#This Row],[Item ID]]="","",IFERROR(VLOOKUP(Table_Data_Table_1[[#This Row],[Item ID]],DataTable,16,FALSE),"")) ->  | H67: =IF(Table_Data_Table_1[[#This Row],[Valuation Method]]="Vacant",VLOOKUP(Table_Data_Table_1[[#This Row],[Item ID]],DataTable,6,FALSE)-VLOOKUP(Table_Data_Table_1[[#This Row],[Item ID]],DataTable,13,FALSE),IF(Table_Data_Table_1[[#This Row],[Valuation Method]]="Abstraction",VLOOKUP(Table_Data_Table_1[[#This Row],[Item ID]],DataTable,6,FALSE)-VLOOKUP(Table_Data_Table_1[[#This Row],[Item ID]],DataTable,13,FALSE),IF(Table_Data_Table_1[[#This Row],[Valuation Method]]="Allocation",VLOOKUP(Table_Data_Table_1[[#This Row],[Item ID]],DataTable,6,FALSE)*I67,""))) ->  | I67: =IF(Table_Data_Table_1[[#This Row],[Valuation Method]]="Vacant","N/A",IF(Table_Data_Table_1[[#This Row],[Valuation Method]]="Abstraction",Table_Data_Table_1[[#This Row],[Land Residual]]/VLOOKUP(Table_Data_Table_1[[#This Row],[Item ID]],DataTable,6,FALSE),IF(Table_Data_Table_1[[#This Row],[Valuation Method]]="Allocation",'Global Settings'!$H$20,""))) ->  | J67: =IFERROR(ROUND(Table_Data_Table_1[[#This Row],[Resid Sq Ft]]/43560,3),"") ->  | K67: =IF(Table_Data_Table_1[[#This Row],[Item ID]]="","",IFERROR(VLOOKUP(Table_Data_Table_1[[#This Row],[Item ID]],DataTable,10,FALSE)-VLOOKUP(Table_Data_Table_1[[#This Row],[Item ID]],DataTable,12,FALSE),"")) ->  | L67: =IFERROR(Table_Data_Table_1[[#This Row],[Land Residual]]/Table_Data_Table_1[[#This Row],[Resid Acre]],"") ->  | M67: =IFERROR(ROUND(Table_Data_Table_1[[#This Row],[Land Residual]]/Table_Data_Table_1[[#This Row],[Resid Sq Ft]],2),"") ->  | N67: =IF(Table_Data_Table_1[[#This Row],[Item ID]]="","",ROUND(DAYS360(Table_Data_Table_1[[#This Row],[Sale Date]],'Global Settings'!$H$5)/30,0)) ->  | O67: =IFERROR(IF(AND(Table_Data_Table_1[[#This Row],[Months To Mid-Point]]<12.01,Table_Data_Table_1[[#This Row],[Months To Mid-Point]]>-13),0,(Table_Data_Table_1[[#This Row],[Months To Mid-Point]]*'Global Settings'!$H$6)),"") ->  | P67: =IFERROR(Table_Data_Table_1[[#This Row],[Land Residual]]*(Table_Data_Table_1[[#This Row],[Time Adjust]]+1),"") ->  | Q67: =IFERROR(Table_Data_Table_1[[#This Row],[Adjusted Sale Price]]/Table_Data_Table_1[[#This Row],[Resid Acre]],"") ->  | R67: =IFERROR(ROUND(Table_Data_Table_1[[#This Row],[Adjusted Sale Price]]/Table_Data_Table_1[[#This Row],[Resid Sq Ft]],2),"") ->  | S67: =IFERROR(IF(VLOOKUP(Table_Data_Table_1[[#This Row],[Item ID]],DataTable,11,FALSE)=0,"N/A",Table_Data_Table_1[[#This Row],[Adjusted Sale Price]]/VLOOKUP(Table_Data_Table_1[[#This Row],[Item ID]],DataTable,11,FALSE)),"") ->  | T67: =IF(IFERROR(VLOOKUP(Table_Data_Table_1[[#This Row],[Item ID]],DataTable,17,FALSE),"")=0,"",IFERROR(VLOOKUP(Table_Data_Table_1[[#This Row],[Item ID]],DataTable,17,FALSE),"")) -> 
C68: =IF(Table_Data_Table_1[[#This Row],[Item ID]]="","",IFERROR(VLOOKUP(Table_Data_Table_1[[#This Row],[Item ID]],DataTable,16,FALSE),"")) ->  | H68: =IF(Table_Data_Table_1[[#This Row],[Valuation Method]]="Vacant",VLOOKUP(Table_Data_Table_1[[#This Row],[Item ID]],DataTable,6,FALSE)-VLOOKUP(Table_Data_Table_1[[#This Row],[Item ID]],DataTable,13,FALSE),IF(Table_Data_Table_1[[#This Row],[Valuation Method]]="Abstraction",VLOOKUP(Table_Data_Table_1[[#This Row],[Item ID]],DataTable,6,FALSE)-VLOOKUP(Table_Data_Table_1[[#This Row],[Item ID]],DataTable,13,FALSE),IF(Table_Data_Table_1[[#This Row],[Valuation Method]]="Allocation",VLOOKUP(Table_Data_Table_1[[#This Row],[Item ID]],DataTable,6,FALSE)*I68,""))) ->  | I68: =IF(Table_Data_Table_1[[#This Row],[Valuation Method]]="Vacant","N/A",IF(Table_Data_Table_1[[#This Row],[Valuation Method]]="Abstraction",Table_Data_Table_1[[#This Row],[Land Residual]]/VLOOKUP(Table_Data_Table_1[[#This Row],[Item ID]],DataTable,6,FALSE),IF(Table_Data_Table_1[[#This Row],[Valuation Method]]="Allocation",'Global Settings'!$H$20,""))) ->  | J68: =IFERROR(ROUND(Table_Data_Table_1[[#This Row],[Resid Sq Ft]]/43560,3),"") ->  | K68: =IF(Table_Data_Table_1[[#This Row],[Item ID]]="","",IFERROR(VLOOKUP(Table_Data_Table_1[[#This Row],[Item ID]],DataTable,10,FALSE)-VLOOKUP(Table_Data_Table_1[[#This Row],[Item ID]],DataTable,12,FALSE),"")) ->  | L68: =IFERROR(Table_Data_Table_1[[#This Row],[Land Residual]]/Table_Data_Table_1[[#This Row],[Resid Acre]],"") ->  | M68: =IFERROR(ROUND(Table_Data_Table_1[[#This Row],[Land Residual]]/Table_Data_Table_1[[#This Row],[Resid Sq Ft]],2),"") ->  | N68: =IF(Table_Data_Table_1[[#This Row],[Item ID]]="","",ROUND(DAYS360(Table_Data_Table_1[[#This Row],[Sale Date]],'Global Settings'!$H$5)/30,0)) ->  | O68: =IFERROR(IF(AND(Table_Data_Table_1[[#This Row],[Months To Mid-Point]]<12.01,Table_Data_Table_1[[#This Row],[Months To Mid-Point]]>-13),0,(Table_Data_Table_1[[#This Row],[Months To Mid-Point]]*'Global Settings'!$H$6)),"") ->  | P68: =IFERROR(Table_Data_Table_1[[#This Row],[Land Residual]]*(Table_Data_Table_1[[#This Row],[Time Adjust]]+1),"") ->  | Q68: =IFERROR(Table_Data_Table_1[[#This Row],[Adjusted Sale Price]]/Table_Data_Table_1[[#This Row],[Resid Acre]],"") ->  | R68: =IFERROR(ROUND(Table_Data_Table_1[[#This Row],[Adjusted Sale Price]]/Table_Data_Table_1[[#This Row],[Resid Sq Ft]],2),"") ->  | S68: =IFERROR(IF(VLOOKUP(Table_Data_Table_1[[#This Row],[Item ID]],DataTable,11,FALSE)=0,"N/A",Table_Data_Table_1[[#This Row],[Adjusted Sale Price]]/VLOOKUP(Table_Data_Table_1[[#This Row],[Item ID]],DataTable,11,FALSE)),"") ->  | T68: =IF(IFERROR(VLOOKUP(Table_Data_Table_1[[#This Row],[Item ID]],DataTable,17,FALSE),"")=0,"",IFERROR(VLOOKUP(Table_Data_Table_1[[#This Row],[Item ID]],DataTable,17,FALSE),"")) -> 
C69: =IF(Table_Data_Table_1[[#This Row],[Item ID]]="","",IFERROR(VLOOKUP(Table_Data_Table_1[[#This Row],[Item ID]],DataTable,16,FALSE),"")) ->  | H69: =IF(Table_Data_Table_1[[#This Row],[Valuation Method]]="Vacant",VLOOKUP(Table_Data_Table_1[[#This Row],[Item ID]],DataTable,6,FALSE)-VLOOKUP(Table_Data_Table_1[[#This Row],[Item ID]],DataTable,13,FALSE),IF(Table_Data_Table_1[[#This Row],[Valuation Method]]="Abstraction",VLOOKUP(Table_Data_Table_1[[#This Row],[Item ID]],DataTable,6,FALSE)-VLOOKUP(Table_Data_Table_1[[#This Row],[Item ID]],DataTable,13,FALSE),IF(Table_Data_Table_1[[#This Row],[Valuation Method]]="Allocation",VLOOKUP(Table_Data_Table_1[[#This Row],[Item ID]],DataTable,6,FALSE)*I69,""))) ->  | I69: =IF(Table_Data_Table_1[[#This Row],[Valuation Method]]="Vacant","N/A",IF(Table_Data_Table_1[[#This Row],[Valuation Method]]="Abstraction",Table_Data_Table_1[[#This Row],[Land Residual]]/VLOOKUP(Table_Data_Table_1[[#This Row],[Item ID]],DataTable,6,FALSE),IF(Table_Data_Table_1[[#This Row],[Valuation Method]]="Allocation",'Global Settings'!$H$20,""))) ->  | J69: =IFERROR(ROUND(Table_Data_Table_1[[#This Row],[Resid Sq Ft]]/43560,3),"") ->  | K69: =IF(Table_Data_Table_1[[#This Row],[Item ID]]="","",IFERROR(VLOOKUP(Table_Data_Table_1[[#This Row],[Item ID]],DataTable,10,FALSE)-VLOOKUP(Table_Data_Table_1[[#This Row],[Item ID]],DataTable,12,FALSE),"")) ->  | L69: =IFERROR(Table_Data_Table_1[[#This Row],[Land Residual]]/Table_Data_Table_1[[#This Row],[Resid Acre]],"") ->  | M69: =IFERROR(ROUND(Table_Data_Table_1[[#This Row],[Land Residual]]/Table_Data_Table_1[[#This Row],[Resid Sq Ft]],2),"") ->  | N69: =IF(Table_Data_Table_1[[#This Row],[Item ID]]="","",ROUND(DAYS360(Table_Data_Table_1[[#This Row],[Sale Date]],'Global Settings'!$H$5)/30,0)) ->  | O69: =IFERROR(IF(AND(Table_Data_Table_1[[#This Row],[Months To Mid-Point]]<12.01,Table_Data_Table_1[[#This Row],[Months To Mid-Point]]>-13),0,(Table_Data_Table_1[[#This Row],[Months To Mid-Point]]*'Global Settings'!$H$6)),"") ->  | P69: =IFERROR(Table_Data_Table_1[[#This Row],[Land Residual]]*(Table_Data_Table_1[[#This Row],[Time Adjust]]+1),"") ->  | Q69: =IFERROR(Table_Data_Table_1[[#This Row],[Adjusted Sale Price]]/Table_Data_Table_1[[#This Row],[Resid Acre]],"") ->  | R69: =IFERROR(ROUND(Table_Data_Table_1[[#This Row],[Adjusted Sale Price]]/Table_Data_Table_1[[#This Row],[Resid Sq Ft]],2),"") ->  | S69: =IFERROR(IF(VLOOKUP(Table_Data_Table_1[[#This Row],[Item ID]],DataTable,11,FALSE)=0,"N/A",Table_Data_Table_1[[#This Row],[Adjusted Sale Price]]/VLOOKUP(Table_Data_Table_1[[#This Row],[Item ID]],DataTable,11,FALSE)),"") ->  | T69: =IF(IFERROR(VLOOKUP(Table_Data_Table_1[[#This Row],[Item ID]],DataTable,17,FALSE),"")=0,"",IFERROR(VLOOKUP(Table_Data_Table_1[[#This Row],[Item ID]],DataTable,17,FALSE),"")) -> 
C70: =IF(Table_Data_Table_1[[#This Row],[Item ID]]="","",IFERROR(VLOOKUP(Table_Data_Table_1[[#This Row],[Item ID]],DataTable,16,FALSE),"")) ->  | H70: =IF(Table_Data_Table_1[[#This Row],[Valuation Method]]="Vacant",VLOOKUP(Table_Data_Table_1[[#This Row],[Item ID]],DataTable,6,FALSE)-VLOOKUP(Table_Data_Table_1[[#This Row],[Item ID]],DataTable,13,FALSE),IF(Table_Data_Table_1[[#This Row],[Valuation Method]]="Abstraction",VLOOKUP(Table_Data_Table_1[[#This Row],[Item ID]],DataTable,6,FALSE)-VLOOKUP(Table_Data_Table_1[[#This Row],[Item ID]],DataTable,13,FALSE),IF(Table_Data_Table_1[[#This Row],[Valuation Method]]="Allocation",VLOOKUP(Table_Data_Table_1[[#This Row],[Item ID]],DataTable,6,FALSE)*I70,""))) ->  | I70: =IF(Table_Data_Table_1[[#This Row],[Valuation Method]]="Vacant","N/A",IF(Table_Data_Table_1[[#This Row],[Valuation Method]]="Abstraction",Table_Data_Table_1[[#This Row],[Land Residual]]/VLOOKUP(Table_Data_Table_1[[#This Row],[Item ID]],DataTable,6,FALSE),IF(Table_Data_Table_1[[#This Row],[Valuation Method]]="Allocation",'Global Settings'!$H$20,""))) ->  | J70: =IFERROR(ROUND(Table_Data_Table_1[[#This Row],[Resid Sq Ft]]/43560,3),"") ->  | K70: =IF(Table_Data_Table_1[[#This Row],[Item ID]]="","",IFERROR(VLOOKUP(Table_Data_Table_1[[#This Row],[Item ID]],DataTable,10,FALSE)-VLOOKUP(Table_Data_Table_1[[#This Row],[Item ID]],DataTable,12,FALSE),"")) ->  | L70: =IFERROR(Table_Data_Table_1[[#This Row],[Land Residual]]/Table_Data_Table_1[[#This Row],[Resid Acre]],"") ->  | M70: =IFERROR(ROUND(Table_Data_Table_1[[#This Row],[Land Residual]]/Table_Data_Table_1[[#This Row],[Resid Sq Ft]],2),"") ->  | N70: =IF(Table_Data_Table_1[[#This Row],[Item ID]]="","",ROUND(DAYS360(Table_Data_Table_1[[#This Row],[Sale Date]],'Global Settings'!$H$5)/30,0)) ->  | O70: =IFERROR(IF(AND(Table_Data_Table_1[[#This Row],[Months To Mid-Point]]<12.01,Table_Data_Table_1[[#This Row],[Months To Mid-Point]]>-13),0,(Table_Data_Table_1[[#This Row],[Months To Mid-Point]]*'Global Settings'!$H$6)),"") ->  | P70: =IFERROR(Table_Data_Table_1[[#This Row],[Land Residual]]*(Table_Data_Table_1[[#This Row],[Time Adjust]]+1),"") ->  | Q70: =IFERROR(Table_Data_Table_1[[#This Row],[Adjusted Sale Price]]/Table_Data_Table_1[[#This Row],[Resid Acre]],"") ->  | R70: =IFERROR(ROUND(Table_Data_Table_1[[#This Row],[Adjusted Sale Price]]/Table_Data_Table_1[[#This Row],[Resid Sq Ft]],2),"") ->  | S70: =IFERROR(IF(VLOOKUP(Table_Data_Table_1[[#This Row],[Item ID]],DataTable,11,FALSE)=0,"N/A",Table_Data_Table_1[[#This Row],[Adjusted Sale Price]]/VLOOKUP(Table_Data_Table_1[[#This Row],[Item ID]],DataTable,11,FALSE)),"") ->  | T70: =IF(IFERROR(VLOOKUP(Table_Data_Table_1[[#This Row],[Item ID]],DataTable,17,FALSE),"")=0,"",IFERROR(VLOOKUP(Table_Data_Table_1[[#This Row],[Item ID]],DataTable,17,FALSE),"")) -> 
C71: =IF(Table_Data_Table_1[[#This Row],[Item ID]]="","",IFERROR(VLOOKUP(Table_Data_Table_1[[#This Row],[Item ID]],DataTable,16,FALSE),"")) ->  | H71: =IF(Table_Data_Table_1[[#This Row],[Valuation Method]]="Vacant",VLOOKUP(Table_Data_Table_1[[#This Row],[Item ID]],DataTable,6,FALSE)-VLOOKUP(Table_Data_Table_1[[#This Row],[Item ID]],DataTable,13,FALSE),IF(Table_Data_Table_1[[#This Row],[Valuation Method]]="Abstraction",VLOOKUP(Table_Data_Table_1[[#This Row],[Item ID]],DataTable,6,FALSE)-VLOOKUP(Table_Data_Table_1[[#This Row],[Item ID]],DataTable,13,FALSE),IF(Table_Data_Table_1[[#This Row],[Valuation Method]]="Allocation",VLOOKUP(Table_Data_Table_1[[#This Row],[Item ID]],DataTable,6,FALSE)*I71,""))) ->  | I71: =IF(Table_Data_Table_1[[#This Row],[Valuation Method]]="Vacant","N/A",IF(Table_Data_Table_1[[#This Row],[Valuation Method]]="Abstraction",Table_Data_Table_1[[#This Row],[Land Residual]]/VLOOKUP(Table_Data_Table_1[[#This Row],[Item ID]],DataTable,6,FALSE),IF(Table_Data_Table_1[[#This Row],[Valuation Method]]="Allocation",'Global Settings'!$H$20,""))) ->  | J71: =IFERROR(ROUND(Table_Data_Table_1[[#This Row],[Resid Sq Ft]]/43560,3),"") ->  | K71: =IF(Table_Data_Table_1[[#This Row],[Item ID]]="","",IFERROR(VLOOKUP(Table_Data_Table_1[[#This Row],[Item ID]],DataTable,10,FALSE)-VLOOKUP(Table_Data_Table_1[[#This Row],[Item ID]],DataTable,12,FALSE),"")) ->  | L71: =IFERROR(Table_Data_Table_1[[#This Row],[Land Residual]]/Table_Data_Table_1[[#This Row],[Resid Acre]],"") ->  | M71: =IFERROR(ROUND(Table_Data_Table_1[[#This Row],[Land Residual]]/Table_Data_Table_1[[#This Row],[Resid Sq Ft]],2),"") ->  | N71: =IF(Table_Data_Table_1[[#This Row],[Item ID]]="","",ROUND(DAYS360(Table_Data_Table_1[[#This Row],[Sale Date]],'Global Settings'!$H$5)/30,0)) ->  | O71: =IFERROR(IF(AND(Table_Data_Table_1[[#This Row],[Months To Mid-Point]]<12.01,Table_Data_Table_1[[#This Row],[Months To Mid-Point]]>-13),0,(Table_Data_Table_1[[#This Row],[Months To Mid-Point]]*'Global Settings'!$H$6)),"") ->  | P71: =IFERROR(Table_Data_Table_1[[#This Row],[Land Residual]]*(Table_Data_Table_1[[#This Row],[Time Adjust]]+1),"") ->  | Q71: =IFERROR(Table_Data_Table_1[[#This Row],[Adjusted Sale Price]]/Table_Data_Table_1[[#This Row],[Resid Acre]],"") ->  | R71: =IFERROR(ROUND(Table_Data_Table_1[[#This Row],[Adjusted Sale Price]]/Table_Data_Table_1[[#This Row],[Resid Sq Ft]],2),"") ->  | S71: =IFERROR(IF(VLOOKUP(Table_Data_Table_1[[#This Row],[Item ID]],DataTable,11,FALSE)=0,"N/A",Table_Data_Table_1[[#This Row],[Adjusted Sale Price]]/VLOOKUP(Table_Data_Table_1[[#This Row],[Item ID]],DataTable,11,FALSE)),"") ->  | T71: =IF(IFERROR(VLOOKUP(Table_Data_Table_1[[#This Row],[Item ID]],DataTable,17,FALSE),"")=0,"",IFERROR(VLOOKUP(Table_Data_Table_1[[#This Row],[Item ID]],DataTable,17,FALSE),"")) -> 
C72: =IF(Table_Data_Table_1[[#This Row],[Item ID]]="","",IFERROR(VLOOKUP(Table_Data_Table_1[[#This Row],[Item ID]],DataTable,16,FALSE),"")) ->  | H72: =IF(Table_Data_Table_1[[#This Row],[Valuation Method]]="Vacant",VLOOKUP(Table_Data_Table_1[[#This Row],[Item ID]],DataTable,6,FALSE)-VLOOKUP(Table_Data_Table_1[[#This Row],[Item ID]],DataTable,13,FALSE),IF(Table_Data_Table_1[[#This Row],[Valuation Method]]="Abstraction",VLOOKUP(Table_Data_Table_1[[#This Row],[Item ID]],DataTable,6,FALSE)-VLOOKUP(Table_Data_Table_1[[#This Row],[Item ID]],DataTable,13,FALSE),IF(Table_Data_Table_1[[#This Row],[Valuation Method]]="Allocation",VLOOKUP(Table_Data_Table_1[[#This Row],[Item ID]],DataTable,6,FALSE)*I72,""))) ->  | I72: =IF(Table_Data_Table_1[[#This Row],[Valuation Method]]="Vacant","N/A",IF(Table_Data_Table_1[[#This Row],[Valuation Method]]="Abstraction",Table_Data_Table_1[[#This Row],[Land Residual]]/VLOOKUP(Table_Data_Table_1[[#This Row],[Item ID]],DataTable,6,FALSE),IF(Table_Data_Table_1[[#This Row],[Valuation Method]]="Allocation",'Global Settings'!$H$20,""))) ->  | J72: =IFERROR(ROUND(Table_Data_Table_1[[#This Row],[Resid Sq Ft]]/43560,3),"") ->  | K72: =IF(Table_Data_Table_1[[#This Row],[Item ID]]="","",IFERROR(VLOOKUP(Table_Data_Table_1[[#This Row],[Item ID]],DataTable,10,FALSE)-VLOOKUP(Table_Data_Table_1[[#This Row],[Item ID]],DataTable,12,FALSE),"")) ->  | L72: =IFERROR(Table_Data_Table_1[[#This Row],[Land Residual]]/Table_Data_Table_1[[#This Row],[Resid Acre]],"") ->  | M72: =IFERROR(ROUND(Table_Data_Table_1[[#This Row],[Land Residual]]/Table_Data_Table_1[[#This Row],[Resid Sq Ft]],2),"") ->  | N72: =IF(Table_Data_Table_1[[#This Row],[Item ID]]="","",ROUND(DAYS360(Table_Data_Table_1[[#This Row],[Sale Date]],'Global Settings'!$H$5)/30,0)) ->  | O72: =IFERROR(IF(AND(Table_Data_Table_1[[#This Row],[Months To Mid-Point]]<12.01,Table_Data_Table_1[[#This Row],[Months To Mid-Point]]>-13),0,(Table_Data_Table_1[[#This Row],[Months To Mid-Point]]*'Global Settings'!$H$6)),"") ->  | P72: =IFERROR(Table_Data_Table_1[[#This Row],[Land Residual]]*(Table_Data_Table_1[[#This Row],[Time Adjust]]+1),"") ->  | Q72: =IFERROR(Table_Data_Table_1[[#This Row],[Adjusted Sale Price]]/Table_Data_Table_1[[#This Row],[Resid Acre]],"") ->  | R72: =IFERROR(ROUND(Table_Data_Table_1[[#This Row],[Adjusted Sale Price]]/Table_Data_Table_1[[#This Row],[Resid Sq Ft]],2),"") ->  | S72: =IFERROR(IF(VLOOKUP(Table_Data_Table_1[[#This Row],[Item ID]],DataTable,11,FALSE)=0,"N/A",Table_Data_Table_1[[#This Row],[Adjusted Sale Price]]/VLOOKUP(Table_Data_Table_1[[#This Row],[Item ID]],DataTable,11,FALSE)),"") ->  | T72: =IF(IFERROR(VLOOKUP(Table_Data_Table_1[[#This Row],[Item ID]],DataTable,17,FALSE),"")=0,"",IFERROR(VLOOKUP(Table_Data_Table_1[[#This Row],[Item ID]],DataTable,17,FALSE),"")) -> 
C73: =IF(Table_Data_Table_1[[#This Row],[Item ID]]="","",IFERROR(VLOOKUP(Table_Data_Table_1[[#This Row],[Item ID]],DataTable,16,FALSE),"")) ->  | H73: =IF(Table_Data_Table_1[[#This Row],[Valuation Method]]="Vacant",VLOOKUP(Table_Data_Table_1[[#This Row],[Item ID]],DataTable,6,FALSE)-VLOOKUP(Table_Data_Table_1[[#This Row],[Item ID]],DataTable,13,FALSE),IF(Table_Data_Table_1[[#This Row],[Valuation Method]]="Abstraction",VLOOKUP(Table_Data_Table_1[[#This Row],[Item ID]],DataTable,6,FALSE)-VLOOKUP(Table_Data_Table_1[[#This Row],[Item ID]],DataTable,13,FALSE),IF(Table_Data_Table_1[[#This Row],[Valuation Method]]="Allocation",VLOOKUP(Table_Data_Table_1[[#This Row],[Item ID]],DataTable,6,FALSE)*I73,""))) ->  | I73: =IF(Table_Data_Table_1[[#This Row],[Valuation Method]]="Vacant","N/A",IF(Table_Data_Table_1[[#This Row],[Valuation Method]]="Abstraction",Table_Data_Table_1[[#This Row],[Land Residual]]/VLOOKUP(Table_Data_Table_1[[#This Row],[Item ID]],DataTable,6,FALSE),IF(Table_Data_Table_1[[#This Row],[Valuation Method]]="Allocation",'Global Settings'!$H$20,""))) ->  | J73: =IFERROR(ROUND(Table_Data_Table_1[[#This Row],[Resid Sq Ft]]/43560,3),"") ->  | K73: =IF(Table_Data_Table_1[[#This Row],[Item ID]]="","",IFERROR(VLOOKUP(Table_Data_Table_1[[#This Row],[Item ID]],DataTable,10,FALSE)-VLOOKUP(Table_Data_Table_1[[#This Row],[Item ID]],DataTable,12,FALSE),"")) ->  | L73: =IFERROR(Table_Data_Table_1[[#This Row],[Land Residual]]/Table_Data_Table_1[[#This Row],[Resid Acre]],"") ->  | M73: =IFERROR(ROUND(Table_Data_Table_1[[#This Row],[Land Residual]]/Table_Data_Table_1[[#This Row],[Resid Sq Ft]],2),"") ->  | N73: =IF(Table_Data_Table_1[[#This Row],[Item ID]]="","",ROUND(DAYS360(Table_Data_Table_1[[#This Row],[Sale Date]],'Global Settings'!$H$5)/30,0)) ->  | O73: =IFERROR(IF(AND(Table_Data_Table_1[[#This Row],[Months To Mid-Point]]<12.01,Table_Data_Table_1[[#This Row],[Months To Mid-Point]]>-13),0,(Table_Data_Table_1[[#This Row],[Months To Mid-Point]]*'Global Settings'!$H$6)),"") ->  | P73: =IFERROR(Table_Data_Table_1[[#This Row],[Land Residual]]*(Table_Data_Table_1[[#This Row],[Time Adjust]]+1),"") ->  | Q73: =IFERROR(Table_Data_Table_1[[#This Row],[Adjusted Sale Price]]/Table_Data_Table_1[[#This Row],[Resid Acre]],"") ->  | R73: =IFERROR(ROUND(Table_Data_Table_1[[#This Row],[Adjusted Sale Price]]/Table_Data_Table_1[[#This Row],[Resid Sq Ft]],2),"") ->  | S73: =IFERROR(IF(VLOOKUP(Table_Data_Table_1[[#This Row],[Item ID]],DataTable,11,FALSE)=0,"N/A",Table_Data_Table_1[[#This Row],[Adjusted Sale Price]]/VLOOKUP(Table_Data_Table_1[[#This Row],[Item ID]],DataTable,11,FALSE)),"") ->  | T73: =IF(IFERROR(VLOOKUP(Table_Data_Table_1[[#This Row],[Item ID]],DataTable,17,FALSE),"")=0,"",IFERROR(VLOOKUP(Table_Data_Table_1[[#This Row],[Item ID]],DataTable,17,FALSE),"")) -> 
C74: =IF(Table_Data_Table_1[[#This Row],[Item ID]]="","",IFERROR(VLOOKUP(Table_Data_Table_1[[#This Row],[Item ID]],DataTable,16,FALSE),"")) ->  | H74: =IF(Table_Data_Table_1[[#This Row],[Valuation Method]]="Vacant",VLOOKUP(Table_Data_Table_1[[#This Row],[Item ID]],DataTable,6,FALSE)-VLOOKUP(Table_Data_Table_1[[#This Row],[Item ID]],DataTable,13,FALSE),IF(Table_Data_Table_1[[#This Row],[Valuation Method]]="Abstraction",VLOOKUP(Table_Data_Table_1[[#This Row],[Item ID]],DataTable,6,FALSE)-VLOOKUP(Table_Data_Table_1[[#This Row],[Item ID]],DataTable,13,FALSE),IF(Table_Data_Table_1[[#This Row],[Valuation Method]]="Allocation",VLOOKUP(Table_Data_Table_1[[#This Row],[Item ID]],DataTable,6,FALSE)*I74,""))) ->  | I74: =IF(Table_Data_Table_1[[#This Row],[Valuation Method]]="Vacant","N/A",IF(Table_Data_Table_1[[#This Row],[Valuation Method]]="Abstraction",Table_Data_Table_1[[#This Row],[Land Residual]]/VLOOKUP(Table_Data_Table_1[[#This Row],[Item ID]],DataTable,6,FALSE),IF(Table_Data_Table_1[[#This Row],[Valuation Method]]="Allocation",'Global Settings'!$H$20,""))) ->  | J74: =IFERROR(ROUND(Table_Data_Table_1[[#This Row],[Resid Sq Ft]]/43560,3),"") ->  | K74: =IF(Table_Data_Table_1[[#This Row],[Item ID]]="","",IFERROR(VLOOKUP(Table_Data_Table_1[[#This Row],[Item ID]],DataTable,10,FALSE)-VLOOKUP(Table_Data_Table_1[[#This Row],[Item ID]],DataTable,12,FALSE),"")) ->  | L74: =IFERROR(Table_Data_Table_1[[#This Row],[Land Residual]]/Table_Data_Table_1[[#This Row],[Resid Acre]],"") ->  | M74: =IFERROR(ROUND(Table_Data_Table_1[[#This Row],[Land Residual]]/Table_Data_Table_1[[#This Row],[Resid Sq Ft]],2),"") ->  | N74: =IF(Table_Data_Table_1[[#This Row],[Item ID]]="","",ROUND(DAYS360(Table_Data_Table_1[[#This Row],[Sale Date]],'Global Settings'!$H$5)/30,0)) ->  | O74: =IFERROR(IF(AND(Table_Data_Table_1[[#This Row],[Months To Mid-Point]]<12.01,Table_Data_Table_1[[#This Row],[Months To Mid-Point]]>-13),0,(Table_Data_Table_1[[#This Row],[Months To Mid-Point]]*'Global Settings'!$H$6)),"") ->  | P74: =IFERROR(Table_Data_Table_1[[#This Row],[Land Residual]]*(Table_Data_Table_1[[#This Row],[Time Adjust]]+1),"") ->  | Q74: =IFERROR(Table_Data_Table_1[[#This Row],[Adjusted Sale Price]]/Table_Data_Table_1[[#This Row],[Resid Acre]],"") ->  | R74: =IFERROR(ROUND(Table_Data_Table_1[[#This Row],[Adjusted Sale Price]]/Table_Data_Table_1[[#This Row],[Resid Sq Ft]],2),"") ->  | S74: =IFERROR(IF(VLOOKUP(Table_Data_Table_1[[#This Row],[Item ID]],DataTable,11,FALSE)=0,"N/A",Table_Data_Table_1[[#This Row],[Adjusted Sale Price]]/VLOOKUP(Table_Data_Table_1[[#This Row],[Item ID]],DataTable,11,FALSE)),"") ->  | T74: =IF(IFERROR(VLOOKUP(Table_Data_Table_1[[#This Row],[Item ID]],DataTable,17,FALSE),"")=0,"",IFERROR(VLOOKUP(Table_Data_Table_1[[#This Row],[Item ID]],DataTable,17,FALSE),"")) -> 
C75: =IF(Table_Data_Table_1[[#This Row],[Item ID]]="","",IFERROR(VLOOKUP(Table_Data_Table_1[[#This Row],[Item ID]],DataTable,16,FALSE),"")) ->  | H75: =IF(Table_Data_Table_1[[#This Row],[Valuation Method]]="Vacant",VLOOKUP(Table_Data_Table_1[[#This Row],[Item ID]],DataTable,6,FALSE)-VLOOKUP(Table_Data_Table_1[[#This Row],[Item ID]],DataTable,13,FALSE),IF(Table_Data_Table_1[[#This Row],[Valuation Method]]="Abstraction",VLOOKUP(Table_Data_Table_1[[#This Row],[Item ID]],DataTable,6,FALSE)-VLOOKUP(Table_Data_Table_1[[#This Row],[Item ID]],DataTable,13,FALSE),IF(Table_Data_Table_1[[#This Row],[Valuation Method]]="Allocation",VLOOKUP(Table_Data_Table_1[[#This Row],[Item ID]],DataTable,6,FALSE)*I75,""))) ->  | I75: =IF(Table_Data_Table_1[[#This Row],[Valuation Method]]="Vacant","N/A",IF(Table_Data_Table_1[[#This Row],[Valuation Method]]="Abstraction",Table_Data_Table_1[[#This Row],[Land Residual]]/VLOOKUP(Table_Data_Table_1[[#This Row],[Item ID]],DataTable,6,FALSE),IF(Table_Data_Table_1[[#This Row],[Valuation Method]]="Allocation",'Global Settings'!$H$20,""))) ->  | J75: =IFERROR(ROUND(Table_Data_Table_1[[#This Row],[Resid Sq Ft]]/43560,3),"") ->  | K75: =IF(Table_Data_Table_1[[#This Row],[Item ID]]="","",IFERROR(VLOOKUP(Table_Data_Table_1[[#This Row],[Item ID]],DataTable,10,FALSE)-VLOOKUP(Table_Data_Table_1[[#This Row],[Item ID]],DataTable,12,FALSE),"")) ->  | L75: =IFERROR(Table_Data_Table_1[[#This Row],[Land Residual]]/Table_Data_Table_1[[#This Row],[Resid Acre]],"") ->  | M75: =IFERROR(ROUND(Table_Data_Table_1[[#This Row],[Land Residual]]/Table_Data_Table_1[[#This Row],[Resid Sq Ft]],2),"") ->  | N75: =IF(Table_Data_Table_1[[#This Row],[Item ID]]="","",ROUND(DAYS360(Table_Data_Table_1[[#This Row],[Sale Date]],'Global Settings'!$H$5)/30,0)) ->  | O75: =IFERROR(IF(AND(Table_Data_Table_1[[#This Row],[Months To Mid-Point]]<12.01,Table_Data_Table_1[[#This Row],[Months To Mid-Point]]>-13),0,(Table_Data_Table_1[[#This Row],[Months To Mid-Point]]*'Global Settings'!$H$6)),"") ->  | P75: =IFERROR(Table_Data_Table_1[[#This Row],[Land Residual]]*(Table_Data_Table_1[[#This Row],[Time Adjust]]+1),"") ->  | Q75: =IFERROR(Table_Data_Table_1[[#This Row],[Adjusted Sale Price]]/Table_Data_Table_1[[#This Row],[Resid Acre]],"") ->  | R75: =IFERROR(ROUND(Table_Data_Table_1[[#This Row],[Adjusted Sale Price]]/Table_Data_Table_1[[#This Row],[Resid Sq Ft]],2),"") ->  | S75: =IFERROR(IF(VLOOKUP(Table_Data_Table_1[[#This Row],[Item ID]],DataTable,11,FALSE)=0,"N/A",Table_Data_Table_1[[#This Row],[Adjusted Sale Price]]/VLOOKUP(Table_Data_Table_1[[#This Row],[Item ID]],DataTable,11,FALSE)),"") ->  | T75: =IF(IFERROR(VLOOKUP(Table_Data_Table_1[[#This Row],[Item ID]],DataTable,17,FALSE),"")=0,"",IFERROR(VLOOKUP(Table_Data_Table_1[[#This Row],[Item ID]],DataTable,17,FALSE),"")) -> 
C76: =IF(Table_Data_Table_1[[#This Row],[Item ID]]="","",IFERROR(VLOOKUP(Table_Data_Table_1[[#This Row],[Item ID]],DataTable,16,FALSE),"")) ->  | H76: =IF(Table_Data_Table_1[[#This Row],[Valuation Method]]="Vacant",VLOOKUP(Table_Data_Table_1[[#This Row],[Item ID]],DataTable,6,FALSE)-VLOOKUP(Table_Data_Table_1[[#This Row],[Item ID]],DataTable,13,FALSE),IF(Table_Data_Table_1[[#This Row],[Valuation Method]]="Abstraction",VLOOKUP(Table_Data_Table_1[[#This Row],[Item ID]],DataTable,6,FALSE)-VLOOKUP(Table_Data_Table_1[[#This Row],[Item ID]],DataTable,13,FALSE),IF(Table_Data_Table_1[[#This Row],[Valuation Method]]="Allocation",VLOOKUP(Table_Data_Table_1[[#This Row],[Item ID]],DataTable,6,FALSE)*I76,""))) ->  | I76: =IF(Table_Data_Table_1[[#This Row],[Valuation Method]]="Vacant","N/A",IF(Table_Data_Table_1[[#This Row],[Valuation Method]]="Abstraction",Table_Data_Table_1[[#This Row],[Land Residual]]/VLOOKUP(Table_Data_Table_1[[#This Row],[Item ID]],DataTable,6,FALSE),IF(Table_Data_Table_1[[#This Row],[Valuation Method]]="Allocation",'Global Settings'!$H$20,""))) ->  | J76: =IFERROR(ROUND(Table_Data_Table_1[[#This Row],[Resid Sq Ft]]/43560,3),"") ->  | K76: =IF(Table_Data_Table_1[[#This Row],[Item ID]]="","",IFERROR(VLOOKUP(Table_Data_Table_1[[#This Row],[Item ID]],DataTable,10,FALSE)-VLOOKUP(Table_Data_Table_1[[#This Row],[Item ID]],DataTable,12,FALSE),"")) ->  | L76: =IFERROR(Table_Data_Table_1[[#This Row],[Land Residual]]/Table_Data_Table_1[[#This Row],[Resid Acre]],"") ->  | M76: =IFERROR(ROUND(Table_Data_Table_1[[#This Row],[Land Residual]]/Table_Data_Table_1[[#This Row],[Resid Sq Ft]],2),"") ->  | N76: =IF(Table_Data_Table_1[[#This Row],[Item ID]]="","",ROUND(DAYS360(Table_Data_Table_1[[#This Row],[Sale Date]],'Global Settings'!$H$5)/30,0)) ->  | O76: =IFERROR(IF(AND(Table_Data_Table_1[[#This Row],[Months To Mid-Point]]<12.01,Table_Data_Table_1[[#This Row],[Months To Mid-Point]]>-13),0,(Table_Data_Table_1[[#This Row],[Months To Mid-Point]]*'Global Settings'!$H$6)),"") ->  | P76: =IFERROR(Table_Data_Table_1[[#This Row],[Land Residual]]*(Table_Data_Table_1[[#This Row],[Time Adjust]]+1),"") ->  | Q76: =IFERROR(Table_Data_Table_1[[#This Row],[Adjusted Sale Price]]/Table_Data_Table_1[[#This Row],[Resid Acre]],"") ->  | R76: =IFERROR(ROUND(Table_Data_Table_1[[#This Row],[Adjusted Sale Price]]/Table_Data_Table_1[[#This Row],[Resid Sq Ft]],2),"") ->  | S76: =IFERROR(IF(VLOOKUP(Table_Data_Table_1[[#This Row],[Item ID]],DataTable,11,FALSE)=0,"N/A",Table_Data_Table_1[[#This Row],[Adjusted Sale Price]]/VLOOKUP(Table_Data_Table_1[[#This Row],[Item ID]],DataTable,11,FALSE)),"") ->  | T76: =IF(IFERROR(VLOOKUP(Table_Data_Table_1[[#This Row],[Item ID]],DataTable,17,FALSE),"")=0,"",IFERROR(VLOOKUP(Table_Data_Table_1[[#This Row],[Item ID]],DataTable,17,FALSE),"")) -> 
C77: =IF(Table_Data_Table_1[[#This Row],[Item ID]]="","",IFERROR(VLOOKUP(Table_Data_Table_1[[#This Row],[Item ID]],DataTable,16,FALSE),"")) ->  | H77: =IF(Table_Data_Table_1[[#This Row],[Valuation Method]]="Vacant",VLOOKUP(Table_Data_Table_1[[#This Row],[Item ID]],DataTable,6,FALSE)-VLOOKUP(Table_Data_Table_1[[#This Row],[Item ID]],DataTable,13,FALSE),IF(Table_Data_Table_1[[#This Row],[Valuation Method]]="Abstraction",VLOOKUP(Table_Data_Table_1[[#This Row],[Item ID]],DataTable,6,FALSE)-VLOOKUP(Table_Data_Table_1[[#This Row],[Item ID]],DataTable,13,FALSE),IF(Table_Data_Table_1[[#This Row],[Valuation Method]]="Allocation",VLOOKUP(Table_Data_Table_1[[#This Row],[Item ID]],DataTable,6,FALSE)*I77,""))) ->  | I77: =IF(Table_Data_Table_1[[#This Row],[Valuation Method]]="Vacant","N/A",IF(Table_Data_Table_1[[#This Row],[Valuation Method]]="Abstraction",Table_Data_Table_1[[#This Row],[Land Residual]]/VLOOKUP(Table_Data_Table_1[[#This Row],[Item ID]],DataTable,6,FALSE),IF(Table_Data_Table_1[[#This Row],[Valuation Method]]="Allocation",'Global Settings'!$H$20,""))) ->  | J77: =IFERROR(ROUND(Table_Data_Table_1[[#This Row],[Resid Sq Ft]]/43560,3),"") ->  | K77: =IF(Table_Data_Table_1[[#This Row],[Item ID]]="","",IFERROR(VLOOKUP(Table_Data_Table_1[[#This Row],[Item ID]],DataTable,10,FALSE)-VLOOKUP(Table_Data_Table_1[[#This Row],[Item ID]],DataTable,12,FALSE),"")) ->  | L77: =IFERROR(Table_Data_Table_1[[#This Row],[Land Residual]]/Table_Data_Table_1[[#This Row],[Resid Acre]],"") ->  | M77: =IFERROR(ROUND(Table_Data_Table_1[[#This Row],[Land Residual]]/Table_Data_Table_1[[#This Row],[Resid Sq Ft]],2),"") ->  | N77: =IF(Table_Data_Table_1[[#This Row],[Item ID]]="","",ROUND(DAYS360(Table_Data_Table_1[[#This Row],[Sale Date]],'Global Settings'!$H$5)/30,0)) ->  | O77: =IFERROR(IF(AND(Table_Data_Table_1[[#This Row],[Months To Mid-Point]]<12.01,Table_Data_Table_1[[#This Row],[Months To Mid-Point]]>-13),0,(Table_Data_Table_1[[#This Row],[Months To Mid-Point]]*'Global Settings'!$H$6)),"") ->  | P77: =IFERROR(Table_Data_Table_1[[#This Row],[Land Residual]]*(Table_Data_Table_1[[#This Row],[Time Adjust]]+1),"") ->  | Q77: =IFERROR(Table_Data_Table_1[[#This Row],[Adjusted Sale Price]]/Table_Data_Table_1[[#This Row],[Resid Acre]],"") ->  | R77: =IFERROR(ROUND(Table_Data_Table_1[[#This Row],[Adjusted Sale Price]]/Table_Data_Table_1[[#This Row],[Resid Sq Ft]],2),"") ->  | S77: =IFERROR(IF(VLOOKUP(Table_Data_Table_1[[#This Row],[Item ID]],DataTable,11,FALSE)=0,"N/A",Table_Data_Table_1[[#This Row],[Adjusted Sale Price]]/VLOOKUP(Table_Data_Table_1[[#This Row],[Item ID]],DataTable,11,FALSE)),"") ->  | T77: =IF(IFERROR(VLOOKUP(Table_Data_Table_1[[#This Row],[Item ID]],DataTable,17,FALSE),"")=0,"",IFERROR(VLOOKUP(Table_Data_Table_1[[#This Row],[Item ID]],DataTable,17,FALSE),"")) -> 
C78: =IF(Table_Data_Table_1[[#This Row],[Item ID]]="","",IFERROR(VLOOKUP(Table_Data_Table_1[[#This Row],[Item ID]],DataTable,16,FALSE),"")) ->  | H78: =IF(Table_Data_Table_1[[#This Row],[Valuation Method]]="Vacant",VLOOKUP(Table_Data_Table_1[[#This Row],[Item ID]],DataTable,6,FALSE)-VLOOKUP(Table_Data_Table_1[[#This Row],[Item ID]],DataTable,13,FALSE),IF(Table_Data_Table_1[[#This Row],[Valuation Method]]="Abstraction",VLOOKUP(Table_Data_Table_1[[#This Row],[Item ID]],DataTable,6,FALSE)-VLOOKUP(Table_Data_Table_1[[#This Row],[Item ID]],DataTable,13,FALSE),IF(Table_Data_Table_1[[#This Row],[Valuation Method]]="Allocation",VLOOKUP(Table_Data_Table_1[[#This Row],[Item ID]],DataTable,6,FALSE)*I78,""))) ->  | I78: =IF(Table_Data_Table_1[[#This Row],[Valuation Method]]="Vacant","N/A",IF(Table_Data_Table_1[[#This Row],[Valuation Method]]="Abstraction",Table_Data_Table_1[[#This Row],[Land Residual]]/VLOOKUP(Table_Data_Table_1[[#This Row],[Item ID]],DataTable,6,FALSE),IF(Table_Data_Table_1[[#This Row],[Valuation Method]]="Allocation",'Global Settings'!$H$20,""))) ->  | J78: =IFERROR(ROUND(Table_Data_Table_1[[#This Row],[Resid Sq Ft]]/43560,3),"") ->  | K78: =IF(Table_Data_Table_1[[#This Row],[Item ID]]="","",IFERROR(VLOOKUP(Table_Data_Table_1[[#This Row],[Item ID]],DataTable,10,FALSE)-VLOOKUP(Table_Data_Table_1[[#This Row],[Item ID]],DataTable,12,FALSE),"")) ->  | L78: =IFERROR(Table_Data_Table_1[[#This Row],[Land Residual]]/Table_Data_Table_1[[#This Row],[Resid Acre]],"") ->  | M78: =IFERROR(ROUND(Table_Data_Table_1[[#This Row],[Land Residual]]/Table_Data_Table_1[[#This Row],[Resid Sq Ft]],2),"") ->  | N78: =IF(Table_Data_Table_1[[#This Row],[Item ID]]="","",ROUND(DAYS360(Table_Data_Table_1[[#This Row],[Sale Date]],'Global Settings'!$H$5)/30,0)) ->  | O78: =IFERROR(IF(AND(Table_Data_Table_1[[#This Row],[Months To Mid-Point]]<12.01,Table_Data_Table_1[[#This Row],[Months To Mid-Point]]>-13),0,(Table_Data_Table_1[[#This Row],[Months To Mid-Point]]*'Global Settings'!$H$6)),"") ->  | P78: =IFERROR(Table_Data_Table_1[[#This Row],[Land Residual]]*(Table_Data_Table_1[[#This Row],[Time Adjust]]+1),"") ->  | Q78: =IFERROR(Table_Data_Table_1[[#This Row],[Adjusted Sale Price]]/Table_Data_Table_1[[#This Row],[Resid Acre]],"") ->  | R78: =IFERROR(ROUND(Table_Data_Table_1[[#This Row],[Adjusted Sale Price]]/Table_Data_Table_1[[#This Row],[Resid Sq Ft]],2),"") ->  | S78: =IFERROR(IF(VLOOKUP(Table_Data_Table_1[[#This Row],[Item ID]],DataTable,11,FALSE)=0,"N/A",Table_Data_Table_1[[#This Row],[Adjusted Sale Price]]/VLOOKUP(Table_Data_Table_1[[#This Row],[Item ID]],DataTable,11,FALSE)),"") ->  | T78: =IF(IFERROR(VLOOKUP(Table_Data_Table_1[[#This Row],[Item ID]],DataTable,17,FALSE),"")=0,"",IFERROR(VLOOKUP(Table_Data_Table_1[[#This Row],[Item ID]],DataTable,17,FALSE),"")) -> 
C79: =IF(Table_Data_Table_1[[#This Row],[Item ID]]="","",IFERROR(VLOOKUP(Table_Data_Table_1[[#This Row],[Item ID]],DataTable,16,FALSE),"")) ->  | H79: =IF(Table_Data_Table_1[[#This Row],[Valuation Method]]="Vacant",VLOOKUP(Table_Data_Table_1[[#This Row],[Item ID]],DataTable,6,FALSE)-VLOOKUP(Table_Data_Table_1[[#This Row],[Item ID]],DataTable,13,FALSE),IF(Table_Data_Table_1[[#This Row],[Valuation Method]]="Abstraction",VLOOKUP(Table_Data_Table_1[[#This Row],[Item ID]],DataTable,6,FALSE)-VLOOKUP(Table_Data_Table_1[[#This Row],[Item ID]],DataTable,13,FALSE),IF(Table_Data_Table_1[[#This Row],[Valuation Method]]="Allocation",VLOOKUP(Table_Data_Table_1[[#This Row],[Item ID]],DataTable,6,FALSE)*I79,""))) ->  | I79: =IF(Table_Data_Table_1[[#This Row],[Valuation Method]]="Vacant","N/A",IF(Table_Data_Table_1[[#This Row],[Valuation Method]]="Abstraction",Table_Data_Table_1[[#This Row],[Land Residual]]/VLOOKUP(Table_Data_Table_1[[#This Row],[Item ID]],DataTable,6,FALSE),IF(Table_Data_Table_1[[#This Row],[Valuation Method]]="Allocation",'Global Settings'!$H$20,""))) ->  | J79: =IFERROR(ROUND(Table_Data_Table_1[[#This Row],[Resid Sq Ft]]/43560,3),"") ->  | K79: =IF(Table_Data_Table_1[[#This Row],[Item ID]]="","",IFERROR(VLOOKUP(Table_Data_Table_1[[#This Row],[Item ID]],DataTable,10,FALSE)-VLOOKUP(Table_Data_Table_1[[#This Row],[Item ID]],DataTable,12,FALSE),"")) ->  | L79: =IFERROR(Table_Data_Table_1[[#This Row],[Land Residual]]/Table_Data_Table_1[[#This Row],[Resid Acre]],"") ->  | M79: =IFERROR(ROUND(Table_Data_Table_1[[#This Row],[Land Residual]]/Table_Data_Table_1[[#This Row],[Resid Sq Ft]],2),"") ->  | N79: =IF(Table_Data_Table_1[[#This Row],[Item ID]]="","",ROUND(DAYS360(Table_Data_Table_1[[#This Row],[Sale Date]],'Global Settings'!$H$5)/30,0)) ->  | O79: =IFERROR(IF(AND(Table_Data_Table_1[[#This Row],[Months To Mid-Point]]<12.01,Table_Data_Table_1[[#This Row],[Months To Mid-Point]]>-13),0,(Table_Data_Table_1[[#This Row],[Months To Mid-Point]]*'Global Settings'!$H$6)),"") ->  | P79: =IFERROR(Table_Data_Table_1[[#This Row],[Land Residual]]*(Table_Data_Table_1[[#This Row],[Time Adjust]]+1),"") ->  | Q79: =IFERROR(Table_Data_Table_1[[#This Row],[Adjusted Sale Price]]/Table_Data_Table_1[[#This Row],[Resid Acre]],"") ->  | R79: =IFERROR(ROUND(Table_Data_Table_1[[#This Row],[Adjusted Sale Price]]/Table_Data_Table_1[[#This Row],[Resid Sq Ft]],2),"") ->  | S79: =IFERROR(IF(VLOOKUP(Table_Data_Table_1[[#This Row],[Item ID]],DataTable,11,FALSE)=0,"N/A",Table_Data_Table_1[[#This Row],[Adjusted Sale Price]]/VLOOKUP(Table_Data_Table_1[[#This Row],[Item ID]],DataTable,11,FALSE)),"") ->  | T79: =IF(IFERROR(VLOOKUP(Table_Data_Table_1[[#This Row],[Item ID]],DataTable,17,FALSE),"")=0,"",IFERROR(VLOOKUP(Table_Data_Table_1[[#This Row],[Item ID]],DataTable,17,FALSE),"")) -> 
C80: =IF(Table_Data_Table_1[[#This Row],[Item ID]]="","",IFERROR(VLOOKUP(Table_Data_Table_1[[#This Row],[Item ID]],DataTable,16,FALSE),"")) ->  | H80: =IF(Table_Data_Table_1[[#This Row],[Valuation Method]]="Vacant",VLOOKUP(Table_Data_Table_1[[#This Row],[Item ID]],DataTable,6,FALSE)-VLOOKUP(Table_Data_Table_1[[#This Row],[Item ID]],DataTable,13,FALSE),IF(Table_Data_Table_1[[#This Row],[Valuation Method]]="Abstraction",VLOOKUP(Table_Data_Table_1[[#This Row],[Item ID]],DataTable,6,FALSE)-VLOOKUP(Table_Data_Table_1[[#This Row],[Item ID]],DataTable,13,FALSE),IF(Table_Data_Table_1[[#This Row],[Valuation Method]]="Allocation",VLOOKUP(Table_Data_Table_1[[#This Row],[Item ID]],DataTable,6,FALSE)*I80,""))) ->  | I80: =IF(Table_Data_Table_1[[#This Row],[Valuation Method]]="Vacant","N/A",IF(Table_Data_Table_1[[#This Row],[Valuation Method]]="Abstraction",Table_Data_Table_1[[#This Row],[Land Residual]]/VLOOKUP(Table_Data_Table_1[[#This Row],[Item ID]],DataTable,6,FALSE),IF(Table_Data_Table_1[[#This Row],[Valuation Method]]="Allocation",'Global Settings'!$H$20,""))) ->  | J80: =IFERROR(ROUND(Table_Data_Table_1[[#This Row],[Resid Sq Ft]]/43560,3),"") ->  | K80: =IF(Table_Data_Table_1[[#This Row],[Item ID]]="","",IFERROR(VLOOKUP(Table_Data_Table_1[[#This Row],[Item ID]],DataTable,10,FALSE)-VLOOKUP(Table_Data_Table_1[[#This Row],[Item ID]],DataTable,12,FALSE),"")) ->  | L80: =IFERROR(Table_Data_Table_1[[#This Row],[Land Residual]]/Table_Data_Table_1[[#This Row],[Resid Acre]],"") ->  | M80: =IFERROR(ROUND(Table_Data_Table_1[[#This Row],[Land Residual]]/Table_Data_Table_1[[#This Row],[Resid Sq Ft]],2),"") ->  | N80: =IF(Table_Data_Table_1[[#This Row],[Item ID]]="","",ROUND(DAYS360(Table_Data_Table_1[[#This Row],[Sale Date]],'Global Settings'!$H$5)/30,0)) ->  | O80: =IFERROR(IF(AND(Table_Data_Table_1[[#This Row],[Months To Mid-Point]]<12.01,Table_Data_Table_1[[#This Row],[Months To Mid-Point]]>-13),0,(Table_Data_Table_1[[#This Row],[Months To Mid-Point]]*'Global Settings'!$H$6)),"") ->  | P80: =IFERROR(Table_Data_Table_1[[#This Row],[Land Residual]]*(Table_Data_Table_1[[#This Row],[Time Adjust]]+1),"") ->  | Q80: =IFERROR(Table_Data_Table_1[[#This Row],[Adjusted Sale Price]]/Table_Data_Table_1[[#This Row],[Resid Acre]],"") ->  | R80: =IFERROR(ROUND(Table_Data_Table_1[[#This Row],[Adjusted Sale Price]]/Table_Data_Table_1[[#This Row],[Resid Sq Ft]],2),"") ->  | S80: =IFERROR(IF(VLOOKUP(Table_Data_Table_1[[#This Row],[Item ID]],DataTable,11,FALSE)=0,"N/A",Table_Data_Table_1[[#This Row],[Adjusted Sale Price]]/VLOOKUP(Table_Data_Table_1[[#This Row],[Item ID]],DataTable,11,FALSE)),"") ->  | T80: =IF(IFERROR(VLOOKUP(Table_Data_Table_1[[#This Row],[Item ID]],DataTable,17,FALSE),"")=0,"",IFERROR(VLOOKUP(Table_Data_Table_1[[#This Row],[Item ID]],DataTable,17,FALSE),"")) -> 
C81: =IF(Table_Data_Table_1[[#This Row],[Item ID]]="","",IFERROR(VLOOKUP(Table_Data_Table_1[[#This Row],[Item ID]],DataTable,16,FALSE),"")) ->  | H81: =IF(Table_Data_Table_1[[#This Row],[Valuation Method]]="Vacant",VLOOKUP(Table_Data_Table_1[[#This Row],[Item ID]],DataTable,6,FALSE)-VLOOKUP(Table_Data_Table_1[[#This Row],[Item ID]],DataTable,13,FALSE),IF(Table_Data_Table_1[[#This Row],[Valuation Method]]="Abstraction",VLOOKUP(Table_Data_Table_1[[#This Row],[Item ID]],DataTable,6,FALSE)-VLOOKUP(Table_Data_Table_1[[#This Row],[Item ID]],DataTable,13,FALSE),IF(Table_Data_Table_1[[#This Row],[Valuation Method]]="Allocation",VLOOKUP(Table_Data_Table_1[[#This Row],[Item ID]],DataTable,6,FALSE)*I81,""))) ->  | I81: =IF(Table_Data_Table_1[[#This Row],[Valuation Method]]="Vacant","N/A",IF(Table_Data_Table_1[[#This Row],[Valuation Method]]="Abstraction",Table_Data_Table_1[[#This Row],[Land Residual]]/VLOOKUP(Table_Data_Table_1[[#This Row],[Item ID]],DataTable,6,FALSE),IF(Table_Data_Table_1[[#This Row],[Valuation Method]]="Allocation",'Global Settings'!$H$20,""))) ->  | J81: =IFERROR(ROUND(Table_Data_Table_1[[#This Row],[Resid Sq Ft]]/43560,3),"") ->  | K81: =IF(Table_Data_Table_1[[#This Row],[Item ID]]="","",IFERROR(VLOOKUP(Table_Data_Table_1[[#This Row],[Item ID]],DataTable,10,FALSE)-VLOOKUP(Table_Data_Table_1[[#This Row],[Item ID]],DataTable,12,FALSE),"")) ->  | L81: =IFERROR(Table_Data_Table_1[[#This Row],[Land Residual]]/Table_Data_Table_1[[#This Row],[Resid Acre]],"") ->  | M81: =IFERROR(ROUND(Table_Data_Table_1[[#This Row],[Land Residual]]/Table_Data_Table_1[[#This Row],[Resid Sq Ft]],2),"") ->  | N81: =IF(Table_Data_Table_1[[#This Row],[Item ID]]="","",ROUND(DAYS360(Table_Data_Table_1[[#This Row],[Sale Date]],'Global Settings'!$H$5)/30,0)) ->  | O81: =IFERROR(IF(AND(Table_Data_Table_1[[#This Row],[Months To Mid-Point]]<12.01,Table_Data_Table_1[[#This Row],[Months To Mid-Point]]>-13),0,(Table_Data_Table_1[[#This Row],[Months To Mid-Point]]*'Global Settings'!$H$6)),"") ->  | P81: =IFERROR(Table_Data_Table_1[[#This Row],[Land Residual]]*(Table_Data_Table_1[[#This Row],[Time Adjust]]+1),"") ->  | Q81: =IFERROR(Table_Data_Table_1[[#This Row],[Adjusted Sale Price]]/Table_Data_Table_1[[#This Row],[Resid Acre]],"") ->  | R81: =IFERROR(ROUND(Table_Data_Table_1[[#This Row],[Adjusted Sale Price]]/Table_Data_Table_1[[#This Row],[Resid Sq Ft]],2),"") ->  | S81: =IFERROR(IF(VLOOKUP(Table_Data_Table_1[[#This Row],[Item ID]],DataTable,11,FALSE)=0,"N/A",Table_Data_Table_1[[#This Row],[Adjusted Sale Price]]/VLOOKUP(Table_Data_Table_1[[#This Row],[Item ID]],DataTable,11,FALSE)),"") ->  | T81: =IF(IFERROR(VLOOKUP(Table_Data_Table_1[[#This Row],[Item ID]],DataTable,17,FALSE),"")=0,"",IFERROR(VLOOKUP(Table_Data_Table_1[[#This Row],[Item ID]],DataTable,17,FALSE),"")) -> 
C82: =IF(Table_Data_Table_1[[#This Row],[Item ID]]="","",IFERROR(VLOOKUP(Table_Data_Table_1[[#This Row],[Item ID]],DataTable,16,FALSE),"")) ->  | H82: =IF(Table_Data_Table_1[[#This Row],[Valuation Method]]="Vacant",VLOOKUP(Table_Data_Table_1[[#This Row],[Item ID]],DataTable,6,FALSE)-VLOOKUP(Table_Data_Table_1[[#This Row],[Item ID]],DataTable,13,FALSE),IF(Table_Data_Table_1[[#This Row],[Valuation Method]]="Abstraction",VLOOKUP(Table_Data_Table_1[[#This Row],[Item ID]],DataTable,6,FALSE)-VLOOKUP(Table_Data_Table_1[[#This Row],[Item ID]],DataTable,13,FALSE),IF(Table_Data_Table_1[[#This Row],[Valuation Method]]="Allocation",VLOOKUP(Table_Data_Table_1[[#This Row],[Item ID]],DataTable,6,FALSE)*I82,""))) ->  | I82: =IF(Table_Data_Table_1[[#This Row],[Valuation Method]]="Vacant","N/A",IF(Table_Data_Table_1[[#This Row],[Valuation Method]]="Abstraction",Table_Data_Table_1[[#This Row],[Land Residual]]/VLOOKUP(Table_Data_Table_1[[#This Row],[Item ID]],DataTable,6,FALSE),IF(Table_Data_Table_1[[#This Row],[Valuation Method]]="Allocation",'Global Settings'!$H$20,""))) ->  | J82: =IFERROR(ROUND(Table_Data_Table_1[[#This Row],[Resid Sq Ft]]/43560,3),"") ->  | K82: =IF(Table_Data_Table_1[[#This Row],[Item ID]]="","",IFERROR(VLOOKUP(Table_Data_Table_1[[#This Row],[Item ID]],DataTable,10,FALSE)-VLOOKUP(Table_Data_Table_1[[#This Row],[Item ID]],DataTable,12,FALSE),"")) ->  | L82: =IFERROR(Table_Data_Table_1[[#This Row],[Land Residual]]/Table_Data_Table_1[[#This Row],[Resid Acre]],"") ->  | M82: =IFERROR(ROUND(Table_Data_Table_1[[#This Row],[Land Residual]]/Table_Data_Table_1[[#This Row],[Resid Sq Ft]],2),"") ->  | N82: =IF(Table_Data_Table_1[[#This Row],[Item ID]]="","",ROUND(DAYS360(Table_Data_Table_1[[#This Row],[Sale Date]],'Global Settings'!$H$5)/30,0)) ->  | O82: =IFERROR(IF(AND(Table_Data_Table_1[[#This Row],[Months To Mid-Point]]<12.01,Table_Data_Table_1[[#This Row],[Months To Mid-Point]]>-13),0,(Table_Data_Table_1[[#This Row],[Months To Mid-Point]]*'Global Settings'!$H$6)),"") ->  | P82: =IFERROR(Table_Data_Table_1[[#This Row],[Land Residual]]*(Table_Data_Table_1[[#This Row],[Time Adjust]]+1),"") ->  | Q82: =IFERROR(Table_Data_Table_1[[#This Row],[Adjusted Sale Price]]/Table_Data_Table_1[[#This Row],[Resid Acre]],"") ->  | R82: =IFERROR(ROUND(Table_Data_Table_1[[#This Row],[Adjusted Sale Price]]/Table_Data_Table_1[[#This Row],[Resid Sq Ft]],2),"") ->  | S82: =IFERROR(IF(VLOOKUP(Table_Data_Table_1[[#This Row],[Item ID]],DataTable,11,FALSE)=0,"N/A",Table_Data_Table_1[[#This Row],[Adjusted Sale Price]]/VLOOKUP(Table_Data_Table_1[[#This Row],[Item ID]],DataTable,11,FALSE)),"") ->  | T82: =IF(IFERROR(VLOOKUP(Table_Data_Table_1[[#This Row],[Item ID]],DataTable,17,FALSE),"")=0,"",IFERROR(VLOOKUP(Table_Data_Table_1[[#This Row],[Item ID]],DataTable,17,FALSE),"")) -> 
C83: =IF(Table_Data_Table_1[[#This Row],[Item ID]]="","",IFERROR(VLOOKUP(Table_Data_Table_1[[#This Row],[Item ID]],DataTable,16,FALSE),"")) ->  | H83: =IF(Table_Data_Table_1[[#This Row],[Valuation Method]]="Vacant",VLOOKUP(Table_Data_Table_1[[#This Row],[Item ID]],DataTable,6,FALSE)-VLOOKUP(Table_Data_Table_1[[#This Row],[Item ID]],DataTable,13,FALSE),IF(Table_Data_Table_1[[#This Row],[Valuation Method]]="Abstraction",VLOOKUP(Table_Data_Table_1[[#This Row],[Item ID]],DataTable,6,FALSE)-VLOOKUP(Table_Data_Table_1[[#This Row],[Item ID]],DataTable,13,FALSE),IF(Table_Data_Table_1[[#This Row],[Valuation Method]]="Allocation",VLOOKUP(Table_Data_Table_1[[#This Row],[Item ID]],DataTable,6,FALSE)*I83,""))) ->  | I83: =IF(Table_Data_Table_1[[#This Row],[Valuation Method]]="Vacant","N/A",IF(Table_Data_Table_1[[#This Row],[Valuation Method]]="Abstraction",Table_Data_Table_1[[#This Row],[Land Residual]]/VLOOKUP(Table_Data_Table_1[[#This Row],[Item ID]],DataTable,6,FALSE),IF(Table_Data_Table_1[[#This Row],[Valuation Method]]="Allocation",'Global Settings'!$H$20,""))) ->  | J83: =IFERROR(ROUND(Table_Data_Table_1[[#This Row],[Resid Sq Ft]]/43560,3),"") ->  | K83: =IF(Table_Data_Table_1[[#This Row],[Item ID]]="","",IFERROR(VLOOKUP(Table_Data_Table_1[[#This Row],[Item ID]],DataTable,10,FALSE)-VLOOKUP(Table_Data_Table_1[[#This Row],[Item ID]],DataTable,12,FALSE),"")) ->  | L83: =IFERROR(Table_Data_Table_1[[#This Row],[Land Residual]]/Table_Data_Table_1[[#This Row],[Resid Acre]],"") ->  | M83: =IFERROR(ROUND(Table_Data_Table_1[[#This Row],[Land Residual]]/Table_Data_Table_1[[#This Row],[Resid Sq Ft]],2),"") ->  | N83: =IF(Table_Data_Table_1[[#This Row],[Item ID]]="","",ROUND(DAYS360(Table_Data_Table_1[[#This Row],[Sale Date]],'Global Settings'!$H$5)/30,0)) ->  | O83: =IFERROR(IF(AND(Table_Data_Table_1[[#This Row],[Months To Mid-Point]]<12.01,Table_Data_Table_1[[#This Row],[Months To Mid-Point]]>-13),0,(Table_Data_Table_1[[#This Row],[Months To Mid-Point]]*'Global Settings'!$H$6)),"") ->  | P83: =IFERROR(Table_Data_Table_1[[#This Row],[Land Residual]]*(Table_Data_Table_1[[#This Row],[Time Adjust]]+1),"") ->  | Q83: =IFERROR(Table_Data_Table_1[[#This Row],[Adjusted Sale Price]]/Table_Data_Table_1[[#This Row],[Resid Acre]],"") ->  | R83: =IFERROR(ROUND(Table_Data_Table_1[[#This Row],[Adjusted Sale Price]]/Table_Data_Table_1[[#This Row],[Resid Sq Ft]],2),"") ->  | S83: =IFERROR(IF(VLOOKUP(Table_Data_Table_1[[#This Row],[Item ID]],DataTable,11,FALSE)=0,"N/A",Table_Data_Table_1[[#This Row],[Adjusted Sale Price]]/VLOOKUP(Table_Data_Table_1[[#This Row],[Item ID]],DataTable,11,FALSE)),"") ->  | T83: =IF(IFERROR(VLOOKUP(Table_Data_Table_1[[#This Row],[Item ID]],DataTable,17,FALSE),"")=0,"",IFERROR(VLOOKUP(Table_Data_Table_1[[#This Row],[Item ID]],DataTable,17,FALSE),"")) -> 
C84: =IF(Table_Data_Table_1[[#This Row],[Item ID]]="","",IFERROR(VLOOKUP(Table_Data_Table_1[[#This Row],[Item ID]],DataTable,16,FALSE),"")) ->  | H84: =IF(Table_Data_Table_1[[#This Row],[Valuation Method]]="Vacant",VLOOKUP(Table_Data_Table_1[[#This Row],[Item ID]],DataTable,6,FALSE)-VLOOKUP(Table_Data_Table_1[[#This Row],[Item ID]],DataTable,13,FALSE),IF(Table_Data_Table_1[[#This Row],[Valuation Method]]="Abstraction",VLOOKUP(Table_Data_Table_1[[#This Row],[Item ID]],DataTable,6,FALSE)-VLOOKUP(Table_Data_Table_1[[#This Row],[Item ID]],DataTable,13,FALSE),IF(Table_Data_Table_1[[#This Row],[Valuation Method]]="Allocation",VLOOKUP(Table_Data_Table_1[[#This Row],[Item ID]],DataTable,6,FALSE)*I84,""))) ->  | I84: =IF(Table_Data_Table_1[[#This Row],[Valuation Method]]="Vacant","N/A",IF(Table_Data_Table_1[[#This Row],[Valuation Method]]="Abstraction",Table_Data_Table_1[[#This Row],[Land Residual]]/VLOOKUP(Table_Data_Table_1[[#This Row],[Item ID]],DataTable,6,FALSE),IF(Table_Data_Table_1[[#This Row],[Valuation Method]]="Allocation",'Global Settings'!$H$20,""))) ->  | J84: =IFERROR(ROUND(Table_Data_Table_1[[#This Row],[Resid Sq Ft]]/43560,3),"") ->  | K84: =IF(Table_Data_Table_1[[#This Row],[Item ID]]="","",IFERROR(VLOOKUP(Table_Data_Table_1[[#This Row],[Item ID]],DataTable,10,FALSE)-VLOOKUP(Table_Data_Table_1[[#This Row],[Item ID]],DataTable,12,FALSE),"")) ->  | L84: =IFERROR(Table_Data_Table_1[[#This Row],[Land Residual]]/Table_Data_Table_1[[#This Row],[Resid Acre]],"") ->  | M84: =IFERROR(ROUND(Table_Data_Table_1[[#This Row],[Land Residual]]/Table_Data_Table_1[[#This Row],[Resid Sq Ft]],2),"") ->  | N84: =IF(Table_Data_Table_1[[#This Row],[Item ID]]="","",ROUND(DAYS360(Table_Data_Table_1[[#This Row],[Sale Date]],'Global Settings'!$H$5)/30,0)) ->  | O84: =IFERROR(IF(AND(Table_Data_Table_1[[#This Row],[Months To Mid-Point]]<12.01,Table_Data_Table_1[[#This Row],[Months To Mid-Point]]>-13),0,(Table_Data_Table_1[[#This Row],[Months To Mid-Point]]*'Global Settings'!$H$6)),"") ->  | P84: =IFERROR(Table_Data_Table_1[[#This Row],[Land Residual]]*(Table_Data_Table_1[[#This Row],[Time Adjust]]+1),"") ->  | Q84: =IFERROR(Table_Data_Table_1[[#This Row],[Adjusted Sale Price]]/Table_Data_Table_1[[#This Row],[Resid Acre]],"") ->  | R84: =IFERROR(ROUND(Table_Data_Table_1[[#This Row],[Adjusted Sale Price]]/Table_Data_Table_1[[#This Row],[Resid Sq Ft]],2),"") ->  | S84: =IFERROR(IF(VLOOKUP(Table_Data_Table_1[[#This Row],[Item ID]],DataTable,11,FALSE)=0,"N/A",Table_Data_Table_1[[#This Row],[Adjusted Sale Price]]/VLOOKUP(Table_Data_Table_1[[#This Row],[Item ID]],DataTable,11,FALSE)),"") ->  | T84: =IF(IFERROR(VLOOKUP(Table_Data_Table_1[[#This Row],[Item ID]],DataTable,17,FALSE),"")=0,"",IFERROR(VLOOKUP(Table_Data_Table_1[[#This Row],[Item ID]],DataTable,17,FALSE),"")) -> 
C85: =IF(Table_Data_Table_1[[#This Row],[Item ID]]="","",IFERROR(VLOOKUP(Table_Data_Table_1[[#This Row],[Item ID]],DataTable,16,FALSE),"")) ->  | H85: =IF(Table_Data_Table_1[[#This Row],[Valuation Method]]="Vacant",VLOOKUP(Table_Data_Table_1[[#This Row],[Item ID]],DataTable,6,FALSE)-VLOOKUP(Table_Data_Table_1[[#This Row],[Item ID]],DataTable,13,FALSE),IF(Table_Data_Table_1[[#This Row],[Valuation Method]]="Abstraction",VLOOKUP(Table_Data_Table_1[[#This Row],[Item ID]],DataTable,6,FALSE)-VLOOKUP(Table_Data_Table_1[[#This Row],[Item ID]],DataTable,13,FALSE),IF(Table_Data_Table_1[[#This Row],[Valuation Method]]="Allocation",VLOOKUP(Table_Data_Table_1[[#This Row],[Item ID]],DataTable,6,FALSE)*I85,""))) ->  | I85: =IF(Table_Data_Table_1[[#This Row],[Valuation Method]]="Vacant","N/A",IF(Table_Data_Table_1[[#This Row],[Valuation Method]]="Abstraction",Table_Data_Table_1[[#This Row],[Land Residual]]/VLOOKUP(Table_Data_Table_1[[#This Row],[Item ID]],DataTable,6,FALSE),IF(Table_Data_Table_1[[#This Row],[Valuation Method]]="Allocation",'Global Settings'!$H$20,""))) ->  | J85: =IFERROR(ROUND(Table_Data_Table_1[[#This Row],[Resid Sq Ft]]/43560,3),"") ->  | K85: =IF(Table_Data_Table_1[[#This Row],[Item ID]]="","",IFERROR(VLOOKUP(Table_Data_Table_1[[#This Row],[Item ID]],DataTable,10,FALSE)-VLOOKUP(Table_Data_Table_1[[#This Row],[Item ID]],DataTable,12,FALSE),"")) ->  | L85: =IFERROR(Table_Data_Table_1[[#This Row],[Land Residual]]/Table_Data_Table_1[[#This Row],[Resid Acre]],"") ->  | M85: =IFERROR(ROUND(Table_Data_Table_1[[#This Row],[Land Residual]]/Table_Data_Table_1[[#This Row],[Resid Sq Ft]],2),"") ->  | N85: =IF(Table_Data_Table_1[[#This Row],[Item ID]]="","",ROUND(DAYS360(Table_Data_Table_1[[#This Row],[Sale Date]],'Global Settings'!$H$5)/30,0)) ->  | O85: =IFERROR(IF(AND(Table_Data_Table_1[[#This Row],[Months To Mid-Point]]<12.01,Table_Data_Table_1[[#This Row],[Months To Mid-Point]]>-13),0,(Table_Data_Table_1[[#This Row],[Months To Mid-Point]]*'Global Settings'!$H$6)),"") ->  | P85: =IFERROR(Table_Data_Table_1[[#This Row],[Land Residual]]*(Table_Data_Table_1[[#This Row],[Time Adjust]]+1),"") ->  | Q85: =IFERROR(Table_Data_Table_1[[#This Row],[Adjusted Sale Price]]/Table_Data_Table_1[[#This Row],[Resid Acre]],"") ->  | R85: =IFERROR(ROUND(Table_Data_Table_1[[#This Row],[Adjusted Sale Price]]/Table_Data_Table_1[[#This Row],[Resid Sq Ft]],2),"") ->  | S85: =IFERROR(IF(VLOOKUP(Table_Data_Table_1[[#This Row],[Item ID]],DataTable,11,FALSE)=0,"N/A",Table_Data_Table_1[[#This Row],[Adjusted Sale Price]]/VLOOKUP(Table_Data_Table_1[[#This Row],[Item ID]],DataTable,11,FALSE)),"") ->  | T85: =IF(IFERROR(VLOOKUP(Table_Data_Table_1[[#This Row],[Item ID]],DataTable,17,FALSE),"")=0,"",IFERROR(VLOOKUP(Table_Data_Table_1[[#This Row],[Item ID]],DataTable,17,FALSE),"")) -> 
C86: =IF(Table_Data_Table_1[[#This Row],[Item ID]]="","",IFERROR(VLOOKUP(Table_Data_Table_1[[#This Row],[Item ID]],DataTable,16,FALSE),"")) ->  | H86: =IF(Table_Data_Table_1[[#This Row],[Valuation Method]]="Vacant",VLOOKUP(Table_Data_Table_1[[#This Row],[Item ID]],DataTable,6,FALSE)-VLOOKUP(Table_Data_Table_1[[#This Row],[Item ID]],DataTable,13,FALSE),IF(Table_Data_Table_1[[#This Row],[Valuation Method]]="Abstraction",VLOOKUP(Table_Data_Table_1[[#This Row],[Item ID]],DataTable,6,FALSE)-VLOOKUP(Table_Data_Table_1[[#This Row],[Item ID]],DataTable,13,FALSE),IF(Table_Data_Table_1[[#This Row],[Valuation Method]]="Allocation",VLOOKUP(Table_Data_Table_1[[#This Row],[Item ID]],DataTable,6,FALSE)*I86,""))) ->  | I86: =IF(Table_Data_Table_1[[#This Row],[Valuation Method]]="Vacant","N/A",IF(Table_Data_Table_1[[#This Row],[Valuation Method]]="Abstraction",Table_Data_Table_1[[#This Row],[Land Residual]]/VLOOKUP(Table_Data_Table_1[[#This Row],[Item ID]],DataTable,6,FALSE),IF(Table_Data_Table_1[[#This Row],[Valuation Method]]="Allocation",'Global Settings'!$H$20,""))) ->  | J86: =IFERROR(ROUND(Table_Data_Table_1[[#This Row],[Resid Sq Ft]]/43560,3),"") ->  | K86: =IF(Table_Data_Table_1[[#This Row],[Item ID]]="","",IFERROR(VLOOKUP(Table_Data_Table_1[[#This Row],[Item ID]],DataTable,10,FALSE)-VLOOKUP(Table_Data_Table_1[[#This Row],[Item ID]],DataTable,12,FALSE),"")) ->  | L86: =IFERROR(Table_Data_Table_1[[#This Row],[Land Residual]]/Table_Data_Table_1[[#This Row],[Resid Acre]],"") ->  | M86: =IFERROR(ROUND(Table_Data_Table_1[[#This Row],[Land Residual]]/Table_Data_Table_1[[#This Row],[Resid Sq Ft]],2),"") ->  | N86: =IF(Table_Data_Table_1[[#This Row],[Item ID]]="","",ROUND(DAYS360(Table_Data_Table_1[[#This Row],[Sale Date]],'Global Settings'!$H$5)/30,0)) ->  | O86: =IFERROR(IF(AND(Table_Data_Table_1[[#This Row],[Months To Mid-Point]]<12.01,Table_Data_Table_1[[#This Row],[Months To Mid-Point]]>-13),0,(Table_Data_Table_1[[#This Row],[Months To Mid-Point]]*'Global Settings'!$H$6)),"") ->  | P86: =IFERROR(Table_Data_Table_1[[#This Row],[Land Residual]]*(Table_Data_Table_1[[#This Row],[Time Adjust]]+1),"") ->  | Q86: =IFERROR(Table_Data_Table_1[[#This Row],[Adjusted Sale Price]]/Table_Data_Table_1[[#This Row],[Resid Acre]],"") ->  | R86: =IFERROR(ROUND(Table_Data_Table_1[[#This Row],[Adjusted Sale Price]]/Table_Data_Table_1[[#This Row],[Resid Sq Ft]],2),"") ->  | S86: =IFERROR(IF(VLOOKUP(Table_Data_Table_1[[#This Row],[Item ID]],DataTable,11,FALSE)=0,"N/A",Table_Data_Table_1[[#This Row],[Adjusted Sale Price]]/VLOOKUP(Table_Data_Table_1[[#This Row],[Item ID]],DataTable,11,FALSE)),"") ->  | T86: =IF(IFERROR(VLOOKUP(Table_Data_Table_1[[#This Row],[Item ID]],DataTable,17,FALSE),"")=0,"",IFERROR(VLOOKUP(Table_Data_Table_1[[#This Row],[Item ID]],DataTable,17,FALSE),"")) -> 
C87: =IF(Table_Data_Table_1[[#This Row],[Item ID]]="","",IFERROR(VLOOKUP(Table_Data_Table_1[[#This Row],[Item ID]],DataTable,16,FALSE),"")) ->  | H87: =IF(Table_Data_Table_1[[#This Row],[Valuation Method]]="Vacant",VLOOKUP(Table_Data_Table_1[[#This Row],[Item ID]],DataTable,6,FALSE)-VLOOKUP(Table_Data_Table_1[[#This Row],[Item ID]],DataTable,13,FALSE),IF(Table_Data_Table_1[[#This Row],[Valuation Method]]="Abstraction",VLOOKUP(Table_Data_Table_1[[#This Row],[Item ID]],DataTable,6,FALSE)-VLOOKUP(Table_Data_Table_1[[#This Row],[Item ID]],DataTable,13,FALSE),IF(Table_Data_Table_1[[#This Row],[Valuation Method]]="Allocation",VLOOKUP(Table_Data_Table_1[[#This Row],[Item ID]],DataTable,6,FALSE)*I87,""))) ->  | I87: =IF(Table_Data_Table_1[[#This Row],[Valuation Method]]="Vacant","N/A",IF(Table_Data_Table_1[[#This Row],[Valuation Method]]="Abstraction",Table_Data_Table_1[[#This Row],[Land Residual]]/VLOOKUP(Table_Data_Table_1[[#This Row],[Item ID]],DataTable,6,FALSE),IF(Table_Data_Table_1[[#This Row],[Valuation Method]]="Allocation",'Global Settings'!$H$20,""))) ->  | J87: =IFERROR(ROUND(Table_Data_Table_1[[#This Row],[Resid Sq Ft]]/43560,3),"") ->  | K87: =IF(Table_Data_Table_1[[#This Row],[Item ID]]="","",IFERROR(VLOOKUP(Table_Data_Table_1[[#This Row],[Item ID]],DataTable,10,FALSE)-VLOOKUP(Table_Data_Table_1[[#This Row],[Item ID]],DataTable,12,FALSE),"")) ->  | L87: =IFERROR(Table_Data_Table_1[[#This Row],[Land Residual]]/Table_Data_Table_1[[#This Row],[Resid Acre]],"") ->  | M87: =IFERROR(ROUND(Table_Data_Table_1[[#This Row],[Land Residual]]/Table_Data_Table_1[[#This Row],[Resid Sq Ft]],2),"") ->  | N87: =IF(Table_Data_Table_1[[#This Row],[Item ID]]="","",ROUND(DAYS360(Table_Data_Table_1[[#This Row],[Sale Date]],'Global Settings'!$H$5)/30,0)) ->  | O87: =IFERROR(IF(AND(Table_Data_Table_1[[#This Row],[Months To Mid-Point]]<12.01,Table_Data_Table_1[[#This Row],[Months To Mid-Point]]>-13),0,(Table_Data_Table_1[[#This Row],[Months To Mid-Point]]*'Global Settings'!$H$6)),"") ->  | P87: =IFERROR(Table_Data_Table_1[[#This Row],[Land Residual]]*(Table_Data_Table_1[[#This Row],[Time Adjust]]+1),"") ->  | Q87: =IFERROR(Table_Data_Table_1[[#This Row],[Adjusted Sale Price]]/Table_Data_Table_1[[#This Row],[Resid Acre]],"") ->  | R87: =IFERROR(ROUND(Table_Data_Table_1[[#This Row],[Adjusted Sale Price]]/Table_Data_Table_1[[#This Row],[Resid Sq Ft]],2),"") ->  | S87: =IFERROR(IF(VLOOKUP(Table_Data_Table_1[[#This Row],[Item ID]],DataTable,11,FALSE)=0,"N/A",Table_Data_Table_1[[#This Row],[Adjusted Sale Price]]/VLOOKUP(Table_Data_Table_1[[#This Row],[Item ID]],DataTable,11,FALSE)),"") ->  | T87: =IF(IFERROR(VLOOKUP(Table_Data_Table_1[[#This Row],[Item ID]],DataTable,17,FALSE),"")=0,"",IFERROR(VLOOKUP(Table_Data_Table_1[[#This Row],[Item ID]],DataTable,17,FALSE),"")) -> 
C88: =IF(Table_Data_Table_1[[#This Row],[Item ID]]="","",IFERROR(VLOOKUP(Table_Data_Table_1[[#This Row],[Item ID]],DataTable,16,FALSE),"")) ->  | H88: =IF(Table_Data_Table_1[[#This Row],[Valuation Method]]="Vacant",VLOOKUP(Table_Data_Table_1[[#This Row],[Item ID]],DataTable,6,FALSE)-VLOOKUP(Table_Data_Table_1[[#This Row],[Item ID]],DataTable,13,FALSE),IF(Table_Data_Table_1[[#This Row],[Valuation Method]]="Abstraction",VLOOKUP(Table_Data_Table_1[[#This Row],[Item ID]],DataTable,6,FALSE)-VLOOKUP(Table_Data_Table_1[[#This Row],[Item ID]],DataTable,13,FALSE),IF(Table_Data_Table_1[[#This Row],[Valuation Method]]="Allocation",VLOOKUP(Table_Data_Table_1[[#This Row],[Item ID]],DataTable,6,FALSE)*I88,""))) ->  | I88: =IF(Table_Data_Table_1[[#This Row],[Valuation Method]]="Vacant","N/A",IF(Table_Data_Table_1[[#This Row],[Valuation Method]]="Abstraction",Table_Data_Table_1[[#This Row],[Land Residual]]/VLOOKUP(Table_Data_Table_1[[#This Row],[Item ID]],DataTable,6,FALSE),IF(Table_Data_Table_1[[#This Row],[Valuation Method]]="Allocation",'Global Settings'!$H$20,""))) ->  | J88: =IFERROR(ROUND(Table_Data_Table_1[[#This Row],[Resid Sq Ft]]/43560,3),"") ->  | K88: =IF(Table_Data_Table_1[[#This Row],[Item ID]]="","",IFERROR(VLOOKUP(Table_Data_Table_1[[#This Row],[Item ID]],DataTable,10,FALSE)-VLOOKUP(Table_Data_Table_1[[#This Row],[Item ID]],DataTable,12,FALSE),"")) ->  | L88: =IFERROR(Table_Data_Table_1[[#This Row],[Land Residual]]/Table_Data_Table_1[[#This Row],[Resid Acre]],"") ->  | M88: =IFERROR(ROUND(Table_Data_Table_1[[#This Row],[Land Residual]]/Table_Data_Table_1[[#This Row],[Resid Sq Ft]],2),"") ->  | N88: =IF(Table_Data_Table_1[[#This Row],[Item ID]]="","",ROUND(DAYS360(Table_Data_Table_1[[#This Row],[Sale Date]],'Global Settings'!$H$5)/30,0)) ->  | O88: =IFERROR(IF(AND(Table_Data_Table_1[[#This Row],[Months To Mid-Point]]<12.01,Table_Data_Table_1[[#This Row],[Months To Mid-Point]]>-13),0,(Table_Data_Table_1[[#This Row],[Months To Mid-Point]]*'Global Settings'!$H$6)),"") ->  | P88: =IFERROR(Table_Data_Table_1[[#This Row],[Land Residual]]*(Table_Data_Table_1[[#This Row],[Time Adjust]]+1),"") ->  | Q88: =IFERROR(Table_Data_Table_1[[#This Row],[Adjusted Sale Price]]/Table_Data_Table_1[[#This Row],[Resid Acre]],"") ->  | R88: =IFERROR(ROUND(Table_Data_Table_1[[#This Row],[Adjusted Sale Price]]/Table_Data_Table_1[[#This Row],[Resid Sq Ft]],2),"") ->  | S88: =IFERROR(IF(VLOOKUP(Table_Data_Table_1[[#This Row],[Item ID]],DataTable,11,FALSE)=0,"N/A",Table_Data_Table_1[[#This Row],[Adjusted Sale Price]]/VLOOKUP(Table_Data_Table_1[[#This Row],[Item ID]],DataTable,11,FALSE)),"") ->  | T88: =IF(IFERROR(VLOOKUP(Table_Data_Table_1[[#This Row],[Item ID]],DataTable,17,FALSE),"")=0,"",IFERROR(VLOOKUP(Table_Data_Table_1[[#This Row],[Item ID]],DataTable,17,FALSE),"")) -> 
C89: =IF(Table_Data_Table_1[[#This Row],[Item ID]]="","",IFERROR(VLOOKUP(Table_Data_Table_1[[#This Row],[Item ID]],DataTable,16,FALSE),"")) ->  | H89: =IF(Table_Data_Table_1[[#This Row],[Valuation Method]]="Vacant",VLOOKUP(Table_Data_Table_1[[#This Row],[Item ID]],DataTable,6,FALSE)-VLOOKUP(Table_Data_Table_1[[#This Row],[Item ID]],DataTable,13,FALSE),IF(Table_Data_Table_1[[#This Row],[Valuation Method]]="Abstraction",VLOOKUP(Table_Data_Table_1[[#This Row],[Item ID]],DataTable,6,FALSE)-VLOOKUP(Table_Data_Table_1[[#This Row],[Item ID]],DataTable,13,FALSE),IF(Table_Data_Table_1[[#This Row],[Valuation Method]]="Allocation",VLOOKUP(Table_Data_Table_1[[#This Row],[Item ID]],DataTable,6,FALSE)*I89,""))) ->  | I89: =IF(Table_Data_Table_1[[#This Row],[Valuation Method]]="Vacant","N/A",IF(Table_Data_Table_1[[#This Row],[Valuation Method]]="Abstraction",Table_Data_Table_1[[#This Row],[Land Residual]]/VLOOKUP(Table_Data_Table_1[[#This Row],[Item ID]],DataTable,6,FALSE),IF(Table_Data_Table_1[[#This Row],[Valuation Method]]="Allocation",'Global Settings'!$H$20,""))) ->  | J89: =IFERROR(ROUND(Table_Data_Table_1[[#This Row],[Resid Sq Ft]]/43560,3),"") ->  | K89: =IF(Table_Data_Table_1[[#This Row],[Item ID]]="","",IFERROR(VLOOKUP(Table_Data_Table_1[[#This Row],[Item ID]],DataTable,10,FALSE)-VLOOKUP(Table_Data_Table_1[[#This Row],[Item ID]],DataTable,12,FALSE),"")) ->  | L89: =IFERROR(Table_Data_Table_1[[#This Row],[Land Residual]]/Table_Data_Table_1[[#This Row],[Resid Acre]],"") ->  | M89: =IFERROR(ROUND(Table_Data_Table_1[[#This Row],[Land Residual]]/Table_Data_Table_1[[#This Row],[Resid Sq Ft]],2),"") ->  | N89: =IF(Table_Data_Table_1[[#This Row],[Item ID]]="","",ROUND(DAYS360(Table_Data_Table_1[[#This Row],[Sale Date]],'Global Settings'!$H$5)/30,0)) ->  | O89: =IFERROR(IF(AND(Table_Data_Table_1[[#This Row],[Months To Mid-Point]]<12.01,Table_Data_Table_1[[#This Row],[Months To Mid-Point]]>-13),0,(Table_Data_Table_1[[#This Row],[Months To Mid-Point]]*'Global Settings'!$H$6)),"") ->  | P89: =IFERROR(Table_Data_Table_1[[#This Row],[Land Residual]]*(Table_Data_Table_1[[#This Row],[Time Adjust]]+1),"") ->  | Q89: =IFERROR(Table_Data_Table_1[[#This Row],[Adjusted Sale Price]]/Table_Data_Table_1[[#This Row],[Resid Acre]],"") ->  | R89: =IFERROR(ROUND(Table_Data_Table_1[[#This Row],[Adjusted Sale Price]]/Table_Data_Table_1[[#This Row],[Resid Sq Ft]],2),"") ->  | S89: =IFERROR(IF(VLOOKUP(Table_Data_Table_1[[#This Row],[Item ID]],DataTable,11,FALSE)=0,"N/A",Table_Data_Table_1[[#This Row],[Adjusted Sale Price]]/VLOOKUP(Table_Data_Table_1[[#This Row],[Item ID]],DataTable,11,FALSE)),"") ->  | T89: =IF(IFERROR(VLOOKUP(Table_Data_Table_1[[#This Row],[Item ID]],DataTable,17,FALSE),"")=0,"",IFERROR(VLOOKUP(Table_Data_Table_1[[#This Row],[Item ID]],DataTable,17,FALSE),"")) -> 
C90: =IF(Table_Data_Table_1[[#This Row],[Item ID]]="","",IFERROR(VLOOKUP(Table_Data_Table_1[[#This Row],[Item ID]],DataTable,16,FALSE),"")) ->  | H90: =IF(Table_Data_Table_1[[#This Row],[Valuation Method]]="Vacant",VLOOKUP(Table_Data_Table_1[[#This Row],[Item ID]],DataTable,6,FALSE)-VLOOKUP(Table_Data_Table_1[[#This Row],[Item ID]],DataTable,13,FALSE),IF(Table_Data_Table_1[[#This Row],[Valuation Method]]="Abstraction",VLOOKUP(Table_Data_Table_1[[#This Row],[Item ID]],DataTable,6,FALSE)-VLOOKUP(Table_Data_Table_1[[#This Row],[Item ID]],DataTable,13,FALSE),IF(Table_Data_Table_1[[#This Row],[Valuation Method]]="Allocation",VLOOKUP(Table_Data_Table_1[[#This Row],[Item ID]],DataTable,6,FALSE)*I90,""))) ->  | I90: =IF(Table_Data_Table_1[[#This Row],[Valuation Method]]="Vacant","N/A",IF(Table_Data_Table_1[[#This Row],[Valuation Method]]="Abstraction",Table_Data_Table_1[[#This Row],[Land Residual]]/VLOOKUP(Table_Data_Table_1[[#This Row],[Item ID]],DataTable,6,FALSE),IF(Table_Data_Table_1[[#This Row],[Valuation Method]]="Allocation",'Global Settings'!$H$20,""))) ->  | J90: =IFERROR(ROUND(Table_Data_Table_1[[#This Row],[Resid Sq Ft]]/43560,3),"") ->  | K90: =IF(Table_Data_Table_1[[#This Row],[Item ID]]="","",IFERROR(VLOOKUP(Table_Data_Table_1[[#This Row],[Item ID]],DataTable,10,FALSE)-VLOOKUP(Table_Data_Table_1[[#This Row],[Item ID]],DataTable,12,FALSE),"")) ->  | L90: =IFERROR(Table_Data_Table_1[[#This Row],[Land Residual]]/Table_Data_Table_1[[#This Row],[Resid Acre]],"") ->  | M90: =IFERROR(ROUND(Table_Data_Table_1[[#This Row],[Land Residual]]/Table_Data_Table_1[[#This Row],[Resid Sq Ft]],2),"") ->  | N90: =IF(Table_Data_Table_1[[#This Row],[Item ID]]="","",ROUND(DAYS360(Table_Data_Table_1[[#This Row],[Sale Date]],'Global Settings'!$H$5)/30,0)) ->  | O90: =IFERROR(IF(AND(Table_Data_Table_1[[#This Row],[Months To Mid-Point]]<12.01,Table_Data_Table_1[[#This Row],[Months To Mid-Point]]>-13),0,(Table_Data_Table_1[[#This Row],[Months To Mid-Point]]*'Global Settings'!$H$6)),"") ->  | P90: =IFERROR(Table_Data_Table_1[[#This Row],[Land Residual]]*(Table_Data_Table_1[[#This Row],[Time Adjust]]+1),"") ->  | Q90: =IFERROR(Table_Data_Table_1[[#This Row],[Adjusted Sale Price]]/Table_Data_Table_1[[#This Row],[Resid Acre]],"") ->  | R90: =IFERROR(ROUND(Table_Data_Table_1[[#This Row],[Adjusted Sale Price]]/Table_Data_Table_1[[#This Row],[Resid Sq Ft]],2),"") ->  | S90: =IFERROR(IF(VLOOKUP(Table_Data_Table_1[[#This Row],[Item ID]],DataTable,11,FALSE)=0,"N/A",Table_Data_Table_1[[#This Row],[Adjusted Sale Price]]/VLOOKUP(Table_Data_Table_1[[#This Row],[Item ID]],DataTable,11,FALSE)),"") ->  | T90: =IF(IFERROR(VLOOKUP(Table_Data_Table_1[[#This Row],[Item ID]],DataTable,17,FALSE),"")=0,"",IFERROR(VLOOKUP(Table_Data_Table_1[[#This Row],[Item ID]],DataTable,17,FALSE),"")) -> 
C91: =IF(Table_Data_Table_1[[#This Row],[Item ID]]="","",IFERROR(VLOOKUP(Table_Data_Table_1[[#This Row],[Item ID]],DataTable,16,FALSE),"")) ->  | H91: =IF(Table_Data_Table_1[[#This Row],[Valuation Method]]="Vacant",VLOOKUP(Table_Data_Table_1[[#This Row],[Item ID]],DataTable,6,FALSE)-VLOOKUP(Table_Data_Table_1[[#This Row],[Item ID]],DataTable,13,FALSE),IF(Table_Data_Table_1[[#This Row],[Valuation Method]]="Abstraction",VLOOKUP(Table_Data_Table_1[[#This Row],[Item ID]],DataTable,6,FALSE)-VLOOKUP(Table_Data_Table_1[[#This Row],[Item ID]],DataTable,13,FALSE),IF(Table_Data_Table_1[[#This Row],[Valuation Method]]="Allocation",VLOOKUP(Table_Data_Table_1[[#This Row],[Item ID]],DataTable,6,FALSE)*I91,""))) ->  | I91: =IF(Table_Data_Table_1[[#This Row],[Valuation Method]]="Vacant","N/A",IF(Table_Data_Table_1[[#This Row],[Valuation Method]]="Abstraction",Table_Data_Table_1[[#This Row],[Land Residual]]/VLOOKUP(Table_Data_Table_1[[#This Row],[Item ID]],DataTable,6,FALSE),IF(Table_Data_Table_1[[#This Row],[Valuation Method]]="Allocation",'Global Settings'!$H$20,""))) ->  | J91: =IFERROR(ROUND(Table_Data_Table_1[[#This Row],[Resid Sq Ft]]/43560,3),"") ->  | K91: =IF(Table_Data_Table_1[[#This Row],[Item ID]]="","",IFERROR(VLOOKUP(Table_Data_Table_1[[#This Row],[Item ID]],DataTable,10,FALSE)-VLOOKUP(Table_Data_Table_1[[#This Row],[Item ID]],DataTable,12,FALSE),"")) ->  | L91: =IFERROR(Table_Data_Table_1[[#This Row],[Land Residual]]/Table_Data_Table_1[[#This Row],[Resid Acre]],"") ->  | M91: =IFERROR(ROUND(Table_Data_Table_1[[#This Row],[Land Residual]]/Table_Data_Table_1[[#This Row],[Resid Sq Ft]],2),"") ->  | N91: =IF(Table_Data_Table_1[[#This Row],[Item ID]]="","",ROUND(DAYS360(Table_Data_Table_1[[#This Row],[Sale Date]],'Global Settings'!$H$5)/30,0)) ->  | O91: =IFERROR(IF(AND(Table_Data_Table_1[[#This Row],[Months To Mid-Point]]<12.01,Table_Data_Table_1[[#This Row],[Months To Mid-Point]]>-13),0,(Table_Data_Table_1[[#This Row],[Months To Mid-Point]]*'Global Settings'!$H$6)),"") ->  | P91: =IFERROR(Table_Data_Table_1[[#This Row],[Land Residual]]*(Table_Data_Table_1[[#This Row],[Time Adjust]]+1),"") ->  | Q91: =IFERROR(Table_Data_Table_1[[#This Row],[Adjusted Sale Price]]/Table_Data_Table_1[[#This Row],[Resid Acre]],"") ->  | R91: =IFERROR(ROUND(Table_Data_Table_1[[#This Row],[Adjusted Sale Price]]/Table_Data_Table_1[[#This Row],[Resid Sq Ft]],2),"") ->  | S91: =IFERROR(IF(VLOOKUP(Table_Data_Table_1[[#This Row],[Item ID]],DataTable,11,FALSE)=0,"N/A",Table_Data_Table_1[[#This Row],[Adjusted Sale Price]]/VLOOKUP(Table_Data_Table_1[[#This Row],[Item ID]],DataTable,11,FALSE)),"") ->  | T91: =IF(IFERROR(VLOOKUP(Table_Data_Table_1[[#This Row],[Item ID]],DataTable,17,FALSE),"")=0,"",IFERROR(VLOOKUP(Table_Data_Table_1[[#This Row],[Item ID]],DataTable,17,FALSE),"")) -> 
C92: =IF(Table_Data_Table_1[[#This Row],[Item ID]]="","",IFERROR(VLOOKUP(Table_Data_Table_1[[#This Row],[Item ID]],DataTable,16,FALSE),"")) ->  | H92: =IF(Table_Data_Table_1[[#This Row],[Valuation Method]]="Vacant",VLOOKUP(Table_Data_Table_1[[#This Row],[Item ID]],DataTable,6,FALSE)-VLOOKUP(Table_Data_Table_1[[#This Row],[Item ID]],DataTable,13,FALSE),IF(Table_Data_Table_1[[#This Row],[Valuation Method]]="Abstraction",VLOOKUP(Table_Data_Table_1[[#This Row],[Item ID]],DataTable,6,FALSE)-VLOOKUP(Table_Data_Table_1[[#This Row],[Item ID]],DataTable,13,FALSE),IF(Table_Data_Table_1[[#This Row],[Valuation Method]]="Allocation",VLOOKUP(Table_Data_Table_1[[#This Row],[Item ID]],DataTable,6,FALSE)*I92,""))) ->  | I92: =IF(Table_Data_Table_1[[#This Row],[Valuation Method]]="Vacant","N/A",IF(Table_Data_Table_1[[#This Row],[Valuation Method]]="Abstraction",Table_Data_Table_1[[#This Row],[Land Residual]]/VLOOKUP(Table_Data_Table_1[[#This Row],[Item ID]],DataTable,6,FALSE),IF(Table_Data_Table_1[[#This Row],[Valuation Method]]="Allocation",'Global Settings'!$H$20,""))) ->  | J92: =IFERROR(ROUND(Table_Data_Table_1[[#This Row],[Resid Sq Ft]]/43560,3),"") ->  | K92: =IF(Table_Data_Table_1[[#This Row],[Item ID]]="","",IFERROR(VLOOKUP(Table_Data_Table_1[[#This Row],[Item ID]],DataTable,10,FALSE)-VLOOKUP(Table_Data_Table_1[[#This Row],[Item ID]],DataTable,12,FALSE),"")) ->  | L92: =IFERROR(Table_Data_Table_1[[#This Row],[Land Residual]]/Table_Data_Table_1[[#This Row],[Resid Acre]],"") ->  | M92: =IFERROR(ROUND(Table_Data_Table_1[[#This Row],[Land Residual]]/Table_Data_Table_1[[#This Row],[Resid Sq Ft]],2),"") ->  | N92: =IF(Table_Data_Table_1[[#This Row],[Item ID]]="","",ROUND(DAYS360(Table_Data_Table_1[[#This Row],[Sale Date]],'Global Settings'!$H$5)/30,0)) ->  | O92: =IFERROR(IF(AND(Table_Data_Table_1[[#This Row],[Months To Mid-Point]]<12.01,Table_Data_Table_1[[#This Row],[Months To Mid-Point]]>-13),0,(Table_Data_Table_1[[#This Row],[Months To Mid-Point]]*'Global Settings'!$H$6)),"") ->  | P92: =IFERROR(Table_Data_Table_1[[#This Row],[Land Residual]]*(Table_Data_Table_1[[#This Row],[Time Adjust]]+1),"") ->  | Q92: =IFERROR(Table_Data_Table_1[[#This Row],[Adjusted Sale Price]]/Table_Data_Table_1[[#This Row],[Resid Acre]],"") ->  | R92: =IFERROR(ROUND(Table_Data_Table_1[[#This Row],[Adjusted Sale Price]]/Table_Data_Table_1[[#This Row],[Resid Sq Ft]],2),"") ->  | S92: =IFERROR(IF(VLOOKUP(Table_Data_Table_1[[#This Row],[Item ID]],DataTable,11,FALSE)=0,"N/A",Table_Data_Table_1[[#This Row],[Adjusted Sale Price]]/VLOOKUP(Table_Data_Table_1[[#This Row],[Item ID]],DataTable,11,FALSE)),"") ->  | T92: =IF(IFERROR(VLOOKUP(Table_Data_Table_1[[#This Row],[Item ID]],DataTable,17,FALSE),"")=0,"",IFERROR(VLOOKUP(Table_Data_Table_1[[#This Row],[Item ID]],DataTable,17,FALSE),"")) -> 
C93: =IF(Table_Data_Table_1[[#This Row],[Item ID]]="","",IFERROR(VLOOKUP(Table_Data_Table_1[[#This Row],[Item ID]],DataTable,16,FALSE),"")) ->  | H93: =IF(Table_Data_Table_1[[#This Row],[Valuation Method]]="Vacant",VLOOKUP(Table_Data_Table_1[[#This Row],[Item ID]],DataTable,6,FALSE)-VLOOKUP(Table_Data_Table_1[[#This Row],[Item ID]],DataTable,13,FALSE),IF(Table_Data_Table_1[[#This Row],[Valuation Method]]="Abstraction",VLOOKUP(Table_Data_Table_1[[#This Row],[Item ID]],DataTable,6,FALSE)-VLOOKUP(Table_Data_Table_1[[#This Row],[Item ID]],DataTable,13,FALSE),IF(Table_Data_Table_1[[#This Row],[Valuation Method]]="Allocation",VLOOKUP(Table_Data_Table_1[[#This Row],[Item ID]],DataTable,6,FALSE)*I93,""))) ->  | I93: =IF(Table_Data_Table_1[[#This Row],[Valuation Method]]="Vacant","N/A",IF(Table_Data_Table_1[[#This Row],[Valuation Method]]="Abstraction",Table_Data_Table_1[[#This Row],[Land Residual]]/VLOOKUP(Table_Data_Table_1[[#This Row],[Item ID]],DataTable,6,FALSE),IF(Table_Data_Table_1[[#This Row],[Valuation Method]]="Allocation",'Global Settings'!$H$20,""))) ->  | J93: =IFERROR(ROUND(Table_Data_Table_1[[#This Row],[Resid Sq Ft]]/43560,3),"") ->  | K93: =IF(Table_Data_Table_1[[#This Row],[Item ID]]="","",IFERROR(VLOOKUP(Table_Data_Table_1[[#This Row],[Item ID]],DataTable,10,FALSE)-VLOOKUP(Table_Data_Table_1[[#This Row],[Item ID]],DataTable,12,FALSE),"")) ->  | L93: =IFERROR(Table_Data_Table_1[[#This Row],[Land Residual]]/Table_Data_Table_1[[#This Row],[Resid Acre]],"") ->  | M93: =IFERROR(ROUND(Table_Data_Table_1[[#This Row],[Land Residual]]/Table_Data_Table_1[[#This Row],[Resid Sq Ft]],2),"") ->  | N93: =IF(Table_Data_Table_1[[#This Row],[Item ID]]="","",ROUND(DAYS360(Table_Data_Table_1[[#This Row],[Sale Date]],'Global Settings'!$H$5)/30,0)) ->  | O93: =IFERROR(IF(AND(Table_Data_Table_1[[#This Row],[Months To Mid-Point]]<12.01,Table_Data_Table_1[[#This Row],[Months To Mid-Point]]>-13),0,(Table_Data_Table_1[[#This Row],[Months To Mid-Point]]*'Global Settings'!$H$6)),"") ->  | P93: =IFERROR(Table_Data_Table_1[[#This Row],[Land Residual]]*(Table_Data_Table_1[[#This Row],[Time Adjust]]+1),"") ->  | Q93: =IFERROR(Table_Data_Table_1[[#This Row],[Adjusted Sale Price]]/Table_Data_Table_1[[#This Row],[Resid Acre]],"") ->  | R93: =IFERROR(ROUND(Table_Data_Table_1[[#This Row],[Adjusted Sale Price]]/Table_Data_Table_1[[#This Row],[Resid Sq Ft]],2),"") ->  | S93: =IFERROR(IF(VLOOKUP(Table_Data_Table_1[[#This Row],[Item ID]],DataTable,11,FALSE)=0,"N/A",Table_Data_Table_1[[#This Row],[Adjusted Sale Price]]/VLOOKUP(Table_Data_Table_1[[#This Row],[Item ID]],DataTable,11,FALSE)),"") ->  | T93: =IF(IFERROR(VLOOKUP(Table_Data_Table_1[[#This Row],[Item ID]],DataTable,17,FALSE),"")=0,"",IFERROR(VLOOKUP(Table_Data_Table_1[[#This Row],[Item ID]],DataTable,17,FALSE),"")) -> 
C94: =IF(Table_Data_Table_1[[#This Row],[Item ID]]="","",IFERROR(VLOOKUP(Table_Data_Table_1[[#This Row],[Item ID]],DataTable,16,FALSE),"")) ->  | H94: =IF(Table_Data_Table_1[[#This Row],[Valuation Method]]="Vacant",VLOOKUP(Table_Data_Table_1[[#This Row],[Item ID]],DataTable,6,FALSE)-VLOOKUP(Table_Data_Table_1[[#This Row],[Item ID]],DataTable,13,FALSE),IF(Table_Data_Table_1[[#This Row],[Valuation Method]]="Abstraction",VLOOKUP(Table_Data_Table_1[[#This Row],[Item ID]],DataTable,6,FALSE)-VLOOKUP(Table_Data_Table_1[[#This Row],[Item ID]],DataTable,13,FALSE),IF(Table_Data_Table_1[[#This Row],[Valuation Method]]="Allocation",VLOOKUP(Table_Data_Table_1[[#This Row],[Item ID]],DataTable,6,FALSE)*I94,""))) ->  | I94: =IF(Table_Data_Table_1[[#This Row],[Valuation Method]]="Vacant","N/A",IF(Table_Data_Table_1[[#This Row],[Valuation Method]]="Abstraction",Table_Data_Table_1[[#This Row],[Land Residual]]/VLOOKUP(Table_Data_Table_1[[#This Row],[Item ID]],DataTable,6,FALSE),IF(Table_Data_Table_1[[#This Row],[Valuation Method]]="Allocation",'Global Settings'!$H$20,""))) ->  | J94: =IFERROR(ROUND(Table_Data_Table_1[[#This Row],[Resid Sq Ft]]/43560,3),"") ->  | K94: =IF(Table_Data_Table_1[[#This Row],[Item ID]]="","",IFERROR(VLOOKUP(Table_Data_Table_1[[#This Row],[Item ID]],DataTable,10,FALSE)-VLOOKUP(Table_Data_Table_1[[#This Row],[Item ID]],DataTable,12,FALSE),"")) ->  | L94: =IFERROR(Table_Data_Table_1[[#This Row],[Land Residual]]/Table_Data_Table_1[[#This Row],[Resid Acre]],"") ->  | M94: =IFERROR(ROUND(Table_Data_Table_1[[#This Row],[Land Residual]]/Table_Data_Table_1[[#This Row],[Resid Sq Ft]],2),"") ->  | N94: =IF(Table_Data_Table_1[[#This Row],[Item ID]]="","",ROUND(DAYS360(Table_Data_Table_1[[#This Row],[Sale Date]],'Global Settings'!$H$5)/30,0)) ->  | O94: =IFERROR(IF(AND(Table_Data_Table_1[[#This Row],[Months To Mid-Point]]<12.01,Table_Data_Table_1[[#This Row],[Months To Mid-Point]]>-13),0,(Table_Data_Table_1[[#This Row],[Months To Mid-Point]]*'Global Settings'!$H$6)),"") ->  | P94: =IFERROR(Table_Data_Table_1[[#This Row],[Land Residual]]*(Table_Data_Table_1[[#This Row],[Time Adjust]]+1),"") ->  | Q94: =IFERROR(Table_Data_Table_1[[#This Row],[Adjusted Sale Price]]/Table_Data_Table_1[[#This Row],[Resid Acre]],"") ->  | R94: =IFERROR(ROUND(Table_Data_Table_1[[#This Row],[Adjusted Sale Price]]/Table_Data_Table_1[[#This Row],[Resid Sq Ft]],2),"") ->  | S94: =IFERROR(IF(VLOOKUP(Table_Data_Table_1[[#This Row],[Item ID]],DataTable,11,FALSE)=0,"N/A",Table_Data_Table_1[[#This Row],[Adjusted Sale Price]]/VLOOKUP(Table_Data_Table_1[[#This Row],[Item ID]],DataTable,11,FALSE)),"") ->  | T94: =IF(IFERROR(VLOOKUP(Table_Data_Table_1[[#This Row],[Item ID]],DataTable,17,FALSE),"")=0,"",IFERROR(VLOOKUP(Table_Data_Table_1[[#This Row],[Item ID]],DataTable,17,FALSE),"")) -> 
C95: =IF(Table_Data_Table_1[[#This Row],[Item ID]]="","",IFERROR(VLOOKUP(Table_Data_Table_1[[#This Row],[Item ID]],DataTable,16,FALSE),"")) ->  | H95: =IF(Table_Data_Table_1[[#This Row],[Valuation Method]]="Vacant",VLOOKUP(Table_Data_Table_1[[#This Row],[Item ID]],DataTable,6,FALSE)-VLOOKUP(Table_Data_Table_1[[#This Row],[Item ID]],DataTable,13,FALSE),IF(Table_Data_Table_1[[#This Row],[Valuation Method]]="Abstraction",VLOOKUP(Table_Data_Table_1[[#This Row],[Item ID]],DataTable,6,FALSE)-VLOOKUP(Table_Data_Table_1[[#This Row],[Item ID]],DataTable,13,FALSE),IF(Table_Data_Table_1[[#This Row],[Valuation Method]]="Allocation",VLOOKUP(Table_Data_Table_1[[#This Row],[Item ID]],DataTable,6,FALSE)*I95,""))) ->  | I95: =IF(Table_Data_Table_1[[#This Row],[Valuation Method]]="Vacant","N/A",IF(Table_Data_Table_1[[#This Row],[Valuation Method]]="Abstraction",Table_Data_Table_1[[#This Row],[Land Residual]]/VLOOKUP(Table_Data_Table_1[[#This Row],[Item ID]],DataTable,6,FALSE),IF(Table_Data_Table_1[[#This Row],[Valuation Method]]="Allocation",'Global Settings'!$H$20,""))) ->  | J95: =IFERROR(ROUND(Table_Data_Table_1[[#This Row],[Resid Sq Ft]]/43560,3),"") ->  | K95: =IF(Table_Data_Table_1[[#This Row],[Item ID]]="","",IFERROR(VLOOKUP(Table_Data_Table_1[[#This Row],[Item ID]],DataTable,10,FALSE)-VLOOKUP(Table_Data_Table_1[[#This Row],[Item ID]],DataTable,12,FALSE),"")) ->  | L95: =IFERROR(Table_Data_Table_1[[#This Row],[Land Residual]]/Table_Data_Table_1[[#This Row],[Resid Acre]],"") ->  | M95: =IFERROR(ROUND(Table_Data_Table_1[[#This Row],[Land Residual]]/Table_Data_Table_1[[#This Row],[Resid Sq Ft]],2),"") ->  | N95: =IF(Table_Data_Table_1[[#This Row],[Item ID]]="","",ROUND(DAYS360(Table_Data_Table_1[[#This Row],[Sale Date]],'Global Settings'!$H$5)/30,0)) ->  | O95: =IFERROR(IF(AND(Table_Data_Table_1[[#This Row],[Months To Mid-Point]]<12.01,Table_Data_Table_1[[#This Row],[Months To Mid-Point]]>-13),0,(Table_Data_Table_1[[#This Row],[Months To Mid-Point]]*'Global Settings'!$H$6)),"") ->  | P95: =IFERROR(Table_Data_Table_1[[#This Row],[Land Residual]]*(Table_Data_Table_1[[#This Row],[Time Adjust]]+1),"") ->  | Q95: =IFERROR(Table_Data_Table_1[[#This Row],[Adjusted Sale Price]]/Table_Data_Table_1[[#This Row],[Resid Acre]],"") ->  | R95: =IFERROR(ROUND(Table_Data_Table_1[[#This Row],[Adjusted Sale Price]]/Table_Data_Table_1[[#This Row],[Resid Sq Ft]],2),"") ->  | S95: =IFERROR(IF(VLOOKUP(Table_Data_Table_1[[#This Row],[Item ID]],DataTable,11,FALSE)=0,"N/A",Table_Data_Table_1[[#This Row],[Adjusted Sale Price]]/VLOOKUP(Table_Data_Table_1[[#This Row],[Item ID]],DataTable,11,FALSE)),"") ->  | T95: =IF(IFERROR(VLOOKUP(Table_Data_Table_1[[#This Row],[Item ID]],DataTable,17,FALSE),"")=0,"",IFERROR(VLOOKUP(Table_Data_Table_1[[#This Row],[Item ID]],DataTable,17,FALSE),"")) -> 
C96: =IF(Table_Data_Table_1[[#This Row],[Item ID]]="","",IFERROR(VLOOKUP(Table_Data_Table_1[[#This Row],[Item ID]],DataTable,16,FALSE),"")) ->  | H96: =IF(Table_Data_Table_1[[#This Row],[Valuation Method]]="Vacant",VLOOKUP(Table_Data_Table_1[[#This Row],[Item ID]],DataTable,6,FALSE)-VLOOKUP(Table_Data_Table_1[[#This Row],[Item ID]],DataTable,13,FALSE),IF(Table_Data_Table_1[[#This Row],[Valuation Method]]="Abstraction",VLOOKUP(Table_Data_Table_1[[#This Row],[Item ID]],DataTable,6,FALSE)-VLOOKUP(Table_Data_Table_1[[#This Row],[Item ID]],DataTable,13,FALSE),IF(Table_Data_Table_1[[#This Row],[Valuation Method]]="Allocation",VLOOKUP(Table_Data_Table_1[[#This Row],[Item ID]],DataTable,6,FALSE)*I96,""))) ->  | I96: =IF(Table_Data_Table_1[[#This Row],[Valuation Method]]="Vacant","N/A",IF(Table_Data_Table_1[[#This Row],[Valuation Method]]="Abstraction",Table_Data_Table_1[[#This Row],[Land Residual]]/VLOOKUP(Table_Data_Table_1[[#This Row],[Item ID]],DataTable,6,FALSE),IF(Table_Data_Table_1[[#This Row],[Valuation Method]]="Allocation",'Global Settings'!$H$20,""))) ->  | J96: =IFERROR(ROUND(Table_Data_Table_1[[#This Row],[Resid Sq Ft]]/43560,3),"") ->  | K96: =IF(Table_Data_Table_1[[#This Row],[Item ID]]="","",IFERROR(VLOOKUP(Table_Data_Table_1[[#This Row],[Item ID]],DataTable,10,FALSE)-VLOOKUP(Table_Data_Table_1[[#This Row],[Item ID]],DataTable,12,FALSE),"")) ->  | L96: =IFERROR(Table_Data_Table_1[[#This Row],[Land Residual]]/Table_Data_Table_1[[#This Row],[Resid Acre]],"") ->  | M96: =IFERROR(ROUND(Table_Data_Table_1[[#This Row],[Land Residual]]/Table_Data_Table_1[[#This Row],[Resid Sq Ft]],2),"") ->  | N96: =IF(Table_Data_Table_1[[#This Row],[Item ID]]="","",ROUND(DAYS360(Table_Data_Table_1[[#This Row],[Sale Date]],'Global Settings'!$H$5)/30,0)) ->  | O96: =IFERROR(IF(AND(Table_Data_Table_1[[#This Row],[Months To Mid-Point]]<12.01,Table_Data_Table_1[[#This Row],[Months To Mid-Point]]>-13),0,(Table_Data_Table_1[[#This Row],[Months To Mid-Point]]*'Global Settings'!$H$6)),"") ->  | P96: =IFERROR(Table_Data_Table_1[[#This Row],[Land Residual]]*(Table_Data_Table_1[[#This Row],[Time Adjust]]+1),"") ->  | Q96: =IFERROR(Table_Data_Table_1[[#This Row],[Adjusted Sale Price]]/Table_Data_Table_1[[#This Row],[Resid Acre]],"") ->  | R96: =IFERROR(ROUND(Table_Data_Table_1[[#This Row],[Adjusted Sale Price]]/Table_Data_Table_1[[#This Row],[Resid Sq Ft]],2),"") ->  | S96: =IFERROR(IF(VLOOKUP(Table_Data_Table_1[[#This Row],[Item ID]],DataTable,11,FALSE)=0,"N/A",Table_Data_Table_1[[#This Row],[Adjusted Sale Price]]/VLOOKUP(Table_Data_Table_1[[#This Row],[Item ID]],DataTable,11,FALSE)),"") ->  | T96: =IF(IFERROR(VLOOKUP(Table_Data_Table_1[[#This Row],[Item ID]],DataTable,17,FALSE),"")=0,"",IFERROR(VLOOKUP(Table_Data_Table_1[[#This Row],[Item ID]],DataTable,17,FALSE),"")) -> 
C97: =IF(Table_Data_Table_1[[#This Row],[Item ID]]="","",IFERROR(VLOOKUP(Table_Data_Table_1[[#This Row],[Item ID]],DataTable,16,FALSE),"")) ->  | H97: =IF(Table_Data_Table_1[[#This Row],[Valuation Method]]="Vacant",VLOOKUP(Table_Data_Table_1[[#This Row],[Item ID]],DataTable,6,FALSE)-VLOOKUP(Table_Data_Table_1[[#This Row],[Item ID]],DataTable,13,FALSE),IF(Table_Data_Table_1[[#This Row],[Valuation Method]]="Abstraction",VLOOKUP(Table_Data_Table_1[[#This Row],[Item ID]],DataTable,6,FALSE)-VLOOKUP(Table_Data_Table_1[[#This Row],[Item ID]],DataTable,13,FALSE),IF(Table_Data_Table_1[[#This Row],[Valuation Method]]="Allocation",VLOOKUP(Table_Data_Table_1[[#This Row],[Item ID]],DataTable,6,FALSE)*I97,""))) ->  | I97: =IF(Table_Data_Table_1[[#This Row],[Valuation Method]]="Vacant","N/A",IF(Table_Data_Table_1[[#This Row],[Valuation Method]]="Abstraction",Table_Data_Table_1[[#This Row],[Land Residual]]/VLOOKUP(Table_Data_Table_1[[#This Row],[Item ID]],DataTable,6,FALSE),IF(Table_Data_Table_1[[#This Row],[Valuation Method]]="Allocation",'Global Settings'!$H$20,""))) ->  | J97: =IFERROR(ROUND(Table_Data_Table_1[[#This Row],[Resid Sq Ft]]/43560,3),"") ->  | K97: =IF(Table_Data_Table_1[[#This Row],[Item ID]]="","",IFERROR(VLOOKUP(Table_Data_Table_1[[#This Row],[Item ID]],DataTable,10,FALSE)-VLOOKUP(Table_Data_Table_1[[#This Row],[Item ID]],DataTable,12,FALSE),"")) ->  | L97: =IFERROR(Table_Data_Table_1[[#This Row],[Land Residual]]/Table_Data_Table_1[[#This Row],[Resid Acre]],"") ->  | M97: =IFERROR(ROUND(Table_Data_Table_1[[#This Row],[Land Residual]]/Table_Data_Table_1[[#This Row],[Resid Sq Ft]],2),"") ->  | N97: =IF(Table_Data_Table_1[[#This Row],[Item ID]]="","",ROUND(DAYS360(Table_Data_Table_1[[#This Row],[Sale Date]],'Global Settings'!$H$5)/30,0)) ->  | O97: =IFERROR(IF(AND(Table_Data_Table_1[[#This Row],[Months To Mid-Point]]<12.01,Table_Data_Table_1[[#This Row],[Months To Mid-Point]]>-13),0,(Table_Data_Table_1[[#This Row],[Months To Mid-Point]]*'Global Settings'!$H$6)),"") ->  | P97: =IFERROR(Table_Data_Table_1[[#This Row],[Land Residual]]*(Table_Data_Table_1[[#This Row],[Time Adjust]]+1),"") ->  | Q97: =IFERROR(Table_Data_Table_1[[#This Row],[Adjusted Sale Price]]/Table_Data_Table_1[[#This Row],[Resid Acre]],"") ->  | R97: =IFERROR(ROUND(Table_Data_Table_1[[#This Row],[Adjusted Sale Price]]/Table_Data_Table_1[[#This Row],[Resid Sq Ft]],2),"") ->  | S97: =IFERROR(IF(VLOOKUP(Table_Data_Table_1[[#This Row],[Item ID]],DataTable,11,FALSE)=0,"N/A",Table_Data_Table_1[[#This Row],[Adjusted Sale Price]]/VLOOKUP(Table_Data_Table_1[[#This Row],[Item ID]],DataTable,11,FALSE)),"") ->  | T97: =IF(IFERROR(VLOOKUP(Table_Data_Table_1[[#This Row],[Item ID]],DataTable,17,FALSE),"")=0,"",IFERROR(VLOOKUP(Table_Data_Table_1[[#This Row],[Item ID]],DataTable,17,FALSE),"")) -> 
C98: =IF(Table_Data_Table_1[[#This Row],[Item ID]]="","",IFERROR(VLOOKUP(Table_Data_Table_1[[#This Row],[Item ID]],DataTable,16,FALSE),"")) ->  | H98: =IF(Table_Data_Table_1[[#This Row],[Valuation Method]]="Vacant",VLOOKUP(Table_Data_Table_1[[#This Row],[Item ID]],DataTable,6,FALSE)-VLOOKUP(Table_Data_Table_1[[#This Row],[Item ID]],DataTable,13,FALSE),IF(Table_Data_Table_1[[#This Row],[Valuation Method]]="Abstraction",VLOOKUP(Table_Data_Table_1[[#This Row],[Item ID]],DataTable,6,FALSE)-VLOOKUP(Table_Data_Table_1[[#This Row],[Item ID]],DataTable,13,FALSE),IF(Table_Data_Table_1[[#This Row],[Valuation Method]]="Allocation",VLOOKUP(Table_Data_Table_1[[#This Row],[Item ID]],DataTable,6,FALSE)*I98,""))) ->  | I98: =IF(Table_Data_Table_1[[#This Row],[Valuation Method]]="Vacant","N/A",IF(Table_Data_Table_1[[#This Row],[Valuation Method]]="Abstraction",Table_Data_Table_1[[#This Row],[Land Residual]]/VLOOKUP(Table_Data_Table_1[[#This Row],[Item ID]],DataTable,6,FALSE),IF(Table_Data_Table_1[[#This Row],[Valuation Method]]="Allocation",'Global Settings'!$H$20,""))) ->  | J98: =IFERROR(ROUND(Table_Data_Table_1[[#This Row],[Resid Sq Ft]]/43560,3),"") ->  | K98: =IF(Table_Data_Table_1[[#This Row],[Item ID]]="","",IFERROR(VLOOKUP(Table_Data_Table_1[[#This Row],[Item ID]],DataTable,10,FALSE)-VLOOKUP(Table_Data_Table_1[[#This Row],[Item ID]],DataTable,12,FALSE),"")) ->  | L98: =IFERROR(Table_Data_Table_1[[#This Row],[Land Residual]]/Table_Data_Table_1[[#This Row],[Resid Acre]],"") ->  | M98: =IFERROR(ROUND(Table_Data_Table_1[[#This Row],[Land Residual]]/Table_Data_Table_1[[#This Row],[Resid Sq Ft]],2),"") ->  | N98: =IF(Table_Data_Table_1[[#This Row],[Item ID]]="","",ROUND(DAYS360(Table_Data_Table_1[[#This Row],[Sale Date]],'Global Settings'!$H$5)/30,0)) ->  | O98: =IFERROR(IF(AND(Table_Data_Table_1[[#This Row],[Months To Mid-Point]]<12.01,Table_Data_Table_1[[#This Row],[Months To Mid-Point]]>-13),0,(Table_Data_Table_1[[#This Row],[Months To Mid-Point]]*'Global Settings'!$H$6)),"") ->  | P98: =IFERROR(Table_Data_Table_1[[#This Row],[Land Residual]]*(Table_Data_Table_1[[#This Row],[Time Adjust]]+1),"") ->  | Q98: =IFERROR(Table_Data_Table_1[[#This Row],[Adjusted Sale Price]]/Table_Data_Table_1[[#This Row],[Resid Acre]],"") ->  | R98: =IFERROR(ROUND(Table_Data_Table_1[[#This Row],[Adjusted Sale Price]]/Table_Data_Table_1[[#This Row],[Resid Sq Ft]],2),"") ->  | S98: =IFERROR(IF(VLOOKUP(Table_Data_Table_1[[#This Row],[Item ID]],DataTable,11,FALSE)=0,"N/A",Table_Data_Table_1[[#This Row],[Adjusted Sale Price]]/VLOOKUP(Table_Data_Table_1[[#This Row],[Item ID]],DataTable,11,FALSE)),"") ->  | T98: =IF(IFERROR(VLOOKUP(Table_Data_Table_1[[#This Row],[Item ID]],DataTable,17,FALSE),"")=0,"",IFERROR(VLOOKUP(Table_Data_Table_1[[#This Row],[Item ID]],DataTable,17,FALSE),"")) -> 
